Workbook

Sheet Spreadsheet10.1
B9: Swap Details | G9: Disc Fact | H9: Fwd Rate | I9: Fixed Leg | J9: Floating Leg | K9: Fwd Swap Rate | L9: d1 | M9: d2 | N9: DV01 | O9: Spd payoff | P9: Swaption
B10: Swap Rate | C10: 0.025 | F10: 0 | G10: 1
B11: Pay/Rec | C11: PAY | F11: 0.05 | G11: =G10*EXP(-(F11-F10)*IRate1) -> 0.9990004998 | H11: =-(LN(G11)-LN(G10))/(F11-F10) -> 0.02 | I11: =IF(ABS(MOD(F11,PayFrac))<0.000001,SwapRate*PayFrac,0) -> 0 | J11: =IF(ABS(MOD(F11,RecFrac))<0.000001,H11*RecFrac,0) -> 0 | K11: =SwapRate*SUMPRODUCT(G12:$G$112,J12:$J$112)/SUMPRODUCT(G12:$G$112,I12:$I$112) -> 0.02487371818 | L11: =(LN(K11/SwapRate)+0.5*SwapRateVol^2*F11)/(SwapRateVol*SQRT(F11)) -> -0.06263805287 | M11: =L11-SwapRateVol*SQRT(F11) -> -0.1185397523 | N11: =SUM(G12:$G$112)/G11*0.05 -> 4.675475921 | O11: =IF(PayRec="PAY",K11*NORMSDIST(L11)-SwapRate*NORMSDIST(M11),SwapRate*NORMSDIST(-M11)-K11*NORMSDIST(-L11)) -> 0.0004951967769 | P11: =O11*N11 -> 0.002315280607
B12: Fixed Freq | C12: Q | D12: =IF(PayFreq="A",1,IF(PayFreq="S",1/2,IF(PayFreq="Q",1/4,"ERROR"))) -> 0.25 | F12: 0.1 | G12: 0.9980019987 | H12: =-(LN(G12)-LN(G11))/(F12-F11) -> 0.02 | I12: 0 | J12: 0 | K12: =SwapRate*SUMPRODUCT(G13:$G$112,J13:$J$112)/SUMPRODUCT(G13:$G$112,I13:$I$112) -> 0.02487371818 | L12: -0.02452755657 | M12: -0.1035844981 | N12: =SUM(G13:$G$112)/G12*0.05 -> 4.630153735 | O12: 0.0007247535579 | P12: =O12*N12 -> 0.003355720394
B13: Floating Freq | C13: Q | D13: =IF(RecFreq="A",1,IF(RecFreq="S",1/2,IF(RecFreq="Q",1/4,"ERROR"))) -> 0.25 | F13: 0.15 | G13: 0.9970044955 | H13: =-(LN(G13)-LN(G12))/(F13-F12) -> 0.02 | I13: 0 | J13: 0 | K13: =SwapRate*SUMPRODUCT(G14:$G$112,J14:$J$112)/SUMPRODUCT(G14:$G$112,I14:$I$112) -> 0.02487371818 | L13: -0.003889235466 | M13: -0.1007138191 | N13: =SUM(G14:$G$112)/G13*0.05 -> 4.584786205 | O13: 0.0009010450985 | P13: 0.004131099138
F14: 0.2 | G14: 0.9960079893 | H14: =-(LN(G14)-LN(G13))/(F14-F13) -> 0.02 | I14: 0 | J14: 0 | K14: =SwapRate*SUMPRODUCT(G15:$G$112,J15:$J$112)/SUMPRODUCT(G15:$G$112,I15:$I$112) -> 0.02487371818 | L14: 0.01060724814 | M14: -0.1011961507 | N14: =SUM(G15:$G$112)/G14*0.05 -> 4.539373284 | O14: 0.001049680322 | P14: 0.004764890812
B15: Interest rates | F15: 0.25 | G15: 0.9950124792 | H15: =-(LN(G15)-LN(G14))/(F15-F14) -> 0.02 | I15: 0.00625 | J15: 0.005 | K15: =SwapRate*SUMPRODUCT(G16:$G$112,J16:$J$112)/SUMPRODUCT(G16:$G$112,I16:$I$112) -> 0.02514553001 | L15: 0.1089345817 | M15: -0.01606541826 | N15: =SUM(G16:$G$112)/G15*0.05 -> 4.493914928 | O15: 0.001323619804 | P15: 0.005948234796
B16: 1Y | C16: 0.02 | F16: 0.3 | G16: 0.9940179641 | H16: 0.02 | I16: 0 | J16: 0 | K16: =SwapRate*SUMPRODUCT(G17:$G$112,J17:$J$112)/SUMPRODUCT(G17:$G$112,I17:$I$112) -> 0.02514553001 | L16: 0.1108540995 | M16: -0.02607653991 | N16: =SUM(G17:$G$112)/G16*0.05 -> 4.448411091 | O16: 0.001442583653 | P16: 0.006417205122
B17: 2Y | C17: 0.0225 | F17: 0.35 | G17: 0.9930244429 | H17: 0.02 | I17: 0 | J17: 0 | K17: =SwapRate*SUMPRODUCT(G18:$G$112,J18:$J$112)/SUMPRODUCT(G18:$G$112,I18:$I$112) -> 0.02514553001 | L17: 0.1131953816 | M17: -0.03470661297 | N17: =SUM(G18:$G$112)/G17*0.05 -> 4.402861727 | O17: 0.001551956094 | P17: 0.006833048087
B18: 3Y | C18: 0.025 | F18: 0.4 | G18: 0.9920319148 | H18: 0.02 | I18: 0 | J18: 0 | K18: =SwapRate*SUMPRODUCT(G19:$G$112,J19:$J$112)/SUMPRODUCT(G19:$G$112,I19:$I$112) -> 0.02514553001 | L18: 0.1157667016 | M18: -0.04234718138 | N18: =SUM(G19:$G$112)/G18*0.05 -> 4.357266791 | O18: 0.001653729027 | P18: 0.007205738571
B19: 4Y | C19: 0.0275 | F19: 0.45 | G19: 0.9910403788 | H19: 0.02 | I19: 0 | J19: 0 | K19: =SwapRate*SUMPRODUCT(G20:$G$112,J20:$J$112)/SUMPRODUCT(G20:$G$112,I20:$I$112) -> 0.02514553001 | L19: 0.1184628429 | M19: -0.0492422554 | N19: =SUM(G20:$G$112)/G19*0.05 -> 4.311626237 | O19: 0.001749287028 | P19: 0.007542271846
B20: 5Y | C20: 0.03 | F20: 0.5 | G20: 0.9900498337 | H20: 0.02 | I20: 0.00625 | J20: 0.005 | K20: =SwapRate*SUMPRODUCT(G21:$G$112,J21:$J$112)/SUMPRODUCT(G21:$G$112,I21:$I$112) -> 0.02544784613 | L20: 0.1888273964 | M20: 0.01205070106 | N20: =SUM(G21:$G$112)/G20*0.05 -> 4.26594002 | O20: 0.002009423767 | P20: 0.008572081262
F21: 0.55 | G21: 0.9890602788 | H21: 0.02 | I21: 0 | J21: 0 | K21: =SwapRate*SUMPRODUCT(G22:$G$112,J22:$J$112)/SUMPRODUCT(G22:$G$112,I22:$I$112) -> 0.02544784613 | L21: 0.1884673565 | M21: 0.003062394356 | N21: =SUM(G22:$G$112)/G21*0.05 -> 4.220208093 | O21: 0.002095475556 | P21: 0.0088433429
B22: Other parameters | F22: 0.6 | G22: 0.9880717129 | H22: 0.02 | I22: 0 | J22: 0 | K22: =SwapRate*SUMPRODUCT(G23:$G$112,J23:$J$112)/SUMPRODUCT(G23:$G$112,I23:$I$112) -> 0.02544784613 | L22: 0.1885124714 | M22: -0.005136695934 | N22: =SUM(G23:$G$112)/G22*0.05 -> 4.174430412 | O22: 0.002177699329 | P22: 0.009090654306
B23: Volatility | C23: 0.25 | F23: 0.65 | G23: 0.987084135 | H23: 0.02 | I23: 0 | J23: 0 | K23: =SwapRate*SUMPRODUCT(G24:$G$112,J24:$J$112)/SUMPRODUCT(G24:$G$112,I24:$I$112) -> 0.02544784613 | L23: 0.188869095 | M23: -0.01268734873 | N23: =SUM(G24:$G$112)/G23*0.05 -> 4.128606931 | O23: 0.002256559665 | P23: 0.009316447871
F24: 0.7 | G24: 0.9860975443 | H24: 0.02 | I24: 0 | J24: 0 | K24: =SwapRate*SUMPRODUCT(G25:$G$112,J25:$J$112)/SUMPRODUCT(G25:$G$112,I25:$I$112) -> 0.02544784613 | L24: 0.1894689927 | M24: -0.01969601396 | N24: =SUM(G25:$G$112)/G24*0.05 -> 4.082737602 | O24: 0.002332433975 | P24: 0.009522715893
F25: 0.75 | G25: 0.9851119396 | H25: 0.02 | I25: 0.00625 | J25: 0.005 | K25: =SwapRate*SUMPRODUCT(G26:$G$112,J26:$J$112)/SUMPRODUCT(G26:$G$112,I26:$I$112) -> 0.02578610238 | L25: 0.251250618 | M25: 0.03474426703 | N25: =SUM(G26:$G$112)/G25*0.05 -> 4.036822382 | O25: 0.002604315926 | P25: 0.01051316082
F26: 0.8 | G26: 0.9841273201 | H26: 0.02 | I26: 0 | J26: 0 | K26: =SwapRate*SUMPRODUCT(G27:$G$112,J27:$J$112)/SUMPRODUCT(G27:$G$112,I27:$I$112) -> 0.02578610238 | L26: 0.2502600772 | M26: 0.02665327947 | N26: =SUM(G27:$G$112)/G26*0.05 -> 3.990861224 | O26: 0.002675099136 | P26: 0.01067594941
F27: 0.85 | G27: 0.9831436846 | H27: 0.02 | I27: 0 | J27: 0 | K27: =SwapRate*SUMPRODUCT(G28:$G$112,J28:$J$112)/SUMPRODUCT(G28:$G$112,I28:$I$112) -> 0.02578610238 | L27: 0.2495670138 | M27: 0.01907840237 | N27: =SUM(G28:$G$112)/G27*0.05 -> 3.944854081 | O27: 0.002743717225 | P27: 0.01082356409
F28: 0.9 | G28: 0.9821610324 | H28: 0.02 | I28: 0 | J28: 0 | K28: =SwapRate*SUMPRODUCT(G29:$G$112,J29:$J$112)/SUMPRODUCT(G29:$G$112,I29:$I$112) -> 0.02578610238 | L28: 0.2491236205 | M28: 0.01195279595 | N28: =SUM(G29:$G$112)/G28*0.05 -> 3.898800908 | O28: 0.002810354514 | P28: 0.01095701273
F29: 0.95 | G29: 0.9811793622 | H29: 0.02 | I29: 0 | J29: 0 | K29: =SwapRate*SUMPRODUCT(G30:$G$112,J30:$J$112)/SUMPRODUCT(G30:$G$112,I30:$I$112) -> 0.02578610238 | L29: 0.2488914912 | M29: 0.005221632575 | N29: =SUM(G30:$G$112)/G29*0.05 -> 3.852701659 | O29: 0.002875170498 | P29: 0.01107717415
F30: 1 | G30: 0.9801986733 | H30: 0.02 | I30: 0.00625 | J30: 0.005 | K30: =SwapRate*SUMPRODUCT(G31:$G$112,J31:$J$112)/SUMPRODUCT(G31:$G$112,I31:$I$112) -> 0.02616710772 | L30: 0.307509466 | M30: 0.05750946598 | N30: =SUM(G31:$G$112)/G30*0.05 -> 3.806556288 | O30: 0.003170554848 | P30: 0.01206889549
F31: 1.05 | G31: =G30*EXP(-(F31-F30)*IRate2) -> 0.9790965698 | H31: 0.0225 | I31: 0 | J31: 0 | K31: =SwapRate*SUMPRODUCT(G32:$G$112,J32:$J$112)/SUMPRODUCT(G32:$G$112,I32:$I$112) -> 0.02616710772 | L31: 0.3061978857 | M31: 0.05002411659 | N31: =SUM(G32:$G$112)/G31*0.05 -> 3.760841073 | O31: 0.003232040265 | P31: 0.01215518978
F32: 1.1 | G32: 0.9779957056 | H32: 0.0225 | I32: 0 | J32: 0 | K32: =SwapRate*SUMPRODUCT(G33:$G$112,J33:$J$112)/SUMPRODUCT(G33:$G$112,I33:$I$112) -> 0.02616710772 | L32: 0.305117054 | M32: 0.04291484197 | N32: =SUM(G33:$G$112)/G32*0.05 -> 3.7150744 | O32: 0.00329210032 | P32: 0.01223039762
F33: 1.15 | G33: 0.976896079 | H33: 0.0225 | I33: 0 | J33: 0 | K33: =SwapRate*SUMPRODUCT(G34:$G$112,J34:$J$112)/SUMPRODUCT(G34:$G$112,I34:$I$112) -> 0.02616710772 | L33: 0.3042385208 | M33: 0.03614338839 | N33: =SUM(G34:$G$112)/G33*0.05 -> 3.669256211 | O33: 0.003350827717 | P33: 0.01229504541
F34: 1.2 | G34: 0.9757976889 | H34: 0.0225 | I34: 0 | J34: 0 | K34: =SwapRate*SUMPRODUCT(G35:$G$112,J35:$J$112)/SUMPRODUCT(G35:$G$112,I35:$I$112) -> 0.02616710772 | L34: 0.3035382252 | M34: 0.02967694642 | N34: =SUM(G35:$G$112)/G34*0.05 -> 3.623386447 | O34: 0.003408305496 | P34: 0.01234960794
F35: 1.25 | G35: 0.9747005338 | H35: 0.0225 | I35: 0.00625 | J35: 0.005625 | K35: =SwapRate*SUMPRODUCT(G36:$G$112,J36:$J$112)/SUMPRODUCT(G36:$G$112,I36:$I$112) -> 0.02642405063 | L35: 0.3379549463 | M35: 0.05844644912 | N35: =SUM(G36:$G$112)/G35*0.05 -> 3.57746505 | O35: 0.003625377712 | P35: 0.01296966206
F36: 1.3 | G36: 0.9736046123 | H36: 0.0225 | I36: 0 | J36: 0 | K36: =SwapRate*SUMPRODUCT(G37:$G$112,J37:$J$112)/SUMPRODUCT(G37:$G$112,I37:$I$112) -> 0.02642405063 | L36: 0.3368737022 | M36: 0.05182984595 | N36: =SUM(G37:$G$112)/G36*0.05 -> 3.531491963 | O36: 0.003680501012 | P36: 0.01299765974
F37: 1.35 | G37: 0.9725099229 | H37: 0.0225 | I37: 0 | J37: 0 | K37: =SwapRate*SUMPRODUCT(G38:$G$112,J38:$J$112)/SUMPRODUCT(G38:$G$112,I38:$I$112) -> 0.02642405063 | L37: 0.3359555858 | M37: 0.04548183481 | N37: =SUM(G38:$G$112)/G37*0.05 -> 3.485467127 | O37: 0.00373459225 | P37: 0.01301679852
F38: 1.4 | G38: 0.9714164645 | H38: 0.0225 | I38: 0 | J38: 0 | K38: =SwapRate*SUMPRODUCT(G39:$G$112,J39:$J$112)/SUMPRODUCT(G39:$G$112,I39:$I$112) -> 0.02642405063 | L38: 0.3351840502 | M38: 0.03938006107 | N38: =SUM(G39:$G$112)/G38*0.05 -> 3.439390484 | O38: 0.003787705792 | P38: 0.01302739926
F39: 1.45 | G39: 0.9703242354 | H39: 0.0225 | I39: 0 | J39: 0 | K39: =SwapRate*SUMPRODUCT(G40:$G$112,J40:$J$112)/SUMPRODUCT(G40:$G$112,I40:$I$112) -> 0.02642405063 | L39: 0.3345446602 | M39: 0.03350479571 | N39: =SUM(G40:$G$112)/G39*0.05 -> 3.393261976 | O39: 0.003839891372 | P39: 0.01302975738
F40: 1.5 | G40: 0.9692332345 | H40: 0.0225 | I40: 0.00625 | J40: 0.005625 | K40: =SwapRate*SUMPRODUCT(G41:$G$112,J41:$J$112)/SUMPRODUCT(G41:$G$112,I41:$I$112) -> 0.02671793024 | L40: 0.370147489 | M40: 0.06396127119 | N40: =SUM(G41:$G$112)/G40*0.05 -> 3.347081544 | O40: 0.004078577697 | P40: 0.01365133214
F41: 1.55 | G41: 0.9681434602 | H41: 0.0225 | I41: 0 | J41: 0 | K41: =SwapRate*SUMPRODUCT(G42:$G$112,J42:$J$112)/SUMPRODUCT(G42:$G$112,I42:$I$112) -> 0.02671793024 | L41: 0.3691485503 | M41: 0.05790106039 | N41: =SUM(G42:$G$112)/G41*0.05 -> 3.300849129 | O41: 0.004128962919 | P41: 0.01362908366
F42: 1.6 | G42: 0.9670549112 | H42: 0.0225 | I42: 0 | J42: 0 | K42: =SwapRate*SUMPRODUCT(G43:$G$112,J43:$J$112)/SUMPRODUCT(G43:$G$112,I43:$I$112) -> 0.02671793024 | L42: 0.3682758829 | M42: 0.05204811684 | N42: =SUM(G43:$G$112)/G42*0.05 -> 3.254564674 | O42: 0.004178558938 | P42: 0.01359939031
F43: 1.65 | G43: 0.9659675862 | H43: 0.0225 | I43: =IF(ABS(MOD(F43,PayFrac))<0.000001,SwapRate*PayFrac,0) -> 0 | J43: =IF(ABS(MOD(F43,RecFrac))<0.000001,H43*RecFrac,0) -> 0 | K43: =SwapRate*SUMPRODUCT(G44:$G$112,J44:$J$112)/SUMPRODUCT(G44:$G$112,I44:$I$112) -> 0.02671793024 | L43: =(LN(K43/SwapRate)+0.5*SwapRateVol^2*F43)/(SwapRateVol*SQRT(F43)) -> 0.3675186385 | M43: =L43-SwapRateVol*SQRT(F43) -> 0.04638782403 | N43: =SUM(G44:$G$112)/G43*0.05 -> 3.20822812 | O43: =IF(PayRec="PAY",K43*NORMSDIST(L43)-SwapRate*NORMSDIST(M43),SwapRate*NORMSDIST(-M43)-K43*NORMSDIST(-L43)) -> 0.004227400533 | P43: 0.01356246526
F44: 1.7 | G44: 0.9648814837 | H44: 0.0225 | I44: 0 | J44: 0 | K44: =SwapRate*SUMPRODUCT(G45:$G$112,J45:$J$112)/SUMPRODUCT(G45:$G$112,I45:$I$112) -> 0.02671793024 | L44: 0.3668671481 | M44: 0.04090702784 | N44: =SUM(G45:$G$112)/G44*0.05 -> 3.161839407 | O44: 0.004275519988 | P44: 0.01351850758
F45: 1.75 | G45: 0.9637966024 | H45: 0.0225 | I45: 0.00625 | J45: 0.005625 | K45: =SwapRate*SUMPRODUCT(G46:$G$112,J46:$J$112)/SUMPRODUCT(G46:$G$112,I46:$I$112) -> 0.02705732231 | L45: 0.4044804627 | M45: 0.07376154881 | N45: =SUM(G46:$G$112)/G45*0.05 -> 3.115398478 | O45: 0.004543563863 | P45: 0.01415501195
F46: 1.8 | G46: 0.9627129409 | H46: 0.0225 | I46: 0 | J46: 0 | K46: =SwapRate*SUMPRODUCT(G47:$G$112,J47:$J$112)/SUMPRODUCT(G47:$G$112,I47:$I$112) -> 0.02705732231 | L46: 0.4034815896 | M46: 0.068071393 | N46: =SUM(G47:$G$112)/G46*0.05 -> 3.068905274 | O46: 0.004590235096 | P46: 0.0140869967
F47: 1.85 | G47: 0.9616304978 | H47: 0.0225 | I47: 0 | J47: 0 | K47: =SwapRate*SUMPRODUCT(G48:$G$112,J48:$J$112)/SUMPRODUCT(G48:$G$112,I48:$I$112) -> 0.02705732231 | L47: 0.4025868798 | M47: 0.06255011705 | N47: =SUM(G48:$G$112)/G47*0.05 -> 3.022359735 | O47: 0.004636280074 | P47: 0.01401250621
F48: 1.9 | G48: 0.9605492718 | H48: 0.0225 | I48: 0 | J48: 0 | K48: =SwapRate*SUMPRODUCT(G49:$G$112,J49:$J$112)/SUMPRODUCT(G49:$G$112,I49:$I$112) -> 0.02705732231 | L48: 0.4017885943 | M48: 0.05718737553 | N48: =SUM(G49:$G$112)/G48*0.05 -> 2.975761803 | O48: 0.004681722389 | P48: 0.01393169066
F49: 1.95 | G49: 0.9594692615 | H49: 0.0225 | I49: 0 | J49: 0 | K49: =SwapRate*SUMPRODUCT(G50:$G$112,J50:$J$112)/SUMPRODUCT(G50:$G$112,I50:$I$112) -> 0.02705732231 | L49: 0.4010797261 | M49: 0.05197372504 | N49: =SUM(G50:$G$112)/G49*0.05 -> 2.929111419 | O49: 0.004726584185 | P49: 0.01384469171
F50: 2 | G50: 0.9583904655 | H50: 0.0225 | I50: 0.00625 | J50: 0.005625 | K50: =SwapRate*SUMPRODUCT(G51:$G$112,J51:$J$112)/SUMPRODUCT(G51:$G$112,I51:$I$112) -> 0.02745368006 | L50: 0.4415864828 | M50: 0.08803309216 | N50: =SUM(G51:$G$112)/G50*0.05 -> 2.882408523 | O50: 0.005033725837 | P50: 0.01450925426
F51: 2.05 | G51: =G50*EXP(-(F51-F50)*IRate3) -> 0.9571932259 | H51: 0.025 | I51: 0 | J51: 0 | K51: =SwapRate*SUMPRODUCT(G52:$G$112,J52:$J$112)/SUMPRODUCT(G52:$G$112,I52:$I$112) -> 0.02745368006 | L51: 0.4405332278 | M51: 0.08258770126 | N51: =SUM(G52:$G$112)/G51*0.05 -> 2.836013787 | O51: 0.005077371913 | P51: 0.01439949675
F52: 2.1 | G52: 0.9559974818 | H52: 0.025 | I52: 0 | J52: 0 | K52: =SwapRate*SUMPRODUCT(G53:$G$112,J53:$J$112)/SUMPRODUCT(G53:$G$112,I53:$I$112) -> 0.02745368006 | L52: 0.4395701002 | M52: 0.07728568157 | N52: =SUM(G53:$G$112)/G52*0.05 -> 2.789561021 | O52: 0.005120508034 | P52: 0.01428396962
F53: 2.15 | G53: 0.9548032315 | H53: 0.025 | I53: 0 | J53: 0 | K53: =SwapRate*SUMPRODUCT(G54:$G$112,J54:$J$112)/SUMPRODUCT(G54:$G$112,I54:$I$112) -> 0.02745368006 | L53: 0.4386912172 | M53: 0.07211925975 | N53: =SUM(G54:$G$112)/G53*0.05 -> 2.743050152 | O53: 0.005163150869 | P53: 0.01416278178
F54: 2.2 | G54: 0.9536104731 | H54: 0.025 | I54: 0 | J54: 0 | K54: =SwapRate*SUMPRODUCT(G55:$G$112,J55:$J$112)/SUMPRODUCT(G55:$G$112,I55:$I$112) -> 0.02745368006 | L54: 0.4378911878 | M54: 0.06708126343 | N54: =SUM(G55:$G$112)/G54*0.05 -> 2.696481109 | O54: 0.005205316193 | P54: 0.01403603678
F55: 2.25 | G55: 0.9524192047 | H55: 0.025 | I55: 0.00625 | J55: 0.00625 | K55: =SwapRate*SUMPRODUCT(G56:$G$112,J56:$J$112)/SUMPRODUCT(G56:$G$112,I56:$I$112) -> 0.02768581432 | L55: 0.4596182371 | M55: 0.08461823711 | N55: =SUM(G56:$G$112)/G55*0.05 -> 2.649853818 | O55: 0.005403260868 | P55: 0.01431785144
F56: 2.3 | G56: 0.9512294245 | H56: 0.025 | I56: 0 | J56: 0 | K56: =SwapRate*SUMPRODUCT(G57:$G$112,J57:$J$112)/SUMPRODUCT(G57:$G$112,I57:$I$112) -> 0.02768581432 | L56: 0.4587160641 | M56: 0.0795722919 | N56: =SUM(G57:$G$112)/G56*0.05 -> 2.603168206 | O56: 0.005444449958 | P56: 0.01417281903
F57: 2.35 | G57: 0.9500411306 | H57: 0.025 | I57: 0 | J57: 0 | K57: =SwapRate*SUMPRODUCT(G58:$G$112,J58:$J$112)/SUMPRODUCT(G58:$G$112,I58:$I$112) -> 0.02768581432 | L57: 0.4578869193 | M57: 0.07464417642 | N57: =SUM(G58:$G$112)/G57*0.05 -> 2.556424201 | O57: 0.005485209898 | P57: 0.01402252333
F58: 2.4 | G58: 0.9488543211 | H58: 0.025 | I58: 0 | J58: 0 | K58: =SwapRate*SUMPRODUCT(G59:$G$112,J59:$J$112)/SUMPRODUCT(G59:$G$112,I59:$I$112) -> 0.02768581432 | L58: 0.4571265174 | M58: 0.06982818282 | N58: =SUM(G59:$G$112)/G58*0.05 -> 2.509621729 | O58: 0.005525553154 | P58: 0.01386704826
F59: 2.45 | G59: 0.9476689941 | H59: 0.025 | I59: 0 | J59: 0 | K59: =SwapRate*SUMPRODUCT(G60:$G$112,J60:$J$112)/SUMPRODUCT(G60:$G$112,I60:$I$112) -> 0.02768581432 | L59: 0.4564308949 | M59: 0.06511899886 | N59: =SUM(G60:$G$112)/G59*0.05 -> 2.462760718 | O59: 0.005565491596 | P59: 0.01370647408
F60: 2.5 | G60: 0.946485148 | H60: 0.025 | I60: 0.00625 | J60: 0.00625 | K60: =SwapRate*SUMPRODUCT(G61:$G$112,J61:$J$112)/SUMPRODUCT(G61:$G$112,I61:$I$112) -> 0.02796453101 | L60: 0.4811370873 | M60: 0.08585237974 | N60: =SUM(G61:$G$112)/G60*0.05 -> 2.415841094 | O60: 0.005794641275 | P60: 0.01399893251
F61: 2.55 | G61: 0.9453027807 | H61: 0.025 | I61: 0 | J61: 0 | K61: =SwapRate*SUMPRODUCT(G62:$G$112,J62:$J$112)/SUMPRODUCT(G62:$G$112,I62:$I$112) -> 0.02796453101 | L61: 0.4803106066 | M61: 0.08109262104 | N61: =SUM(G62:$G$112)/G61*0.05 -> 2.368862783 | O61: 0.005833733598 | P61: 0.01381931441
F62: 2.6 | G62: 0.9441218904 | H62: 0.025 | I62: 0 | J62: 0 | K62: =SwapRate*SUMPRODUCT(G63:$G$112,J63:$J$112)/SUMPRODUCT(G63:$G$112,I63:$I$112) -> 0.02796453101 | L62: 0.479545901 | M62: 0.07643301362 | N62: =SUM(G63:$G$112)/G62*0.05 -> 2.321825713 | O62: 0.005872459296 | P62: 0.01363482699
F63: 2.65 | G63: 0.9429424753 | H63: 0.025 | I63: 0 | J63: 0 | K63: =SwapRate*SUMPRODUCT(G64:$G$112,J64:$J$112)/SUMPRODUCT(G64:$G$112,I64:$I$112) -> 0.02796453101 | L63: 0.4788396842 | M63: 0.07186916925 | N63: =SUM(G64:$G$112)/G63*0.05 -> 2.27472981 | O63: 0.005910827915 | P63: 0.01344553646
F64: 2.7 | G64: 0.9417645336 | H64: 0.025 | I64: 0 | J64: 0 | K64: =SwapRate*SUMPRODUCT(G65:$G$112,J65:$J$112)/SUMPRODUCT(G65:$G$112,I65:$I$112) -> 0.02796453101 | L64: 0.4781888936 | M64: 0.06739697543 | N64: =SUM(G65:$G$112)/G64*0.05 -> 2.227575 | O64: 0.005948848588 | P64: 0.01325150639
F65: 2.75 | G65: 0.9405880634 | H65: 0.025 | I65: 0.00625 | J65: 0.00625 | K65: =SwapRate*SUMPRODUCT(G66:$G$112,J66:$J$112)/SUMPRODUCT(G66:$G$112,I66:$I$112) -> 0.02830540804 | L65: 0.5068153837 | M65: 0.09223728491 | N65: =SUM(G66:$G$112)/G65*0.05 -> 2.18036121 | O65: 0.006221297637 | P65: 0.01356467604
F66: 2.8 | G66: 0.9394130628 | H66: 0.025 | I66: 0 | J66: 0 | K66: =SwapRate*SUMPRODUCT(G67:$G$112,J67:$J$112)/SUMPRODUCT(G67:$G$112,I67:$I$112) -> 0.02830540804 | L66: 0.5060049518 | M66: 0.08767493857 | N66: =SUM(G67:$G$112)/G66*0.05 -> 2.133088365 | O66: 0.006258566454 | P66: 0.01335007529
F67: 2.85 | G67: 0.9382395301 | H67: 0.025 | I67: 0 | J67: 0 | K67: =SwapRate*SUMPRODUCT(G68:$G$112,J68:$J$112)/SUMPRODUCT(G68:$G$112,I68:$I$112) -> 0.02830540804 | L67: 0.505248852 | M67: 0.08320027661 | N67: =SUM(G68:$G$112)/G67*0.05 -> 2.085756393 | O67: 0.006295518613 | P67: 0.01313091819
F68: 2.9 | G68: 0.9370674634 | H68: 0.025 | I68: 0 | J68: 0 | K68: =SwapRate*SUMPRODUCT(G69:$G$112,J69:$J$112)/SUMPRODUCT(G69:$G$112,I69:$I$112) -> 0.02830540804 | L68: 0.5045444471 | M68: 0.07880978797 | N68: =SUM(G69:$G$112)/G68*0.05 -> 2.038365219 | O68: 0.006332161541 | P68: 0.01290725784
F69: 2.95 | G69: 0.9358968608 | H69: 0.025 | I69: 0 | J69: 0 | K69: =SwapRate*SUMPRODUCT(G70:$G$112,J70:$J$112)/SUMPRODUCT(G70:$G$112,I70:$I$112) -> 0.02830540804 | L69: 0.5038892644 | M69: 0.07450016348 | N69: =SUM(G70:$G$112)/G69*0.05 -> 1.990914768 | O69: 0.006368502381 | P69: 0.01267914544
F70: 3 | G70: 0.9347277206 | H70: 0.025 | I70: 0.00625 | J70: 0.00625 | K70: =SwapRate*SUMPRODUCT(G71:$G$112,J71:$J$112)/SUMPRODUCT(G71:$G$112,I71:$I$112) -> 0.02873184072 | L70: 0.5378135903 | M70: 0.1048008884 | N70: =SUM(G71:$G$112)/G70*0.05 -> 1.943404968 | O70: 0.006702481547 | P70: 0.01302563594
F71: 3.05 | G71: =G70*EXP(-(F71-F70)*IRate4) -> 0.9334433532 | H71: 0.0275 | I71: 0 | J71: 0 | K71: =SwapRate*SUMPRODUCT(G72:$G$112,J72:$J$112)/SUMPRODUCT(G72:$G$112,I72:$I$112) -> 0.02873184072 | L71: 0.5369658053 | M71: 0.1003595754 | N71: =SUM(G72:$G$112)/G71*0.05 -> 1.896078988 | O71: 0.006738133715 | P71: 0.01277603375
F72: 3.1 | G72: 0.9321607506 | H72: 0.0275 | I72: 0 | J72: 0 | K72: =SwapRate*SUMPRODUCT(G73:$G$112,J73:$J$112)/SUMPRODUCT(G73:$G$112,I73:$I$112) -> 0.02873184072 | L72: 0.5361675939 | M72: 0.09599717241 | N72: =SUM(G73:$G$112)/G72*0.05 -> 1.848687889 | O72: 0.006773510458 | P72: 0.01252210675
F73: 3.15 | G73: 0.9308799103 | H73: 0.0275 | I73: 0 | J73: 0 | K73: =SwapRate*SUMPRODUCT(G74:$G$112,J74:$J$112)/SUMPRODUCT(G74:$G$112,I74:$I$112) -> 0.02873184072 | L73: 0.5354167502 | M73: 0.09171076645 | N73: =SUM(G74:$G$112)/G73*0.05 -> 1.801231584 | O73: 0.006808617611 | P73: 0.01226389708
F74: 3.2 | G74: 0.92960083 | H74: 0.0275 | I74: 0 | J74: 0 | K74: =SwapRate*SUMPRODUCT(G75:$G$112,J75:$J$112)/SUMPRODUCT(G75:$G$112,I75:$I$112) -> 0.02873184072 | L74: 0.5347111945 | M74: 0.087497599 | N74: =SUM(G75:$G$112)/G74*0.05 -> 1.753709981 | O74: 0.006843460803 | P74: 0.01200144551
F75: 3.25 | G75: 0.9283235072 | H75: 0.0275 | I75: =IF(ABS(MOD(F75,PayFrac))<0.000001,SwapRate*PayFrac,0) -> 0.00625 | J75: =IF(ABS(MOD(F75,RecFrac))<0.000001,H75*RecFrac,0) -> 0.006875 | K75: =SwapRate*SUMPRODUCT(G76:$G$112,J76:$J$112)/SUMPRODUCT(G76:$G$112,I76:$I$112) -> 0.02891286667 | L75: =(LN(K75/SwapRate)+0.5*SwapRateVol^2*F75)/(SwapRateVol*SQRT(F75)) -> 0.5479847394 | M75: =L75-SwapRateVol*SQRT(F75) -> 0.09729082998 | N75: =SUM(G76:$G$112)/G75*0.05 -> 1.70612299 | O75: =IF(PayRec="PAY",K75*NORMSDIST(L75)-SwapRate*NORMSDIST(M75),SwapRate*NORMSDIST(-M75)-K75*NORMSDIST(-L75)) -> 0.007005805078 | P75: 0.01195276511
F76: 3.3 | G76: 0.9270479396 | H76: 0.0275 | I76: 0 | J76: 0 | K76: =SwapRate*SUMPRODUCT(G77:$G$112,J77:$J$112)/SUMPRODUCT(G77:$G$112,I77:$I$112) -> 0.02891286667 | L76: 0.5472580064 | M76: 0.09311045325 | N76: =SUM(G77:$G$112)/G76*0.05 -> 1.658470523 | O76: 0.007040094438 | P76: =O76*N76 -> 0.01167578911
F77: 3.35 | G77: 0.9257741246 | H77: 0.0275 | I77: 0 | J77: 0 | K77: =SwapRate*SUMPRODUCT(G78:$G$112,J78:$J$112)/SUMPRODUCT(G78:$G$112,I78:$I$112) -> 0.02891286667 | L77: 0.5465733775 | M77: 0.08899824708 | N77: =SUM(G78:$G$112)/G77*0.05 -> 1.610752489 | O77: 0.007074138142 | P77: 0.01139468562
F78: 3.4 | G78: 0.9245020599 | H78: 0.0275 | I78: 0 | J78: 0 | K78: =SwapRate*SUMPRODUCT(G79:$G$112,J79:$J$112)/SUMPRODUCT(G79:$G$112,I79:$I$112) -> 0.02891286667 | L78: 0.5459291089 | M78: 0.08495188606 | N78: =SUM(G79:$G$112)/G78*0.05 -> 1.562968797 | O78: 0.007107940995 | P78: 0.01110948998
F79: 3.45 | G79: 0.9232317431 | H79: =-(LN(G79)-LN(G78))/(F79-F78) -> 0.0275 | I79: 0 | J79: 0 | K79: =SwapRate*SUMPRODUCT(G80:$G$112,J80:$J$112)/SUMPRODUCT(G80:$G$112,I80:$I$112) -> 0.02891286667 | L79: 0.5453235496 | M79: 0.08096915908 | N79: =SUM(G80:$G$112)/G79*0.05 -> 1.515119357 | O79: 0.007141507645 | P79: 0.01082023647
F80: 3.5 | G80: 0.9219631718 | H80: 0.0275 | I80: 0.00625 | J80: 0.006875 | K80: =SwapRate*SUMPRODUCT(G81:$G$112,J81:$J$112)/SUMPRODUCT(G81:$G$112,I81:$I$112) -> 0.0291543114 | L80: 0.5625356977 | M80: 0.09482852431 | N80: =SUM(G81:$G$112)/G80*0.05 -> 1.467204079 | O80: 0.007346290319 | P80: 0.01077850712
F81: 3.55 | G81: 0.9206963436 | H81: 0.0275 | I81: 0 | J81: 0 | K81: =SwapRate*SUMPRODUCT(G82:$G$112,J82:$J$112)/SUMPRODUCT(G82:$G$112,I82:$I$112) -> 0.0291543114 | L81: 0.5618772861 | M81: 0.09084119409 | N81: =SUM(G82:$G$112)/G81*0.05 -> 1.419222872 | O81: 0.007379348705 | P81: 0.01047294046
F82: 3.6 | G82: 0.9194312561 | H82: 0.0275 | I82: 0 | J82: 0 | K82: =SwapRate*SUMPRODUCT(G83:$G$112,J83:$J$112)/SUMPRODUCT(G83:$G$112,I83:$I$112) -> 0.0291543114 | L82: 0.5612557565 | M82: 0.08691410747 | N82: =SUM(G83:$G$112)/G82*0.05 -> 1.371175646 | O82: 0.007412186898 | P82: 0.01016341016
F83: 3.65 | G83: 0.9181679069 | H83: 0.0275 | I83: 0 | J83: 0 | K83: =SwapRate*SUMPRODUCT(G84:$G$112,J84:$J$112)/SUMPRODUCT(G84:$G$112,I84:$I$112) -> 0.0291543114 | L83: 0.5606696824 | M83: 0.08304535305 | N83: =SUM(G84:$G$112)/G83*0.05 -> 1.323062309 | O83: 0.007444808881 | P83: 0.009849946028
F84: 3.7 | G84: 0.9169062936 | H84: 0.0275 | I84: 0 | J84: 0 | K84: =SwapRate*SUMPRODUCT(G85:$G$112,J85:$J$112)/SUMPRODUCT(G85:$G$112,I85:$I$112) -> 0.0291543114 | L84: 0.5601177085 | M84: 0.07923310694 | N84: =SUM(G85:$G$112)/G84*0.05 -> 1.274882771 | O84: 0.007477218517 | P84: 0.009532577062
F85: 3.75 | G85: 0.9156464138 | H85: 0.0275 | I85: 0.00625 | J85: 0.006875 | K85: =SwapRate*SUMPRODUCT(G86:$G$112,J86:$J$112)/SUMPRODUCT(G86:$G$112,I86:$I$112) -> 0.02949247202 | L85: 0.5834194362 | M85: 0.09929651793 | N85: =SUM(G86:$G$112)/G85*0.05 -> 1.226636941 | O85: 0.007751602018 | P85: 0.009508401383
F86: 3.8 | G86: 0.9143882651 | H86: 0.0275 | I86: 0 | J86: 0 | K86: =SwapRate*SUMPRODUCT(G87:$G$112,J87:$J$112)/SUMPRODUCT(G87:$G$112,I87:$I$112) -> 0.02949247202 | L86: 0.5827746231 | M86: 0.09543490585 | N86: =SUM(G87:$G$112)/G86*0.05 -> 1.178324726 | O86: 0.007783533219 | P86: 0.009171529651
F87: 3.85 | G87: 0.9131318452 | H87: 0.0275 | I87: 0 | J87: 0 | K87: =SwapRate*SUMPRODUCT(G88:$G$112,J88:$J$112)/SUMPRODUCT(G88:$G$112,I88:$I$112) -> 0.02949247202 | L87: 0.5821633003 | M87: 0.09162787852 | N87: =SUM(G88:$G$112)/G87*0.05 -> 1.129946037 | O87: 0.007815266641 | P87: 0.008830829571
F88: 3.9 | G88: 0.9118771518 | H88: 0.0275 | I88: 0 | J88: 0 | K88: =SwapRate*SUMPRODUCT(G89:$G$112,J89:$J$112)/SUMPRODUCT(G89:$G$112,I89:$I$112) -> 0.02949247202 | L88: 0.5815842565 | M88: 0.08787381508 | N88: =SUM(G89:$G$112)/G88*0.05 -> 1.081500782 | O88: 0.007846805586 | P88: 0.008486326376
F89: 3.95 | G89: 0.9106241823 | H89: 0.0275 | I89: 0 | J89: 0 | K89: =SwapRate*SUMPRODUCT(G90:$G$112,J90:$J$112)/SUMPRODUCT(G90:$G$112,I90:$I$112) -> 0.02949247202 | L89: 0.581036337 | M89: 0.08417116417 | N89: =SUM(G90:$G$112)/G89*0.05 -> 1.032988868 | O89: 0.007878153269 | P89: 0.008138044628
F90: 4 | G90: 0.9093729345 | H90: 0.0275 | I90: 0.00625 | J90: 0.006875 | K90: =SwapRate*SUMPRODUCT(G91:$G$112,J91:$J$112)/SUMPRODUCT(G91:$G$112,I91:$I$112) -> 0.03 | L90: 0.6146431136 | M90: 0.1146431136 | N90: =SUM(G91:$G$112)/G90*0.05 -> 0.9844102048 | O90: 0.008277243535 | P90: 0.008148203003
F91: 4.05 | G91: =G90*EXP(-(F91-F90)*IRate5) -> 0.9080098976 | H91: 0.03 | I91: 0 | J91: 0 | K91: =SwapRate*SUMPRODUCT(G92:$G$112,J92:$J$112)/SUMPRODUCT(G92:$G$112,I92:$I$112) -> 0.03 | L91: 0.6139428873 | M91: 0.1108275923 | N91: =SUM(G92:$G$112)/G91*0.05 -> 0.9358879281 | O91: 0.00830811728 | P91: 0.007775466668
F92: 4.1 | G92: 0.9066489038 | H92: 0.03 | I92: 0 | J92: 0 | K92: =SwapRate*SUMPRODUCT(G93:$G$112,J93:$J$112)/SUMPRODUCT(G93:$G$112,I93:$I$112) -> 0.03 | L92: 0.6132745046 | M92: 0.1070630864 | N92: =SUM(G93:$G$112)/G92*0.05 -> 0.8872928134 | O92: 0.00833881392 | P92: 0.007398969663
F93: 4.15 | G93: 0.9052899499 | H93: 0.03 | I93: 0 | J93: 0 | K93: =SwapRate*SUMPRODUCT(G94:$G$112,J94:$J$112)/SUMPRODUCT(G94:$G$112,I94:$I$112) -> 0.03 | L93: 0.6126368889 | M93: 0.1033481692 | N93: =SUM(G94:$G$112)/G93*0.05 -> 0.8386247513 | O93: 0.008369336169 | P93: 0.007018732463
F94: 4.2 | G94: 0.9039330329 | H94: 0.03 | I94: 0 | J94: 0 | K94: =SwapRate*SUMPRODUCT(G95:$G$112,J95:$J$112)/SUMPRODUCT(G95:$G$112,I95:$I$112) -> 0.03 | L94: 0.6120290103 | M94: 0.099681472 | N94: =SUM(G95:$G$112)/G94*0.05 -> 0.7898836324 | O94: 0.008399686672 | P94: 0.006634775019
F95: 4.25 | G95: 0.9025781498 | H95: 0.03 | I95: 0.00625 | J95: 0.0075 | K95: =SwapRate*SUMPRODUCT(G96:$G$112,J96:$J$112)/SUMPRODUCT(G96:$G$112,I96:$I$112) -> 0.03 | L95: 0.6114498835 | M95: 0.09606168028 | N95: =SUM(G96:$G$112)/G95*0.05 -> 0.7410693469 | O95: 0.008429868009 | P95: 0.006247116779
F96: 4.3 | G96: 0.9012252974 | H96: 0.03 | I96: 0 | J96: 0 | K96: =SwapRate*SUMPRODUCT(G97:$G$112,J97:$J$112)/SUMPRODUCT(G97:$G$112,I97:$I$112) -> 0.03 | L96: 0.6108985653 | M96: 0.09248753145 | N96: =SUM(G97:$G$112)/G96*0.05 -> 0.692181785 | O96: 0.008459882694 | P96: 0.005855776704
F97: 4.35 | G97: 0.8998744728 | H97: 0.03 | I97: 0 | J97: 0 | K97: =SwapRate*SUMPRODUCT(G98:$G$112,J98:$J$112)/SUMPRODUCT(G98:$G$112,I98:$I$112) -> 0.03 | L97: 0.6103741524 | M97: 0.08895781203 | N97: =SUM(G98:$G$112)/G97*0.05 -> 0.6432208368 | O97: 0.008489733183 | P97: 0.005460773282
F98: 4.4 | G98: 0.898525673 | H98: 0.03 | I98: 0 | J98: 0 | K98: =SwapRate*SUMPRODUCT(G99:$G$112,J99:$J$112)/SUMPRODUCT(G99:$G$112,I99:$I$112) -> 0.03 | L98: 0.6098757793 | M98: 0.08547135519 | N98: =SUM(G99:$G$112)/G98*0.05 -> 0.594186392 | O98: 0.00851942187 | P98: 0.005062124543
F99: 4.45 | G99: 0.8971788948 | H99: 0.03 | I99: 0 | J99: 0 | K99: =SwapRate*SUMPRODUCT(G100:$G$112,J100:$J$112)/SUMPRODUCT(G100:$G$112,I100:$I$112) -> 0.03 | L99: 0.6094026162 | M99: 0.08202703845 | N99: =SUM(G100:$G$112)/G99*0.05 -> 0.5450783404 | O99: 0.008548951091 | P99: 0.004659848073
F100: 4.5 | G100: 0.8958341353 | H100: 0.03 | I100: 0.00625 | J100: 0.0075 | K100: =SwapRate*SUMPRODUCT(G101:$G$112,J101:$J$112)/SUMPRODUCT(G101:$G$112,I101:$I$112) -> 0.03 | L100: 0.6089538674 | M100: 0.0786237815 | N100: =SUM(G101:$G$112)/G100*0.05 -> 0.4958965714 | O100: 0.008578323127 | P100: 0.004253961027
F101: 4.55 | G101: 0.8944913914 | H101: 0.03 | I101: 0 | J101: 0 | K101: =SwapRate*SUMPRODUCT(G102:$G$112,J102:$J$112)/SUMPRODUCT(G102:$G$112,I102:$I$112) -> 0.03 | L101: 0.6085287693 | M101: 0.07526054413 | N101: =SUM(G102:$G$112)/G101*0.05 -> 0.4466409745 | O101: 0.008607540204 | P101: 0.003844480145
F102: 4.6 | G102: 0.8931506601 | H102: 0.03 | I102: 0 | J102: 0 | K102: =SwapRate*SUMPRODUCT(G103:$G$112,J103:$J$112)/SUMPRODUCT(G103:$G$112,I103:$I$112) -> 0.03 | L102: 0.6081265891 | M102: 0.07193632434 | N102: =SUM(G103:$G$112)/G102*0.05 -> 0.3973114386 | O102: 0.008636604499 | P102: 0.003431421759
F103: 4.65 | G103: 0.8918119384 | H103: 0.03 | I103: 0 | J103: 0 | K103: =SwapRate*SUMPRODUCT(G104:$G$112,J104:$J$112)/SUMPRODUCT(G104:$G$112,I104:$I$112) -> 0.03 | L103: 0.6077466228 | M103: 0.06865015652 | N103: =SUM(G104:$G$112)/G103*0.05 -> 0.347907853 | O103: 0.008665518135 | P103: 0.00301480181
F104: 4.7 | G104: 0.8904752233 | H104: 0.03 | I104: 0 | J104: 0 | K104: =SwapRate*SUMPRODUCT(G105:$G$112,J105:$J$112)/SUMPRODUCT(G105:$G$112,I105:$I$112) -> 0.03 | L104: 0.6073881944 | M104: 0.06540110972 | N104: =SUM(G105:$G$112)/G104*0.05 -> 0.2984301064 | O104: 0.008694283188 | P104: 0.002594635857
F105: 4.75 | G105: 0.8891405117 | H105: 0.03 | I105: 0.00625 | J105: 0.0075 | K105: =SwapRate*SUMPRODUCT(G106:$G$112,J106:$J$112)/SUMPRODUCT(G106:$G$112,I106:$I$112) -> 0.03 | L105: 0.607050654 | M105: 0.06218828605 | N105: =SUM(G106:$G$112)/G105*0.05 -> 0.2488780874 | O105: 0.008722901685 | P105: 0.002170939088
F106: 4.8 | G106: 0.8878078008 | H106: 0.03 | I106: 0 | J106: 0 | K106: =SwapRate*SUMPRODUCT(G107:$G$112,J107:$J$112)/SUMPRODUCT(G107:$G$112,I107:$I$112) -> 0.03 | L106: 0.6067333767 | M106: 0.05901081917 | N106: =SUM(G107:$G$112)/G106*0.05 -> 0.1992516847 | O106: 0.008751375609 | P106: 0.001743726333
F107: 4.85 | G107: 0.8864770873 | H107: 0.03 | I107: 0 | J107: 0 | K107: =SwapRate*SUMPRODUCT(G108:$G$112,J108:$J$112)/SUMPRODUCT(G108:$G$112,I108:$I$112) -> 0.03 | L107: =(LN(K107/SwapRate)+0.5*SwapRateVol^2*F107)/(SwapRateVol*SQRT(F107)) -> 0.6064357615 | M107: =L107-SwapRateVol*SQRT(F107) -> 0.05586787284 | N107: =SUM(G108:$G$112)/G107*0.05 -> 0.1495507865 | O107: 0.008779706897 | P107: 0.001313012072
F108: 4.9 | G108: 0.8851483685 | H108: 0.03 | I108: 0 | J108: 0 | K108: =SwapRate*SUMPRODUCT(G109:$G$112,J109:$J$112)/SUMPRODUCT(G109:$G$112,I109:$I$112) -> 0.03 | L108: =(LN(K108/SwapRate)+0.5*SwapRateVol^2*F108)/(SwapRateVol*SQRT(F108)) -> 0.6061572301 | M108: =L108-SwapRateVol*SQRT(F108) -> 0.0527586396 | N108: =SUM(G109:$G$112)/G108*0.05 -> 0.099775281 | O108: 0.008807897444 | P108: 0.0008788104425
F109: 4.95 | G109: 0.8838216412 | H109: 0.03 | I109: 0 | J109: 0 | K109: =SwapRate*SUMPRODUCT(G110:$G$112,J110:$J$112)/SUMPRODUCT(G110:$G$112,I110:$I$112) -> 0.03 | L109: =(LN(K109/SwapRate)+0.5*SwapRateVol^2*F109)/(SwapRateVol*SQRT(F109)) -> 0.605897226 | M109: =L109-SwapRateVol*SQRT(F109) -> 0.04968233944 | N109: =SUM(G110:$G$112)/G109*0.05 -> 0.04992505622 | O109: 0.008835949102 | P109: 0.0004411352557
F110: 5 | G110: 0.8824969026 | H110: 0.03 | I110: 0.00625 | J110: 0.0075 | M110: 0 | N110: 0 | P110: 0

Sheet Spreadsheet10.2
L8: Discount factors
B9: Parameters | F9: Time | G9: Interest rate | H9: Fixed leg | I9: Floating leg | J9: Swap MtM | L9: 0.25 | M9: 0.5 | N9: 0.75 | O9: 1 | P9: 1.25 | Q9: 1.5 | R9: 1.75 | S9: 2 | T9: 2.25 | U9: 2.5 | V9: 2.75 | W9: 3 | X9: 3.25 | Y9: 3.5 | Z9: 3.75 | AA9: 4 | AB9: 4.25 | AC9: 4.5 | AD9: 4.75 | AE9: 5 | AF9: 5.25 | AG9: 5.5 | AH9: 5.75 | AI9: 6 | AJ9: 6.25 | AK9: 6.5 | AL9: 6.75 | AM9: 7 | AN9: 7.25 | AO9: 7.5 | AP9: 7.75 | AQ9: 8 | AR9: 8.25 | AS9: 8.5 | AT9: 8.75 | AU9: 9 | AV9: 9.25 | AW9: 9.5 | AX9: 9.75 | AY9: 10
B10: Spot interest rate | C10: 0.05 | E10: 0 | F10: 0 | G10: =IR0 -> 0.05 | H10: =SwapRate*SUM(OFFSET(L10,0,0,1,40-E10))*0.25 -> 0.3918657679 | I10: =1-OFFSET(L10,0,40-E10-1,1,1) -> 0.3883502339 | J10: =H10-I10 -> 0.003515533968 | L10: =L$50*EXP(-L$51*$G10) -> 0.9875780529 | M10: 0.9753118695 | N10: 0.9632008222 | O10: 0.951244143 | P10: 0.9394409363 | Q10: 0.9277901921 | R10: 0.9162907975 | S10: 0.9049415474 | T10: 0.8937411547 | U10: 0.8826882591 | V10: 0.8717814363 | W10: 0.8610192054 | X10: 0.8504000365 | Y10: 0.8399223569 | Z10: 0.8295845581 | AA10: 0.8193850005 | AB10: 0.8093220195 | AC10: 0.7993939297 | AD10: 0.7895990295 | AE10: 0.7799356053 | AF10: 0.7704019346 | AG10: 0.7609962902 | AH10: 0.7517169423 | AI10: 0.7425621622 | AJ10: 0.733530224 | AK10: 0.7246194075 | AL10: 0.7158279999 | AM10: 0.7071542979 | AN10: 0.6985966092 | AO10: 0.6901532541 | AP10: 0.6818225666 | AQ10: 0.6736028962 | AR10: 0.6654926081 | AS10: 0.657490085 | AT10: 0.6495937272 | AU10: 0.6418019537 | AV10: 0.6341132027 | AW10: 0.6265259323 | AX10: 0.6190386205 | AY10: 0.6116497661
B11: Mean reversion (a) | C11: 0.1 | E11: =E10+1 -> 1 | F11: =F10+0.25 -> 0.25 | G11: =G10+MeanRev*(b_Param-G10)*0.25+NORMSINV(RAND())*SQRT(0.25)*Volatility -> 0.05220547515 | H11: 0.3813118534 | I11: 0.3894062804 | J11: -0.008094426991 | L11: =L$50*EXP(-L$51*$G11) -> 0.9870404297 | M11: 0.9742633657 | N11: 0.9616670883 | O11: 0.9492497776 | P11: 0.9370095254 | Q11: 0.9249443469 | R11: 0.913052191 | S11: 0.9013309506 | T11: 0.8897784706 | U11: 0.8783925567 | V11: 0.8671709825 | W11: 0.8561114964 | X11: 0.8452118278 | Y11: 0.8344696927 | Z11: 0.8238827992 | AA11: 0.8134488515 | AB11: 0.8031655546 | AC11: 0.7930306183 | AD11: 0.78304176 | AE11: 0.7731967086 | AF11: 0.7634932065 | AG11: 0.7539290128 | AH11: 0.7445019052 | AI11: 0.7352096819 | AJ11: 0.7260501635 | AK11: 0.7170211946 | AL11: 0.7081206448 | AM11: 0.6993464103 | AN11: 0.6906964147 | AO11: 0.6821686098 | AP11: 0.6737609764 | AQ11: 0.665471525 | AR11: 0.657298296 | AS11: 0.6492393603 | AT11: 0.6412928194 | AU11: 0.6334568058 | AV11: 0.6257294831 | AW11: 0.6181090459 | AX11: 0.6105937196
B12: Equilibrium (b) | C12: 0.05 | E12: 2 | F12: 0.5 | G12: 0.05474069173 | H12: 0.370490263 | I12: 0.3914266495 | J12: -0.0209363865 | L12: =L$50*EXP(-L$51*$G12) -> 0.9864227878 | M12: 0.9730594922 | N12: 0.9599070623 | O12: 0.9469623993 | P12: 0.9342223669 | Q12: 0.921683801 | R12: 0.9093435186 | S12: 0.8971983261 | T12: 0.8852450259 | U12: 0.8734804235 | V12: 0.8619013333 | W12: 0.8505045835 | X12: 0.8392870212 | Y12: 0.8282455166 | Z12: 0.8173769665 | AA12: 0.8066782978 | AB12: 0.7961464704 | AC12: 0.7857784798 | AD12: 0.775571359 | AE12: 0.7655221809 | AF12: 0.7556280597 | AG12: 0.7458861522 | AH12: 0.7362936591 | AI12: 0.726847826 | AJ12: 0.7175459439 | AK12: 0.7083853501 | AL12: 0.6993634286 | AM12: 0.6904776099 | AN12: 0.6817253718 | AO12: 0.6731042392 | AP12: 0.6646117838 | AQ12: 0.6562456243 | AR12: 0.6480034259 | AS12: 0.6398829001 | AT12: 0.6318818044 | AU12: 0.6239979416 | AV12: 0.6162291595 | AW12: 0.6085733505
B13: Volatility (s) | C13: 0.01 | E13: 3 | F13: 0.75 | G13: 0.06029696079 | H13: 0.3562684206 | I13: 0.4040906438 | J13: -0.04782222317 | L13: =L$50*EXP(-L$51*$G13) -> 0.9850704938 | M13: 0.9704262412 | N13: 0.9560609854 | O13: 0.94196856 | P13: 0.9281428942 | Q13: 0.9145780177 | R13: 0.9012680636 | S13: 0.8882072717 | T13: 0.8753899911 | U13: 0.8628106812 | V13: 0.8504639141 | W13: 0.8383443743 | X13: 0.8264468603 | Y13: 0.8147662838 | Z13: 0.8032976701 | AA13: 0.7920361573 | AB13: 0.7809769959 | AC13: 0.7701155477 | AD13: 0.7594472846 | AE13: 0.7489677875 | AF13: 0.7386727448 | AG13: 0.728557951 | AH13: 0.7186193046 | AI13: 0.7088528069 | AJ13: 0.6992545601 | AK13: 0.6898207649 | AL13: 0.6805477194 | AM13: 0.6714318163 | AN13: 0.6624695415 | AO13: 0.653657472 | AP13: 0.6449922734 | AQ13: 0.6364706986 | AR13: 0.6280895853 | AS13: 0.6198458538 | AT13: 0.6117365055 | AU13: 0.6037586206 | AV13: 0.5959093562
B14: Swap rate | C14: 0.05 | E14: 4 | F14: 1 | G14: 0.05308902757 | H14: 0.3570993943 | I14: 0.3698558858 | J14: -0.01275649146 | L14: =L$50*EXP(-L$51*$G14) -> 0.9868251305 | M14: 0.9738436328 | N14: 0.9610533328 | O14: 0.9484519732 | P14: 0.9360372256 | Q14: 0.9238067014 | R14: 0.9117579617 | S14: 0.8998885264 | T14: 0.8881958829 | U14: 0.8766774931 | V14: 0.8653308009 | W14: 0.8541532382 | X14: 0.8431422306 | Y14: 0.8322952029 | Z14: 0.8216095832 | AA14: 0.8110828079 | AB14: 0.8007123247 | AC14: 0.7904955967 | AD14: 0.7804301049 | AE14: 0.7705133512 | AF14: 0.7607428608 | AG14: 0.7511161843 | AH14: 0.7416308996 | AI14: 0.7322846133 | AJ14: 0.7230749625 | AK14: 0.7139996157 | AL14: 0.7050562741 | AM14: 0.6962426722 | AN14: 0.6875565787 | AO14: 0.678995797 | AP14: 0.6705581658 | AQ14: 0.6622415591 | AR14: 0.6540438869 | AS14: 0.6459630949 | AT14: 0.6379971648 | AU14: 0.6301441142
E15: 5 | F15: 1.25 | G15: 0.05195260297 | H15: 0.3504974194 | I15: 0.3577608367 | J15: -0.007263417308 | L15: =L$50*EXP(-L$51*$G15) -> 0.9871020569 | M15: 0.9743835263 | N15: 0.961842817 | O15: 0.9494782323 | P15: 0.9372879829 | Q15: 0.9252701981 | R15: 0.9134229368 | S15: 0.901744197 | T15: 0.8902319251 | U15: 0.8788840242 | V15: 0.8676983613 | W15: 0.8566727746 | X15: 0.8458050797 | Y15: 0.8350930754 | Z15: 0.8245345491 | AA15: 0.8141272812 | AB15: 0.80386905 | AC15: 0.7937576351 | AD15: 0.7837908215 | AE15: 0.7739664024 | AF15: 0.7642821824 | AG15: 0.7547359797 | AH15: 0.7453256291 | AI15: 0.7360489833 | AJ15: 0.7269039153 | AK15: 0.7178883198 | AL15: 0.7090001146 | AM15: 0.7002372421 | AN15: 0.6915976701 | AO15: 0.6830793927 | AP15: 0.6746804314 | AQ15: 0.6663988355 | AR15: 0.6582326829 | AS15: 0.6501800802 | AT15: 0.6422391633
E16: 6 | F16: 1.5 | G16: 0.05160876631 | H16: 0.3428401925 | I16: 0.3485386121 | J16: -0.005698419544 | L16: =L$50*EXP(-L$51*$G16) -> 0.9871858591 | M16: 0.9745469354 | N16: 0.9620818111 | O16: 0.9497889561 | P16: 0.9376667413 | Q16: 0.9257134504 | R16: 0.9139272905 | S16: 0.9023064023 | T16: 0.8908488693 | U16: 0.879552726 | V16: 0.868415966 | W16: 0.857436549 | X16: 0.8466124073 | Y16: 0.8359414517 | Z16: 0.825421577 | AA16: 0.815050667 | AB16: 0.8048265989 | AC16: 0.7947472475 | AD16: 0.7848104889 | AE16: 0.7750142038 | AF16: 0.7653562808 | AG16: 0.7558346188 | AH16: 0.7464471294 | AI16: 0.7371917398 | AJ16: 0.7280663938 | AK16: 0.7190690543 | AL16: 0.7101977045 | AM16: 0.7014503494 | AN16: 0.6928250166 | AO16: 0.6843197582 | AP16: 0.6759326506 | AQ16: 0.6676617963 | AR16: 0.6595053236 | AS16: 0.6514613879
E17: 7 | F17: 1.75 | G17: 0.04754710756 | H17: 0.3389238453 | I17: 0.325273771 | J17: 0.01365007426 | L17: =L$50*EXP(-L$51*$G17) -> 0.9881763324 | M17: 0.9764793232 | N17: 0.9649094886 | O17: 0.9534671646 | P17: 0.9421525219 | Q17: 0.9309655791 | R17: 0.9199062157 | S17: 0.9089741835 | T17: 0.8981691176 | U17: 0.8874905467 | V17: 0.8769379026 | W17: 0.8665105291 | X17: 0.8562076902 | Y17: 0.8460285778 | Z17: 0.8359723185 | AA17: 0.8260379809 | AB17: 0.8162245811 | AC17: 0.8065310886 | AD17: 0.7969564317 | AE17: 0.7874995023 | AF17: 0.7781591602 | AG17: 0.7689342376 | AH17: 0.7598235429 | AI17: 0.7508258639 | AJ17: 0.7419399717 | AK17: 0.7331646231 | AL17: 0.7244985639 | AM17: 0.715940531 | AN17: 0.7074892552 | AO17: 0.6991434628 | AP17: 0.6909018782 | AQ17: 0.6827632252 | AR17: 0.674726229
E18: 8 | F18: 2 | G18: 0.03758203434 | H18: 0.3406649506 | I18: 0.2787232521 | J18: 0.06194169846 | L18: =L$50*EXP(-L$51*$G18) -> 0.9906106203 | M18: 0.9812365866 | N18: 0.9718823104 | O18: 0.9625519211 | P18: 0.9532492805 | Q18: 0.9439779962 | R18: 0.9347414349 | S18: 0.925542735 | T18: 0.9163848184 | U18: 0.907270402 | V18: 0.8982020089 | W18: 0.8891819782 | X18: 0.8802124756 | Y18: 0.8712955021 | Z18: 0.8624329037 | AA18: 0.8536263792 | AB18: 0.844877489 | AC18: 0.8361876623 | AD18: 0.8275582048 | AE18: 0.8189903052 | AF18: 0.8104850424 | AG18: 0.8020433912 | AH18: 0.7936662286 | AI18: 0.7853543391 | AJ18: 0.7771084206 | AK18: 0.7689290889 | AL18: 0.7608168827 | AM18: 0.7527722682 | AN18: 0.7447956434 | AO18: 0.7368873422 | AP18: 0.7290476381 | AQ18: 0.7212767479
E19: 9 | F19: 2.25 | G19: 0.03461448174 | H19: 0.3346069245 | I19: 0.2591908936 | J19: 0.07541603098 | L19: =L$50*EXP(-L$51*$G19) -> 0.9913366981 | M19: 0.9826577511 | N19: 0.9739685049 | O19: 0.9652740092 | P19: 0.9565790305 | Q19: 0.9478880654 | R19: 0.9392053526 | S19: 0.9305348852 | T19: 0.921880422 | U19: 0.9132454986 | V19: 0.9046334381 | W19: 0.8960473613 | X19: 0.8874901961 | Y19: 0.8789646874 | Z19: 0.8704734057 | AA19: 0.8620187559 | AB19: 0.8536029851 | AC19: 0.8452281911 | AD19: 0.8368963291 | AE19: 0.8286092194 | AF19: 0.8203685542 | AG19: 0.8121759039 | AH19: 0.8040327232 | AI19: 0.7959403576 | AJ19: 0.7879000484 | AK19: 0.7799129385 | AL19: 0.7719800773 | AM19: 0.7641024257 | AN19: 0.7562808609 | AO19: 0.7485161803 | AP19: 0.7408091064
E20: 10 | F20: 2.5 | G20: 0.04219112259 | H20: 0.3182307238 | I20: 0.2808169397 | J20: 0.03741378407 | L20: =L$50*EXP(-L$51*$G20) -> 0.9894839586 | M20: 0.9790333628 | N20: 0.9686509699 | O20: 0.9583392911 | P20: 0.9481006073 | Q20: 0.937936983 | R20: 0.9278502797 | S20: 0.9178421688 | T20: 0.9079141435 | U20: 0.8980675305 | V20: 0.8883035003 | W20: 0.8786230776 | X20: 0.869027151 | Y20: 0.8595164816 | Z20: 0.8500917118 | AA20: 0.8407533734 | AB20: 0.8315018947 | AC20: 0.822337608 | AD20: 0.8132607562 | AE20: 0.8042714989 | AF20: 0.7953699184 | AG20: 0.7865560253 | AH20: 0.7778297636 | AI20: 0.7691910157 | AJ20: 0.7606396068 | AK20: 0.7521753096 | AL20: 0.7437978478 | AM20: 0.7355069003 | AN20: 0.7273021047 | AO20: 0.7191830603
E21: 11 | F21: 2.75 | G21: 0.03539614991 | H21: 0.3152854649 | I21: 0.2467614737 | J21: 0.06852399119 | L21: =L$50*EXP(-L$51*$G21) -> 0.991145394 | M21: 0.9822832097 | N21: 0.9734185568 | O21: 0.9645562517 | P21: 0.9557008311 | Q21: 0.9468565652 | R21: 0.9380274705 | S21: 0.9292173217 | T21: 0.9204296634 | U21: 0.9116678214 | V21: 0.9029349135 | W21: 0.8942338594 | X21: 0.8855673909 | Y21: 0.8769380611 | Z21: 0.8683482536 | AA21: 0.8598001906 | AB21: 0.8512959417 | AC21: 0.8428374315 | AD21: 0.8344264466 | AE21: 0.8260646436 | AF21: 0.8177535552 | AG21: 0.8094945969 | AH21: 0.8012890729 | AI21: 0.7931381827 | AJ21: 0.7850430258 | AK21: 0.7770046074 | AL21: 0.7690238436 | AM21: 0.761101566 | AN21: 0.7532385263
E22: 12 | F22: 3 | G22: 0.03957622453 | H22: 0.3023348293 | I22: 0.2547470411 | J22: 0.04758778816 | L22: =L$50*EXP(-L$51*$G22) -> 0.9901229961 | M22: 0.9802827214 | N22: 0.9704829022 | O22: 0.9607269965 | P22: 0.9510182082 | Q22: 0.9413595018 | R22: 0.9317536153 | S22: 0.9222030734 | T22: 0.912710199 | U22: 0.9032771254 | V22: 0.8939058068 | W22: 0.8845980286 | X22: 0.8753554177 | Y22: 0.8661794514 | Z22: 0.8570714664 | AA22: 0.8480326672 | AB22: 0.8390641339 | AC22: 0.8301668299 | AD22: 0.821341609 | AE22: 0.8125892217 | AF22: 0.8039103222 | AG22: 0.795305474 | AH22: 0.7867751554 | AI22: 0.7783197654 | AJ22: 0.7699396284 | AK22: 0.7616349989 | AL22: 0.7534060663 | AM22: 0.7452529589
E23: 13 | F23: 3.25 | G23: 0.03912520821 | H23: 0.2933769253 | I23: 0.2449242074 | J23: 0.0484527179 | L23: =L$50*EXP(-L$51*$G23) -> 0.9902332587 | M23: 0.9804983713 | N23: 0.9707992231 | O23: 0.9611394278 | P23: 0.9515223416 | Q23: 0.9419510776 | R23: 0.9324285192 | S23: 0.9229573324 | T23: 0.9135399783 | U23: 0.9041787246 | V23: 0.8948756562 | W23: 0.885632686 | X23: 0.8764515643 | Y23: 0.8673338887 | Z23: 0.8582811126 | AA23: 0.8492945537 | AB23: 0.840375402 | AC23: 0.8315247275 | AD23: 0.8227434872 | AE23: 0.8140325317 | AF23: 0.8053926121 | AG23: 0.7968243856 | AH23: 0.7883284215 | AI23: 0.7799052067 | AJ23: 0.7715551504 | AK23: 0.7632785895 | AL23: 0.7550757926
E24: 14 | F24: 3.5 | G24: 0.02758395686 | H24: 0.2927342174 | I24: 0.193434599 | J24: 0.09929961846 | L24: =L$50*EXP(-L$51*$G24) -> 0.9930589972 | M24: 0.9860328981 | N24: 0.9789288655 | O24: 0.9717537584 | P24: 0.9645141419 | Q24: 0.9572162966 | R24: 0.9498662282 | S24: 0.9424696769 | T24: 0.9350321263 | U24: 0.927558813 | V24: 0.9200547348 | W24: 0.9125246599 | X24: 0.9049731349 | Y24: 0.8974044933 | Z24: 0.8898228636 | AA24: 0.8822321766 | AB24: 0.8746361738 | AC24: 0.8670384139 | AD24: 0.8594422806 | AE24: 0.851850989 | AF24: 0.8442675928 | AG24: 0.8366949904 | AH24: 0.8291359313 | AI24: 0.8215930222 | AJ24: 0.8140687327 | AK24: 0.806565401
E25: 15 | F25: 3.75 | G25: 0.0304334131 | H25: 0.2805852474 | I25: 0.1966405253 | J25: 0.08394472201 | L25: =L$50*EXP(-L$51*$G25) -> 0.9923605928 | M25: 0.9846635636 | N25: 0.9769154049 | O25: 0.9691223046 | P25: 0.9612901566 | Q25: 0.9534245725 | R25: 0.9455308921 | S25: 0.9376141945 | T25: 0.9296793077 | U25: 0.9217308192 | V25: 0.9137730857 | W25: 0.905810242 | X25: 0.897846211 | Y25: 0.8898847117 | Z25: 0.8819292682 | AA25: 0.8739832181 | AB25: 0.8660497198 | AC25: 0.858131761 | AD25: 0.8502321655 | AE25: 0.8423536006 | AF25: 0.834498584 | AG25: 0.8266694901 | AH25: 0.8188685566 | AI25: 0.8110978908 | AJ25: 0.8033594747
E26: 16 | F26: 4 | G26: 0.03689772908 | H26: 0.2662218515 | I26: 0.2122171277 | J26: 0.05400472378 | L26: =L$50*EXP(-L$51*$G26) -> 0.9907780037 | M26: 0.9815641188 | N26: 0.9723629814 | O26: 0.9631789415 | P26: 0.9540160773 | Q26: 0.9448782086 | R26: 0.9357689099 | S26: 0.9266915229 | T26: 0.9176491683 | U26: 0.9086447571 | V26: 0.8996810016 | W26: 0.8907604259 | X26: 0.8818853755 | Y26: 0.8730580268 | Z26: 0.8642803963 | AA26: 0.855554349 | AB26: 0.8468816064 | AC26: 0.8382637546 | AD26: 0.8297022515 | AE26: 0.8211984338 | AF26: 0.8127535235 | AG26: 0.8043686346 | AH26: 0.7960447791 | AI26: 0.7877828723
E27: 17 | F27: 4.25 | G27: 0.03084497494 | H27: 0.2601455758 | I27: 0.1826038684 | J27: 0.07754170742 | L27: =L$50*EXP(-L$51*$G27) -> 0.9922597593 | M27: 0.9844659407 | N27: 0.9766249328 | O27: 0.9687428194 | P27: 0.9608253911 | Q27: 0.9528781567 | R27: 0.9449063544 | S27: 0.9369149623 | T27: 0.9289087089 | U27: 0.9208920835 | V27: 0.9128693458 | W27: 0.9048445355 | X27: 0.8968214814 | Y27: 0.8888038107 | Z27: 0.8807949571 | AA27: 0.8727981695 | AB27: 0.8648165198 | AC27: 0.8568529107 | AD27: 0.8489100829 | AE27: 0.8409906226 | AF27: 0.8330969684 | AG27: 0.8252314173 | AH27: 0.8173961316
E28: 18 | F28: 4.5 | G28: 0.03842396557 | H28: 0.245550266 | I28: 0.2008082387 | J28: 0.04474202722 | L28: =L$50*EXP(-L$51*$G28) -> 0.99040472 | M28: 0.9808337591 | N28: 0.9712912454 | O28: 0.96178103 | P28: 0.9523067018 | Q28: 0.9428716015 | R28: 0.9334788344 | S28: 0.9241312838 | T28: 0.9148316223 | U28: 0.9055823236 | V28: 0.8963856738 | W28: 0.887243781 | X28: 0.8781585858 | Y28: 0.8691318708 | Z28: 0.8601652688 | AA28: 0.8512602721 | AB28: 0.8424182401 | AC28: 0.8336404069 | AD28: 0.8249278889 | AE28: 0.8162816912 | AF28: 0.8077027146 | AG28: 0.7991917613
E29: 19 | F29: 4.75 | G29: 0.03900863836 | H29: 0.2352513754 | I29: 0.1942238304 | J29: 0.04102754502 | L29: =L$50*EXP(-L$51*$G29) -> 0.9902617592 | M29: 0.9805541159 | N29: 0.9708809963 | O29: 0.9612460538 | P29: 0.9516526836 | Q29: 0.942104037 | R29: 0.9326030346 | S29: 0.9231523788 | T29: 0.9137545661 | U29: 0.9044118986 | V29: 0.895126495 | W29: 0.8859003007 | X29: 0.8767350979 | Y29: 0.8676325152 | Z29: 0.8585940358 | AA29: 0.8496210066 | AB29: 0.840714646 | AC29: 0.8318760514 | AD29: 0.8231062061 | AE29: 0.8144059869 | AF29: 0.8057761696
E30: 20 | F30: 5 | G30: 0.03696807014 | H30: 0.2261755335 | I30: 0.1790288183 | J30: 0.04714671517 | L30: =L$50*EXP(-L$51*$G30) -> 0.9907607967 | M30: 0.9815304461 | N30: 0.9723135613 | O30: 0.96311447 | P30: 0.9539372283 | Q30: 0.9447856345 | R30: 0.9356632417 | S30: 0.9265733711 | T30: 0.9175191229 | U30: 0.9085033885 | V30: 0.8995288608 | W30: 0.8905980451 | X30: 0.8817132683 | Y30: 0.8728766892 | Z30: 0.8640903066 | AA30: 0.8553559686 | AB30: 0.8466753803 | AC30: 0.8380501116 | AD30: 0.8294816049 | AE30: 0.8209711817
E31: 21 | F31: 5.25 | G31: 0.04022132806 | H31: 0.2144580671 | I31: 0.180659393 | J31: 0.03379867405 | L31: =L$50*EXP(-L$51*$G31) -> 0.9899653052 | M31: 0.9799743527 | N31: 0.9700306371 | O31: 0.9601373899 | P31: 0.9502975937 | Q31: 0.940513997 | R31: 0.9307891271 | S31: 0.9211253031 | T31: 0.9115246481 | U31: 0.9019891007 | V31: 0.8925204257 | W31: 0.8831202246 | X31: 0.8737899454 | Y31: 0.8645308919 | Z31: 0.8553442321 | AA31: 0.8462310073 | AB31: 0.8371921392 | AC31: 0.8282284374 | AD31: 0.819340607
E32: 22 | F32: 5.5 | G32: 0.04487758799 | H32: 0.2023336789 | I32: 0.1856290036 | J32: 0.01670467532 | L32: =L$50*EXP(-L$51*$G32) -> 0.9888278607 | M32: 0.9777514687 | N32: 0.9667725005 | O32: 0.9558924163 | P32: 0.9451124758 | Q32: 0.9344337515 | R32: 0.9238571422 | S32: 0.9133833855 | T32: 0.9030130693 | U32: 0.8927466429 | V32: 0.8825844272 | W32: 0.8725266245 | X32: 0.862573327 | Y32: 0.852724526 | Z32: 0.8429801194 | AA32: 0.8333399191 | AB32: 0.8238036579 | AC32: 0.8143709964
E33: 23 | F33: 5.75 | G33: 0.04342233951 | H33: 0.1926862329 | I33: 0.1720351248 | J33: 0.02065110816 | L33: =L$50*EXP(-L$51*$G33) -> 0.9891832125 | M33: 0.9784456576 | N33: 0.9677896078 | O33: 0.9572171029 | P33: 0.9467299648 | Q33: 0.9363298119 | R33: 0.9260180723 | S33: 0.9157959966 | T33: 0.90566467 | U33: 0.895625023 | V33: 0.8856778424 | W33: 0.8758237812 | X33: 0.8660633675 | Y33: 0.8563970142 | Z33: 0.8468250261 | AA33: 0.8373476089 | AB33: 0.8279648752
E34: 24 | F34: 6 | G34: 0.04562462116 | H34: 0.1816106262 | I34: 0.1687099208 | J34: 0.01290070547 | L34: =L$50*EXP(-L$51*$G34) -> 0.988645495 | M34: 0.9773953071 | N34: 0.9662507967 | O34: 0.9552131177 | P34: 0.9442832323 | Q34: 0.933461925 | R34: 0.9227498159 | S34: 0.9121473723 | T34: 0.9016549209 | U34: 0.8912726584 | V34: 0.8810006612 | W34: 0.8708388956 | X34: 0.8607872258 | Y34: 0.8508454228 | Z34: 0.8410131717 | AA34: 0.8312900792
E35: 25 | F35: 6.25 | G35: 0.04030527176 | H35: 0.1727956449 | I35: 0.1448802671 | J35: 0.02791537781 | L35: =L$50*EXP(-L$51*$G35) -> 0.9899447876 | M35: 0.9799342335 | N35: 0.9699718019 | O35: 0.9600606943 | P35: 0.9502038644 | Q35: 0.9404040321 | R35: 0.9306636971 | S35: 0.9209851515 | T35: 0.9113704923 | U35: 0.9018216324 | V35: 0.8923403118 | W35: 0.8829281079 | X35: 0.8735864453 | Y35: 0.8643166049 | Z35: 0.8551197329
E36: 26 | F36: 6.5 | G36: 0.03446373509 | H36: 0.1636616895 | I36: 0.1206439343 | J36: 0.04301775519 | L36: =L$50*EXP(-L$51*$G36) -> 0.9913735959 | M36: 0.9827299988 | N36: 0.9740745995 | O36: 0.9654124919 | P36: 0.9567484863 | Q36: 0.948087122 | R36: 0.9394326802 | S36: 0.9307891954 | T36: 0.9221604673 | U36: 0.9135500715 | V36: 0.9049613702 | W36: 0.8963975224 | X36: 0.8878614938 | Y36: 0.8793560657
E37: 27 | F37: 6.75 | G37: 0.04351557228 | H37: 0.1505579893 | I37: 0.1341606501 | J37: 0.01639733918 | L37: =L$50*EXP(-L$51*$G37) -> 0.9891604425 | M37: 0.9784011685 | N37: 0.9677244132 | O37: 0.9571321798 | P37: 0.9466262549 | Q37: 0.9362082225 | R37: 0.9258794775 | S37: 0.915641238 | T37: 0.9054945579 | U37: 0.8954403372 | V37: 0.8854793333 | W37: 0.8756121706 | X37: 0.8658393499
E38: 28 | F38: 7 | G38: 0.0391349707 | H38: 0.1406199773 | I38: 0.1143897225 | J38: 0.02623025479 | L38: =L$50*EXP(-L$51*$G38) -> 0.9902308719 | M38: 0.9804937029 | N38: 0.9707923751 | O38: 0.9611304986 | P38: 0.9515114265 | Q38: 0.9419382687 | R38: 0.9324139053 | S38: 0.9229409995 | T38: 0.9135220093 | U38: 0.9041591995 | V38: 0.8948546522 | W38: 0.8856102775
E39: 29 | F39: 7.25 | G39: 0.04277647498 | H39: 0.1289176793 | I39: 0.1129457746 | J39: 0.01597190466 | L39: =L$50*EXP(-L$51*$G39) -> 0.9893409647 | M39: 0.9787539085 | N39: 0.9682413605 | O39: 0.9578056098 | P39: 0.9474487211 | Q39: 0.9371725486 | R39: 0.9269787493 | S39: 0.9168687961 | T39: 0.9068439897 | U39: 0.8969054697 | V39: 0.8870542254
E40: 30 | F40: 7.5 | G40: 0.0434999139 | H40: 0.1177236436 | I40: 0.1045286476 | J40: 0.01319499594 | L40: =L$50*EXP(-L$51*$G40) -> 0.9891642667 | M40: 0.9784086403 | N40: 0.9677353623 | O40: 0.957146442 | P40: 0.9466436721 | Q40: 0.9362286423 | R40: 0.9259027529 | S40: 0.9156672278 | T40: 0.9055231259 | U40: 0.8954713524
E41: 31 | F41: 7.75 | G41: 0.04654411197 | H41: 0.1061612324 | I41: 0.100013961 | J41: 0.006147271378 | L41: =L$50*EXP(-L$51*$G41) -> 0.9884210751 | M41: 0.9769571013 | N41: 0.9656090406 | O41: 0.9543776611 | P41: 0.9432635511 | Q41: 0.9322671334 | R41: 0.9213886778 | S41: 0.9106283132 | T41: 0.899986039
E42: 32 | F42: 8 | G42: 0.0474431715 | H42: 0.09482308858 | I42: 0.09085454588 | J42: 0.003968542699 | L42: =L$50*EXP(-L$51*$G42) -> 0.9882016912 | M42: 0.9765288224 | N42: 0.9649819566 | O42: 0.953561475 | P42: 0.9422675922 | Q42: 0.9311003691 | R42: 0.920059726 | S42: 0.9091454541
E43: 33 | F43: 8.25 | G43: 0.0412985977 | H43: 0.08393713824 | I43: 0.0708192636 | J43: 0.01311787464 | L43: =L$50*EXP(-L$51*$G43) -> 0.9897020304 | M43: 0.9794596186 | N43: 0.9692758615 | O43: 0.9591536021 | P43: 0.9490954441 | Q43: 0.9391037664 | R43: 0.9291807364
E44: 34 | F44: 8.5 | G44: 0.03411000656 | H44: 0.07275151822 | I44: 0.05144562554 | J44: 0.02130589268 | L44: =L$50*EXP(-L$51*$G44) -> 0.9914601821 | M44: 0.9828995495 | N44: 0.9743235969 | O44: 0.9657375211 | P44: 0.9571462338 | Q44: 0.9485543745
E45: 35 | F45: 8.75 | G45: 0.03746521561 | H45: 0.0607491888 | I45: 0.04661986216 | J45: 0.01412932665 | L45: =L$50*EXP(-L$51*$G45) -> 0.9906391926 | M45: =M$50*EXP(-M$51*$G45) -> 0.9812924924 | N45: =N$50*EXP(-N$51*$G45) -> 0.9719643496 | O45: =O$50*EXP(-O$51*$G45) -> 0.9626589318 | P45: =P$50*EXP(-P$51*$G45) -> 0.9533801378
E46: 36 | F46: 9 | G46: 0.0246168061 | H46: 0.0492097373 | I46: 0.02549850344 | J46: 0.02371123386 | L46: =L$50*EXP(-L$51*$G46) -> 0.9937867709 | M46: =M$50*EXP(-M$51*$G46) -> 0.9874608157 | N46: =N$50*EXP(-N$51*$G46) -> 0.981029901 | O46: =O$50*EXP(-O$51*$G46) -> 0.9745014966
E47: 37 | F47: 9.25 | G47: 0.0258032702 | H47: 0.03700718141 | I47: 0.01981077322 | J47: 0.01719640819 | L47: =L$50*EXP(-L$51*$G47) -> 0.9934956946 | M47: =M$50*EXP(-M$51*$G47) -> 0.9868895914 | N47: =N$50*EXP(-N$51*$G47) -> 0.9801892268
E48: 38 | F48: 9.5 | G48: 0.01666637697 | H48: 0.02483795696 | I48: 0.0087029018 | J48: 0.01613505516 | L48: =L$50*EXP(-L$51*$G48) -> 0.9957394584 | M48: =M$50*EXP(-M$51*$G48) -> 0.9912970982
E49: 39 | F49: 9.75 | G49: 0.02334349946 | H49: 0.01242624059 | I49: 0.005900752745 | J49: 0.006525487845 | L49: =L$50*EXP(-L$51*$G49) -> 0.9940992473
E50: 40 | F50: 10 | G50: 0.01901954025 | H50: 0 | I50: 0 | J50: 0 | K50: A | L50: =EXP(((L51-L9)*(MeanRev^2*b_Param-Volatility^2/2))/MeanRev^2-(Volatility^2*L51^2/(4*MeanRev))) -> 0.9998453115 | M50: 0.9993874824 | N50: 0.9986358374 | O50: 0.9975996494 | P50: 0.9962881255 | Q50: 0.9947103934 | R50: 0.99287549 | S50: 0.99079235 | T50: 0.9884697969 | U50: 0.9859165334 | V50: 0.9831411338 | W50: 0.9801520374 | X50: 0.9769575415 | Y50: 0.9735657969 | Z50: 0.9699848023 | AA50: 0.966222401 | AB50: 0.962286277 | AC50: 0.9581839526 | AD50: 0.9539227858 | AE50: 0.9495099687 | AF50: 0.9449525263 | AG50: 0.9402573155 | AH50: 0.9354310249 | AI50: 0.9304801742 | AJ50: 0.9254111152 | AK50: 0.9202300319 | AL50: 0.9149429414 | AM50: 0.9095556953 | AN50: 0.9040739808 | AO50: 0.8985033224 | AP50: 0.8928490836 | AQ50: 0.887116469 | AR50: 0.8813105265 | AS50: 0.8754361489 | AT50: 0.8694980773 | AU50: 0.8635009026 | AV50: 0.8574490687 | AW50: 0.8513468749 | AX50: 0.8451984787 | AY50: 0.8390078984
K51: B | L51: =(1-EXP(-MeanRev*L9))/MeanRev -> 0.2469008797 | M51: 0.487705755 | N51: 0.7225651367 | O51: 0.9516258196 | P51: 1.175030974 | Q51: 1.392920236 | R51: 1.605429792 | S51: 1.812692469 | T51: 2.014837812 | U51: 2.211992169 | V51: 2.404278768 | W51: 2.591817793 | X51: 2.774726464 | Y51: 2.953119103 | Z51: 3.127107212 | AA51: 3.29679954 | AB51: 3.462302149 | AC51: 3.623718484 | AD51: 3.781149435 | AE51: 3.934693403 | AF51: 4.084446356 | AG51: 4.230501896 | AH51: 4.372951312 | AI51: 4.511883639 | AJ51: 4.647385715 | AK51: 4.779542232 | AL51: 4.908435794 | AM51: 5.034146962 | AN51: 5.15675431 | AO51: 5.276334473 | AP51: 5.39296219 | AQ51: 5.506710359 | AR51: 5.617650075 | AS51: 5.725850681 | AT51: 5.831379803 | AU51: 5.934303403 | AV51: 6.034685809 | AW51: 6.132589765 | AX51: 6.228076464 | AY51: 6.321205588
C52: EE | D52: PFE (90%) | E52: Simulations
B53: 0 | C53: =SUMIF(E53:IT53,">0")/250 -> 0 | D53: =SMALL(E53:IT53,90%*250) -> 
B54: 0.25 | C54: 0
B55: 0.5 | C55: 0
B56: 0.75 | C56: 0
B57: 1 | C57: 0
B58: 1.25 | C58: 0
B59: 1.5 | C59: 0
B60: 1.75 | C60: 0
B61: 2 | C61: 0
B62: 2.25 | C62: 0
B63: 2.5 | C63: 0
B64: 2.75 | C64: 0
B65: 3 | C65: 0
B66: 3.25 | C66: 0
B67: 3.5 | C67: 0
B68: 3.75 | C68: 0
B69: 4 | C69: 0
B70: 4.25 | C70: 0
B71: 4.5 | C71: 0
B72: 4.75 | C72: 0
B73: 5 | C73: 0
B74: 5.25 | C74: 0
B75: 5.5 | C75: 0
B76: 5.75 | C76: 0
B77: 6 | C77: 0
B78: 6.25 | C78: 0
B79: 6.5 | C79: 0
B80: 6.75 | C80: 0
B81: 7 | C81: 0
B82: 7.25 | C82: 0
B83: 7.5 | C83: 0
B84: 7.75 | C84: 0
B85: 8 | C85: 0
B86: 8.25 | C86: 0
B87: 8.5 | C87: 0
B88: 8.75 | C88: 0
B89: 9 | C89: 0
B90: 9.25 | C90: 0
B91: 9.5 | C91: 0
B92: 9.75 | C92: 0
B93: 10 | C93: 0

Sheet Spreadsheet10.3
B9: Trade Details
B10: Base case | C10: =B34 -> Payer IRS 7Y (base case)
B11: Trade 1 | C11: =B1036 -> Payer IRS 5Y | E11: TRUE
B12: Trade 2 | C12: =B2038 -> Payer swaption 5x5Y | E12: FALSE
B13: Trade 3 | C13: =B3040 -> xCCY USDJPY | E13: FALSE
B14: Trade 4 | C14: Receiver IRS 5Y | E14: FALSE
B17: EE | C17: 0 | D17: 0.25 | E17: 0.5 | F17: 0.75 | G17: 1 | H17: 1.25 | I17: 1.5 | J17: 1.75 | K17: 2 | L17: 2.25 | M17: 2.5 | N17: 2.75 | O17: 3 | P17: 3.25 | Q17: 3.5 | R17: 3.75 | S17: 4 | T17: 4.25 | U17: 4.5 | V17: 4.75 | W17: 5 | X17: 5.25 | Y17: 5.5 | Z17: 5.75 | AA17: 6 | AB17: 6.25 | AC17: 6.5 | AD17: 6.75 | AE17: 7
B18: =C10 -> Payer IRS 7Y (base case) | C18: =SUMIF(C35:C1034,">0")/1000 -> 1.564353489 | D18: =SUMIF(D35:D1034,">0")/1000 -> 2.150158548 | E18: =SUMIF(E35:E1034,">0")/1000 -> 2.563165157 | F18: 2.918397243 | G18: 3.233823884 | H18: 3.560178533 | I18: 3.692088876 | J18: 3.812409597 | K18: 3.836485044 | L18: 3.858475321 | M18: 3.85884392 | N18: 3.822222332 | O18: 3.732658571 | P18: 3.619023212 | Q18: 3.503886576 | R18: 3.348645673 | S18: 3.163986281 | T18: 2.976800673 | U18: 2.792441545 | V18: 2.588115343 | W18: 2.36511411 | X18: 2.131324451 | Y18: 1.893443993 | Z18: 1.645149966 | AA18: 1.382008433 | AB18: 1.104343602 | AC18: 0.8528658333 | AD18: 0.5802266676 | AE18: 0.289456574
B19: =IF(COUNTIF(E11:E14,TRUE)=1,OFFSET(C11,MATCH(TRUE,E11:E14,FALSE)-1,0,1,1),"Netting set") -> Payer IRS 5Y | C19: =SUMIF(C5045:C6044,">0")/1000 -> 1.369504439 | D19: =SUMIF(D5045:D6044,">0")/1000 -> 1.674846086 | E19: =SUMIF(E5045:E6044,">0")/1000 -> 1.944822971 | F19: 2.188098257 | G19: 2.386444851 | H19: 2.583672294 | I19: 2.638216256 | J19: 2.683074152 | K19: 2.648329701 | L19: 2.592240007 | M19: 2.504099366 | N19: 2.384191436 | O19: 2.231611769 | P19: 2.052999829 | Q19: 1.864729386 | R19: 1.642420483 | S19: 1.396552512 | T19: 1.137515226 | U19: 0.8797048974 | V19: 0.6026611859 | W19: 0.306947649 | X19: 0 | Y19: 0 | Z19: 0 | AA19: 0 | AB19: 0 | AC19: 0 | AD19: 0 | AE19: 0
B20: Both (with netting) | C20: =SUMIF(C6047:C7046,">0")/1000 -> 2.933857927 | D20: =SUMIF(D6047:D7046,">0")/1000 -> 3.819510068 | E20: =SUMIF(E6047:E7046,">0")/1000 -> 4.497439517 | F20: 5.093781336 | G20: 5.607809902 | H20: 6.126443638 | I20: 6.318445052 | J20: 6.479112623 | K20: 6.469592151 | L20: 6.432853172 | M20: 6.345790642 | N20: 6.189903484 | O20: 5.947660606 | P20: 5.657008838 | Q20: 5.354777358 | R20: 4.97873 | S20: 4.5500054 | T20: 4.104917423 | U20: 3.665194201 | V20: 3.186006992 | W20: 2.669629699 | X20: 2.131324451 | Y20: 1.893443993 | Z20: 1.645149966 | AA20: 1.382008433 | AB20: 1.104343602 | AC20: 0.8528658333 | AD20: 0.5802266676 | AE20: 0.289456574
B21: Both (without netting) | C21: =C19+C18 -> 2.933857927 | D21: =D19+D18 -> 3.825004634 | E21: =E19+E18 -> 4.507988129 | F21: 5.1064955 | G21: 5.620268735 | H21: 6.143850827 | I21: 6.330305132 | J21: 6.495483749 | K21: 6.484814746 | L21: 6.450715328 | M21: 6.362943285 | N21: 6.206413768 | O21: 5.96427034 | P21: 5.672023042 | Q21: 5.368615963 | R21: 4.991066156 | S21: 4.560538794 | T21: 4.114315899 | U21: 3.672146442 | V21: 3.190776529 | W21: 2.672061759 | X21: 2.131324451 | Y21: 1.893443993 | Z21: 1.645149966 | AA21: 1.382008433 | AB21: 1.104343602 | AC21: 0.8528658333 | AD21: 0.5802266676 | AE21: 0.289456574
B23: NEE | C23: 0 | D23: 0.25 | E23: 0.5 | F23: 0.75 | G23: 1 | H23: 1.25 | I23: 1.5 | J23: 1.75 | K23: 2 | L23: 2.25 | M23: 2.5 | N23: 2.75 | O23: 3 | P23: 3.25 | Q23: 3.5 | R23: 3.75 | S23: 4 | T23: 4.25 | U23: 4.5 | V23: 4.75 | W23: 5 | X23: 5.25 | Y23: 5.5 | Z23: 5.75 | AA23: 6 | AB23: 6.25 | AC23: 6.5 | AD23: 6.75 | AE23: 7
B24: =B18 -> Payer IRS 7Y (base case) | C24: =SUMIF(C35:C1034,"<0")/1000 -> 0 | D24: =SUMIF(D35:D1034,"<0")/1000 -> -0.5946721542 | E24: -0.9145576894 | F24: -1.112594339 | G24: -1.224183644 | H24: -1.274172291 | I24: -1.337726723 | J24: -1.354989505 | K24: -1.387649147 | L24: -1.343810235 | M24: -1.340585294 | N24: -1.298004536 | O24: -1.282644308 | P24: -1.230394686 | Q24: -1.164146014 | R24: -1.105420741 | S24: -1.046119847 | T24: -0.9748856588 | U24: -0.8932940921 | V24: -0.8094803077 | W24: -0.7257670951 | X24: -0.6414063574 | Y24: -0.5564545116 | Z24: -0.4731794685 | AA24: -0.3914541724 | AB24: -0.3078333732 | AC24: -0.2296562348 | AD24: -0.1510827623 | AE24: -0.07348847517
B25: =B19 -> Payer IRS 5Y | C25: =SUMIF(C5045:C6044,"<0")/1000 -> 0 | D25: =SUMIF(D5045:D6044,"<0")/1000 -> -0.3054607665 | E25: -0.473068579 | F25: -0.5774076425 | G25: -0.6245121062 | H25: -0.6375790234 | I25: -0.648848011 | J25: -0.6398053362 | K25: -0.6340805947 | L25: -0.5949870312 | M25: -0.5720087454 | N25: -0.5310376253 | O25: -0.4990583768 | P25: -0.453176668 | Q25: -0.405196574 | R25: -0.3566070188 | S25: -0.3050924443 | T25: -0.2485772061 | U25: -0.1877398333 | V25: -0.1255873883 | W25: -0.06291580391 | X25: 0 | Y25: 0 | Z25: 0 | AA25: 0 | AB25: 0 | AC25: 0 | AD25: 0 | AE25: 0
B26: Both (with netting) | C26: =SUMIF(C6047:C7046,"<0")/1000 -> 0 | D26: =SUMIF(D6047:D7046,"<0")/1000 -> -0.8946383542 | E26: -1.377077657 | F26: -1.677287817 | G26: -1.836236917 | H26: -1.894344125 | I26: -1.974714654 | J26: -1.978423715 | K26: -2.006507147 | L26: -1.920935111 | M26: -1.895441396 | N26: -1.812531878 | O26: -1.765092951 | P26: -1.66855715 | Q26: -1.555503983 | R26: -1.449691604 | S26: -1.340678897 | T26: -1.214064389 | U26: -1.074081684 | V26: -0.9302981589 | W26: -0.7862508387 | X26: -0.6414063574 | Y26: -0.5564545116 | Z26: -0.4731794685 | AA26: -0.3914541724 | AB26: -0.3078333732 | AC26: -0.2296562348 | AD26: -0.1510827623 | AE26: -0.07348847517
B27: Both (without netting) | C27: =C25+C24 -> 0 | D27: =D25+D24 -> -0.9001329207 | E27: -1.387626268 | F27: -1.690001981 | G27: -1.84869575 | H27: -1.911751314 | I27: -1.986574734 | J27: -1.994794842 | K27: -2.021729742 | L27: -1.938797267 | M27: -1.91259404 | N27: -1.829042161 | O27: -1.781702685 | P27: -1.683571354 | Q27: -1.569342588 | R27: -1.46202776 | S27: -1.351212292 | T27: -1.223462865 | U27: -1.081033925 | V27: -0.935067696 | W27: -0.788682899 | X27: -0.6414063574 | Y27: -0.5564545116 | Z27: -0.4731794685 | AA27: -0.3914541724 | AB27: -0.3078333732 | AC27: -0.2296562348 | AD27: -0.1510827623 | AE27: -0.07348847517
C30: Path Num -> | D30: 7
B31: =B24 -> Payer IRS 7Y (base case) | C31: =OFFSET(C35,PathRef-1,0,1,1) -> 1.564353489 | D31: -0.6019792699 | E31: 0.04828710093 | F31: 0.2869497801 | G31: 2.779673906 | H31: 1.150933479 | I31: 2.127628372 | J31: -0.2085978799 | K31: -2.449071678 | L31: -1.913810202 | M31: -2.558443969 | N31: -1.09074232 | O31: -1.751004675 | P31: -1.651769426 | Q31: -1.009914799 | R31: -1.553919942 | S31: -1.729875281 | T31: -1.743580738 | U31: -1.755273406 | V31: -1.631477167 | W31: -1.576003961 | X31: -1.478952336 | Y31: -1.355650704 | Z31: -1.210328789 | AA31: -1.059018094 | AB31: -0.8768160883 | AC31: -0.6813695877 | AD31: -0.4669857552 | AE31: -0.2375084684
B32: =B19 -> Payer IRS 5Y | C32: =OFFSET(C5045,PathRef-1,0,1,1) -> 1.369504439 | D32: 0.2611178722 | E32: 1.169034979 | F32: 1.179833768 | G32: 2.387319611 | H32: 1.583627034 | I32: 2.267855892 | J32: 1.172493655 | K32: 0.07920232724 | L32: 0.2087589186 | M32: -0.09127180622 | N32: 0.4258369019 | O32: 0.1647596046 | P32: 0.1185981129 | Q32: 0.2433153398 | R32: 0.09831246977 | S32: 0.04351723591 | T32: -0.00110952503 | U32: -0.03826079697 | V32: -0.04421675171 | W32: -0.02898051552 | X32: 0 | Y32: 0 | Z32: 0 | AA32: 0 | AB32: 0 | AC32: 0 | AD32: 0 | AE32: 0
B34: Payer IRS 7Y (base case)
B35: Simulation 1 | C35: 1.564353489 | D35: -0.15900853 | E35: -3.743909765 | F35: -0.7285138433 | G35: -0.3853876674 | H35: -0.9559005567 | I35: 1.153983328 | J35: 1.979504478 | K35: 2.137203724 | L35: 2.827832261 | M35: 3.25747471 | N35: 4.167477542 | O35: 4.824763448 | P35: 4.523918677 | Q35: 4.516114089 | R35: 4.673345792 | S35: 4.553054334 | T35: 4.217323486 | U35: 4.019075354 | V35: 3.695131883 | W35: 3.368596592 | X35: 3.060288993 | Y35: 2.727045686 | Z35: 2.380475851 | AA35: 2.004684151 | AB35: 1.605889965 | AC35: 1.241636214 | AD35: 0.8454585812 | AE35: 0.4221816896
B36: Simulation 2 | C36: 1.564353489 | D36: 2.859919673 | E36: 2.669179257 | F36: 1.853181695 | G36: -2.545013694 | H36: -3.394420142 | I36: -1.489095169 | J36: -3.476247649 | K36: -1.162397119 | L36: -0.470276118 | M36: -0.2323341965 | N36: 0.4120414793 | O36: 1.495513263 | P36: 1.420217542 | Q36: 1.415288214 | R36: 0.8199717632 | S36: 1.063503097 | T36: 1.166490628 | U36: 1.318328592 | V36: 1.402344093 | W36: 1.462556413 | X36: 1.435140124 | Y36: 1.379189715 | Z36: 1.283299617 | AA36: 1.14574267 | AB36: 0.9673007706 | AC36: 0.7862690859 | AD36: 0.5623085402 | AE36: 0.2938475609
B37: Simulation 3 | C37: 1.564353489 | D37: -0.7935516719 | E37: -1.767626958 | F37: -2.069338221 | G37: 2.727852452 | H37: 2.932249643 | I37: -0.6475310789 | J37: -0.2240365709 | K37: -0.9156557167 | L37: -2.097995848 | M37: -1.302699468 | N37: -0.5794415249 | O37: -1.088419406 | P37: -0.03592696497 | Q37: 0.06171445145 | R37: -0.3034964773 | S37: -0.5212793905 | T37: -0.770865193 | U37: -0.6951951645 | V37: -0.5695773563 | W37: -0.4224355154 | X37: -0.3319606808 | Y37: -0.2580198003 | Z37: -0.1892429025 | AA37: -0.1286783817 | AB37: -0.08345737849 | AC37: -0.04028101139 | AD37: -0.0105797439 | AE37: 0.00260159969
B38: Simulation 4 | C38: 1.564353489 | D38: -1.053930998 | E38: 0.716015076 | F38: 1.130270604 | G38: -2.193575425 | H38: -2.642358118 | I38: -3.439059199 | J38: -3.611602579 | K38: -4.573624761 | L38: -4.126312007 | M38: -4.188476101 | N38: -3.644938847 | O38: -3.221125966 | P38: -3.081926026 | Q38: -3.190703658 | R38: -2.838847544 | S38: -3.157513693 | T38: -2.609087969 | U38: -2.376811804 | V38: -2.109983639 | W38: -1.878243146 | X38: -1.602518644 | Y38: -1.348793763 | Z38: -1.112589188 | AA38: -0.8858462096 | AB38: -0.6668833555 | AC38: -0.4718680891 | AD38: -0.2919002125 | AE38: -0.132635424
B39: Simulation 5 | C39: 1.564353489 | D39: 2.108207773 | E39: 2.585937374 | F39: 2.409064544 | G39: 5.377010974 | H39: 2.79008798 | I39: 7.557382468 | J39: 4.151960828 | K39: 5.023451801 | L39: 4.745476962 | M39: 4.54169469 | N39: 3.475765633 | O39: 4.033171547 | P39: 3.817949183 | Q39: 3.984647308 | R39: 4.076131084 | S39: 3.863578808 | T39: 3.575486374 | U39: 3.334129585 | V39: 3.149663825 | W39: 2.952272252 | X39: 2.695900343 | Y39: 2.435976324 | Z39: 2.152222281 | AA39: 1.837935057 | AB39: 1.498412924 | AC39: 1.180132964 | AD39: 0.8187127156 | AE39: 0.4171287372
B40: Simulation 6 | C40: 1.564353489 | D40: -4.176330518 | E40: -2.462550719 | F40: -2.756593589 | G40: 0.4443411058 | H40: -4.216929755 | I40: -5.650403757 | J40: -4.482349181 | K40: -2.433111855 | L40: -2.96023242 | M40: -3.023280063 | N40: -2.982744042 | O40: -3.255050503 | P40: -3.561037222 | Q40: -3.372160332 | R40: -2.939840235 | S40: -2.082245056 | T40: -1.675114779 | U40: -1.408116848 | V40: -1.089269651 | W40: -0.8127800394 | X40: -0.5856372587 | Y40: -0.3738286752 | Z40: -0.1974726413 | AA40: -0.06903295996 | AB40: 0.02740340767 | AC40: 0.08757071088 | AD40: 0.1053522174 | AE40: 0.07499167232
B41: Simulation 7 | C41: 1.564353489 | D41: -0.6019792699 | E41: 0.04828710093 | F41: 0.2869497801 | G41: 2.779673906 | H41: 1.150933479 | I41: 2.127628372 | J41: -0.2085978799 | K41: -2.449071678 | L41: -1.913810202 | M41: -2.558443969 | N41: -1.09074232 | O41: -1.751004675 | P41: -1.651769426 | Q41: -1.009914799 | R41: -1.553919942 | S41: -1.729875281 | T41: -1.743580738 | U41: -1.755273406 | V41: -1.631477167 | W41: -1.576003961 | X41: -1.478952336 | Y41: -1.355650704 | Z41: -1.210328789 | AA41: -1.059018094 | AB41: -0.8768160883 | AC41: -0.6813695877 | AD41: -0.4669857552 | AE41: -0.2375084684
B42: Simulation 8 | C42: 1.564353489 | D42: 4.65582153 | E42: 11.23307772 | F42: 12.18334229 | G42: 12.14773791 | H42: 9.404752011 | I42: 4.325352263 | J42: 8.272453564 | K42: 7.404875879 | L42: 6.520871154 | M42: 6.170678441 | N42: 6.186319279 | O42: 5.639050688 | P42: 5.608396298 | Q42: 4.851041884 | R42: 4.430178271 | S42: 3.34635502 | T42: 2.79937919 | U42: 2.358176424 | V42: 2.047592176 | W42: 1.638295834 | X42: 1.335147014 | Y42: 1.057820555 | Z42: 0.8021321867 | AA42: 0.579511294 | AB42: 0.3875755011 | AC42: 0.2528382834 | AD42: 0.1395042191 | AE42: 0.05202546567
B43: Simulation 9 | C43: 1.564353489 | D43: -1.094004444 | E43: -4.603988659 | F43: -8.544201221 | G43: -13.84538918 | H43: -12.44345771 | I43: -10.30509368 | J43: -10.4523951 | K43: -10.6627798 | L43: -10.37848894 | M43: -11.27457167 | N43: -10.39476341 | O43: -8.650552235 | P43: -7.424688145 | Q43: -6.017312904 | R43: -5.138541465 | S43: -4.93148917 | T43: -4.295512597 | U43: -3.735315942 | V43: -3.282315009 | W43: -2.75306476 | X43: -2.319223293 | Y43: -1.927647279 | Z43: -1.568455766 | AA43: -1.239276862 | AB43: -0.9304369392 | AC43: -0.6626686723 | AD43: -0.4147129551 | AE43: -0.1911289121
B44: Simulation 10 | C44: 1.564353489 | D44: 4.183524036 | E44: 6.53893066 | F44: 10.18446051 | G44: 9.150893751 | H44: 12.09965475 | I44: 13.37479559 | J44: 12.48064232 | K44: 15.30435131 | L44: 15.46550323 | M44: 14.219343 | N44: 13.7292182 | O44: 14.22194921 | P44: 13.86784061 | Q44: 13.29437939 | R44: 12.82864077 | S44: 11.77042885 | T44: 11.04207155 | U44: 10.31017855 | V44: 9.446734199 | W44: 8.509883267 | X44: 7.607790834 | Y44: 6.704088589 | Z44: 5.778410116 | AA44: 4.82381288 | AB44: 3.829870838 | AC44: 2.927671427 | AD44: 1.97127463 | AE44: 0.9752728111
B45: Simulation 11 | C45: 1.564353489 | D45: -2.210304848 | E45: -8.464646019 | F45: -9.976780303 | G45: -11.29246731 | H45: -11.56409735 | I45: -9.006667076 | J45: -7.785688892 | K45: -9.033090605 | L45: -10.58377974 | M45: -9.11992541 | N45: -8.52256366 | O45: -10.36505331 | P45: -9.413743268 | Q45: -8.455401892 | R45: -8.248908082 | S45: -7.8935631 | T45: -7.401898588 | U45: -6.82456814 | V45: -6.241822196 | W45: -5.615211574 | X45: -4.963540509 | Y45: -4.286769367 | Z45: -3.621267672 | AA45: -2.962471275 | AB45: -2.303837807 | AC45: -1.707514473 | AD45: -1.113900808 | AE45: -0.5346351999
B46: Simulation 12 | C46: 1.564353489 | D46: -2.64597031 | E46: 1.878522046 | F46: -0.5395174122 | G46: -3.634322245 | H46: -2.390362769 | I46: -2.152152483 | J46: -4.052191447 | K46: -4.452345107 | L46: -2.139016561 | M46: -1.188485325 | N46: -2.089031929 | O46: -2.031068862 | P46: -2.716867604 | Q46: -2.915097059 | R46: -2.947092712 | S46: -2.827852503 | T46: -2.733486697 | U46: -2.533977234 | V46: -2.40439796 | W46: -2.173667294 | X46: -1.945897764 | Y46: -1.707273518 | Z46: -1.470967293 | AA46: -1.229688251 | AB46: -0.975218985 | AC46: -0.7281064927 | AD46: -0.4780846218 | AE46: -0.2311995799
B47: Simulation 13 | C47: 1.564353489 | D47: -3.551810623 | E47: -7.586914358 | F47: -3.100000066 | G47: -3.324012001 | H47: -0.8316650042 | I47: 2.018702503 | J47: -0.9755706321 | K47: -1.320711748 | L47: -1.539300121 | M47: -2.344065182 | N47: -1.104904506 | O47: -0.5077129025 | P47: -0.2388023774 | Q47: -0.3723512223 | R47: 0.09562101324 | S47: 0.2517806002 | T47: 0.6406288474 | U47: 0.7341994088 | V47: 0.8935685731 | W47: 0.9269306064 | X47: 0.9090765433 | Y47: 0.8822268581 | Z47: 0.8309241687 | AA47: 0.7448342721 | AB47: 0.6323049972 | AC47: 0.5199707298 | AD47: 0.3752195238 | AE47: 0.1966791225
B48: Simulation 14 | C48: 1.564353489 | D48: 4.592807873 | E48: 3.426903477 | F48: 2.634298649 | G48: 3.193855154 | H48: 3.522472236 | I48: 2.953487804 | J48: 2.704267026 | K48: 1.933184553 | L48: 1.180233205 | M48: 0.4221247868 | N48: 0.9902532677 | O48: 0.7610603101 | P48: 0.1025333632 | Q48: -0.1928018203 | R48: -0.4098351188 | S48: -0.534269272 | T48: -0.1315259202 | U48: -0.0836937373 | V48: -0.01157275235 | W48: 0.05658938633 | X48: 0.1065723238 | Y48: 0.1479043577 | Z48: 0.1754117557 | AA48: 0.1868335366 | AB48: 0.1792388965 | AC48: 0.1681647181 | AD48: 0.13505708 | AE48: 0.07727631114
B49: Simulation 15 | C49: 1.564353489 | D49: 3.567344604 | E49: 1.066705613 | F49: -4.267832475 | G49: -5.304815521 | H49: -4.410394969 | I49: -4.048169535 | J49: -6.306193323 | K49: -4.015735279 | L49: -5.217730948 | M49: -3.872673261 | N49: -4.302849593 | O49: -4.178188767 | P49: -4.170103414 | Q49: -3.661078986 | R49: -3.994961345 | S49: -3.232812313 | T49: -3.003868001 | U49: -2.604084694 | V49: -2.30043374 | W49: -2.067107935 | X49: -1.777476537 | Y49: -1.502929914 | Z49: -1.247086948 | AA49: -1.004042798 | AB49: -0.7632545691 | AC49: -0.5472106651 | AD49: -0.3444200679 | AE49: -0.1594762741
B50: Simulation 16 | C50: 1.564353489 | D50: 8.881526237 | E50: 3.335754275 | F50: 3.874290741 | G50: 3.360621443 | H50: 4.011087317 | I50: 5.121401322 | J50: 4.530632101 | K50: 5.064529251 | L50: 6.76039704 | M50: 5.325182622 | N50: 5.031392233 | O50: 4.269410063 | P50: 3.233140374 | Q50: 2.584956858 | R50: 1.660901447 | S50: 1.534375573 | T50: 1.394987624 | U50: 1.134771692 | V50: 0.902108991 | W50: 0.687172058 | X50: 0.5721360847 | Y50: 0.4749181289 | Z50: 0.3927755303 | AA50: 0.3168457018 | AB50: 0.2452905454 | AC50: 0.1960247459 | AD50: 0.138509736 | AE50: 0.07118666578
B51: Simulation 17 | C51: 1.564353489 | D51: 2.086890097 | E51: 2.027427781 | F51: 1.093364792 | G51: 1.854397995 | H51: 2.779955823 | I51: 2.043732344 | J51: 3.058436614 | K51: 1.160631778 | L51: 1.336537342 | M51: 0.9439673947 | N51: 2.064946485 | O51: 3.667829169 | P51: 3.661514413 | Q51: 3.460625913 | R51: 3.871622838 | S51: 3.986733211 | T51: 3.722711519 | U51: 3.572130975 | V51: 3.259585406 | W51: 2.915651397 | X51: 2.56949974 | Y51: 2.211510728 | Z51: 1.8592316 | AA51: 1.496890778 | AB51: 1.139110858 | AC51: 0.8382815558 | AD51: 0.5388157595 | AE51: 0.2517645784
B52: Simulation 18 | C52: 1.564353489 | D52: -1.277602263 | E52: -3.346325459 | F52: -2.997399681 | G52: -4.523240982 | H52: -3.929442264 | I52: -4.040290314 | J52: -4.801818542 | K52: -7.474854181 | L52: -7.887845459 | M52: -9.449211997 | N52: -8.624599114 | O52: -7.60878001 | P52: -7.05968735 | Q52: -6.565492592 | R52: -5.606543491 | S52: -5.530467844 | T52: -5.238320616 | U52: -4.855184588 | V52: -4.342360161 | W52: -3.843202567 | X52: -3.429692812 | Y52: -2.986496328 | Z52: -2.549581391 | AA52: -2.111213025 | AB52: -1.667546377 | AC52: -1.252686494 | AD52: -0.8298544178 | AE52: -0.4055642484
B53: Simulation 19 | C53: 1.564353489 | D53: 2.520394181 | E53: 2.130868624 | F53: 5.270705861 | G53: 5.124317493 | H53: 7.350800899 | I53: 8.492340072 | J53: 8.599401615 | K53: 9.236135297 | L53: 8.986191234 | M53: 7.725328112 | N53: 7.185627427 | O53: 7.895154599 | P53: 7.700267045 | Q53: 7.528661102 | R53: 7.456626554 | S53: 7.122695655 | T53: 6.66312331 | U53: 6.32075024 | V53: 5.854531188 | W53: 5.438329032 | X53: 4.942439756 | Y53: 4.431727326 | Z53: 3.876193317 | AA53: 3.2874967 | AB53: 2.653145253 | AC53: 2.060957684 | AD53: 1.41113755 | AE53: 0.7093444606
B54: Simulation 20 | C54: 1.564353489 | D54: 2.740414209 | E54: -2.517162587 | F54: -6.276703109 | G54: -8.918619843 | H54: -10.25023286 | I54: -9.824560729 | J54: -9.882678666 | K54: -11.15652563 | L54: -11.17142841 | M54: -11.27811298 | N54: -10.20610745 | O54: -10.17119983 | P54: -9.639073065 | Q54: -9.185361859 | R54: -8.636413866 | S54: -7.771913444 | T54: -7.004634511 | U54: -6.434950003 | V54: -5.722197171 | W54: -5.143759005 | X54: -4.57611054 | Y54: -3.999359581 | Z54: -3.421933621 | AA54: -2.845406546 | AB54: -2.252896149 | AC54: -1.702175933 | AD54: -1.134729875 | AE54: -0.5588094684
B55: Simulation 21 | C55: 1.564353489 | D55: 5.572838347 | E55: 6.521201232 | F55: 4.477713087 | G55: 4.880367975 | H55: 7.528102676 | I55: 9.886157021 | J55: 5.488550521 | K55: 7.47375793 | L55: 7.771262454 | M55: 7.789369702 | N55: 7.443579088 | O55: 7.394791188 | P55: 6.612639303 | Q55: 6.275027576 | R55: 5.687013471 | S55: 5.403025045 | T55: 4.830774279 | U55: 4.395104649 | V55: 4.09377342 | W55: 3.709985753 | X55: 3.337125857 | Y55: 2.951261665 | Z55: 2.545925153 | AA55: 2.128369475 | AB55: 1.692391282 | AC55: 1.301817318 | AD55: 0.8815246606 | AE55: 0.4375518335
B56: Simulation 22 | C56: 1.564353489 | D56: 6.929582465 | E56: 6.791502813 | F56: 10.51733169 | G56: 12.89786418 | H56: 9.303907996 | I56: 6.101876493 | J56: 3.673083953 | K56: 3.658817096 | L56: 3.799671666 | M56: 1.263047595 | N56: 0.9390797043 | O56: 0.7321747101 | P56: 0.03588522589 | Q56: -0.1520492532 | R56: 0.07941486117 | S56: 0.02591275531 | T56: -0.1355923144 | U56: -0.04731093169 | V56: -0.02275036449 | W56: 0.02599099324 | X56: 0.02313400319 | Y56: 0.0221399599 | Z56: 0.02895233308 | AA56: 0.02902417752 | AB56: 0.03165032155 | AC56: 0.04085435296 | AD56: 0.03878003834 | AE56: 0.02400874302
B57: Simulation 23 | C57: 1.564353489 | D57: -0.9672146119 | E57: -4.457267429 | F57: -3.213262872 | G57: -5.60538596 | H57: -5.222644381 | I57: -7.03238448 | J57: -6.600466341 | K57: -7.528958442 | L57: -6.960904885 | M57: -8.514642879 | N57: -10.77555653 | O57: -8.949692571 | P57: -8.429052396 | Q57: -8.140764716 | R57: -8.239608577 | S57: -7.600972917 | T57: -6.875441136 | U57: -6.30838042 | V57: -5.775813755 | W57: -5.225805938 | X57: -4.640449951 | Y57: -4.042759714 | Z57: -3.454044111 | AA57: -2.865531074 | AB57: -2.262036913 | AC57: -1.702002539 | AD57: -1.129246959 | AE57: -0.552869993
B58: Simulation 24 | C58: 1.564353489 | D58: 0.3906410686 | E58: 2.746136807 | F58: 7.107507585 | G58: 6.180438238 | H58: 7.982214925 | I58: 5.936613138 | J58: 4.988424226 | K58: 4.002696578 | L58: 3.992865714 | M58: 4.783568443 | N58: 3.624878586 | O58: 2.847564529 | P58: 2.032882686 | Q58: 1.801338979 | R58: 1.634399103 | S58: 1.07869872 | T58: 0.8321667099 | U58: 0.793457058 | V58: 0.6945798927 | W58: 0.6290563232 | X58: 0.5406528581 | Y58: 0.463911864 | Z58: 0.3912954382 | AA58: 0.3189010005 | AB58: 0.2484068675 | AC58: 0.1963452556 | AD58: 0.1354861933 | AE58: 0.06756366517
B59: Simulation 25 | C59: 1.564353489 | D59: -1.45634823 | E59: -1.440481794 | F59: -1.957140269 | G59: 1.50383323 | H59: 2.4893946 | I59: 2.479077917 | J59: 2.190217051 | K59: 1.752314921 | L59: 2.04430315 | M59: 3.052615094 | N59: 3.200503027 | O59: 2.895654802 | P59: 3.608085136 | Q59: 3.710937611 | R59: 3.816196552 | S59: 3.595496905 | T59: 3.242613459 | U59: 3.088659057 | V59: 2.983740609 | W59: 2.769258016 | X59: 2.523151553 | Y59: 2.304880528 | Z59: 2.055885317 | AA59: 1.775764539 | AB59: 1.45743795 | AC59: 1.152001206 | AD59: 0.8021915483 | AE59: 0.4096608535
B60: Simulation 26 | C60: 1.564353489 | D60: 2.082348163 | E60: -1.340819788 | F60: 0.5574512923 | G60: 3.29865451 | H60: 6.495459089 | I60: 8.199248994 | J60: 7.5809614 | K60: 7.115914544 | L60: 8.243983071 | M60: 9.375596917 | N60: 9.363121513 | O60: 7.901882354 | P60: 7.939079951 | Q60: 7.01568322 | R60: 6.690408943 | S60: 5.570651262 | T60: 4.651221846 | U60: 4.175888395 | V60: 3.677242475 | W60: 3.245976162 | X60: 2.831059546 | Y60: 2.425710428 | Z60: 2.034975471 | AA60: 1.653596008 | AB60: 1.275696368 | AC60: 0.9587596204 | AD60: 0.6343367352 | AE60: 0.3081686508
B61: Simulation 27 | C61: 1.564353489 | D61: 0.3291234995 | E61: 2.35372035 | F61: 1.271012355 | G61: 2.247075981 | H61: 0.8870034116 | I61: 4.366810283 | J61: 7.16385615 | K61: 6.655316776 | L61: 6.340729997 | M61: 6.312224747 | N61: 7.050856264 | O61: 6.555501823 | P61: 6.774709292 | Q61: 6.061877526 | R61: 5.666610521 | S61: 5.065910421 | T61: 4.795928951 | U61: 4.529979981 | V61: 4.200831446 | W61: 3.912855651 | X61: 3.536360448 | Y61: 3.181254838 | Z61: 2.799508026 | AA61: 2.38235435 | AB61: 1.931389678 | AC61: 1.508572483 | AD61: 1.038886054 | AE61: 0.5255025615
B62: Simulation 28 | C62: 1.564353489 | D62: 0.006747306378 | E62: 2.865037323 | F62: 1.304395868 | G62: 0.9092466272 | H62: -0.4435497221 | I62: -3.687378216 | J62: -3.040889297 | K62: -4.301499566 | L62: -5.036741258 | M62: -4.285144467 | N62: -3.833833353 | O62: -4.462019867 | P62: -4.503918911 | Q62: -4.038581603 | R62: -4.628035465 | S62: -4.532143468 | T62: -4.421356252 | U62: -4.213422194 | V62: -3.870845698 | W62: -3.539335436 | X62: -3.198431682 | Y62: -2.846036994 | Z62: -2.477751316 | AA62: -2.090426122 | AB62: -1.680226351 | AC62: -1.282284079 | AD62: -0.8629360426 | AE62: -0.4287234569
B63: Simulation 29 | C63: 1.564353489 | D63: 2.205021776 | E63: 1.462903389 | F63: 2.414430493 | G63: 1.45428021 | H63: 2.699727109 | I63: 2.808417197 | J63: 3.849322485 | K63: 6.536695444 | L63: 7.685532106 | M63: 7.542348671 | N63: 7.174401962 | O63: 7.305774075 | P63: 7.000617516 | Q63: 6.845448349 | R63: 6.554182524 | S63: 6.031080004 | T63: 5.779430026 | U63: 5.42607133 | V63: 5.026222155 | W63: 4.636051197 | X63: 4.178443223 | Y63: 3.714066644 | Z63: 3.230547096 | AA63: 2.725617945 | AB63: 2.187779345 | AC63: 1.69237859 | AD63: 1.154170821 | AE63: 0.5784335361
B64: Simulation 30 | C64: 1.564353489 | D64: -0.5681009853 | E64: -4.121221367 | F64: -5.453290588 | G64: -6.682111843 | H64: -6.484371774 | I64: -8.300961964 | J64: -6.722442126 | K64: -7.54666894 | L64: -7.415631069 | M64: -6.924914427 | N64: -6.090991641 | O64: -6.148817168 | P64: -4.903828716 | Q64: -4.567246284 | R64: -3.899609178 | S64: -3.629869202 | T64: -3.131553615 | U64: -2.829668067 | V64: -2.56403689 | W64: -2.266799539 | X64: -1.980507985 | Y64: -1.717825231 | Z64: -1.470088513 | AA64: -1.219363101 | AB64: -0.9732545773 | AC64: -0.7380589325 | AD64: -0.4969658997 | AE64: -0.2487850021
B65: Simulation 31 | C65: 1.564353489 | D65: -0.9601185134 | E65: 0.2244022898 | F65: -0.9332262351 | G65: -0.4044415679 | H65: 3.222045428 | I65: 3.74386218 | J65: 6.065560814 | K65: 9.616516735 | L65: 7.623655342 | M65: 9.757437486 | N65: 10.96923715 | O65: 11.39839298 | P65: 10.98276525 | Q65: 11.45521927 | R65: 11.07163767 | S65: 10.30190763 | T65: 9.670649307 | U65: 9.097585595 | V65: 8.513526388 | W65: 7.878552231 | X65: 7.185459278 | Y65: 6.438434235 | Z65: 5.64370184 | AA65: 4.78505948 | AB65: 3.861936626 | AC65: 2.994103627 | AD65: 2.046164253 | AE65: 1.027301463
B66: Simulation 32 | C66: 1.564353489 | D66: 0.9622091217 | E66: -3.259082307 | F66: 0.6231936957 | G66: 1.398567619 | H66: -2.560289405 | I66: -5.362256136 | J66: -6.04960261 | K66: -4.820545591 | L66: -6.156248602 | M66: -6.341583505 | N66: -6.522281695 | O66: -6.406339439 | P66: -6.520255322 | Q66: -5.891852429 | R66: -5.443717732 | S66: -5.059050202 | T66: -4.584720091 | U66: -4.259434064 | V66: -3.818343893 | W66: -3.431116597 | X66: -3.027832468 | Y66: -2.5996046 | Z66: -2.188676649 | AA66: -1.786681361 | AB66: -1.383805951 | AC66: -1.021280339 | AD66: -0.6627968611 | AE66: -0.3170451333
B67: Simulation 33 | C67: 1.564353489 | D67: 3.828477513 | E67: 7.619486952 | F67: 12.70185453 | G67: 10.36294528 | H67: 8.313628731 | I67: 10.16585562 | J67: 10.6676543 | K67: 11.67915038 | L67: 10.66811893 | M67: 10.20479116 | N67: 10.39336912 | O67: 10.09730591 | P67: 10.52622602 | Q67: 10.41621107 | R67: 9.937185612 | S67: 9.127549061 | T67: 8.836911342 | U67: 8.396837148 | V67: 7.867540029 | W67: 7.259769678 | X67: 6.553814613 | Y67: 5.854903793 | Z67: 5.12372216 | AA67: 4.34115829 | AB67: 3.494035242 | AC67: 2.705309581 | AD67: 1.846746492 | AE67: 0.925837995
B68: Simulation 34 | C68: 1.564353489 | D68: 2.418285462 | E68: 4.942679849 | F68: 4.167482994 | G68: 6.631699963 | H68: 8.818968726 | I68: 7.153636436 | J68: 4.83913641 | K68: 4.0993411 | L68: 4.342074938 | M68: 4.30468852 | N68: 5.16137238 | O68: 6.268810951 | P68: 6.432323218 | Q68: 6.372131021 | R68: 6.085946067 | S68: 6.138495136 | T68: 5.617499269 | U68: 5.317056143 | V68: 4.905931431 | W68: 4.456520331 | X68: 3.981082143 | Y68: 3.525846004 | Z68: 3.053653507 | AA68: 2.553309405 | AB68: 2.03206071 | AC68: 1.559203748 | AD68: 1.053469223 | AE68: 0.522621564
B69: Simulation 35 | C69: 1.564353489 | D69: -1.208947814 | E69: -3.90201981 | F69: -3.021542064 | G69: 0.08923782864 | H69: 2.107439002 | I69: 4.194446893 | J69: 5.824377419 | K69: 5.659758878 | L69: 8.686663466 | M69: 9.58359773 | N69: 9.20198043 | O69: 9.095981289 | P69: 9.361983587 | Q69: 9.088485013 | R69: 8.989703249 | S69: 8.78565657 | T69: 8.530757782 | U69: 8.079271854 | V69: 7.53350246 | W69: 7.008222438 | X69: 6.362743591 | Y69: 5.6938484 | Z69: 4.979068484 | AA69: 4.218215877 | AB69: 3.39516862 | AC69: 2.62590223 | AD69: 1.790410701 | AE69: 0.8964218592
B70: Simulation 36 | C70: 1.564353489 | D70: 3.068947563 | E70: 6.154717914 | F70: 4.574751256 | G70: 4.322990474 | H70: 4.285547249 | I70: 5.819071976 | J70: 6.198554029 | K70: 8.929928675 | L70: 9.032949638 | M70: 9.057527209 | N70: 9.252752944 | O70: 9.088110301 | P70: 8.893815055 | Q70: 8.337693883 | R70: 8.165256422 | S70: 7.922790975 | T70: 7.055265382 | U70: 6.419041833 | V70: 5.855543969 | W70: 5.284945154 | X70: 4.6898163 | Y70: 4.077249542 | Z70: 3.470774201 | AA70: 2.852535802 | AB70: 2.227173053 | AC70: 1.677233313 | AD70: 1.112278084 | AE70: 0.5405053768
B71: Simulation 37 | C71: 1.564353489 | D71: 3.143565772 | E71: 3.282581351 | F71: -1.957048229 | G71: -1.575856865 | H71: 0.1195506174 | I71: -1.561341483 | J71: 1.127063776 | K71: 1.814045536 | L71: 1.325620438 | M71: 1.148429436 | N71: 1.896232413 | O71: 1.769436122 | P71: 2.139315284 | Q71: 2.445485725 | R71: 2.282367147 | S71: 1.939831562 | T71: 1.569215535 | U71: 1.49107158 | V71: 1.357076093 | W71: 1.20445532 | X71: 1.045401901 | Y71: 0.9182880174 | Z71: 0.7821148848 | AA71: 0.6414146474 | AB71: 0.4964618864 | AC71: 0.3769924391 | AD71: 0.2502370871 | AE71: 0.1202374152
B72: Simulation 38 | C72: 1.564353489 | D72: 0.3013481169 | E72: 3.901314143 | F72: 2.481198616 | G72: 4.132147729 | H72: 6.73344284 | I72: 7.43205767 | J72: 5.4704202 | K72: 3.296777599 | L72: 2.339296292 | M72: 1.806349423 | N72: 2.190278151 | O72: 2.791035614 | P72: 2.925499276 | Q72: 3.266483547 | R72: 2.932577586 | S72: 2.601754904 | T72: 2.43264069 | U72: 2.208450888 | V72: 2.070603195 | W72: 1.966387697 | X72: 1.758054109 | Y72: 1.570079012 | Z72: 1.371360154 | AA72: 1.158961158 | AB72: 0.9298245491 | AC72: 0.7234836505 | AD72: 0.4953973536 | AE72: 0.2482696373
B73: Simulation 39 | C73: 1.564353489 | D73: 3.079755064 | E73: 1.19006532 | F73: 2.193183122 | G73: 3.027998621 | H73: 5.444434179 | I73: 8.783926379 | J73: 8.281905387 | K73: 8.196184662 | L73: 8.893789956 | M73: 8.906020153 | N73: 7.817373828 | O73: 8.615567881 | P73: 8.465224967 | Q73: 8.054779528 | R73: 7.219584513 | S73: 7.270785517 | T73: 6.706123954 | U73: 6.288605518 | V73: 5.855631011 | W73: 5.340266484 | X73: 4.835109419 | Y73: 4.314178911 | Z73: 3.769500886 | AA73: 3.190119016 | AB73: 2.564279492 | AC73: 1.985117201 | AD73: 1.353940291 | AE73: 0.678086428
B74: Simulation 40 | C74: 1.564353489 | D74: 3.527197913 | E74: 7.763881777 | F74: 10.18484549 | G74: 11.78415775 | H74: 15.58392626 | I74: 14.26488913 | J74: 14.32548116 | K74: 12.09290421 | L74: 14.32617684 | M74: 13.54586169 | N74: 14.49936314 | O74: 13.44143256 | P74: 13.36342149 | Q74: 12.97245748 | R74: 12.80828855 | S74: 12.40807874 | T74: 11.55143992 | U74: 10.8363063 | V74: 9.961695626 | W74: 9.088849715 | X74: 8.124620911 | Y74: 7.161203895 | Z74: 6.182972506 | AA74: 5.16475307 | AB74: 4.103363251 | AC74: 3.134365391 | AD74: 2.108877312 | AE74: 1.042099137
B75: Simulation 41 | C75: 1.564353489 | D75: -1.707260275 | E75: -1.268819977 | F75: -0.8678256227 | G75: 0.650797776 | H75: -0.7399710342 | I75: -3.759677735 | J75: -4.663666123 | K75: -6.446324371 | L75: -6.50859575 | M75: -8.126659859 | N75: -6.086567977 | O75: -7.91672927 | P75: -7.538266183 | Q75: -7.096904882 | R75: -7.483326269 | S75: -6.590035378 | T75: -6.248407697 | U75: -5.839171233 | V75: -5.464924065 | W75: -5.00315005 | X75: -4.503675049 | Y75: -3.999301622 | Z75: -3.475151601 | AA75: -2.933263069 | AB75: -2.349895793 | AC75: -1.794373875 | AD75: -1.209416588 | AE75: -0.601960885
B76: Simulation 42 | C76: 1.564353489 | D76: 0.696549156 | E76: 5.700734076 | F76: 2.861527454 | G76: 6.43436596 | H76: 3.464790715 | I76: -0.6476076945 | J76: -0.9976879799 | K76: -1.174736906 | L76: -0.884490895 | M76: 1.669611951 | N76: 2.132921004 | O76: 2.02893892 | P76: 1.8657575 | Q76: 1.05665382 | R76: 0.9953304522 | S76: 1.064065232 | T76: 1.141579644 | U76: 1.090319658 | V76: 1.074744109 | W76: 0.9829055863 | X76: 0.9056618924 | Y76: 0.8266782813 | Z76: 0.7465099098 | AA76: 0.6423507563 | AB76: 0.5225956231 | AC76: 0.4182171366 | AD76: 0.2928111565 | AE76: 0.1491993431
B77: Simulation 43 | C77: 1.564353489 | D77: -0.833947178 | E77: -5.334692292 | F77: -1.180968621 | G77: 1.229124366 | H77: 3.061456573 | I77: 2.781440482 | J77: -1.085086479 | K77: -3.756734178 | L77: -4.242264603 | M77: -1.408026784 | N77: -1.73597096 | O77: -1.260040562 | P77: -2.239441352 | Q77: -2.046333164 | R77: -2.362163628 | S77: -1.416079126 | T77: -1.260867457 | U77: -1.019261895 | V77: -0.745813616 | W77: -0.5558295708 | X77: -0.3994925934 | Y77: -0.264399587 | Z77: -0.1511382671 | AA77: -0.06979973724 | AB77: -0.008461455703 | AC77: 0.03507431948 | AD77: 0.05292243491 | AE77: 0.03921604427
B78: Simulation 44 | C78: 1.564353489 | D78: 3.444384976 | E78: 8.87573662 | F78: 6.358136544 | G78: 9.754298519 | H78: 12.22101289 | I78: 10.71757004 | J78: 9.817590768 | K78: 8.080244473 | L78: 7.765180864 | M78: 7.393009775 | N78: 7.896212995 | O78: 7.912470409 | P78: 7.55790389 | Q78: 7.275031993 | R78: 7.013373622 | S78: 6.629379204 | T78: 6.283951885 | U78: 5.953256623 | V78: 5.514730995 | W78: 5.009939655 | X78: 4.538246152 | Y78: 4.036508296 | Z78: 3.51497399 | AA78: 2.958077415 | AB78: 2.367246395 | AC78: 1.824491068 | AD78: 1.240115834 | AE78: 0.6185220813
B79: Simulation 45 | C79: 1.564353489 | D79: 4.948540451 | E79: 6.58952811 | F79: 7.900582626 | G79: 5.770741679 | H79: 6.166410751 | I79: 6.561705546 | J79: 8.136918995 | K79: 6.452226319 | L79: 7.35701703 | M79: 8.707616446 | N79: 9.184233545 | O79: 8.234895988 | P79: 7.452406051 | Q79: 6.398909344 | R79: 6.055563219 | S79: 5.099362102 | T79: 4.62813577 | U79: 4.15453128 | V79: 3.711550048 | W79: 3.215462149 | X79: 2.776793765 | Y79: 2.363911248 | Z79: 1.968198499 | AA79: 1.581174433 | AB79: 1.203285426 | AC79: 0.8898836545 | AD79: 0.5774448802 | AE79: 0.2737312815
B80: Simulation 46 | C80: 1.564353489 | D80: -1.958039013 | E80: -0.4748232425 | F80: -0.8073754089 | G80: -0.4395734255 | H80: -0.8513509683 | I80: -0.1155850997 | J80: -0.3781534968 | K80: -0.155376692 | L80: -0.1351503806 | M80: 0.4471857766 | N80: -0.5318899975 | O80: -0.1131324501 | P80: -0.6430319877 | Q80: -0.6369747249 | R80: -0.2210945607 | S80: -0.4400625688 | T80: -0.6622007332 | U80: -0.6098178649 | V80: -0.57815107 | W80: -0.5337552149 | X80: -0.4773655081 | Y80: -0.4318123428 | Z80: -0.3937161092 | AA80: -0.3528190724 | AB80: -0.2963582404 | AC80: -0.2292551593 | AD80: -0.157153163 | AE80: -0.08156563385
B81: Simulation 47 | C81: 1.564353489 | D81: 0.2073439167 | E81: 6.495445723 | F81: 8.356903911 | G81: 8.456391588 | H81: 8.140559009 | I81: 6.212651537 | J81: 6.199301533 | K81: 7.135170597 | L81: 8.050191811 | M81: 7.630177938 | N81: 7.023174351 | O81: 7.984114839 | P81: 7.101978936 | Q81: 6.699054147 | R81: 6.380815541 | S81: 6.364443518 | T81: 6.089293827 | U81: 5.782754801 | V81: 5.44941138 | W81: 5.081564787 | X81: 4.649018097 | Y81: 4.184162377 | Z81: 3.684846423 | AA81: 3.143583575 | AB81: 2.552508785 | AC81: 1.994116245 | AD81: 1.37362128 | AE81: 0.694996686
B82: Simulation 48 | C82: 1.564353489 | D82: 6.52456781 | E82: 8.263464361 | F82: 8.725278974 | G82: 6.738962734 | H82: 6.829274553 | I82: 7.633283363 | J82: 7.890225846 | K82: 6.572613564 | L82: 6.279316157 | M82: 7.364454998 | N82: 7.982863628 | O82: 7.978185967 | P82: 9.544894711 | Q82: 9.626748734 | R82: 9.48639969 | S82: 8.936849774 | T82: 8.600345102 | U82: 8.206518211 | V82: 7.806628316 | W82: 7.210907301 | X82: 6.587414305 | Y82: 5.94022161 | Z82: 5.236533652 | AA82: 4.474202099 | AB82: 3.636834028 | AC82: 2.838423114 | AD82: 1.953455109 | AE82: 0.9885111304
B83: Simulation 49 | C83: 1.564353489 | D83: 1.684221234 | E83: -1.745520935 | F83: 0.778425673 | G83: -0.9802568086 | H83: -1.007901022 | I83: 1.816643695 | J83: 3.326492971 | K83: 5.964796532 | L83: 4.44199784 | M83: 4.551855397 | N83: 4.155760329 | O83: 4.095141583 | P83: 4.249066325 | Q83: 3.868295395 | R83: 3.700344442 | S83: 3.326942785 | T83: 3.153125451 | U83: 2.956800127 | V83: 2.703798625 | W83: 2.465446665 | X83: 2.208567384 | Y83: 1.94150419 | Z83: 1.660443699 | AA83: 1.377409425 | AB83: 1.081181269 | AC83: 0.822218331 | AD83: 0.5492577568 | AE83: 0.2682952386
B84: Simulation 50 | C84: 1.564353489 | D84: 2.750084584 | E84: 8.108710466 | F84: 11.14594461 | G84: 11.162633 | H84: 11.5780783 | I84: 11.68881928 | J84: 11.4678391 | K84: 8.640398309 | L84: 8.58131793 | M84: 7.477389411 | N84: 5.897553256 | O84: 5.089734691 | P84: 3.359415261 | Q84: 3.235660156 | R84: 2.668173681 | S84: 2.757440787 | T84: 2.513233995 | U84: 2.175021782 | V84: 1.886326145 | W84: 1.641774632 | X84: 1.396603152 | Y84: 1.186570331 | Z84: 0.9957300505 | AA84: 0.8075583453 | AB84: 0.6265711798 | AC84: 0.4788622758 | AD84: 0.3230789414 | AE84: 0.1598814341
B85: Simulation 51 | C85: 1.564353489 | D85: 6.606117677 | E85: 7.753133381 | F85: 7.168547753 | G85: 9.624168396 | H85: 9.373990562 | I85: 10.73599484 | J85: 9.236209606 | K85: 8.335746149 | L85: 7.950299047 | M85: 6.88887021 | N85: 5.850598487 | O85: 4.477995437 | P85: 4.306060771 | Q85: 4.598576243 | R85: 4.276138024 | S85: 4.191327222 | T85: 4.069838592 | U85: 3.862102682 | V85: 3.610274838 | W85: 3.407748966 | X85: 3.119530218 | Y85: 2.816346381 | Z85: 2.489914876 | AA85: 2.12805017 | AB85: 1.734106722 | AC85: 1.362739499 | AD85: 0.944171708 | AE85: 0.4812154972
B86: Simulation 52 | C86: 1.564353489 | D86: 1.850448662 | E86: -2.01870893 | F86: -1.749924348 | G86: -1.599234139 | H86: 0.2015970143 | I86: 0.04557639425 | J86: 0.5262587066 | K86: 1.845336812 | L86: 1.626423171 | M86: 1.920317005 | N86: 0.6410214597 | O86: 0.5043879824 | P86: 0.7639484527 | Q86: 1.484920539 | R86: 1.583207931 | S86: 1.938005301 | T86: 1.781840919 | U86: 1.828365358 | V86: 1.788436725 | W86: 1.693292639 | X86: 1.620729786 | Y86: 1.514661816 | Z86: 1.375050684 | AA86: 1.202299148 | AB86: 0.9982487819 | AC86: 0.8028947176 | AD86: 0.5678887568 | AE86: 0.293955523
B87: Simulation 53 | C87: 1.564353489 | D87: 2.332683353 | E87: -1.877917126 | F87: 1.080909789 | G87: -0.1238324364 | H87: -3.881065516 | I87: -0.9644976544 | J87: -2.074664242 | K87: -2.425091455 | L87: -1.375934683 | M87: -0.7286174579 | N87: -1.744166646 | O87: -2.25769212 | P87: -3.00836293 | Q87: -3.366380356 | R87: -3.646111432 | S87: -3.479660171 | T87: -2.966933166 | U87: -2.903595149 | V87: -2.613988533 | W87: -2.348402918 | X87: -2.036138009 | Y87: -1.754793552 | Z87: -1.473050945 | AA87: -1.198752737 | AB87: -0.9202273358 | AC87: -0.6663132491 | AD87: -0.4227343344 | AE87: -0.1971606407
B88: Simulation 54 | C88: 1.564353489 | D88: 6.287711981 | E88: 6.692195961 | F88: 4.162517305 | G88: -1.527967035 | H88: 1.177781717 | I88: -0.9119236385 | J88: 0.9170255909 | K88: 1.462085968 | L88: 2.106707527 | M88: 4.214650135 | N88: 5.387463585 | O88: 4.798244834 | P88: 4.814902556 | Q88: 5.369091837 | R88: 5.446980657 | S88: 5.509748218 | T88: 5.321052963 | U88: 5.202991689 | V88: 4.915605226 | W88: 4.46658261 | X88: 4.050302073 | Y88: 3.621008683 | Z88: 3.171086329 | AA88: 2.677296502 | AB88: 2.148506881 | AC88: 1.660751174 | AD88: 1.130926967 | AE88: 0.5643264836
B89: Simulation 55 | C89: 1.564353489 | D89: -1.315367237 | E89: 1.87003271 | F89: 0.5056845687 | G89: 3.794897123 | H89: 5.5650948 | I89: 7.247839969 | J89: 7.066011528 | K89: 6.934562982 | L89: 7.569588674 | M89: 7.729353607 | N89: 8.529536859 | O89: 8.756431383 | P89: 9.025712886 | Q89: 8.965815633 | R89: 8.503473477 | S89: 7.401359195 | T89: 6.92435261 | U89: 6.485600697 | V89: 6.06639551 | W89: 5.510891401 | X89: 4.951616482 | Y89: 4.384917907 | Z89: 3.804929006 | AA89: 3.200378162 | AB89: 2.560808649 | AC89: 1.974159233 | AD89: 1.342004256 | AE89: 0.6704196933
B90: Simulation 56 | C90: 1.564353489 | D90: -3.644003842 | E90: -6.216955223 | F90: -5.589437428 | G90: -6.624816826 | H90: -3.64135662 | I90: -1.00108707 | J90: 1.712371657 | K90: 0.6739485028 | L90: 1.147994387 | M90: 1.24549283 | N90: 0.7683605234 | O90: 1.315940653 | P90: 1.534167405 | Q90: 1.635701628 | R90: 2.21582957 | S90: 2.40630354 | T90: 2.754514436 | U90: 2.73778441 | V90: 2.671574731 | W90: 2.609539395 | X90: 2.454089035 | Y90: 2.290517764 | Z90: 2.087464527 | AA90: 1.828142437 | AB90: 1.521264692 | AC90: 1.216703476 | AD90: 0.8563683179 | AE90: 0.4414034594
B91: Simulation 57 | C91: 1.564353489 | D91: 1.157108913 | E91: -0.4609384808 | F91: 2.606305971 | G91: 5.134584019 | H91: 3.722773297 | I91: 4.567513449 | J91: 3.386064755 | K91: 0.1841037872 | L91: 0.40925531 | M91: -0.4193792965 | N91: -1.865784599 | O91: -2.486432071 | P91: -2.805822781 | Q91: -3.327394216 | R91: -3.655672819 | S91: -3.267498893 | T91: -3.12955292 | U91: -3.044081062 | V91: -2.835660056 | W91: -2.608817404 | X91: -2.38364678 | Y91: -2.133346551 | Z91: -1.869281908 | AA91: -1.593155222 | AB91: -1.290070339 | AC91: -0.9892562243 | AD91: -0.6694688386 | AE91: -0.3343993689
B92: Simulation 58 | C92: 1.564353489 | D92: -2.647259298 | E92: -2.262985482 | F92: -5.791243126 | G92: -7.311884816 | H92: -2.546800633 | I92: -4.404190368 | J92: -4.250415454 | K92: -1.48517075 | L92: -2.480551862 | M92: -1.944820349 | N92: -3.051736404 | O92: -3.552585794 | P92: -2.812468529 | Q92: -2.90986722 | R92: -3.194768379 | S92: -3.396339423 | T92: -3.258927973 | U92: -3.030114706 | V92: -2.750576999 | W92: -2.502260053 | X92: -2.23206543 | Y92: -1.950977713 | Z92: -1.67215594 | AA92: -1.387824482 | AB92: -1.094396945 | AC92: -0.8174838316 | AD92: -0.5379128931 | AE92: -0.2613324578
B93: Simulation 59 | C93: 1.564353489 | D93: 3.313852187 | E93: 1.034928558 | F93: 3.073716095 | G93: 2.180059573 | H93: -0.3143082519 | I93: -2.503747358 | J93: -1.290600584 | K93: -4.304694031 | L93: -3.919401139 | M93: -4.757399867 | N93: -4.617418934 | O93: -5.370626764 | P93: -5.450227567 | Q93: -5.412085412 | R93: -4.982224798 | S93: -4.671603173 | T93: -4.511660604 | U93: -4.114977555 | V93: -3.619484676 | W93: -3.242706721 | X93: -2.848384173 | Y93: -2.440763516 | Z93: -2.041253556 | AA93: -1.647484195 | AB93: -1.257230017 | AC93: -0.9086008645 | AD93: -0.5757594394 | AE93: -0.266881985
B94: Simulation 60 | C94: 1.564353489 | D94: -0.6976114187 | E94: -5.311670753 | F94: -5.100738134 | G94: -7.391289638 | H94: -10.47277471 | I94: -8.08286738 | J94: -7.653207187 | K94: -6.653436354 | L94: -7.289805242 | M94: -5.294837562 | N94: -5.665821461 | O94: -3.332740322 | P94: -2.496959777 | Q94: -1.789868914 | R94: -2.072179178 | S94: -1.867633186 | T94: -1.576600177 | U94: -1.163837745 | V94: -0.9578951607 | W94: -0.6367775213 | X94: -0.4403961307 | Y94: -0.2687311312 | Z94: -0.1347356524 | AA94: -0.0368796118 | AB94: 0.03534037711 | AC94: 0.07873077688 | AD94: 0.0892153366 | AE94: 0.06107257687
B95: Simulation 61 | C95: 1.564353489 | D95: 3.077090721 | E95: 2.375884408 | F95: 1.909570221 | G95: 2.847225152 | H95: 3.177875288 | I95: 1.78727751 | J95: 2.903427155 | K95: 2.739621562 | L95: 2.658158091 | M95: 3.191335921 | N95: 2.397890858 | O95: 2.07652689 | P95: 1.660881208 | Q95: 2.272952115 | R95: 1.907942841 | S95: 1.53810342 | T95: 1.789574907 | U95: 1.831028853 | V95: 1.747438223 | W95: 1.692532776 | X95: 1.624658165 | Y95: 1.512187991 | Z95: 1.375108937 | AA95: 1.206852755 | AB95: 1.008572346 | AC95: 0.8168108486 | AD95: 0.583726282 | AE95: 0.3053339656
B96: Simulation 62 | C96: 1.564353489 | D96: -0.3694975464 | E96: -0.1449278862 | F96: -1.754157878 | G96: -3.748445067 | H96: -2.377224063 | I96: -2.45395365 | J96: -0.8287205047 | K96: -2.273392768 | L96: -3.256480393 | M96: -1.096220641 | N96: -0.9897583572 | O96: -0.4051243721 | P96: 0.04509262366 | Q96: 0.9777434824 | R96: 0.8596832853 | S96: 1.093948832 | T96: 1.177226458 | U96: 1.198123744 | V96: 1.290476096 | W96: 1.262129948 | X96: 1.159594273 | Y96: 1.08977013 | Z96: 0.9876804756 | AA96: 0.8632196251 | AB96: 0.717078814 | AC96: 0.5763971453 | AD96: 0.4072141552 | AE96: 0.2092975002
B97: Simulation 63 | C97: 1.564353489 | D97: -1.236756838 | E97: -2.305922757 | F97: -1.657765613 | G97: 2.108739417 | H97: -1.803177416 | I97: -1.559642099 | J97: 0.7584782339 | K97: 3.150551667 | L97: 3.921671667 | M97: 1.529086473 | N97: 1.651402083 | O97: 1.736620167 | P97: 2.283856743 | Q97: 2.216912708 | R97: 1.883594886 | S97: 1.854201571 | T97: 1.640385038 | U97: 1.54666724 | V97: 1.436642954 | W97: 1.395648469 | X97: 1.346972558 | Y97: 1.26239504 | Z97: 1.156953685 | AA97: 1.021120755 | AB97: 0.8600663025 | AC97: 0.6975389753 | AD97: 0.4979655515 | AE97: 0.2603132518
B98: Simulation 64 | C98: 1.564353489 | D98: 3.752447996 | E98: 2.722506961 | F98: 3.312659452 | G98: 5.575386779 | H98: 8.885338546 | I98: 8.253538197 | J98: 9.978778296 | K98: 9.73854099 | L98: 9.153504056 | M98: 9.866060352 | N98: 9.317515684 | O98: 8.869041065 | P98: 8.973044144 | Q98: 8.48706215 | R98: 8.056065696 | S98: 7.5467092 | T98: 7.226015993 | U98: 6.741099569 | V98: 6.167782802 | W98: 5.610656857 | X98: 5.021519332 | Y98: 4.435494177 | Z98: 3.833742527 | AA98: 3.207471785 | AB98: 2.549478746 | AC98: 1.952917853 | AD98: 1.318614405 | AE98: 0.6536589369
B99: Simulation 65 | C99: 1.564353489 | D99: -2.895073475 | E99: 1.873222117 | F99: 0.5195617461 | G99: 2.592050151 | H99: 4.455665665 | I99: 6.426610444 | J99: 4.360698541 | K99: 4.916040977 | L99: 5.469790824 | M99: 5.534042861 | N99: 4.943346284 | O99: 3.629369943 | P99: 3.253280563 | Q99: 2.969113153 | R99: 2.277498291 | S99: 2.456682606 | T99: 2.250817302 | U99: 2.116137066 | V99: 1.919760621 | W99: 1.776378671 | X99: 1.57647322 | Y99: 1.399124982 | Z99: 1.212604631 | AA99: 1.013312425 | AB99: 0.80718944 | AC99: 0.6250035139 | AD99: 0.4255328788 | AE99: 0.2121133959
B100: Simulation 66 | C100: 1.564353489 | D100: 3.176037913 | E100: 3.447406175 | F100: 2.101067383 | G100: 6.46615627 | H100: 8.254037479 | I100: 9.981760466 | J100: 10.03802748 | K100: 9.110920334 | L100: 8.833712389 | M100: 8.102989334 | N100: 8.008769279 | O100: 8.197263155 | P100: 7.762615916 | Q100: 7.88669046 | R100: 7.917497515 | S100: 7.984346854 | T100: 7.787819387 | U100: 7.358012478 | V100: 6.850309653 | W100: 6.251427321 | X100: 5.65324488 | Y100: 5.034660069 | Z100: 4.380264531 | AA100: 3.689363926 | AB100: 2.953946978 | AC100: 2.275197511 | AD100: 1.543047845 | AE100: 0.7680311869
B101: Simulation 67 | C101: 1.564353489 | D101: 5.543714372 | E101: 9.341464646 | F101: 9.193349264 | G101: 10.20322086 | H101: 6.79612252 | I101: 6.03989102 | J101: 4.092677688 | K101: 3.938216565 | L101: 4.187730234 | M101: 3.555533636 | N101: 4.241014636 | O101: 4.345981278 | P101: 4.715529057 | Q101: 4.104627086 | R101: 3.556441659 | S101: 2.869559981 | T101: 2.690903594 | U101: 2.439743882 | V101: 2.227313984 | W101: 2.027060759 | X101: 1.806978292 | Y101: 1.60128787 | Z101: 1.387235069 | AA101: 1.159992305 | AB101: 0.9224202757 | AC101: 0.7139609497 | AD101: 0.4868584229 | AE101: 0.2426922362
B102: Simulation 68 | C102: 1.564353489 | D102: 6.003583381 | E102: 1.391493749 | F102: -0.699418394 | G102: -0.007343384769 | H102: 4.790120857 | I102: 3.588427387 | J102: 1.285439782 | K102: 1.275641157 | L102: 1.241722925 | M102: 2.571355985 | N102: 3.77916369 | O102: 3.92492252 | P102: 3.925333573 | Q102: 3.762311297 | R102: 3.536201364 | S102: 3.386808314 | T102: 3.167911926 | U102: 3.063104203 | V102: 2.856468143 | W102: 2.621825873 | X102: 2.41189979 | Y102: 2.167099073 | Z102: 1.900427398 | AA102: 1.609274774 | AB102: 1.296971605 | AC102: 1.013426096 | AD102: 0.6980281326 | AE102: 0.3525345375
B103: Simulation 69 | C103: 1.564353489 | D103: 5.769542275 | E103: 5.672482231 | F103: 6.538919916 | G103: 5.856876504 | H103: 6.606836025 | I103: 9.036509154 | J103: 10.79529227 | K103: 9.716501946 | L103: 8.802477194 | M103: 8.076370193 | N103: 8.149488073 | O103: 7.105268922 | P103: 6.778249043 | Q103: 6.216716412 | R103: 5.808846742 | S103: 5.130365929 | T103: 4.713515384 | U103: 4.321782926 | V103: 3.844096209 | W103: 3.457915193 | X103: 3.049564834 | Y103: 2.641721807 | Z103: 2.233932771 | AA103: 1.827396992 | AB103: 1.419896733 | AC103: 1.069743674 | AD103: 0.709864864 | AE103: 0.3442350487
B104: Simulation 70 | C104: 1.564353489 | D104: -2.999605665 | E104: -2.055214915 | F104: -3.789646958 | G104: -1.862567572 | H104: 0.6446510529 | I104: 2.290410699 | J104: 4.668399112 | K104: 4.621535735 | L104: 5.656279524 | M104: 6.680211169 | N104: 8.019062247 | O104: 8.388633015 | P104: 7.389750573 | Q104: 7.451548321 | R104: 7.465288018 | S104: 6.766527946 | T104: 6.345044831 | U104: 5.976779219 | V104: 5.553975129 | W104: 5.072255814 | X104: 4.575384165 | Y104: 4.064280253 | Z104: 3.521299908 | AA104: 2.953266275 | AB104: 2.352886862 | AC104: 1.805289756 | AD104: 1.219271681 | AE104: 0.6040787756
B105: Simulation 71 | C105: 1.564353489 | D105: 1.591123452 | E105: 0.6907284456 | F105: -0.4858221694 | G105: 0.2222939333 | H105: -0.8796341514 | I105: -3.466156596 | J105: -2.387042978 | K105: -4.010703714 | L105: -3.922346719 | M105: -3.818656325 | N105: -5.131986106 | O105: -4.283793488 | P105: -3.540620304 | Q105: -3.297209332 | R105: -2.679674451 | S105: -2.466065859 | T105: -2.40165848 | U105: -2.063714866 | V105: -1.810632814 | W105: -1.65378375 | X105: -1.4003672 | Y105: -1.171779501 | Z105: -0.9639061348 | AA105: -0.7732060888 | AB105: -0.5883740955 | AC105: -0.4189003589 | AD105: -0.261484563 | AE105: -0.1211708466
B106: Simulation 72 | C106: 1.564353489 | D106: 1.681979843 | E106: 6.625425253 | F106: 4.613985155 | G106: 7.04254176 | H106: 6.942719758 | I106: 5.787390137 | J106: 7.28725799 | K106: 8.468075969 | L106: 7.931009434 | M106: 9.866978006 | N106: 9.66745909 | O106: 9.613111194 | P106: 8.957094181 | Q106: 8.872164722 | R106: 8.637875706 | S106: 8.211164739 | T106: 7.713152104 | U106: 7.160521822 | V106: 6.566641101 | W106: 5.957054388 | X106: 5.339753688 | Y106: 4.709594362 | Z106: 4.058795707 | AA106: 3.389192565 | AB106: 2.687660229 | AC106: 2.051905959 | AD106: 1.380386322 | AE106: 0.6819484281
B107: Simulation 73 | C107: 1.564353489 | D107: 2.282819779 | E107: 4.545436695 | F107: 4.099669936 | G107: 4.201756368 | H107: 4.332525762 | I107: 4.100879036 | J107: 4.043702013 | K107: 6.469995002 | L107: 7.505847622 | M107: 7.806174386 | N107: 7.562102643 | O107: 8.365552787 | P107: 8.055292 | Q107: 7.733388058 | R107: 7.208618441 | S107: 6.945928248 | T107: 6.688284101 | U107: 6.192368639 | V107: 5.808257259 | W107: 5.26968375 | X107: 4.733558014 | Y107: 4.175886616 | Z107: 3.597714026 | AA107: 3.000302686 | AB107: 2.373914517 | AC107: 1.808786365 | AD107: 1.212259074 | AE107: 0.5949614897
B108: Simulation 74 | C108: 1.564353489 | D108: 2.975845136 | E108: 2.056455326 | F108: 2.735174558 | G108: 1.415359655 | H108: -1.442165034 | I108: -0.4876161121 | J108: 0.5620367739 | K108: -0.7277268026 | L108: 0.05457654873 | M108: 0.4393838927 | N108: 0.7803682629 | O108: 0.09174099655 | P108: 0.06322167067 | Q108: 0.4610379437 | R108: 0.675895362 | S108: 0.7313546919 | T108: 0.4189436062 | U108: 0.4961266679 | V108: 0.4280203528 | W108: 0.4284336098 | X108: 0.4238096219 | Y108: 0.3894529187 | Z108: 0.3440379976 | AA108: 0.2860537747 | AB108: 0.2261016185 | AC108: 0.1807506543 | AD108: 0.1270085505 | AE108: 0.06318454052
B109: Simulation 75 | C109: 1.564353489 | D109: -2.796659826 | E109: -3.561937216 | F109: 1.877718562 | G109: 2.603190454 | H109: 0.6708919276 | I109: 1.277736094 | J109: -1.149370119 | K109: -0.5100510329 | L109: -1.409996983 | M109: -1.246098697 | N109: -2.981844734 | O109: -3.151997658 | P109: -4.089754076 | Q109: -3.498659213 | R109: -3.645017421 | S109: -3.298141405 | T109: -3.112557045 | U109: -2.95152294 | V109: -2.677996269 | W109: -2.414929962 | X109: -2.139091719 | Y109: -1.835260949 | Z109: -1.530471589 | AA109: -1.240728067 | AB109: -0.953123607 | AC109: -0.6910860641 | AD109: -0.4395195771 | AE109: -0.2059418569
B110: Simulation 76 | C110: 1.564353489 | D110: 1.899356345 | E110: 0.248240111 | F110: -0.635913979 | G110: 0.1733635036 | H110: 0.3426369851 | I110: 0.7143261305 | J110: 1.32328672 | K110: 0.7235253424 | L110: 0.7549886795 | M110: 2.611426559 | N110: 4.729228782 | O110: 5.999912533 | P110: 6.164509237 | Q110: 6.250112793 | R110: 6.484446528 | S110: 6.323882806 | T110: 6.193109926 | U110: 5.940153299 | V110: 5.528737567 | W110: 5.255175356 | X110: 4.848316046 | Y110: 4.383977791 | Z110: 3.876588647 | AA110: 3.312567258 | AB110: 2.693999133 | AC110: 2.104097923 | AD110: 1.448343944 | AE110: 0.7318921886
B111: Simulation 77 | C111: 1.564353489 | D111: -1.239693069 | E111: -4.992568105 | F111: -3.320479948 | G111: -0.9280562086 | H111: 1.081197836 | I111: 1.074558516 | J111: 0.5412739086 | K111: -1.057941514 | L111: -1.262178729 | M111: -0.0768696921 | N111: -1.18427691 | O111: -0.3970286313 | P111: -0.6933736203 | Q111: -0.2602271996 | R111: -0.01252664444 | S111: -0.06684654192 | T111: -0.1440794381 | U111: -0.111214078 | V111: -0.1052949565 | W111: -0.1163105371 | X111: -0.1035227434 | Y111: -0.08441470367 | Z111: -0.07662023503 | AA111: -0.06943870669 | AB111: -0.06037771132 | AC111: -0.04054772483 | AD111: -0.02441338473 | AE111: -0.01229114784
B112: Simulation 78 | C112: 1.564353489 | D112: -2.149623295 | E112: -7.161964979 | F112: -7.795115619 | G112: -8.522723688 | H112: -8.51132094 | I112: -7.947461253 | J112: -6.295644052 | K112: -5.739938475 | L112: -6.289561351 | M112: -6.585796697 | N112: -6.372351728 | O112: -6.184930458 | P112: -6.492707209 | Q112: -5.63415853 | R112: -5.811352574 | S112: -5.332325991 | T112: -4.616524038 | U112: -4.098618161 | V112: -3.692373533 | W112: -3.255879777 | X112: -2.827374198 | Y112: -2.404035103 | Z112: -2.003735191 | AA112: -1.620075734 | AB112: -1.238771208 | AC112: -0.9000812374 | AD112: -0.5739017448 | AE112: -0.2699891249
B113: Simulation 79 | C113: 1.564353489 | D113: 3.066761097 | E113: 6.541136076 | F113: 6.718141264 | G113: 5.478515004 | H113: 4.840215072 | I113: 0.02918385373 | J113: 0.9811464918 | K113: 1.714499368 | L113: 3.054834356 | M113: 3.110440522 | N113: 2.084756088 | O113: 1.515517153 | P113: 1.770045786 | Q113: 1.456304033 | R113: 0.9308570706 | S113: 0.9866946941 | T113: 0.7369251581 | U113: 0.5882848516 | V113: 0.4217482033 | W113: 0.3433885039 | X113: 0.2622724164 | Y113: 0.2015596222 | Z113: 0.1589547591 | AA113: 0.1163872085 | AB113: 0.08292944446 | AC113: 0.06527006416 | AD113: 0.0447412605 | AE113: 0.02141142352
B114: Simulation 80 | C114: 1.564353489 | D114: -2.863381972 | E114: -1.344484417 | F114: -0.9528038878 | G114: -2.665107555 | H114: -0.08175023905 | I114: -0.6628391883 | J114: 0.9478939603 | K114: 3.091712677 | L114: 3.267980024 | M114: 1.975728888 | N114: 2.36755911 | O114: 2.146662902 | P114: 2.06435806 | Q114: 2.100139175 | R114: 1.955033552 | S114: 1.737349836 | T114: 1.640433627 | U114: 1.602661595 | V114: 1.549662231 | W114: 1.455024723 | X114: 1.354250901 | Y114: 1.241100797 | Z114: 1.10903913 | AA114: 0.9586642416 | AB114: 0.7871727033 | AC114: 0.6268128431 | AD114: 0.439294457 | AE114: 0.224812427
B115: Simulation 81 | C115: 1.564353489 | D115: 1.791914779 | E115: -2.581139911 | F115: -4.773331669 | G115: -9.717643251 | H115: -9.632563233 | I115: -7.785273148 | J115: -10.05547082 | K115: -9.916152726 | L115: -8.628765529 | M115: -8.459922307 | N115: -8.666483992 | O115: -7.911522555 | P115: -7.51865163 | Q115: -6.562761596 | R115: -5.692422714 | S115: -5.156742739 | T115: -4.591489034 | U115: -4.116183989 | V115: -3.65233497 | W115: -3.167407151 | X115: -2.752696482 | Y115: -2.333214249 | Z115: -1.943141221 | AA115: -1.573006325 | AB115: -1.209515383 | AC115: -0.8846768414 | AD115: -0.5697849893 | AE115: -0.2709581929
B116: Simulation 82 | C116: 1.564353489 | D116: -2.376197845 | E116: -1.700209812 | F116: -4.58461799 | G116: -3.380170584 | H116: -3.625597337 | I116: -5.620141212 | J116: -7.118576727 | K116: -5.703352152 | L116: -7.031433854 | M116: -6.928000905 | N116: -7.344607241 | O116: -6.75810067 | P116: -6.910038303 | Q116: -7.155054998 | R116: -6.236660462 | S116: -5.66125023 | T116: -5.570990974 | U116: -5.197290259 | V116: -4.755559362 | W116: -4.265789195 | X116: -3.837496144 | Y116: -3.373943753 | Z116: -2.913899961 | AA116: -2.446830852 | AB116: -1.952827906 | AC116: -1.484256202 | AD116: -0.9960590616 | AE116: -0.4932816236
B117: Simulation 83 | C117: 1.564353489 | D117: -2.217974767 | E117: -2.168841582 | F117: -2.116315831 | G117: 0.1484132267 | H117: 4.974548397 | I117: 6.074799125 | J117: 7.247889966 | K117: 6.497451363 | L117: 5.153775107 | M117: 5.474802856 | N117: 4.430490544 | O117: 3.854479963 | P117: 3.764674815 | Q117: 3.72130085 | R117: 3.911691644 | S117: 4.094778581 | T117: 4.114659896 | U117: 3.990933963 | V117: 3.8048925 | W117: 3.521913159 | X117: 3.246304492 | Y117: 2.959077165 | Z117: 2.633792957 | AA117: 2.262280695 | AB117: 1.849805616 | AC117: 1.456587436 | AD117: 1.009940492 | AE117: 0.5140044952
B118: Simulation 84 | C118: 1.564353489 | D118: 2.747495482 | E118: 4.580270623 | F118: 5.153092019 | G118: 7.038814778 | H118: 6.274587464 | I118: 7.957331338 | J118: 8.955936675 | K118: 10.50857871 | L118: 9.798299355 | M118: 9.679734076 | N118: 8.438380853 | O118: 8.006412415 | P118: 7.644131291 | Q118: 7.913689557 | R118: 7.660636546 | S118: 7.053258584 | T118: 6.637640491 | U118: 6.315141762 | V118: 5.886363232 | W118: 5.446838318 | X118: 4.980998797 | Y118: 4.472237336 | Z118: 3.929852704 | AA118: 3.346863484 | AB118: 2.714400727 | AC118: 2.115943514 | AD118: 1.45457361 | AE118: 0.7348905191
B119: Simulation 85 | C119: 1.564353489 | D119: -3.666686339 | E119: 0.4547495172 | F119: 3.495601812 | G119: 4.182711846 | H119: 2.644429228 | I119: -0.4461701272 | J119: 1.849406295 | K119: -0.284148302 | L119: 0.2426284 | M119: 2.091780766 | N119: 2.364232878 | O119: 3.272253168 | P119: 3.665590978 | Q119: 3.028908639 | R119: 3.647326545 | S119: 3.655719586 | T119: 3.751105565 | U119: 3.565930461 | V119: 3.352058469 | W119: 3.089094363 | X119: 2.835879127 | Y119: 2.55794004 | Z119: 2.254057728 | AA119: 1.916385505 | AB119: 1.5478373 | AC119: 1.206818325 | AD119: 0.8287703349 | AE119: 0.4165750269
B120: Simulation 86 | C120: 1.564353489 | D120: 0.7618860542 | E120: 4.161286212 | F120: 1.801190594 | G120: 3.966217457 | H120: -0.8811852309 | I120: -2.054844535 | J120: -1.614566843 | K120: -0.9593152148 | L120: 0.05649371821 | M120: -1.872012484 | N120: -0.5848431115 | O120: 0.5935464263 | P120: 0.6134255767 | Q120: 0.4275476412 | R120: 0.4906970096 | S120: 0.9954070868 | T120: 0.6520928912 | U120: 0.6823116441 | V120: 0.6628801114 | W120: 0.6962776009 | X120: 0.7200564371 | Y120: 0.7004613101 | Z120: 0.6621490679 | AA120: 0.5922259788 | AB120: 0.5044836228 | AC120: 0.4171505823 | AD120: 0.3030002123 | AE120: 0.1597307347
B121: Simulation 87 | C121: 1.564353489 | D121: 6.178154273 | E121: 6.170127425 | F121: 6.484895563 | G121: 7.163158925 | H121: 6.848382257 | I121: 3.297703047 | J121: 5.128259903 | K121: 5.623999413 | L121: 5.405311501 | M121: 5.886854708 | N121: 5.451123095 | O121: 5.960614965 | P121: 4.68111658 | Q121: 4.190044117 | R121: 3.772882966 | S121: 3.576293301 | T121: 3.22952625 | U121: 2.947870962 | V121: 2.668610391 | W121: 2.406531459 | X121: 2.124773291 | Y121: 1.862872854 | Z121: 1.596264336 | AA121: 1.32845707 | AB121: 1.049000223 | AC121: 0.8048523128 | AD121: 0.544528376 | AE121: 0.2698882624
B122: Simulation 88 | C122: 1.564353489 | D122: 1.169692288 | E122: 2.303746119 | F122: 5.683932134 | G122: 8.738436358 | H122: 9.519552818 | I122: 9.094336798 | J122: 9.60058158 | K122: 7.683723914 | L122: 7.434333331 | M122: 8.546013393 | N122: 8.170602124 | O122: 7.609832859 | P122: 7.065118744 | Q122: 5.801289156 | R122: 5.50269201 | S122: 5.354302054 | T122: 4.900149717 | U122: 4.49346422 | V122: 4.003719806 | W122: 3.592631437 | X122: 3.14999733 | Y122: 2.750257244 | Z122: 2.339706075 | AA122: 1.921655286 | AB122: 1.505875778 | AC122: 1.141804012 | AD122: 0.7626218254 | AE122: 0.3731663797
B123: Simulation 89 | C123: 1.564353489 | D123: 1.219089383 | E123: 0.1137693362 | F123: 3.18211705 | G123: 3.7881847 | H123: -0.9879106641 | I123: 0.04967990645 | J123: 0.8974448929 | K123: 0.8266436935 | L123: -1.341737689 | M123: 0.3732186837 | N123: 0.5626158595 | O123: 1.02375734 | P123: 1.473428158 | Q123: 1.695498029 | R123: 1.559059918 | S123: 1.721901589 | T123: 1.914883537 | U123: 1.961501617 | V123: 1.876655968 | W123: 1.823132482 | X123: 1.748377262 | Y123: 1.619780332 | Z123: 1.467561211 | AA123: 1.281783005 | AB123: 1.062467508 | AC123: 0.8496019114 | AD123: 0.598733161 | AE123: 0.3088493636
B124: Simulation 90 | C124: 1.564353489 | D124: 2.953021352 | E124: -0.1115538817 | F124: -0.3583262251 | G124: -1.445099497 | H124: -0.4291691682 | I124: -3.669935375 | J124: -6.736688542 | K124: -7.74413852 | L124: -6.865102285 | M124: -5.557786554 | N124: -4.732058413 | O124: -5.607106289 | P124: -4.452386105 | Q124: -4.803020448 | R124: -4.670329472 | S124: -4.275752966 | T124: -3.976775933 | U124: -3.578600438 | V124: -3.150383309 | W124: -2.813898709 | X124: -2.461671978 | Y124: -2.104684175 | Z124: -1.761207141 | AA124: -1.431259061 | AB124: -1.101464049 | AC124: -0.8045204175 | AD124: -0.5153375689 | AE124: -0.2428785
B125: Simulation 91 | C125: 1.564353489 | D125: -1.800777725 | E125: -2.843256163 | F125: -2.910034008 | G125: -2.826488796 | H125: -2.279114225 | I125: -1.186048808 | J125: -3.893219218 | K125: -1.867037841 | L125: -1.228532817 | M125: -0.6428606596 | N125: -0.587254105 | O125: -1.112360215 | P125: -0.4550396085 | Q125: -0.4240213656 | R125: -0.4415944364 | S125: -0.6052812642 | T125: -0.5467414937 | U125: -0.5121028558 | V125: -0.4896067518 | W125: -0.504955847 | X125: -0.476936852 | Y125: -0.4363070392 | Z125: -0.3890733453 | AA125: -0.337555896 | AB125: -0.2787276351 | AC125: -0.211725164 | AD125: -0.1424068964 | AE125: -0.07186647613
B126: Simulation 92 | C126: 1.564353489 | D126: 4.451977864 | E126: 4.690461691 | F126: 5.843528653 | G126: 5.315750828 | H126: 8.825571 | I126: 10.92860292 | J126: 9.921600984 | K126: 10.9114729 | L126: 11.34318981 | M126: 10.9897201 | N126: 9.655878571 | O126: 9.497496433 | P126: 9.280175743 | Q126: 8.92615854 | R126: 8.228800593 | S126: 7.241617613 | T126: 6.663161783 | U126: 6.131444115 | V126: 5.567400992 | W126: 5.011954023 | X126: 4.409112259 | Y126: 3.843221897 | Z126: 3.277484161 | AA126: 2.700750785 | AB126: 2.115854381 | AC126: 1.601694132 | AD126: 1.066661469 | AE126: 0.520579531
B127: Simulation 93 | C127: 1.564353489 | D127: -1.577933395 | E127: -1.800600244 | F127: 0.2926521233 | G127: -6.900070812 | H127: -7.016602706 | I127: -4.716894772 | J127: -4.001351482 | K127: -4.451955511 | L127: -2.99104055 | M127: -2.347039412 | N127: -0.3831602548 | O127: -0.5516803197 | P127: -0.4071508417 | Q127: -0.6616805743 | R127: -0.7568934802 | S127: -0.323446336 | T127: -0.08353083052 | U127: 0.08118791419 | V127: 0.2062329607 | W127: 0.3439915687 | X127: 0.3889312818 | Y127: 0.4244209107 | Z127: 0.4327185427 | AA127: 0.4095368023 | AB127: 0.3640829551 | AC127: 0.3116283816 | AD127: 0.2328046318 | AE127: 0.1251163695
B128: Simulation 94 | C128: 1.564353489 | D128: 4.129795601 | E128: 2.236412769 | F128: -1.619146641 | G128: 1.064936998 | H128: 3.407967448 | I128: -0.8295611549 | J128: -2.926940751 | K128: -1.764985952 | L128: -4.09070417 | M128: -5.002583539 | N128: -4.307112227 | O128: -5.109668023 | P128: -4.727807496 | Q128: -4.134166399 | R128: -4.639462935 | S128: -4.468447274 | T128: -4.447008811 | U128: -4.097576905 | V128: -3.794381039 | W128: -3.423057387 | X128: -3.05317056 | Y128: -2.670239035 | Z128: -2.286547606 | AA128: -1.894454792 | AB128: -1.490845308 | AC128: -1.114440626 | AD128: -0.733489127 | AE128: -0.3558809413
B129: Simulation 95 | C129: 1.564353489 | D129: 2.75937237 | E129: 6.146788158 | F129: 9.187076102 | G129: 11.23982464 | H129: 12.14048713 | I129: 11.48644015 | J129: 11.80830218 | K129: 10.52380357 | L129: 11.83739675 | M129: 10.84225003 | N129: 11.23855749 | O129: 11.15099819 | P129: 10.28009041 | Q129: 9.332639412 | R129: 8.98635848 | S129: 8.049833459 | T129: 7.507188852 | U129: 6.931382426 | V129: 6.375820942 | W129: 5.692970612 | X129: 5.041115611 | Y129: 4.396069042 | Z129: 3.755119861 | AA129: 3.107410372 | AB129: 2.44411789 | AC129: 1.853202716 | AD129: 1.237069654 | AE129: 0.6062063946
B130: Simulation 96 | C130: 1.564353489 | D130: -1.463116586 | E130: -5.23512249 | F130: -11.7878217 | G130: -11.47333317 | H130: -10.79603532 | I130: -10.11925794 | J130: -13.2836178 | K130: -13.60434652 | L130: -12.80130048 | M130: -12.184325 | N130: -12.62944348 | O130: -11.55957632 | P130: -11.65149522 | Q130: -10.26117388 | R130: -8.634702105 | S130: -7.966428417 | T130: -7.31142068 | U130: -6.616250927 | V130: -5.839580328 | W130: -5.153198599 | X130: -4.407358396 | Y130: -3.736584609 | Z130: -3.099603163 | AA130: -2.496200549 | AB130: -1.906127317 | AC130: -1.392249529 | AD130: -0.8931741326 | AE130: -0.4213555219
B131: Simulation 97 | C131: 1.564353489 | D131: 0.8584654667 | E131: 3.281815884 | F131: 1.607051501 | G131: 5.28486666 | H131: 2.331421863 | I131: 3.765546646 | J131: 3.451505299 | K131: 3.704292199 | L131: 2.785425124 | M131: 4.032332833 | N131: 3.883995027 | O131: 3.820419106 | P131: 4.759866468 | Q131: 4.530401808 | R131: 3.915061531 | S131: 3.591662689 | T131: 3.456141512 | U131: 3.053262053 | V131: 2.706980724 | W131: 2.314893469 | X131: 1.987436998 | Y131: 1.676833389 | Z131: 1.368990105 | AA131: 1.070589872 | AB131: 0.7920500551 | AC131: 0.569735878 | AD131: 0.3573663138 | AE131: 0.1617003444
B132: Simulation 98 | C132: 1.564353489 | D132: 4.375977708 | E132: 3.662578001 | F132: 4.894490161 | G132: 3.585970937 | H132: 5.537636055 | I132: 5.187965182 | J132: 6.959165869 | K132: 6.491792251 | L132: 6.985185911 | M132: 7.74640537 | N132: 8.135640727 | O132: 7.245847452 | P132: 7.698668991 | Q132: 7.720331237 | R132: 7.384428664 | S132: 7.816708715 | T132: 7.466987475 | U132: 7.17020239 | V132: 6.832381742 | W132: 6.427920574 | X132: 5.902172283 | Y132: 5.338904191 | Z132: 4.714263403 | AA132: 4.029057927 | AB132: 3.270395817 | AC132: 2.549060986 | AD132: 1.750646171 | AE132: 0.8826900069
B133: Simulation 99 | C133: 1.564353489 | D133: 1.103913533 | E133: 1.531164314 | F133: -1.125268836 | G133: 0.8660650777 | H133: 1.129776869 | I133: 1.264966671 | J133: 0.6187414765 | K133: 1.017434405 | L133: 3.244882915 | M133: 3.716765475 | N133: 3.115355389 | O133: 2.456357256 | P133: 2.487026326 | Q133: 2.953931392 | R133: 2.947655024 | S133: 2.472079617 | T133: 2.204184269 | U133: 2.214362817 | V133: 2.078579972 | W133: 1.983366756 | X133: 1.844096973 | Y133: 1.700411213 | Z133: 1.528904821 | AA133: 1.324693275 | AB133: 1.094431057 | AC133: 0.8756364725 | AD133: 0.6172059619 | AE133: 0.3186618621
B134: Simulation 100 | C134: 1.564353489 | D134: -1.944558246 | E134: 1.516739796 | F134: 2.174545361 | G134: 2.258140847 | H134: 1.031173528 | I134: 2.558186479 | J134: 1.644438295 | K134: 1.074881399 | L134: 0.9615926246 | M134: -0.2986513427 | N134: -0.3883907267 | O134: -0.2856396107 | P134: 0.471234917 | Q134: -0.532101273 | R134: -0.3275719267 | S134: -0.303391914 | T134: -0.4563708309 | U134: -0.4972366154 | V134: -0.5189381005 | W134: -0.5178161705 | X134: -0.5154185834 | Y134: -0.4974773433 | Z134: -0.4672154371 | AA134: -0.4276767604 | AB134: -0.3735964781 | AC134: -0.298661658 | AD134: -0.2121688652 | AE134: -0.1123517158
B135: Simulation 101 | C135: 1.564353489 | D135: 1.430759786 | E135: 6.534844986 | F135: 7.199922128 | G135: 8.799494081 | H135: 7.853071536 | I135: 6.932066035 | J135: 7.412771977 | K135: 8.225058707 | L135: 9.081299152 | M135: 9.649149666 | N135: 10.35161656 | O135: 11.08552554 | P135: 11.24768322 | Q135: 11.25320241 | R135: 11.06890234 | S135: 10.48383452 | T135: 9.918183355 | U135: 9.370880848 | V135: 8.75253948 | W135: 8.006154935 | X135: 7.221943178 | Y135: 6.404535322 | Z135: 5.558510134 | AA135: 4.66812233 | AB135: 3.724802052 | AC135: 2.856381056 | AD135: 1.928141892 | AE135: 0.9556059741
B136: Simulation 102 | C136: 1.564353489 | D136: 0.2834848552 | E136: 2.004898116 | F136: 2.797043061 | G136: 0.9694801698 | H136: -0.803311694 | I136: 1.199961136 | J136: 1.886247599 | K136: 1.0689155 | L136: 0.9301756861 | M136: 1.475679488 | N136: 1.85208749 | O136: 2.093118499 | P136: 1.980621996 | Q136: 2.344077057 | R136: 2.567994119 | S136: 2.577830939 | T136: 2.445253997 | U136: 2.338475851 | V136: 2.13511175 | W136: 1.920935657 | X136: 1.761768448 | Y136: 1.597531661 | Z136: 1.415177725 | AA136: 1.20752793 | AB136: 0.9834245715 | AC136: 0.7751175072 | AD136: 0.5387124905 | AE136: 0.2743833955
B137: Simulation 103 | C137: 1.564353489 | D137: 0.1246657159 | E137: 0.3719436343 | F137: 0.8939367069 | G137: -2.098563936 | H137: -4.024821811 | I137: -3.430492284 | J137: -3.057092058 | K137: -3.158189283 | L137: -5.08708312 | M137: -4.677768316 | N137: -3.047670708 | O137: -3.736678294 | P137: -3.355113689 | Q137: -2.521451729 | R137: -1.811391355 | S137: -1.410700344 | T137: -0.9149295145 | U137: -0.6694151922 | V137: -0.4778927675 | W137: -0.2633460522 | X137: -0.1209378954 | Y137: -0.005936142424 | Z137: 0.06468255479 | AA137: 0.109151751 | AB137: 0.1344607508 | AC137: 0.1452014874 | AD137: 0.1260318591 | AE137: 0.07583121831
B138: Simulation 104 | C138: 1.564353489 | D138: 0.5654149266 | E138: 2.1404799 | F138: 3.741587371 | G138: 5.354475395 | H138: 7.461568998 | I138: 5.703202933 | J138: 7.695039542 | K138: 6.993970382 | L138: 6.836173343 | M138: 6.913529205 | N138: 5.661746728 | O138: 5.141236099 | P138: 4.676385783 | Q138: 4.85376552 | R138: 3.858396867 | S138: 3.682379307 | T138: 3.312623866 | U138: 2.99175817 | V138: 2.754360417 | W138: 2.545112808 | X138: 2.264509622 | Y138: 1.981621378 | Z138: 1.702409266 | AA138: 1.412617322 | AB138: 1.113505454 | AC138: 0.854192185 | AD138: 0.5781467057 | AE138: 0.2863917316
B139: Simulation 105 | C139: 1.564353489 | D139: 5.309007364 | E139: 8.501064916 | F139: 6.429592618 | G139: 5.702719755 | H139: 4.985432432 | I139: 2.29338711 | J139: 2.178053604 | K139: 2.51795428 | L139: 2.367128754 | M139: 3.83518641 | N139: 3.863668796 | O139: 3.412521583 | P139: 3.393840656 | Q139: 2.548133102 | R139: 1.909534115 | S139: 1.281775594 | T139: 1.189665545 | U139: 0.9894998596 | V139: 0.8499927276 | W139: 0.6539069265 | X139: 0.5365764513 | Y139: 0.4192424704 | Z139: 0.3124595182 | AA139: 0.2202237911 | AB139: 0.1394760967 | AC139: 0.09051611639 | AD139: 0.04740676257 | AE139: 0.01532041448
B140: Simulation 106 | C140: 1.564353489 | D140: 4.982276834 | E140: 9.021065009 | F140: 6.87813425 | G140: 7.188400918 | H140: 7.670341861 | I140: 6.554574453 | J140: 6.686548444 | K140: 7.60896491 | L140: 7.528858195 | M140: 6.543041364 | N140: 6.43724437 | O140: 5.383085895 | P140: 5.095219415 | Q140: 4.598458721 | R140: 4.205279058 | S140: 3.731550626 | T140: 3.392446841 | U140: 3.17410157 | V140: 2.837693478 | W140: 2.56776434 | X140: 2.256331899 | Y140: 1.964628337 | Z140: 1.670219597 | AA140: 1.37157831 | AB140: 1.073183756 | AC140: 0.8156527861 | AD140: 0.5459445418 | AE140: 0.2674070578
B141: Simulation 107 | C141: 1.564353489 | D141: 1.72885789 | E141: 5.006723029 | F141: 8.323999314 | G141: 10.25437666 | H141: 10.59716167 | I141: 7.818732723 | J141: 4.951507359 | K141: 4.104471002 | L141: 2.463847524 | M141: 3.501755344 | N141: 3.1102967 | O141: 2.112636128 | P141: 1.738096974 | Q141: 1.101849758 | R141: 1.624215243 | S141: 1.806352743 | T141: 1.788329598 | U141: 1.751938867 | V141: 1.736803045 | W141: 1.679233675 | X141: 1.602808251 | Y141: 1.486533519 | Z141: 1.345108451 | AA141: 1.175762602 | AB141: 0.9771775597 | AC141: 0.7843541542 | AD141: 0.5543711272 | AE141: 0.2867925988
B142: Simulation 108 | C142: 1.564353489 | D142: 8.17454899 | E142: 13.02404915 | F142: 13.15463042 | G142: 14.94994579 | H142: 16.28292069 | I142: 15.85161748 | J142: 16.16960212 | K142: 16.05565192 | L142: 15.33224759 | M142: 14.69023061 | N142: 14.7987696 | O142: 13.92225777 | P142: 13.94252172 | Q142: 13.11006785 | R142: 12.46136875 | S142: 11.79818463 | T142: 11.03325048 | U142: 10.26770794 | V142: 9.438037354 | W142: 8.605358156 | X142: 7.675548703 | Y142: 6.748860446 | Z142: 5.807648313 | AA142: 4.829479738 | AB142: 3.815235985 | AC142: 2.903337872 | AD142: 1.945581721 | AE142: 0.9569385904
B143: Simulation 109 | C143: 1.564353489 | D143: -2.451940133 | E143: -6.157730228 | F143: -10.26269316 | G143: -12.45074786 | H143: -13.41020922 | I143: -14.37334097 | J143: -13.37887876 | K143: -12.87051992 | L143: -12.3617565 | M143: -13.06556939 | N143: -10.74422646 | O143: -9.011466259 | P143: -8.598795974 | Q143: -7.663337422 | R143: -6.865043228 | S143: -6.303570927 | T143: -5.617177826 | U143: -5.033866883 | V143: -4.460917115 | W143: -3.926865242 | X143: -3.387415353 | Y143: -2.880043547 | Z143: -2.405041633 | AA143: -1.947743479 | AB143: -1.500689124 | AC143: -1.102182732 | AD143: -0.7130637635 | AE143: -0.3408827472
B144: Simulation 110 | C144: 1.564353489 | D144: -2.268395877 | E144: -0.3468081941 | F144: 0.7009897372 | G144: 1.635516643 | H144: 0.3519401501 | I144: -1.48589319 | J144: -2.02591254 | K144: 1.54090365 | L144: 0.9165130845 | M144: 0.2490843077 | N144: 0.3151739178 | O144: 0.1808657163 | P144: -0.5054028947 | Q144: -0.2044449354 | R144: -0.7049673774 | S144: -0.4435765913 | T144: -0.4033561585 | U144: -0.490218993 | V144: -0.4265010437 | W144: -0.3505282752 | X144: -0.3151353235 | Y144: -0.264030321 | Z144: -0.208720311 | AA144: -0.1651674832 | AB144: -0.1221894238 | AC144: -0.07816032778 | AD144: -0.04168970638 | AE144: -0.01654321157
B145: Simulation 111 | C145: 1.564353489 | D145: -1.995360225 | E145: 1.269609721 | F145: 5.101140195 | G145: 6.305784121 | H145: 4.954347847 | I145: 3.048639913 | J145: 5.778629871 | K145: 6.977171377 | L145: 7.721278013 | M145: 7.163244598 | N145: 5.73509922 | O145: 6.310836256 | P145: 5.284357779 | Q145: 5.070265149 | R145: 5.52751737 | S145: 5.360197972 | T145: 5.080563761 | U145: 4.82876352 | V145: 4.457347151 | W145: 4.091045101 | X145: 3.690203485 | Y145: 3.274867033 | Z145: 2.835798069 | AA145: 2.372251158 | AB145: 1.884387408 | AC145: 1.445061987 | AD145: 0.9756516277 | AE145: 0.4827056109
B146: Simulation 112 | C146: 1.564353489 | D146: 1.399105074 | E146: 0.6357042274 | F146: 1.70856413 | G146: 0.8430426113 | H146: 0.455053887 | I146: -1.439195952 | J146: -2.797815026 | K146: -2.56940127 | L146: -2.206970204 | M146: -2.564960607 | N146: -1.426593604 | O146: -0.9592969066 | P146: -1.444181806 | Q146: -1.213143723 | R146: -1.005712181 | S146: -0.7932620375 | T146: -0.8125044124 | U146: -0.7048384768 | V146: -0.5820972418 | W146: -0.4802509633 | X146: -0.3813341529 | Y146: -0.280427199 | Z146: -0.190773564 | AA146: -0.1235972309 | AB146: -0.06809256205 | AC146: -0.02110293807 | AD146: 0.007196175671 | AE146: 0.01222891265
B147: Simulation 113 | C147: 1.564353489 | D147: 1.514738342 | E147: 3.051106269 | F147: 0.8468959056 | G147: 3.053040181 | H147: 2.275419862 | I147: 3.34446659 | J147: 4.27696213 | K147: 2.433364405 | L147: -0.3240434095 | M147: -2.135571986 | N147: -1.357853497 | O147: -1.767107114 | P147: -1.583466019 | Q147: -1.393765617 | R147: -2.028384803 | S147: -2.157452861 | T147: -1.958824573 | U147: -1.739110868 | V147: -1.641463851 | W147: -1.445861966 | X147: -1.253584263 | Y147: -1.05999532 | Z147: -0.8696270333 | AA147: -0.691967803 | AB147: -0.5176885381 | AC147: -0.3598259716 | AD147: -0.2163524692 | AE147: -0.09493051652
B148: Simulation 114 | C148: 1.564353489 | D148: 1.4281945 | E148: 0.2892703307 | F148: -2.118618419 | G148: -7.107949722 | H148: -7.11669869 | I148: -7.650213897 | J148: -5.513676255 | K148: -6.724445682 | L148: -5.60195064 | M148: -4.985167198 | N148: -5.066728932 | O148: -6.011427138 | P148: -5.803293191 | Q148: -5.855496015 | R148: -5.431336285 | S148: -5.192492664 | T148: -4.930663508 | U148: -4.665875611 | V148: -4.294533585 | W148: -3.964687087 | X148: -3.58380039 | Y148: -3.19187561 | Z148: -2.790119708 | AA148: -2.368826809 | AB148: -1.912667792 | AC148: -1.47136309 | AD148: -0.9995659871 | AE148: -0.50115013
B149: Simulation 115 | C149: 1.564353489 | D149: 6.579260949 | E149: 5.859478208 | F149: 3.110623779 | G149: 5.866186703 | H149: 4.019626563 | I149: -0.07971991394 | J149: -1.117897067 | K149: -1.283471724 | L149: -0.4839859907 | M149: 1.953377142 | N149: 2.114605609 | O149: 3.088463846 | P149: 3.636438672 | Q149: 3.81562393 | R149: 4.171305799 | S149: 4.748909627 | T149: 4.882534716 | U149: 4.765001872 | V149: 4.536276616 | W149: 4.184630292 | X149: 3.843487449 | Y149: 3.474566691 | Z149: 3.062802076 | AA149: 2.606346741 | AB149: 2.106610537 | AC149: 1.634998748 | AD149: 1.117029498 | AE149: 0.5590560294
B150: Simulation 116 | C150: 1.564353489 | D150: -1.814193485 | E150: 3.402239558 | F150: -0.6033116989 | G150: 0.3886201106 | H150: 0.4334395828 | I150: -0.9585565219 | J150: 2.933027586 | K150: 4.987083558 | L150: 5.525404628 | M150: 5.170544668 | N150: 4.658710927 | O150: 2.753819242 | P150: 2.27326174 | Q150: 2.112196931 | R150: 2.026077314 | S150: 2.772982776 | T150: 2.694166915 | U150: 2.651316512 | V150: 2.511125047 | W150: 2.285806546 | X150: 2.093731072 | Y150: 1.883861726 | Z150: 1.654182221 | AA150: 1.404775763 | AB150: 1.128352307 | AC150: 0.8801920768 | AD150: 0.605588829 | AE150: 0.3053808025
B151: Simulation 117 | C151: 1.564353489 | D151: 6.93534776 | E151: 6.782779732 | F151: 9.713451309 | G151: 7.918360501 | H151: 4.836434932 | I151: 4.887174537 | J151: 5.263477119 | K151: 3.852530163 | L151: 3.051104432 | M151: 3.571395751 | N151: 3.026636507 | O151: 1.970888341 | P151: 1.223401884 | Q151: 0.7971996214 | R151: 1.46741669 | S151: 1.659369326 | T151: 1.761770018 | U151: 1.692302638 | V151: 1.592042588 | W151: 1.431256286 | X151: 1.278379329 | Y151: 1.123326843 | Z151: 0.9683861539 | AA151: 0.7959282976 | AB151: 0.6203472283 | AC151: 0.472298929 | AD151: 0.3163987565 | AE151: 0.1546184734
B152: Simulation 118 | C152: 1.564353489 | D152: -4.520520132 | E152: -6.391819979 | F152: -2.713421627 | G152: -8.282766952 | H152: -8.508195145 | I152: -5.496194113 | J152: -3.728908607 | K152: -3.940526049 | L152: -2.483061487 | M152: -2.199091298 | N152: -2.262087522 | O152: -1.966266683 | P152: -3.048502442 | Q152: -2.584103836 | R152: -2.048391146 | S152: -1.776635422 | T152: -1.29224076 | U152: -1.080880657 | V152: -0.8977772808 | W152: -0.7416914221 | X152: -0.5927450909 | Y152: -0.4529837183 | Z152: -0.3385727292 | AA152: -0.2444141403 | AB152: -0.1663075398 | AC152: -0.09833587372 | AD152: -0.04697498254 | AE152: -0.01529761614
B153: Simulation 119 | C153: 1.564353489 | D153: 7.066077188 | E153: 5.028448675 | F153: 7.505649754 | G153: 8.072830703 | H153: 7.554349356 | I153: 8.464744667 | J153: 8.460273274 | K153: 7.629933103 | L153: 6.866460991 | M153: 6.200549729 | N153: 5.74427237 | O153: 3.664398204 | P153: 2.706120239 | Q153: 2.214845064 | R153: 1.652808824 | S153: 1.758438868 | T153: 1.561234213 | U153: 1.352735859 | V153: 1.222793023 | W153: 1.120284084 | X153: 0.985632333 | Y153: 0.8787697042 | Z153: 0.7609370374 | AA153: 0.6452460762 | AB153: 0.5264238859 | AC153: 0.423015308 | AD153: 0.3002149861 | AE153: 0.1563178084
B154: Simulation 120 | C154: 1.564353489 | D154: 1.205200445 | E154: -0.1242427058 | F154: -1.22445836 | G154: -2.069897689 | H154: -1.241190544 | I154: 0.6179188756 | J154: -1.950621151 | K154: -2.70293932 | L154: -3.662315686 | M154: -2.744639498 | N154: -2.354489981 | O154: -2.650825078 | P154: -2.324082502 | Q154: -1.731369749 | R154: -1.184237414 | S154: -0.7523081479 | T154: -0.6305160973 | U154: -0.4023198194 | V154: -0.1835455703 | W154: 0.002185681211 | X154: 0.1389328201 | Y154: 0.248565337 | Z154: 0.3227744756 | AA154: 0.3583364596 | AB154: 0.361643779 | AC154: 0.3393046871 | AD154: 0.2722642224 | AE154: 0.1570731038
B155: Simulation 121 | C155: 1.564353489 | D155: 5.552742539 | E155: 5.033915775 | F155: 10.9182209 | G155: 8.728777435 | H155: 9.026484362 | I155: 7.963723743 | J155: 6.49837644 | K155: 7.721229222 | L155: 8.828095832 | M155: 9.25003317 | N155: 8.718684464 | O155: 10.22703162 | P155: 9.663037328 | Q155: 9.351006726 | R155: 8.526913597 | S155: 7.56472815 | T155: 6.992057207 | U155: 6.455618348 | V155: 5.884291844 | W155: 5.295740004 | X155: 4.713929459 | Y155: 4.148317121 | Z155: 3.573689303 | AA155: 2.977836428 | AB155: 2.357425201 | AC155: 1.800862577 | AD155: 1.2113289 | AE155: 0.5979587026
B156: Simulation 122 | C156: 1.564353489 | D156: 4.873642538 | E156: 5.852302123 | F156: 5.237455886 | G156: 4.211100176 | H156: 6.37434443 | I156: 8.019387083 | J156: 9.490626201 | K156: 9.928654849 | L156: 10.43461094 | M156: 10.30762912 | N156: 10.93928565 | O156: 10.61416512 | P156: 9.872314067 | Q156: 9.562619752 | R156: 9.412496453 | S156: 9.08760744 | T156: 8.538515471 | U156: 8.028014657 | V156: 7.514351303 | W156: 6.898034396 | X156: 6.201879895 | Y156: 5.481912957 | Z156: 4.74160242 | AA156: 3.962981713 | AB156: 3.152189201 | AC156: 2.41068931 | AD156: 1.623232956 | AE156: 0.8018579086
B157: Simulation 123 | C157: 1.564353489 | D157: -1.148650277 | E157: 1.384283528 | F157: 2.330970591 | G157: 3.528862414 | H157: 5.126856823 | I157: 3.785135713 | J157: 2.332724999 | K157: 3.816528339 | L157: 4.785261734 | M157: 3.454784719 | N157: 4.479437985 | O157: 5.685044237 | P157: 5.308044122 | Q157: 4.848552643 | R157: 4.67279712 | S157: 4.283056001 | T157: 4.202070989 | U157: 3.898041228 | V157: 3.597934578 | W157: 3.24076674 | X157: 2.89882704 | Y157: 2.558335861 | Z157: 2.200298428 | AA157: 1.834226545 | AB157: 1.45385114 | AC157: 1.115107426 | AD157: 0.7530299555 | AE157: 0.3722664805
B158: Simulation 124 | C158: 1.564353489 | D158: 3.121765822 | E158: 2.88344364 | F158: -1.019622252 | G158: -0.8113411542 | H158: -0.6449705405 | I158: 2.245796067 | J158: 0.8135080279 | K158: 0.7485840249 | L158: -0.2751091762 | M158: -0.7314685317 | N158: -0.4831146832 | O158: -1.049629013 | P158: -1.141963952 | Q158: -1.347253222 | R158: -1.082525445 | S158: -1.342854769 | T158: -1.26835178 | U158: -1.090705843 | V158: -1.042008274 | W158: -0.9208899847 | X158: -0.8328120717 | Y158: -0.744570212 | Z158: -0.6546706129 | AA158: -0.5625906364 | AB158: -0.4640911505 | AC158: -0.3553289439 | AD158: -0.2422355575 | AE158: -0.1235767442
B159: Simulation 125 | C159: 1.564353489 | D159: 1.488234822 | E159: 4.118464291 | F159: 3.304622726 | G159: 6.640348385 | H159: 5.390304607 | I159: 6.720702787 | J159: 10.81040725 | K159: 10.008163 | L159: 10.51916704 | M159: 11.75750412 | N159: 9.551153562 | O159: 8.270528043 | P159: 8.730737309 | Q159: 8.291832184 | R159: 7.956720909 | S159: 7.519637892 | T159: 6.985313014 | U159: 6.642888915 | V159: 6.210269006 | W159: 5.706201973 | X159: 5.117755954 | Y159: 4.548923139 | Z159: 3.96215009 | AA159: 3.345316044 | AB159: 2.684611726 | AC159: 2.073053716 | AD159: 1.4119712 | AE159: 0.7068702469
B160: Simulation 126 | C160: 1.564353489 | D160: 5.428832267 | E160: 2.83232753 | F160: 3.80027505 | G160: 0.5754990519 | H160: 3.581532233 | I160: 3.024180651 | J160: 4.440429152 | K160: 4.545134526 | L160: 4.478539717 | M160: 5.179517105 | N160: 5.948660033 | O160: 5.945944199 | P160: 5.411485802 | Q160: 5.318822305 | R160: 5.23742992 | S160: 5.120027199 | T160: 4.758512932 | U160: 4.442824912 | V160: 4.090215875 | W160: 3.754930572 | X160: 3.43112744 | Y160: 3.083802664 | Z160: 2.711141108 | AA160: 2.313549009 | AB160: 1.87562854 | AC160: 1.465552544 | AD160: 1.009627943 | AE160: 0.5108813913
B161: Simulation 127 | C161: 1.564353489 | D161: -2.012115499 | E161: -6.446681001 | F161: -4.957776599 | G161: -3.038922528 | H161: -1.411820362 | I161: -3.000564937 | J161: -3.379754771 | K161: 0.03125255195 | L161: 0.5011333677 | M161: 0.8949231714 | N161: 2.875361334 | O161: 4.323524748 | P161: 4.514841934 | Q161: 5.103735602 | R161: 5.023525107 | S161: 4.921586368 | T161: 4.919047303 | U161: 4.830727912 | V161: 4.61964116 | W161: 4.392980902 | X161: 4.089049933 | Y161: 3.737834649 | Z161: 3.336935208 | AA161: 2.88142714 | AB161: 2.364610911 | AC161: 1.860918605 | AD161: 1.290804536 | AE161: 0.6570441968
B162: Simulation 128 | C162: 1.564353489 | D162: -1.846192362 | E162: -5.231850483 | F162: -1.602824822 | G162: -2.432947415 | H162: -2.521932362 | I162: -0.7431542449 | J162: -1.707002892 | K162: -2.284884056 | L162: -2.136286776 | M162: -0.8554900625 | N162: -0.2021986076 | O162: 0.5665306641 | P162: 0.1652141635 | Q162: 0.3222558057 | R162: 0.3710019401 | S162: 0.5210356772 | T162: 0.6852657257 | U162: 0.8117359468 | V162: 0.8316455288 | W162: 0.9564596032 | X162: 0.9956789141 | Y162: 1.003593471 | Z162: 0.9778665949 | AA162: 0.9115043928 | AB162: 0.7999280547 | AC162: 0.6731855471 | AD162: 0.4974927816 | AE162: 0.2682117208
B163: Simulation 129 | C163: 1.564353489 | D163: 0.9975702279 | E163: 1.016459309 | F163: 5.633446378 | G163: 7.503459122 | H163: 6.805800206 | I163: 7.260407952 | J163: 8.039266303 | K163: 6.314651516 | L163: 4.967623022 | M163: 4.732854111 | N163: 4.455133135 | O163: 4.089750297 | P163: 3.721344932 | Q163: 3.217616086 | R163: 3.010500031 | S163: 2.847959584 | T163: 2.561101004 | U163: 2.311435125 | V163: 2.130467173 | W163: 1.924943905 | X163: 1.700716881 | Y163: 1.469613702 | Z163: 1.246338332 | AA163: 1.021827814 | AB163: 0.7956120947 | AC163: 0.6068512144 | AD163: 0.4059826586 | AE163: 0.1983270355
B164: Simulation 130 | C164: 1.564353489 | D164: -2.694963928 | E164: -7.742782884 | F164: -4.777790126 | G164: -5.281293947 | H164: -6.746642097 | I164: -3.398534248 | J164: -4.455322713 | K164: -2.707267299 | L164: -1.521006276 | M164: -1.916849736 | N164: -1.434557158 | O164: -1.907595191 | P164: -1.260566973 | Q164: -1.25770466 | R164: -1.133586904 | S164: -0.9956032144 | T164: -0.9480843502 | U164: -0.9007876184 | V164: -0.7419887008 | W164: -0.6970811662 | X164: -0.6193868824 | Y164: -0.5098492418 | Z164: -0.407479642 | AA164: -0.3178331103 | AB164: -0.2324203882 | AC164: -0.1556680673 | AD164: -0.09036352464 | AE164: -0.03887841448
B165: Simulation 131 | C165: 1.564353489 | D165: 0.9304843488 | E165: -0.7151254641 | F165: -4.390528638 | G165: -5.936684272 | H165: -1.113467548 | I165: 0.07853863076 | J165: 1.293457845 | K165: 3.816084198 | L165: 3.807974563 | M165: 4.537976404 | N165: 4.486432515 | O165: 4.198727809 | P165: 3.813394341 | Q165: 4.081688078 | R165: 4.302194094 | S165: 4.144079102 | T165: 3.828343115 | U165: 3.542278818 | V165: 3.391566778 | W165: 3.018013346 | X165: 2.675949723 | Y165: 2.355936646 | Z165: 2.026182575 | AA165: 1.679893559 | AB165: 1.319891159 | AC165: 1.001604156 | AD165: 0.6672212025 | AE165: 0.3245455572
B166: Simulation 132 | C166: 1.564353489 | D166: -2.289406185 | E166: -4.115065726 | F166: -2.810506335 | G166: -3.363563876 | H166: -3.232302745 | I166: 0.3642227936 | J166: 2.149314367 | K166: 0.3913513499 | L166: 1.273764456 | M166: 0.8010730057 | N166: 2.386319096 | O166: 0.6997625476 | P166: 1.019409401 | Q166: 0.559714059 | R166: 0.3749756637 | S166: 0.7756652333 | T166: 0.6641562332 | U166: 0.6769673349 | V166: 0.590690862 | W166: 0.5824234528 | X166: 0.5029741039 | Y166: 0.4380270163 | Z166: 0.3728484613 | AA166: 0.3039391595 | AB166: 0.2372550344 | AC166: 0.1861663331 | AD166: 0.1286357055 | AE166: 0.06361706875
B167: Simulation 133 | C167: 1.564353489 | D167: 6.849288534 | E167: 12.02430446 | F167: 10.81171765 | G167: 13.0490305 | H167: 10.88628784 | I167: 10.65106154 | J167: 10.46342996 | K167: 10.41072165 | L167: 11.73105385 | M167: 12.04532891 | N167: 10.84950817 | O167: 9.509846487 | P167: 9.743285741 | Q167: 8.798541248 | R167: 8.088661337 | S167: 7.438026786 | T167: 6.960191589 | U167: 6.383143092 | V167: 5.802365227 | W167: 5.274642403 | X167: 4.673645887 | Y167: 4.068247485 | Z167: 3.462476533 | AA167: 2.850279829 | AB167: 2.227452821 | AC167: 1.681499636 | AD167: 1.116476973 | AE167: 0.5427324546
B168: Simulation 134 | C168: 1.564353489 | D168: 4.696199466 | E168: 3.130152702 | F168: 2.524072842 | G168: -0.0908521698 | H168: 1.320993521 | I168: 3.892456021 | J168: 3.556950096 | K168: 2.92918859 | L168: 2.525763087 | M168: 2.923480294 | N168: 2.822605839 | O168: 2.674002794 | P168: 2.450794477 | Q168: 2.660074561 | R168: 1.436443841 | S168: 1.11940067 | T168: 1.110364465 | U168: 1.065337204 | V168: 1.046111658 | W168: 0.9552495784 | X168: 0.8392054692 | Y168: 0.7572625202 | Z168: 0.6667699778 | AA168: 0.5671797175 | AB168: 0.4605594087 | AC168: 0.3683527069 | AD168: 0.2596095148 | AE168: 0.1334245643
B169: Simulation 135 | C169: 1.564353489 | D169: 2.978702619 | E169: 5.517388713 | F169: 3.582737185 | G169: 3.400472774 | H169: 3.796509947 | I169: 2.983348781 | J169: 3.552450773 | K169: 3.672004862 | L169: 2.934400786 | M169: 3.643075727 | N169: 3.268480532 | O169: 4.816457248 | P169: 4.208898225 | Q169: 3.963693589 | R169: 3.481749098 | S169: 3.226336297 | T169: 2.665656652 | U169: 2.518063857 | V169: 2.313698765 | W169: 2.164942064 | X169: 1.956623965 | Y169: 1.725162675 | Z169: 1.48361153 | AA169: 1.234372122 | AB169: 0.9740283031 | AC169: 0.7451137743 | AD169: 0.5004790511 | AE169: 0.2454812519
B170: Simulation 136 | C170: 1.564353489 | D170: 0.5511084747 | E170: -1.500735299 | F170: 1.13475777 | G170: 1.745210844 | H170: 0.4740507877 | I170: -2.13236159 | J170: -2.703969363 | K170: -2.617112648 | L170: -0.8967895898 | M170: -1.004131916 | N170: -0.4811098839 | O170: -0.1246592509 | P170: 0.7015938607 | Q170: 0.9097267815 | R170: 0.8812041737 | S170: 0.6772017381 | T170: 0.8025453802 | U170: 0.8365848374 | V170: 0.8694847064 | W170: 0.8508740393 | X170: 0.8079349526 | Y170: 0.7568143795 | Z170: 0.6936044869 | AA170: 0.5974586278 | AB170: 0.4917628448 | AC170: 0.3963468447 | AD170: 0.2802312323 | AE170: 0.1442881827
B171: Simulation 137 | C171: 1.564353489 | D171: -5.704249446 | E171: -9.012871281 | F171: -9.42916928 | G171: -8.317370715 | H171: -6.731543174 | I171: -8.571066343 | J171: -9.141494105 | K171: -11.07057543 | L171: -12.34951128 | M171: -14.25772496 | N171: -12.18107828 | O171: -12.19239258 | P171: -11.01801306 | Q171: -9.992929634 | R171: -9.263036063 | S171: -8.835009187 | T171: -7.951924449 | U171: -7.205503712 | V171: -6.364661195 | W171: -5.644771862 | X171: -4.917673927 | Y171: -4.210503016 | Z171: -3.525740864 | AA171: -2.856026235 | AB171: -2.193196656 | AC171: -1.607801638 | AD171: -1.034822992 | AE171: -0.4900366048
B172: Simulation 138 | C172: 1.564353489 | D172: -3.715641447 | E172: -6.528030801 | F172: -10.47663643 | G172: -9.341636868 | H172: -9.014498664 | I172: -11.50631547 | J172: -10.13107522 | K172: -8.427218721 | L172: -8.202833243 | M172: -7.588730483 | N172: -5.768485562 | O172: -4.647702089 | P172: -3.264277338 | Q172: -2.665569143 | R172: -1.990117461 | S172: -1.701013885 | T172: -1.414497036 | U172: -1.047341473 | V172: -0.7610030981 | W172: -0.5342635171 | X172: -0.3407197476 | Y172: -0.1715559056 | Z172: -0.04198375304 | AA172: 0.05074829078 | AB172: 0.1137605701 | AC172: 0.1442289826 | AD172: 0.1366453834 | AE172: 0.08668067958
B173: Simulation 139 | C173: 1.564353489 | D173: -1.435739642 | E173: -0.1858192572 | F173: 1.129222073 | G173: 2.593099131 | H173: 5.064367217 | I173: 2.628058482 | J173: 2.931007349 | K173: 2.007043932 | L173: 1.517805731 | M173: 1.057764705 | N173: 1.503217044 | O173: 2.144727871 | P173: 2.126811852 | Q173: 2.29593375 | R173: 2.445109739 | S173: 2.180961049 | T173: 2.054886865 | U173: 2.017304164 | V173: 1.923367731 | W173: 1.811174249 | X173: 1.672525456 | Y173: 1.511621302 | Z173: 1.339827263 | AA173: 1.144647545 | AB173: 0.9282086768 | AC173: 0.7317001207 | AD173: 0.5078283289 | AE173: 0.2584066134
B174: Simulation 140 | C174: 1.564353489 | D174: 5.923112723 | E174: 8.012614422 | F174: 7.601710498 | G174: 9.325289223 | H174: 8.081808972 | I174: 7.045207941 | J174: 6.034573476 | K174: 6.205404055 | L174: 6.274198049 | M174: 6.768542522 | N174: 5.748735754 | O174: 5.702040323 | P174: 4.780107591 | Q174: 4.823635605 | R174: 4.147551546 | S174: 3.904302733 | T174: 3.541021329 | U174: 3.293953319 | V174: 2.937250248 | W174: 2.587467241 | X174: 2.289836676 | Y174: 1.997156368 | Z174: 1.71094735 | AA174: 1.410208214 | AB174: 1.10352123 | AC174: 0.8389855244 | AD174: 0.5605367563 | AE174: 0.2738020346
B175: Simulation 141 | C175: 1.564353489 | D175: -1.474955349 | E175: -0.4137292225 | F175: -2.325094401 | G175: -3.689701196 | H175: -4.711897186 | I175: -1.18442019 | J175: -0.1570225604 | K175: -0.6350421682 | L175: -1.031213549 | M175: -2.341611941 | N175: -3.846956808 | O175: -3.314217387 | P175: -3.684438768 | Q175: -3.580350976 | R175: -3.002167898 | S175: -2.871789548 | T175: -2.608610719 | U175: -2.402047802 | V175: -2.193317027 | W175: -1.944181852 | X175: -1.783953015 | Y175: -1.571774854 | Z175: -1.366879335 | AA175: -1.157254115 | AB175: -0.9253239407 | AC175: -0.7015417547 | AD175: -0.4697142829 | AE175: -0.232690053
B176: Simulation 142 | C176: 1.564353489 | D176: 5.097174931 | E176: 2.76319843 | F176: 2.557233831 | G176: 1.568311235 | H176: 2.173360888 | I176: 1.761473022 | J176: 4.65427218 | K176: 5.98716842 | L176: 6.664264465 | M176: 7.826336028 | N176: 9.310478182 | O176: 8.907901287 | P176: 8.453703305 | Q176: 8.404019762 | R176: 8.083649553 | S176: 7.542180432 | T176: 7.166568204 | U176: 6.733046932 | V176: 6.243900141 | W176: 5.676623085 | X176: 5.117206761 | Y176: 4.539385582 | Z176: 3.945062293 | AA176: 3.315524327 | AB176: 2.647602561 | AC176: 2.036175482 | AD176: 1.379735748 | AE176: 0.6867462989
B177: Simulation 143 | C177: 1.564353489 | D177: -0.2843714 | E177: -3.132308073 | F177: -4.303466913 | G177: -6.186249297 | H177: -6.596489844 | I177: -6.21641773 | J177: -6.075665569 | K177: -3.62185439 | L177: -2.983850192 | M177: -2.58004406 | N177: -1.836015264 | O177: -2.516175704 | P177: -3.066285384 | Q177: -2.757370722 | R177: -2.39305268 | S177: -2.523630326 | T177: -2.373755361 | U177: -2.164689728 | V177: -1.985830063 | W177: -1.731137406 | X177: -1.552164426 | Y177: -1.358966206 | Z177: -1.169021814 | AA177: -0.9828362236 | AB177: -0.785560999 | AC177: -0.5928380694 | AD177: -0.395241493 | AE177: -0.1949453439
B178: Simulation 144 | C178: 1.564353489 | D178: -4.755832455 | E178: -8.449982985 | F178: -11.03856291 | G178: -11.72837832 | H178: -11.63254187 | I178: -9.556736806 | J178: -11.04314116 | K178: -11.26822707 | L178: -10.03344915 | M178: -8.744927586 | N178: -8.826901633 | O178: -9.541662112 | P178: -8.70444691 | Q178: -7.075706855 | R178: -6.435940832 | S178: -5.245310482 | T178: -4.703344273 | U178: -4.10822543 | V178: -3.614369259 | W178: -3.130287947 | X178: -2.641281578 | Y178: -2.205774925 | Z178: -1.800388147 | AA178: -1.426721113 | AB178: -1.069903888 | AC178: -0.7627747346 | AD178: -0.476554681 | AE178: -0.2184357721
B179: Simulation 145 | C179: 1.564353489 | D179: 1.757175331 | E179: 3.37721146 | F179: 1.754194748 | G179: 2.622012045 | H179: 2.469053117 | I179: 2.766526766 | J179: 0.8340222235 | K179: -1.331863588 | L179: -0.8812152009 | M179: -0.0459452135 | N179: 0.04607600565 | O179: -0.005175348917 | P179: -0.4663072943 | Q179: -0.9195820998 | R179: -1.524678652 | S179: -1.372870641 | T179: -1.172355899 | U179: -1.170479593 | V179: -1.09828923 | W179: -1.0186772 | X179: -0.9275557202 | Y179: -0.8127637352 | Z179: -0.7029965506 | AA179: -0.5977327948 | AB179: -0.4822346429 | AC179: -0.3609551637 | AD179: -0.2388938113 | AE179: -0.1175635462
B180: Simulation 146 | C180: 1.564353489 | D180: -1.224936785 | E180: -0.9967036885 | F180: 2.932957628 | G180: 2.429857769 | H180: 3.427038657 | I180: 2.020209071 | J180: 2.056905732 | K180: 3.608036561 | L180: 3.101054269 | M180: 2.605576631 | N180: 3.513613612 | O180: 4.438930513 | P180: 4.309145323 | Q180: 4.622892542 | R180: 4.547560815 | S180: 3.890508355 | T180: 3.583444073 | U180: 3.435666922 | V180: 3.187399652 | W180: 2.93483668 | X180: 2.669073317 | Y180: 2.397316418 | Z180: 2.101979063 | AA180: 1.787289178 | AB180: 1.447715037 | AC180: 1.134169676 | AD180: 0.7841377861 | AE180: 0.3979278721
B181: Simulation 147 | C181: 1.564353489 | D181: -1.661281985 | E181: -0.7597967302 | F181: -0.1124799987 | G181: 3.63935019 | H181: 5.465460974 | I181: 6.384578052 | J181: 5.511140311 | K181: 4.602699555 | L181: 5.575345078 | M181: 7.937750854 | N181: 7.302758033 | O181: 6.571677373 | P181: 7.1286676 | Q181: 6.682700717 | R181: 6.763537338 | S181: 6.394120836 | T181: 6.053809529 | U181: 5.788485047 | V181: 5.394604122 | W181: 4.952668991 | X181: 4.53734319 | Y181: 4.089702535 | Z181: 3.598803097 | AA181: 3.064890441 | AB181: 2.481738457 | AC181: 1.93375438 | AD181: 1.328667098 | AE181: 0.6700324836
B182: Simulation 148 | C182: 1.564353489 | D182: 0.0928823621 | E182: 0.4985509242 | F182: 0.6958325521 | G182: -3.561004104 | H182: -5.15981394 | I182: -7.970777867 | J182: -6.940733528 | K182: -6.937077675 | L182: -5.092650333 | M182: -3.932740584 | N182: -3.504635092 | O182: -2.477447927 | P182: -2.303114373 | Q182: -1.92281874 | R182: -1.876500106 | S182: -1.926378709 | T182: -1.806309332 | U182: -1.546440801 | V182: -1.321668844 | W182: -1.155338309 | X182: -0.9063139233 | Y182: -0.708463154 | Z182: -0.5317571255 | AA182: -0.3782325279 | AB182: -0.2436620297 | AC182: -0.1363099684 | AD182: -0.05716460161 | AE182: -0.01151558335
B183: Simulation 149 | C183: 1.564353489 | D183: 8.00308793 | E183: 9.742248311 | F183: 10.0219159 | G183: 10.84437977 | H183: 9.784560533 | I183: 9.444149193 | J183: 8.140384982 | K183: 9.688543185 | L183: 9.031366906 | M183: 8.88098053 | N183: 8.359859049 | O183: 9.082929967 | P183: 9.01343519 | Q183: 8.443887036 | R183: 8.168408598 | S183: 7.265633491 | T183: 7.023294799 | U183: 6.613251222 | V183: 6.150885791 | W183: 5.652604534 | X183: 5.144025744 | Y183: 4.608623763 | Z183: 4.035891134 | AA183: 3.429925884 | AB183: 2.77106939 | AC183: 2.155636753 | AD183: 1.479359399 | AE183: 0.7465298899
B184: Simulation 150 | C184: 1.564353489 | D184: 3.216419205 | E184: 0.4898221607 | F184: -0.375106064 | G184: -0.118093468 | H184: 1.568989779 | I184: 0.2251536322 | J184: -0.1531505674 | K184: 0.6882587713 | L184: 0.2828721941 | M184: -0.3554818216 | N184: -1.886914576 | O184: -1.995688399 | P184: -1.514278932 | Q184: -0.7598460098 | R184: -1.22986905 | S184: -0.9304587254 | T184: -1.000847382 | U184: -0.947507315 | V184: -0.9944990252 | W184: -0.8891182663 | X184: -0.8527926777 | Y184: -0.7767301862 | Z184: -0.700706147 | AA184: -0.6178646096 | AB184: -0.5224087535 | AC184: -0.4122260059 | AD184: -0.2888518701 | AE184: -0.1512197051
B185: Simulation 151 | C185: 1.564353489 | D185: 5.465111046 | E185: 3.812983357 | F185: 0.6293902583 | G185: -0.7984827993 | H185: -0.3602569232 | I185: -0.8638952975 | J185: -0.688916899 | K185: 0.8397903451 | L185: 1.523297321 | M185: 2.436900585 | N185: 3.100357262 | O185: 2.813982249 | P185: 2.76728042 | Q185: 2.484388103 | R185: 2.197175548 | S185: 2.446021462 | T185: 2.125704632 | U185: 2.128914813 | V185: 2.03141865 | W185: 1.838556038 | X185: 1.6892899 | Y185: 1.510742921 | Z185: 1.321773656 | AA185: 1.118192509 | AB185: 0.899849062 | AC185: 0.7027814131 | AD185: 0.4838118081 | AE185: 0.2435735701
B186: Simulation 152 | C186: 1.564353489 | D186: 0.08852504481 | E186: 2.585362358 | F186: 2.818849346 | G186: 4.820498155 | H186: 5.056364491 | I186: 5.417412859 | J186: 7.380983525 | K186: 6.722260678 | L186: 7.441039431 | M186: 8.079786199 | N186: 6.091396258 | O186: 6.295552949 | P186: 6.008691643 | Q186: 5.75370001 | R186: 5.192438579 | S186: 4.808615495 | T186: 4.386165793 | U186: 4.098194092 | V186: 3.798101518 | W186: 3.48361127 | X186: 3.134850477 | Y186: 2.779372583 | Z186: 2.409401032 | AA186: 2.019541799 | AB186: 1.609406097 | AC186: 1.239654703 | AD186: 0.8406330448 | AE186: 0.417462635
B187: Simulation 153 | C187: 1.564353489 | D187: -4.947300273 | E187: -3.502857857 | F187: -3.670492577 | G187: -2.129439629 | H187: -4.73036202 | I187: -2.497930623 | J187: -1.369910289 | K187: 1.127424638 | L187: 1.224367045 | M187: 1.049607746 | N187: 1.547250398 | O187: 2.703954752 | P187: 2.794313017 | Q187: 2.487377015 | R187: 2.449760623 | S187: 2.406533037 | T187: 2.364551944 | U187: 2.245526624 | V187: 2.158053532 | W187: 1.977695753 | X187: 1.790604659 | Y187: 1.587082167 | Z187: 1.383816312 | AA187: 1.159880946 | AB187: 0.9226243055 | AC187: 0.7134461447 | AD187: 0.4852414367 | AE187: 0.2407249281
B188: Simulation 154 | C188: 1.564353489 | D188: 3.946502009 | E188: 4.018177431 | F188: 3.926983627 | G188: 8.657755133 | H188: 9.879671972 | I188: 7.681253735 | J188: 8.386363119 | K188: 8.940901276 | L188: 8.336131996 | M188: 8.033853829 | N188: 7.356459511 | O188: 7.20425744 | P188: 6.485788422 | Q188: 5.983609573 | R188: 5.221661347 | S188: 4.575751667 | T188: 4.04121873 | U188: 3.713991524 | V188: 3.25020029 | W188: 2.9736896 | X188: 2.588609235 | Y188: 2.241691893 | Z188: 1.896782105 | AA188: 1.547924978 | AB188: 1.202871903 | AC188: 0.9086131836 | AD188: 0.603950598 | AE188: 0.2942552865
B189: Simulation 155 | C189: 1.564353489 | D189: 4.511899835 | E189: 0.4477319349 | F189: 0.9172168945 | G189: 3.559004466 | H189: 2.501249962 | I189: 1.187284452 | J189: 0.3672266464 | K189: 2.443864168 | L189: 3.613411543 | M189: 1.511030064 | N189: 2.071505477 | O189: 2.605027405 | P189: 2.70660139 | Q189: 2.837613843 | R189: 2.710856119 | S189: 2.601087295 | T189: 2.319903008 | U189: 2.15397748 | V189: 1.995800648 | W189: 1.832363427 | X189: 1.709885558 | Y189: 1.542960713 | Z189: 1.364467502 | AA189: 1.159321008 | AB189: 0.9404833062 | AC189: 0.7390719573 | AD189: 0.5122373961 | AE189: 0.2593668575
B190: Simulation 156 | C190: 1.564353489 | D190: 6.110962468 | E190: 6.478999121 | F190: 9.817692274 | G190: 8.517257193 | H190: 4.260408665 | I190: 4.570853184 | J190: 7.043357153 | K190: 7.678349636 | L190: 9.728251869 | M190: 8.920522512 | N190: 9.949004935 | O190: 11.06761488 | P190: 10.42082242 | Q190: 10.48098941 | R190: 10.2666623 | S190: 9.804210174 | T190: 9.322739263 | U190: 8.684338643 | V190: 8.144702523 | W190: 7.430216069 | X190: 6.709673945 | Y190: 5.961540108 | Z190: 5.188264585 | AA190: 4.36659969 | AB190: 3.492244487 | AC190: 2.686774554 | AD190: 1.821584482 | AE190: 0.9070698354
B191: Simulation 157 | C191: 1.564353489 | D191: 0.0684755469 | E191: 3.648558406 | F191: -0.807350595 | G191: -2.901596658 | H191: -0.7759478349 | I191: 0.2745867635 | J191: 1.894736676 | K191: 3.472821624 | L191: 3.122460743 | M191: 2.89795108 | N191: 2.6713077 | O191: 2.764580449 | P191: 2.344165658 | Q191: 2.980751402 | R191: 2.85541115 | S191: 3.177555662 | T191: 3.187542693 | U191: 2.98096905 | V191: 2.857918728 | W191: 2.704416931 | X191: 2.506739174 | Y191: 2.266335082 | Z191: 2.008236624 | AA191: 1.718071752 | AB191: 1.396996081 | AC191: 1.097159454 | AD191: 0.7578926453 | AE191: 0.3838444034
B192: Simulation 158 | C192: 1.564353489 | D192: 1.243431692 | E192: 5.571584898 | F192: 7.65820386 | G192: 12.84032601 | H192: 11.11492387 | I192: 11.04383057 | J192: 8.91060025 | K192: 10.29482066 | L192: 11.58243663 | M192: 10.53753979 | N192: 10.026026 | O192: 10.21447356 | P192: 10.35604156 | Q192: 9.964639382 | R192: 9.856941515 | S192: 9.223624018 | T192: 8.884705224 | U192: 8.362905066 | V192: 7.793114395 | W192: 7.10179779 | X192: 6.419948486 | Y192: 5.703001569 | Z192: 4.958036704 | AA192: 4.166318661 | AB192: 3.330367185 | AC192: 2.560707576 | AD192: 1.733237421 | AE192: 0.8615330114
B193: Simulation 159 | C193: 1.564353489 | D193: 4.069192684 | E193: 3.6477333 | F193: 5.043169753 | G193: 4.886538157 | H193: 7.469387044 | I193: 12.07126762 | J193: 11.12956941 | K193: 11.40544669 | L193: 11.44750535 | M193: 12.48075065 | N193: 10.96193245 | O193: 9.528056562 | P193: 8.661129535 | Q193: 7.984755458 | R193: 7.859803842 | S193: 7.39167054 | T193: 6.874303822 | U193: 6.386383192 | V193: 5.819691677 | W193: 5.233639298 | X193: 4.664538652 | Y193: 4.095717497 | Z193: 3.521414917 | AA193: 2.923045585 | AB193: 2.311229755 | AC193: 1.763035308 | AD193: 1.184003622 | AE193: 0.5833656708
B194: Simulation 160 | C194: 1.564353489 | D194: 2.46301775 | E194: 5.674364575 | F194: 5.784018803 | G194: 8.220534609 | H194: 10.39682012 | I194: 11.42076934 | J194: 11.71183765 | K194: 10.28560864 | L194: 9.757626232 | M194: 9.632616463 | N194: 9.056145215 | O194: 8.808299428 | P194: 8.759090232 | Q194: 8.887566535 | R194: 8.259690568 | S194: 7.799483899 | T194: 7.435995293 | U194: 7.010943158 | V194: 6.466374781 | W194: 5.85490152 | X194: 5.223268039 | Y194: 4.611976841 | Z194: 3.974887663 | AA194: 3.31153238 | AB194: 2.621689404 | AC194: 2.000685027 | AD194: 1.344164986 | AE194: 0.6623187181
B195: Simulation 161 | C195: 1.564353489 | D195: -0.193332472 | E195: 1.220631062 | F195: -2.00191536 | G195: -1.154202145 | H195: 0.9596711434 | I195: -1.210323604 | J195: -0.4866733667 | K195: 1.735253596 | L195: 1.887015774 | M195: 3.309163951 | N195: 3.6954318 | O195: 3.592499759 | P195: 4.526310797 | Q195: 5.016875014 | R195: 4.775190501 | S195: 4.50526049 | T195: 4.312063973 | U195: 4.184225078 | V195: 3.986217519 | W195: 3.720092448 | X195: 3.424500354 | Y195: 3.11178098 | Z195: 2.762454976 | AA195: 2.371303498 | AB195: 1.935954274 | AC195: 1.521607304 | AD195: 1.054833136 | AE195: 0.5369941867
B196: Simulation 162 | C196: 1.564353489 | D196: 1.162684574 | E196: -0.2437199206 | F196: -2.276034742 | G196: -3.004261013 | H196: -0.3419143689 | I196: 1.525008002 | J196: 1.183406729 | K196: 1.341940865 | L196: 1.595912697 | M196: 0.4901346986 | N196: 0.8235416614 | O196: 1.282678904 | P196: 1.21094979 | Q196: 1.662403152 | R196: 2.056835048 | S196: 1.61319586 | T196: 1.544256421 | U196: 1.457320822 | V196: 1.466239481 | W196: 1.398374683 | X196: 1.290629034 | Y196: 1.185267076 | Z196: 1.059933047 | AA196: 0.9174112055 | AB196: 0.7542431315 | AC196: 0.6035272253 | AD196: 0.4251152041 | AE196: 0.2185975497
B197: Simulation 163 | C197: 1.564353489 | D197: -2.539002384 | E197: -2.198954872 | F197: -1.056078464 | G197: 3.402086069 | H197: 0.6927916388 | I197: -2.095977454 | J197: -5.350931882 | K197: -6.827147407 | L197: -6.841464448 | M197: -6.245245932 | N197: -8.322305283 | O197: -9.507897905 | P197: -8.694446798 | Q197: -7.644032595 | R197: -7.382743987 | S197: -6.548688074 | T197: -6.115664175 | U197: -5.613539601 | V197: -5.076069701 | W197: -4.481417367 | X197: -3.945901348 | Y197: -3.395958299 | Z197: -2.864433841 | AA197: -2.343321974 | AB197: -1.822448739 | AC197: -1.348718728 | AD197: -0.878711716 | AE197: -0.421888275
B198: Simulation 164 | C198: 1.564353489 | D198: 1.305405435 | E198: 0.5152895167 | F198: 2.46968094 | G198: 1.825889748 | H198: 5.61445343 | I198: 2.961040748 | J198: 4.079536041 | K198: 2.6006063 | L198: 2.546898511 | M198: 0.6366484523 | N198: 0.1204034896 | O198: -1.174505255 | P198: -2.108913739 | Q198: -2.894217175 | R198: -2.762901023 | S198: -2.637446982 | T198: -2.468372778 | U198: -2.263334373 | V198: -2.184411739 | W198: -2.064700491 | X198: -1.851129681 | Y198: -1.653315016 | Z198: -1.448054023 | AA198: -1.228948295 | AB198: -0.9906835039 | AC198: -0.7526417937 | AD198: -0.504582428 | AE198: -0.2500671039
B199: Simulation 165 | C199: 1.564353489 | D199: 2.63819649 | E199: -1.194678232 | F199: 4.497369423 | G199: 5.161675609 | H199: 2.610344982 | I199: 5.545792673 | J199: 5.857488473 | K199: 4.508908714 | L199: 6.170220174 | M199: 5.482964598 | N199: 6.026516368 | O199: 5.184476492 | P199: 5.278553243 | Q199: 4.968137768 | R199: 4.497269293 | S199: 4.447617431 | T199: 4.286444122 | U199: 3.940989951 | V199: 3.523206775 | W199: 3.130866813 | X199: 2.736268585 | Y199: 2.351755144 | Z199: 1.978967106 | AA199: 1.596232931 | AB199: 1.221692759 | AC199: 0.9079041144 | AD199: 0.591924295 | AE199: 0.2811020296
B200: Simulation 166 | C200: 1.564353489 | D200: 0.1198738887 | E200: -1.713078208 | F200: -4.441436751 | G200: -5.369383832 | H200: -4.605298314 | I200: -3.010757289 | J200: -2.430829346 | K200: -4.256514335 | L200: -5.218161152 | M200: -5.688916138 | N200: -4.445589809 | O200: -3.745387861 | P200: -4.113222853 | Q200: -4.112202301 | R200: -3.28624215 | S200: -3.054249863 | T200: -2.627135976 | U200: -2.404603231 | V200: -2.120671328 | W200: -1.803409061 | X200: -1.541406216 | Y200: -1.299637707 | Z200: -1.072854365 | AA200: -0.8600151383 | AB200: -0.6506087023 | AC200: -0.4660520028 | AD200: -0.2921978931 | AE200: -0.135490825
B201: Simulation 167 | C201: 1.564353489 | D201: 6.484118724 | E201: 0.2206445384 | F201: 1.591380337 | G201: 1.929137729 | H201: 3.268808095 | I201: 2.686569498 | J201: 1.886085918 | K201: 4.454943107 | L201: 5.733825518 | M201: 5.95173472 | N201: 6.015057919 | O201: 5.660698236 | P201: 4.745536991 | Q201: 5.525692364 | R201: 5.350849342 | S201: 4.541006423 | T201: 4.250091616 | U201: 3.896327738 | V201: 3.653863529 | W201: 3.277469262 | X201: 2.988557082 | Y201: 2.654006725 | Z201: 2.307930711 | AA201: 1.935132396 | AB201: 1.544342181 | AC201: 1.191600862 | AD201: 0.8103587142 | AE201: 0.404185117
B202: Simulation 168 | C202: 1.564353489 | D202: -0.06918735111 | E202: 5.386742507 | F202: 10.62474858 | G202: 10.26804919 | H202: 11.40815105 | I202: 14.02566771 | J202: 15.08523097 | K202: 16.33976785 | L202: 16.7934163 | M202: 15.56236689 | N202: 14.84871414 | O202: 13.81219866 | P202: 13.19964479 | Q202: 12.87055339 | R202: 12.49466677 | S202: 12.214931 | T202: 11.59844009 | U202: 10.87992686 | V202: 10.06970687 | W202: 9.285047695 | X202: 8.41269264 | Y202: 7.506175426 | Z202: 6.554691254 | AA202: 5.547595659 | AB202: 4.465236292 | AC202: 3.454956951 | AD202: 2.356693012 | AE202: 1.181935905
B203: Simulation 169 | C203: 1.564353489 | D203: -1.224569208 | E203: -0.08841131264 | F203: 3.804153166 | G203: 8.344083813 | H203: 9.260761456 | I203: 12.46741788 | J203: 10.3917775 | K203: 12.13112285 | L203: 13.07197189 | M203: 13.71941763 | N203: 13.04924677 | O203: 13.70501147 | P203: 13.09190123 | Q203: 12.28112244 | R203: 11.59595446 | S203: 10.59217145 | T203: 9.745104435 | U203: 9.031002986 | V203: 8.282622683 | W203: 7.464343031 | X203: 6.649290542 | Y203: 5.841150002 | Z203: 5.015799873 | AA203: 4.168905328 | AB203: 3.292436793 | AC203: 2.503364552 | AD203: 1.675049025 | AE203: 0.8231620952
B204: Simulation 170 | C204: 1.564353489 | D204: 3.028374635 | E204: 1.682445689 | F204: 0.4836511836 | G204: 1.907574285 | H204: 3.329020183 | I204: 8.91674082 | J204: 10.82345819 | K204: 9.506289929 | L204: 7.95052254 | M204: 7.047056967 | N204: 6.337296471 | O204: 6.418727916 | P204: 6.437745808 | Q204: 6.080617714 | R204: 5.657314779 | S204: 5.095439388 | T204: 4.73988198 | U204: 4.335792103 | V204: 3.941689014 | W204: 3.577064635 | X204: 3.207542192 | Y204: 2.840696987 | Z204: 2.462781841 | AA204: 2.068724496 | AB204: 1.653004737 | AC204: 1.276306181 | AD204: 0.8685191045 | AE204: 0.4343998095
B205: Simulation 171 | C205: 1.564353489 | D205: -2.704768416 | E205: -2.119832702 | F205: -2.433172462 | G205: -6.559908758 | H205: -5.135604532 | I205: -2.699847942 | J205: -2.07860659 | K205: -4.174947941 | L205: -3.2090852 | M205: -2.765821986 | N205: -3.11337769 | O205: -3.259249107 | P205: -3.298844504 | Q205: -3.157490719 | R205: -2.373501941 | S205: -2.319685111 | T205: -2.044118466 | U205: -1.689642273 | V205: -1.400785236 | W205: -1.112906861 | X205: -0.8996623685 | Y205: -0.6968001168 | Z205: -0.5295813825 | AA205: -0.3844088164 | AB205: -0.2597025261 | AC205: -0.1542948577 | AD205: -0.0732494722 | AE205: -0.02225890531
B206: Simulation 172 | C206: 1.564353489 | D206: 1.110503257 | E206: 0.04136840095 | F206: 1.820113052 | G206: 2.471397971 | H206: 0.3882775479 | I206: -1.327786456 | J206: -0.8957162138 | K206: -1.454203406 | L206: -2.003728435 | M206: -2.322476093 | N206: -0.8580800588 | O206: -0.6505484415 | P206: -0.7622910185 | Q206: -1.61285801 | R206: -1.40946284 | S206: -1.9352576 | T206: -1.876615985 | U206: -1.724412447 | V206: -1.637774204 | W206: -1.494696949 | X206: -1.360169894 | Y206: -1.21406277 | Z206: -1.065398424 | AA206: -0.9076233175 | AB206: -0.7350503068 | AC206: -0.5596621116 | AD206: -0.3762940281 | AE206: -0.1874082688
B207: Simulation 173 | C207: 1.564353489 | D207: -6.620373824 | E207: -8.282896487 | F207: -8.874259563 | G207: -5.511282466 | H207: -3.628787648 | I207: -3.939630255 | J207: -6.887439922 | K207: -7.775396447 | L207: -6.316567252 | M207: -6.160975059 | N207: -6.856387207 | O207: -6.838619434 | P207: -6.527674213 | Q207: -6.629604272 | R207: -6.654385194 | S207: -6.474604079 | T207: -6.375057702 | U207: -6.06651647 | V207: -5.581777994 | W207: -5.104536352 | X207: -4.582556845 | Y207: -4.027759903 | Z207: -3.461945004 | AA207: -2.892273978 | AB207: -2.29489805 | AC207: -1.733121254 | AD207: -1.153195788 | AE207: -0.5656170296
B208: Simulation 174 | C208: 1.564353489 | D208: 3.358609961 | E208: 1.615274334 | F208: 3.517334731 | G208: 2.764649187 | H208: 3.383866738 | I208: 4.405100381 | J208: 4.36986445 | K208: 1.980931026 | L208: 1.784849069 | M208: 1.460783382 | N208: 1.24599889 | O208: 0.9594319018 | P208: 1.164489602 | Q208: 0.7973316046 | R208: 1.022549179 | S208: 0.8816495927 | T208: 0.9667552967 | U208: 1.01618957 | V208: 1.082562788 | W208: 0.9669836868 | X208: 0.9180770798 | Y208: 0.8711206529 | Z208: 0.8093107536 | AA208: 0.7178794839 | AB208: 0.6069290444 | AC208: 0.4993438527 | AD208: 0.3603189329 | AE208: 0.1893915368
B209: Simulation 175 | C209: 1.564353489 | D209: 2.795736164 | E209: -1.539109305 | F209: -1.715320517 | G209: -4.117334997 | H209: -6.310850681 | I209: -5.958261163 | J209: -5.629331184 | K209: -5.061985182 | L209: -6.030694183 | M209: -7.032082438 | N209: -6.80144616 | O209: -5.818580081 | P209: -5.586198618 | Q209: -5.855543073 | R209: -5.335846802 | S209: -4.614406921 | T209: -4.080922985 | U209: -3.680232131 | V209: -3.225493071 | W209: -2.740725458 | X209: -2.370502633 | Y209: -1.977362633 | Z209: -1.606133755 | AA209: -1.264102468 | AB209: -0.9387950544 | AC209: -0.6591687109 | AD209: -0.4035567222 | AE209: -0.1804136213
B210: Simulation 176 | C210: 1.564353489 | D210: -1.534913448 | E210: -6.467988056 | F210: 1.06302173 | G210: 1.15321607 | H210: 3.203432699 | I210: 6.567726858 | J210: 5.748148352 | K210: 4.595396766 | L210: 4.397676701 | M210: 4.024208577 | N210: 2.92272664 | O210: 2.305844081 | P210: 1.812245909 | Q210: 2.360199667 | R210: 1.553844109 | S210: 1.001993969 | T210: 0.7948879519 | U210: 0.695993344 | V210: 0.5202957756 | W210: 0.386470082 | X210: 0.2822950096 | Y210: 0.2133430843 | Z210: 0.1568688153 | AA210: 0.1113061003 | AB210: 0.07710820224 | AC210: 0.05987373391 | AD210: 0.04024334237 | AE210: 0.01909925751
B211: Simulation 177 | C211: 1.564353489 | D211: 2.296290749 | E211: 7.843512592 | F211: 8.326071474 | G211: 7.994942898 | H211: 8.547917547 | I211: 8.175317777 | J211: 11.22806084 | K211: 12.90777476 | L211: 14.24774838 | M211: 13.7680728 | N211: 13.83835039 | O211: 13.88646372 | P211: 14.16072562 | Q211: 13.50093689 | R211: 13.23558743 | S211: 12.42856646 | T211: 11.87471758 | U211: 11.16295411 | V211: 10.38498591 | W211: 9.533700368 | X211: 8.604375932 | Y211: 7.643333675 | Z211: 6.63282436 | AA211: 5.574448458 | AB211: 4.452517327 | AC211: 3.420199589 | AD211: 2.313609303 | AE211: 1.149060717
B212: Simulation 178 | C212: 1.564353489 | D212: 1.754517567 | E212: 5.800030202 | F212: 3.641930771 | G212: 6.156457127 | H212: 5.889225558 | I212: 6.624570846 | J212: 8.520644465 | K212: 10.52643843 | L212: 12.13751145 | M212: 12.75552425 | N212: 12.82113229 | O212: 12.84766634 | P212: 12.26230672 | Q212: 11.8488392 | R212: 11.34685202 | S212: 11.22732086 | T212: 10.56034078 | U212: 10.0110044 | V212: 9.249177424 | W212: 8.492115804 | X212: 7.676860444 | Y212: 6.83201932 | Z212: 5.951261821 | AA212: 5.021250469 | AB212: 4.026168355 | AC212: 3.104191822 | AD212: 2.109034329 | AE212: 1.053383345
B213: Simulation 179 | C213: 1.564353489 | D213: 0.2717038376 | E213: 0.7609924602 | F213: 0.3556790585 | G213: 1.330599822 | H213: 1.633980119 | I213: 0.3604086283 | J213: 3.34432148 | K213: 2.93774151 | L213: 1.798527793 | M213: 1.338030691 | N213: 1.328097208 | O213: 1.428208946 | P213: 0.5840976536 | Q213: 0.7460786061 | R213: 1.215645475 | S213: 1.305397483 | T213: 1.37682296 | U213: 1.310996696 | V213: 1.266812823 | W213: 1.268600303 | X213: 1.183491714 | Y213: 1.09953776 | Z213: 0.9951343853 | AA213: 0.8662257525 | AB213: 0.7169550606 | AC213: 0.5734953233 | AD213: 0.4036780555 | AE213: 0.2072826181
B214: Simulation 180 | C214: 1.564353489 | D214: 2.552853873 | E214: 3.336340319 | F214: 4.847964235 | G214: 5.936972735 | H214: 5.90612012 | I214: 4.941318065 | J214: 6.000473238 | K214: 3.677779989 | L214: 5.600490686 | M214: 4.235316909 | N214: 2.446951082 | O214: 3.972205297 | P214: 3.108906912 | Q214: 2.357966588 | R214: 1.964504615 | S214: 1.786391685 | T214: 1.630692495 | U214: 1.430634093 | V214: 1.251262659 | W214: 1.177164315 | X214: 1.061307219 | Y214: 0.9491084863 | Z214: 0.8313132703 | AA214: 0.700950065 | AB214: 0.565175241 | AC214: 0.4465961548 | AD214: 0.3114982935 | AE214: 0.1587990985
... 1862 more rows

Sheet Spreadsheet10.4
B9: Parameters
C10: Trade 1 | D10: Trade 2 | E10: Trade 3
B11: Mean | C11: 6 | D11: -10 | E11: 0
B12: Std Dev | C12: 10 | D12: 30 | E12: 0
B13: Correlation | C13: 0
B15: Stand-alone calculations
C16: Trade 1 | D16: Trade 2 | E16: Trade 3
B17: EE | C17: =C11*NORMSDIST(C11/C12)+C12*NORMDIST(C11/C12,0,1,FALSE) -> 7.686727322 | D17: =D11*NORMSDIST(D11/D12)+D12*NORMDIST(D11/D12,0,1,FALSE) -> 7.627083429 | E17: =E11*NORMSDIST(E11/E12)+E12*NORMDIST(E11/E12,0,1,FALSE) -> 
B18: EE1 + EE2 | C18: =C17+D17 -> 15.31381075
B20: Portfolio
B21: Mean | C21: =C11+D11+E11 -> -4
B22: Std Dev | C22: =SQRT(C12^2+D12^2+E12^2+2*Correlation*(C12*D12+C12*E12+D12*E12)) -> 31.6227766
B23: EE (total) | C23: =C21*NORMSDIST(C21/C22)+C22*NORMDIST(C21/C22,0,1,FALSE) -> 10.71645356
B25: EE Allocation
C26: Trade 1 | D26: Trade 2 | E26: Trade 3
B27: Correlation | C27: =C12/C22+Correlation*D12/C22 -> 0.316227766 | D27: =D12/C22+Correlation*C12/C22 -> 0.9486832981 | E27: =E12/C22+Correlation*D12/C22 -> 0
B28: Marginal EE | C28: =C11*NORMSDIST(C21/C22)+C12*C27*NORMDIST(C21/C22,0,1,FALSE) -> 3.949543559 | D28: =D11*NORMSDIST(C21/C22)+D12*D27*NORMDIST(C21/C22,0,1,FALSE) -> 6.76691 | E28: =E11*NORMSDIST(C21/C22)+E12*E27*NORMDIST(C21/C22,0,1,FALSE) -> 0
B29: Total EE | C29: =C28+D28+E28 -> 10.71645356
B30: Percentage | C30: =C28/TotalMargEPE -> 0.3685494961 | D30: =D28/TotalMargEPE -> 0.6314505039 | E30: =E28/TotalMargEPE -> 0
C34: Trade 1 | D34: Trade 2
B35: -100 | C35: =NORMDIST(B35,$C$11,$C$12,FALSE) -> 1.593111133e-26 | D35: =NORMDIST(B35,$D$11,$D$12,FALSE) -> 0.0001477282804
B36: =B35+5 -> -95 | C36: 2.816566544e-24 | D36: 0.0002402033255
B37: =B36+5 -> -90 | C37: 3.878111932e-22 | D37: 0.0003798662008
B38: -85 | C38: 4.158598979e-20 | D38: 0.0005842766831
B39: -80 | C39: 3.472962749e-18 | D39: 0.0008740629698
B40: -75 | C40: 2.258809403e-16 | D40: 0.001271754117
B41: -70 | C41: 1.14415649e-14 | D41: 0.001799698884
B42: -65 | C42: 4.513543677e-13 | D42: 0.002477038785 | F42: 0 | G42: =C28 -> 3.949543559 | H42: =D28 -> 6.76691 | I42: =C17 -> 7.686727322 | J42: =D17 -> 7.627083429
B43: -60 | C43: 1.386679994e-11 | D43: 0.003315904626 | F43: =MAX(C35:D95) -> 0.03969525475 | G43: =G42 -> 3.949543559 | H43: =H42 -> 6.76691 | I43: =I42 -> 7.686727322 | J43: =J42 -> 7.627083429
B44: -55 | C44: 3.317884244e-10 | D44: 0.004317253189
B45: -50 | C45: 6.1826205e-09 | D45: 0.005467002489
B46: -45 | C46: 8.972435162e-08 | D46: 0.006733289518
B47: -40 | C47: 1.014085207e-06 | D47: 0.008065690817
B48: -35 | C48: 8.926165718e-06 | D48: 0.009397062514
B49: -30 | C49: 6.119019301e-05 | D49: 0.01064826685
B50: -25 | C50: 0.0003266819056 | D50: 0.01173551089
B51: -20 | C51: 0.001358296923 | D51: 0.01257944092
B52: -15 | C52: 0.004398359598 | D52: 0.0131146572
B53: -10 | C53: 0.01109208347 | D53: 0.01329807601
B54: -5 | C54: 0.0217852177 | D54: 0.0131146572
B55: 0 | C55: 0.03332246029 | D55: 0.01257944092
B56: 5 | C56: 0.03969525475 | D56: 0.01173551089
B57: 10 | C57: 0.03682701403 | D57: 0.01064826685
B58: 15 | C58: 0.02660852499 | D58: 0.009397062514
B59: 20 | C59: 0.01497274656 | D59: 0.008065690817
B60: 25 | C60: 0.006561581477 | D60: 0.006733289518
B61: 30 | C61: 0.002239453029 | D61: 0.005467002489
B62: 35 | C62: 0.000595253242 | D62: 0.004317253189
B63: 40 | C63: 0.0001232219168 | D63: 0.003315904626
B64: 45 | C64: 1.986554714e-05 | D64: 0.002477038785
B65: 50 | C65: 2.494247129e-06 | D65: 0.001799698884
B66: 55 | C66: 2.438960746e-07 | D66: 0.001271754117
B67: 60 | C67: =NORMDIST(B67,$C$11,$C$12,FALSE) -> 1.857361845e-08 | D67: =NORMDIST(B67,$D$11,$D$12,FALSE) -> 0.0008740629698
B68: 65 | C68: 1.101576362e-09 | D68: 0.0005842766831
B69: 70 | C69: 5.088140282e-11 | D69: 0.0003798662008
B70: 75 | C70: 1.830332217e-12 | D70: 0.0002402033255
B71: 80 | C71: 5.127753637e-14 | D71: 0.0001477282804
B72: 85 | C72: 1.118795621e-15 | D72: 8.836586515e-05
B73: 90 | C73: 1.901081538e-17 | D73: 5.140929988e-05
B74: 95 | C74: 2.515805777e-19 | D74: 2.908942317e-05
B75: 100 | C75: 2.592864701e-21 | D75: 1.600902172e-05
B76: 105 | C76: 2.08117682e-23 | D76: 8.569011835e-06
B77: 110 | C77: 1.30096162e-25 | D77: 4.461007525e-06
B78: 115 | C78: 6.333537822e-28 | D78: 2.258766996e-06
B79: 120 | C79: 2.4013454e-30 | D79: 1.11236208e-06
B80: 125 | C80: 7.090702668e-33 | D80: 5.327913702e-07
B81: 130 | C81: 1.630610735e-35 | D81: 2.48201529e-07
B82: 135 | C82: 2.920368794e-38 | D82: 1.124573869e-07
B83: 140 | C83: 4.073347678e-41 | D83: 4.955731716e-08
B84: 145 | C84: 4.424779583e-44 | D84: 2.124045674e-08
B85: 150 | C85: 3.74333058e-47 | D85: 8.854339695e-09
B86: 155 | C86: 2.466329526e-50 | D86: 3.589920014e-09
B87: 160 | C87: 1.265524047e-53 | D87: 1.415629582e-09
B88: 165 | C88: 5.057269304e-57 | D88: 5.429386403e-10
B89: 170 | C89: 1.57393988e-60 | D89: 2.025294283e-10
B90: 175 | C90: 3.814930036e-64 | D90: 7.347875466e-11
B91: 180 | C91: 7.201308153e-68 | D91: 2.592816023e-11
B92: 185 | C92: 1.058674841e-71 | D92: 8.898522049e-12
B93: 190 | C93: 1.212104795e-75 | D93: 2.970300062e-12
B94: 195 | C94: 1.080796987e-79 | D94: 9.643152441e-13
B95: 200 | C95: 7.505410686e-84 | D95: 3.044906803e-13

Sheet Spreadsheet10.5
B9: Trade Details
B10: New trade | C10: Payer IRS 7Y (base case)
B11: Trade 1 | C11: Payer IRS 5Y | E11: FALSE
B12: Trade 2 | C12: Payer swaption 5x5Y | E12: FALSE
B13: Trade 3 | C13: xCCY USDJPY | E13: TRUE
B14: Trade 4 | C14: Receiver IRS 5Y | E14: FALSE
B17: EE | C17: 0 | D17: 0.25 | E17: 0.5 | F17: 0.75 | G17: 1 | H17: 1.25 | I17: 1.5 | J17: 1.75 | K17: 2 | L17: 2.25 | M17: 2.5 | N17: 2.75 | O17: 3 | P17: 3.25 | Q17: 3.5 | R17: 3.75 | S17: 4 | T17: 4.25 | U17: 4.5 | V17: 4.75 | W17: 5 | X17: 5.25 | Y17: 5.5 | Z17: 5.75 | AA17: 6 | AB17: 6.25 | AC17: 6.5 | AD17: 6.75 | AE17: 7
B18: EE Payer IRS 7Y (stand-alone) | C18: =SUMIF(Spreadsheet10.3!C35:C1034,">0")/1000 -> 1.564353489 | D18: =SUMIF(Spreadsheet10.3!D35:D1034,">0")/1000 -> 2.150158548 | E18: =SUMIF(Spreadsheet10.3!E35:E1034,">0")/1000 -> 2.563165157 | F18: =SUMIF(Spreadsheet10.3!F35:F1034,">0")/1000 -> 2.918397243 | G18: =SUMIF(Spreadsheet10.3!G35:G1034,">0")/1000 -> 3.233823884 | H18: =SUMIF(Spreadsheet10.3!H35:H1034,">0")/1000 -> 3.560178533 | I18: =SUMIF(Spreadsheet10.3!I35:I1034,">0")/1000 -> 3.692088876 | J18: =SUMIF(Spreadsheet10.3!J35:J1034,">0")/1000 -> 3.812409597 | K18: =SUMIF(Spreadsheet10.3!K35:K1034,">0")/1000 -> 3.836485044 | L18: =SUMIF(Spreadsheet10.3!L35:L1034,">0")/1000 -> 3.858475321 | M18: =SUMIF(Spreadsheet10.3!M35:M1034,">0")/1000 -> 3.85884392 | N18: =SUMIF(Spreadsheet10.3!N35:N1034,">0")/1000 -> 3.822222332 | O18: =SUMIF(Spreadsheet10.3!O35:O1034,">0")/1000 -> 3.732658571 | P18: =SUMIF(Spreadsheet10.3!P35:P1034,">0")/1000 -> 3.619023212 | Q18: =SUMIF(Spreadsheet10.3!Q35:Q1034,">0")/1000 -> 3.503886576 | R18: =SUMIF(Spreadsheet10.3!R35:R1034,">0")/1000 -> 3.348645673 | S18: =SUMIF(Spreadsheet10.3!S35:S1034,">0")/1000 -> 3.163986281 | T18: =SUMIF(Spreadsheet10.3!T35:T1034,">0")/1000 -> 2.976800673 | U18: =SUMIF(Spreadsheet10.3!U35:U1034,">0")/1000 -> 2.792441545 | V18: =SUMIF(Spreadsheet10.3!V35:V1034,">0")/1000 -> 2.588115343 | W18: =SUMIF(Spreadsheet10.3!W35:W1034,">0")/1000 -> 2.36511411 | X18: =SUMIF(Spreadsheet10.3!X35:X1034,">0")/1000 -> 2.131324451 | Y18: =SUMIF(Spreadsheet10.3!Y35:Y1034,">0")/1000 -> 1.893443993 | Z18: =SUMIF(Spreadsheet10.3!Z35:Z1034,">0")/1000 -> 1.645149966 | AA18: =SUMIF(Spreadsheet10.3!AA35:AA1034,">0")/1000 -> 1.382008433 | AB18: =SUMIF(Spreadsheet10.3!AB35:AB1034,">0")/1000 -> 1.104343602 | AC18: =SUMIF(Spreadsheet10.3!AC35:AC1034,">0")/1000 -> 0.8528658333 | AD18: =SUMIF(Spreadsheet10.3!AD35:AD1034,">0")/1000 -> 0.5802266676 | AE18: =SUMIF(Spreadsheet10.3!AE35:AE1034,">0")/1000 -> 0.289456574
B19: Netting Set | C19: =SUMIF(C30:C1029,">0")/1000 -> 0 | D19: 1.179612081 | E19: 1.671219023 | F19: 2.070185209 | G19: 2.411538383 | H19: 2.675944651 | I19: 2.822002378 | J19: 3.013090091 | K19: 3.1699899 | L19: 3.382742655 | M19: 3.480305438 | N19: 3.617819917 | O19: 3.715202561 | P19: 3.816022965 | Q19: 3.956298394 | R19: 3.967571502 | S19: 4.079140395 | T19: 4.175137367 | U19: 4.217061991 | V19: 4.393287242 | W19: 4.455962207 | X19: 0 | Y19: 0 | Z19: 0 | AA19: 0 | AB19: 0 | AC19: 0 | AD19: 0 | AE19: 0
B20: Netting Set + New Trade | C20: =SUMIF(C1032:C2031,">0")/1000 -> 0.03368414006 | D20: 2.607279468 | E20: 3.306444192 | F20: 3.855896845 | G20: 4.364129215 | H20: 4.806706801 | I20: 4.921532558 | J20: 5.244590007 | K20: 5.30047814 | L20: 5.467512736 | M20: 5.531742201 | N20: 5.587373795 | O20: 5.56797823 | P20: 5.594786802 | Q20: 5.514948927 | R20: 5.416621907 | S20: 5.530100278 | T20: 5.474691847 | U20: 5.425637286 | V20: 5.511604277 | W20: 5.472236488 | X20: 2.131324451 | Y20: 1.893443993 | Z20: 1.645149966 | AA20: 1.382008433 | AB20: 1.104343602 | AC20: 0.8528658333 | AD20: 0.5802266676 | AE20: 0.289456574
B21: EE Payer IRS 7Y (incremental) | C21: =C20-C19 -> 0.03368414006 | D21: 1.427667387 | E21: 1.635225169 | F21: 1.785711635 | G21: 1.952590832 | H21: 2.130762151 | I21: 2.09953018 | J21: 2.231499916 | K21: 2.13048824 | L21: 2.084770081 | M21: 2.051436763 | N21: 1.969553879 | O21: 1.852775668 | P21: 1.778763837 | Q21: 1.558650533 | R21: 1.449050405 | S21: 1.450959883 | T21: 1.299554479 | U21: 1.208575295 | V21: 1.118317035 | W21: 1.016274282 | X21: 2.131324451 | Y21: 1.893443993 | Z21: 1.645149966 | AA21: 1.382008433 | AB21: 1.104343602 | AC21: 0.8528658333 | AD21: 0.5802266676 | AE21: 0.289456574
B23: NEE
B24: NEE Payer IRS 7Y (stand-alone) | C24: =SUMIF(Spreadsheet10.3!C35:C1034,"<0")/1000 -> 0 | D24: =SUMIF(Spreadsheet10.3!D35:D1034,"<0")/1000 -> -0.5946721542 | E24: =SUMIF(Spreadsheet10.3!E35:E1034,"<0")/1000 -> -0.9145576894 | F24: =SUMIF(Spreadsheet10.3!F35:F1034,"<0")/1000 -> -1.112594339 | G24: =SUMIF(Spreadsheet10.3!G35:G1034,"<0")/1000 -> -1.224183644 | H24: =SUMIF(Spreadsheet10.3!H35:H1034,"<0")/1000 -> -1.274172291 | I24: =SUMIF(Spreadsheet10.3!I35:I1034,"<0")/1000 -> -1.337726723 | J24: =SUMIF(Spreadsheet10.3!J35:J1034,"<0")/1000 -> -1.354989505 | K24: =SUMIF(Spreadsheet10.3!K35:K1034,"<0")/1000 -> -1.387649147 | L24: =SUMIF(Spreadsheet10.3!L35:L1034,"<0")/1000 -> -1.343810235 | M24: =SUMIF(Spreadsheet10.3!M35:M1034,"<0")/1000 -> -1.340585294 | N24: =SUMIF(Spreadsheet10.3!N35:N1034,"<0")/1000 -> -1.298004536 | O24: =SUMIF(Spreadsheet10.3!O35:O1034,"<0")/1000 -> -1.282644308 | P24: =SUMIF(Spreadsheet10.3!P35:P1034,"<0")/1000 -> -1.230394686 | Q24: =SUMIF(Spreadsheet10.3!Q35:Q1034,"<0")/1000 -> -1.164146014 | R24: =SUMIF(Spreadsheet10.3!R35:R1034,"<0")/1000 -> -1.105420741 | S24: =SUMIF(Spreadsheet10.3!S35:S1034,"<0")/1000 -> -1.046119847 | T24: =SUMIF(Spreadsheet10.3!T35:T1034,"<0")/1000 -> -0.9748856588 | U24: =SUMIF(Spreadsheet10.3!U35:U1034,"<0")/1000 -> -0.8932940921 | V24: =SUMIF(Spreadsheet10.3!V35:V1034,"<0")/1000 -> -0.8094803077 | W24: =SUMIF(Spreadsheet10.3!W35:W1034,"<0")/1000 -> -0.7257670951 | X24: =SUMIF(Spreadsheet10.3!X35:X1034,"<0")/1000 -> -0.6414063574 | Y24: =SUMIF(Spreadsheet10.3!Y35:Y1034,"<0")/1000 -> -0.5564545116 | Z24: =SUMIF(Spreadsheet10.3!Z35:Z1034,"<0")/1000 -> -0.4731794685 | AA24: =SUMIF(Spreadsheet10.3!AA35:AA1034,"<0")/1000 -> -0.3914541724 | AB24: =SUMIF(Spreadsheet10.3!AB35:AB1034,"<0")/1000 -> -0.3078333732 | AC24: =SUMIF(Spreadsheet10.3!AC35:AC1034,"<0")/1000 -> -0.2296562348 | AD24: =SUMIF(Spreadsheet10.3!AD35:AD1034,"<0")/1000 -> -0.1510827623 | AE24: =SUMIF(Spreadsheet10.3!AE35:AE1034,"<0")/1000 -> -0.07348847517
B25: Netting Set | C25: =SUMIF(C30:C1029,"<0")/1000 -> -1.530669349 | D25: =SUMIF(D30:D1029,"<0")/1000 -> -1.16159912 | E25: -1.603432073 | F25: -1.967459325 | G25: -2.179743445 | H25: -2.528043624 | I25: -2.85621094 | J25: -3.04981655 | K25: -3.39828988 | L25: -3.715046825 | M25: -3.995640999 | N25: -4.271892025 | O25: -4.602922302 | P25: -4.717269385 | Q25: -5.268677482 | R25: -5.723767942 | S25: -5.914632866 | T25: -6.210813473 | U25: -6.566670067 | V25: -6.801346277 | W25: -7.075026405 | X25: 0 | Y25: 0 | Z25: 0 | AA25: 0 | AB25: 0 | AC25: 0 | AD25: 0 | AE25: 0
B26: Netting Set + New Trade | C26: =SUMIF(C1032:C2031,"<0")/1000 -> 0 | D26: =SUMIF(D1032:D2031,"<0")/1000 -> -1.033780114 | E26: -1.590049774 | F26: -1.947368056 | G26: -2.122694037 | H26: -2.372799532 | I26: -2.601378967 | J26: -2.823896375 | K26: -3.079942222 | L26: -3.28515182 | M26: -3.528819136 | N26: -3.717228107 | O26: -4.005683707 | P26: -4.107404696 | Q26: -4.487587453 | R26: -4.929593415 | S26: -5.247726315 | T26: -5.508452938 | U26: -5.876097909 | V26: -6.141028277 | W26: -6.451953672 | X26: -0.6414063574 | Y26: -0.5564545116 | Z26: -0.4731794685 | AA26: -0.3914541724 | AB26: -0.3078333732 | AC26: -0.2296562348 | AD26: -0.1510827623 | AE26: -0.07348847517
B27: NEE Payer IRS 7Y (incremental) | C27: =C26-C25 -> 1.530669349 | D27: =D26-D25 -> 0.1278190063 | E27: 0.01338229886 | F27: 0.02009126882 | G27: 0.05704940773 | H27: 0.1552440915 | I27: 0.2548319726 | J27: 0.2259201758 | K27: 0.3183476578 | L27: 0.4298950048 | M27: 0.4668218625 | N27: 0.5546639177 | O27: 0.5972385947 | P27: 0.6098646893 | Q27: 0.7810900294 | R27: 0.794174527 | S27: 0.666906551 | T27: 0.7023605352 | U27: 0.690572158 | V27: 0.660318 | W27: 0.6230727332 | X27: -0.6414063574 | Y27: -0.5564545116 | Z27: -0.4731794685 | AA27: -0.3914541724 | AB27: -0.3078333732 | AC27: -0.2296562348 | AD27: -0.1510827623 | AE27: -0.07348847517
B29: Netting set
B30: Simulation 1 | C30: =IF(IncludeDeal1,Spreadsheet10.3!C1037,0)+IF(IncludeDeal2,Spreadsheet10.3!C2039,0)+IF(IncludeDeal3,Spreadsheet10.3!C3039,0)+IF(IncludeDeal4,-Spreadsheet10.3!C1037,0) -> 0 | D30: =IF(IncludeDeal1,Spreadsheet10.3!D1037,0)+IF(IncludeDeal2,Spreadsheet10.3!D2039,0)+IF(IncludeDeal3,Spreadsheet10.3!D3039,0)+IF(IncludeDeal4,-Spreadsheet10.3!D1037,0) -> 0 | E30: =IF(IncludeDeal1,Spreadsheet10.3!E1037,0)+IF(IncludeDeal2,Spreadsheet10.3!E2039,0)+IF(IncludeDeal3,Spreadsheet10.3!E3039,0)+IF(IncludeDeal4,-Spreadsheet10.3!E1037,0) -> 0 | F30: =IF(IncludeDeal1,Spreadsheet10.3!F1037,0)+IF(IncludeDeal2,Spreadsheet10.3!F2039,0)+IF(IncludeDeal3,Spreadsheet10.3!F3039,0)+IF(IncludeDeal4,-Spreadsheet10.3!F1037,0) -> 0 | G30: =IF(IncludeDeal1,Spreadsheet10.3!G1037,0)+IF(IncludeDeal2,Spreadsheet10.3!G2039,0)+IF(IncludeDeal3,Spreadsheet10.3!G3039,0)+IF(IncludeDeal4,-Spreadsheet10.3!G1037,0) -> 0 | H30: =IF(IncludeDeal1,Spreadsheet10.3!H1037,0)+IF(IncludeDeal2,Spreadsheet10.3!H2039,0)+IF(IncludeDeal3,Spreadsheet10.3!H3039,0)+IF(IncludeDeal4,-Spreadsheet10.3!H1037,0) -> 0 | I30: =IF(IncludeDeal1,Spreadsheet10.3!I1037,0)+IF(IncludeDeal2,Spreadsheet10.3!I2039,0)+IF(IncludeDeal3,Spreadsheet10.3!I3039,0)+IF(IncludeDeal4,-Spreadsheet10.3!I1037,0) -> 0 | J30: =IF(IncludeDeal1,Spreadsheet10.3!J1037,0)+IF(IncludeDeal2,Spreadsheet10.3!J2039,0)+IF(IncludeDeal3,Spreadsheet10.3!J3039,0)+IF(IncludeDeal4,-Spreadsheet10.3!J1037,0) -> 0 | K30: =IF(IncludeDeal1,Spreadsheet10.3!K1037,0)+IF(IncludeDeal2,Spreadsheet10.3!K2039,0)+IF(IncludeDeal3,Spreadsheet10.3!K3039,0)+IF(IncludeDeal4,-Spreadsheet10.3!K1037,0) -> 0 | L30: =IF(IncludeDeal1,Spreadsheet10.3!L1037,0)+IF(IncludeDeal2,Spreadsheet10.3!L2039,0)+IF(IncludeDeal3,Spreadsheet10.3!L3039,0)+IF(IncludeDeal4,-Spreadsheet10.3!L1037,0) -> 0 | M30: =IF(IncludeDeal1,Spreadsheet10.3!M1037,0)+IF(IncludeDeal2,Spreadsheet10.3!M2039,0)+IF(IncludeDeal3,Spreadsheet10.3!M3039,0)+IF(IncludeDeal4,-Spreadsheet10.3!M1037,0) -> 0 | N30: =IF(IncludeDeal1,Spreadsheet10.3!N1037,0)+IF(IncludeDeal2,Spreadsheet10.3!N2039,0)+IF(IncludeDeal3,Spreadsheet10.3!N3039,0)+IF(IncludeDeal4,-Spreadsheet10.3!N1037,0) -> 0 | O30: =IF(IncludeDeal1,Spreadsheet10.3!O1037,0)+IF(IncludeDeal2,Spreadsheet10.3!O2039,0)+IF(IncludeDeal3,Spreadsheet10.3!O3039,0)+IF(IncludeDeal4,-Spreadsheet10.3!O1037,0) -> 0 | P30: =IF(IncludeDeal1,Spreadsheet10.3!P1037,0)+IF(IncludeDeal2,Spreadsheet10.3!P2039,0)+IF(IncludeDeal3,Spreadsheet10.3!P3039,0)+IF(IncludeDeal4,-Spreadsheet10.3!P1037,0) -> 0 | Q30: =IF(IncludeDeal1,Spreadsheet10.3!Q1037,0)+IF(IncludeDeal2,Spreadsheet10.3!Q2039,0)+IF(IncludeDeal3,Spreadsheet10.3!Q3039,0)+IF(IncludeDeal4,-Spreadsheet10.3!Q1037,0) -> 0 | R30: =IF(IncludeDeal1,Spreadsheet10.3!R1037,0)+IF(IncludeDeal2,Spreadsheet10.3!R2039,0)+IF(IncludeDeal3,Spreadsheet10.3!R3039,0)+IF(IncludeDeal4,-Spreadsheet10.3!R1037,0) -> 0 | S30: =IF(IncludeDeal1,Spreadsheet10.3!S1037,0)+IF(IncludeDeal2,Spreadsheet10.3!S2039,0)+IF(IncludeDeal3,Spreadsheet10.3!S3039,0)+IF(IncludeDeal4,-Spreadsheet10.3!S1037,0) -> 0 | T30: =IF(IncludeDeal1,Spreadsheet10.3!T1037,0)+IF(IncludeDeal2,Spreadsheet10.3!T2039,0)+IF(IncludeDeal3,Spreadsheet10.3!T3039,0)+IF(IncludeDeal4,-Spreadsheet10.3!T1037,0) -> 0 | U30: =IF(IncludeDeal1,Spreadsheet10.3!U1037,0)+IF(IncludeDeal2,Spreadsheet10.3!U2039,0)+IF(IncludeDeal3,Spreadsheet10.3!U3039,0)+IF(IncludeDeal4,-Spreadsheet10.3!U1037,0) -> 0 | V30: =IF(IncludeDeal1,Spreadsheet10.3!V1037,0)+IF(IncludeDeal2,Spreadsheet10.3!V2039,0)+IF(IncludeDeal3,Spreadsheet10.3!V3039,0)+IF(IncludeDeal4,-Spreadsheet10.3!V1037,0) -> 0 | W30: =IF(IncludeDeal1,Spreadsheet10.3!W1037,0)+IF(IncludeDeal2,Spreadsheet10.3!W2039,0)+IF(IncludeDeal3,Spreadsheet10.3!W3039,0)+IF(IncludeDeal4,-Spreadsheet10.3!W1037,0) -> 0 | X30: =IF(IncludeDeal1,Spreadsheet10.3!X1037,0)+IF(IncludeDeal2,Spreadsheet10.3!X2039,0)+IF(IncludeDeal3,Spreadsheet10.3!X3039,0)+IF(IncludeDeal4,-Spreadsheet10.3!X1037,0) -> 0 | Y30: =IF(IncludeDeal1,Spreadsheet10.3!Y1037,0)+IF(IncludeDeal2,Spreadsheet10.3!Y2039,0)+IF(IncludeDeal3,Spreadsheet10.3!Y3039,0)+IF(IncludeDeal4,-Spreadsheet10.3!Y1037,0) -> 0 | Z30: =IF(IncludeDeal1,Spreadsheet10.3!Z1037,0)+IF(IncludeDeal2,Spreadsheet10.3!Z2039,0)+IF(IncludeDeal3,Spreadsheet10.3!Z3039,0)+IF(IncludeDeal4,-Spreadsheet10.3!Z1037,0) -> 0 | AA30: =IF(IncludeDeal1,Spreadsheet10.3!AA1037,0)+IF(IncludeDeal2,Spreadsheet10.3!AA2039,0)+IF(IncludeDeal3,Spreadsheet10.3!AA3039,0)+IF(IncludeDeal4,-Spreadsheet10.3!AA1037,0) -> 0 | AB30: =IF(IncludeDeal1,Spreadsheet10.3!AB1037,0)+IF(IncludeDeal2,Spreadsheet10.3!AB2039,0)+IF(IncludeDeal3,Spreadsheet10.3!AB3039,0)+IF(IncludeDeal4,-Spreadsheet10.3!AB1037,0) -> 0 | AC30: =IF(IncludeDeal1,Spreadsheet10.3!AC1037,0)+IF(IncludeDeal2,Spreadsheet10.3!AC2039,0)+IF(IncludeDeal3,Spreadsheet10.3!AC3039,0)+IF(IncludeDeal4,-Spreadsheet10.3!AC1037,0) -> 0 | AD30: =IF(IncludeDeal1,Spreadsheet10.3!AD1037,0)+IF(IncludeDeal2,Spreadsheet10.3!AD2039,0)+IF(IncludeDeal3,Spreadsheet10.3!AD3039,0)+IF(IncludeDeal4,-Spreadsheet10.3!AD1037,0) -> 0 | AE30: =IF(IncludeDeal1,Spreadsheet10.3!AE1037,0)+IF(IncludeDeal2,Spreadsheet10.3!AE2039,0)+IF(IncludeDeal3,Spreadsheet10.3!AE3039,0)+IF(IncludeDeal4,-Spreadsheet10.3!AE1037,0) -> 0
B31: Simulation 2 | C31: =IF(IncludeDeal1,Spreadsheet10.3!C1038,0)+IF(IncludeDeal2,Spreadsheet10.3!C2040,0)+IF(IncludeDeal3,Spreadsheet10.3!C3040,0)+IF(IncludeDeal4,-Spreadsheet10.3!C1038,0) -> 0 | D31: =IF(IncludeDeal1,Spreadsheet10.3!D1038,0)+IF(IncludeDeal2,Spreadsheet10.3!D2040,0)+IF(IncludeDeal3,Spreadsheet10.3!D3040,0)+IF(IncludeDeal4,-Spreadsheet10.3!D1038,0) -> 0 | E31: =IF(IncludeDeal1,Spreadsheet10.3!E1038,0)+IF(IncludeDeal2,Spreadsheet10.3!E2040,0)+IF(IncludeDeal3,Spreadsheet10.3!E3040,0)+IF(IncludeDeal4,-Spreadsheet10.3!E1038,0) -> 0 | F31: =IF(IncludeDeal1,Spreadsheet10.3!F1038,0)+IF(IncludeDeal2,Spreadsheet10.3!F2040,0)+IF(IncludeDeal3,Spreadsheet10.3!F3040,0)+IF(IncludeDeal4,-Spreadsheet10.3!F1038,0) -> 0 | G31: =IF(IncludeDeal1,Spreadsheet10.3!G1038,0)+IF(IncludeDeal2,Spreadsheet10.3!G2040,0)+IF(IncludeDeal3,Spreadsheet10.3!G3040,0)+IF(IncludeDeal4,-Spreadsheet10.3!G1038,0) -> 0 | H31: =IF(IncludeDeal1,Spreadsheet10.3!H1038,0)+IF(IncludeDeal2,Spreadsheet10.3!H2040,0)+IF(IncludeDeal3,Spreadsheet10.3!H3040,0)+IF(IncludeDeal4,-Spreadsheet10.3!H1038,0) -> 0 | I31: =IF(IncludeDeal1,Spreadsheet10.3!I1038,0)+IF(IncludeDeal2,Spreadsheet10.3!I2040,0)+IF(IncludeDeal3,Spreadsheet10.3!I3040,0)+IF(IncludeDeal4,-Spreadsheet10.3!I1038,0) -> 0 | J31: =IF(IncludeDeal1,Spreadsheet10.3!J1038,0)+IF(IncludeDeal2,Spreadsheet10.3!J2040,0)+IF(IncludeDeal3,Spreadsheet10.3!J3040,0)+IF(IncludeDeal4,-Spreadsheet10.3!J1038,0) -> 0 | K31: =IF(IncludeDeal1,Spreadsheet10.3!K1038,0)+IF(IncludeDeal2,Spreadsheet10.3!K2040,0)+IF(IncludeDeal3,Spreadsheet10.3!K3040,0)+IF(IncludeDeal4,-Spreadsheet10.3!K1038,0) -> 0 | L31: =IF(IncludeDeal1,Spreadsheet10.3!L1038,0)+IF(IncludeDeal2,Spreadsheet10.3!L2040,0)+IF(IncludeDeal3,Spreadsheet10.3!L3040,0)+IF(IncludeDeal4,-Spreadsheet10.3!L1038,0) -> 0 | M31: =IF(IncludeDeal1,Spreadsheet10.3!M1038,0)+IF(IncludeDeal2,Spreadsheet10.3!M2040,0)+IF(IncludeDeal3,Spreadsheet10.3!M3040,0)+IF(IncludeDeal4,-Spreadsheet10.3!M1038,0) -> 0 | N31: =IF(IncludeDeal1,Spreadsheet10.3!N1038,0)+IF(IncludeDeal2,Spreadsheet10.3!N2040,0)+IF(IncludeDeal3,Spreadsheet10.3!N3040,0)+IF(IncludeDeal4,-Spreadsheet10.3!N1038,0) -> 0 | O31: =IF(IncludeDeal1,Spreadsheet10.3!O1038,0)+IF(IncludeDeal2,Spreadsheet10.3!O2040,0)+IF(IncludeDeal3,Spreadsheet10.3!O3040,0)+IF(IncludeDeal4,-Spreadsheet10.3!O1038,0) -> 0 | P31: =IF(IncludeDeal1,Spreadsheet10.3!P1038,0)+IF(IncludeDeal2,Spreadsheet10.3!P2040,0)+IF(IncludeDeal3,Spreadsheet10.3!P3040,0)+IF(IncludeDeal4,-Spreadsheet10.3!P1038,0) -> 0 | Q31: =IF(IncludeDeal1,Spreadsheet10.3!Q1038,0)+IF(IncludeDeal2,Spreadsheet10.3!Q2040,0)+IF(IncludeDeal3,Spreadsheet10.3!Q3040,0)+IF(IncludeDeal4,-Spreadsheet10.3!Q1038,0) -> 0 | R31: =IF(IncludeDeal1,Spreadsheet10.3!R1038,0)+IF(IncludeDeal2,Spreadsheet10.3!R2040,0)+IF(IncludeDeal3,Spreadsheet10.3!R3040,0)+IF(IncludeDeal4,-Spreadsheet10.3!R1038,0) -> 0 | S31: =IF(IncludeDeal1,Spreadsheet10.3!S1038,0)+IF(IncludeDeal2,Spreadsheet10.3!S2040,0)+IF(IncludeDeal3,Spreadsheet10.3!S3040,0)+IF(IncludeDeal4,-Spreadsheet10.3!S1038,0) -> 0 | T31: =IF(IncludeDeal1,Spreadsheet10.3!T1038,0)+IF(IncludeDeal2,Spreadsheet10.3!T2040,0)+IF(IncludeDeal3,Spreadsheet10.3!T3040,0)+IF(IncludeDeal4,-Spreadsheet10.3!T1038,0) -> 0 | U31: =IF(IncludeDeal1,Spreadsheet10.3!U1038,0)+IF(IncludeDeal2,Spreadsheet10.3!U2040,0)+IF(IncludeDeal3,Spreadsheet10.3!U3040,0)+IF(IncludeDeal4,-Spreadsheet10.3!U1038,0) -> 0 | V31: =IF(IncludeDeal1,Spreadsheet10.3!V1038,0)+IF(IncludeDeal2,Spreadsheet10.3!V2040,0)+IF(IncludeDeal3,Spreadsheet10.3!V3040,0)+IF(IncludeDeal4,-Spreadsheet10.3!V1038,0) -> 0 | W31: =IF(IncludeDeal1,Spreadsheet10.3!W1038,0)+IF(IncludeDeal2,Spreadsheet10.3!W2040,0)+IF(IncludeDeal3,Spreadsheet10.3!W3040,0)+IF(IncludeDeal4,-Spreadsheet10.3!W1038,0) -> 0 | X31: =IF(IncludeDeal1,Spreadsheet10.3!X1038,0)+IF(IncludeDeal2,Spreadsheet10.3!X2040,0)+IF(IncludeDeal3,Spreadsheet10.3!X3040,0)+IF(IncludeDeal4,-Spreadsheet10.3!X1038,0) -> 0 | Y31: =IF(IncludeDeal1,Spreadsheet10.3!Y1038,0)+IF(IncludeDeal2,Spreadsheet10.3!Y2040,0)+IF(IncludeDeal3,Spreadsheet10.3!Y3040,0)+IF(IncludeDeal4,-Spreadsheet10.3!Y1038,0) -> 0 | Z31: =IF(IncludeDeal1,Spreadsheet10.3!Z1038,0)+IF(IncludeDeal2,Spreadsheet10.3!Z2040,0)+IF(IncludeDeal3,Spreadsheet10.3!Z3040,0)+IF(IncludeDeal4,-Spreadsheet10.3!Z1038,0) -> 0 | AA31: =IF(IncludeDeal1,Spreadsheet10.3!AA1038,0)+IF(IncludeDeal2,Spreadsheet10.3!AA2040,0)+IF(IncludeDeal3,Spreadsheet10.3!AA3040,0)+IF(IncludeDeal4,-Spreadsheet10.3!AA1038,0) -> 0 | AB31: =IF(IncludeDeal1,Spreadsheet10.3!AB1038,0)+IF(IncludeDeal2,Spreadsheet10.3!AB2040,0)+IF(IncludeDeal3,Spreadsheet10.3!AB3040,0)+IF(IncludeDeal4,-Spreadsheet10.3!AB1038,0) -> 0 | AC31: =IF(IncludeDeal1,Spreadsheet10.3!AC1038,0)+IF(IncludeDeal2,Spreadsheet10.3!AC2040,0)+IF(IncludeDeal3,Spreadsheet10.3!AC3040,0)+IF(IncludeDeal4,-Spreadsheet10.3!AC1038,0) -> 0 | AD31: =IF(IncludeDeal1,Spreadsheet10.3!AD1038,0)+IF(IncludeDeal2,Spreadsheet10.3!AD2040,0)+IF(IncludeDeal3,Spreadsheet10.3!AD3040,0)+IF(IncludeDeal4,-Spreadsheet10.3!AD1038,0) -> 0 | AE31: =IF(IncludeDeal1,Spreadsheet10.3!AE1038,0)+IF(IncludeDeal2,Spreadsheet10.3!AE2040,0)+IF(IncludeDeal3,Spreadsheet10.3!AE3040,0)+IF(IncludeDeal4,-Spreadsheet10.3!AE1038,0) -> 0
B32: Simulation 3 | C32: =IF(IncludeDeal1,Spreadsheet10.3!C1039,0)+IF(IncludeDeal2,Spreadsheet10.3!C2041,0)+IF(IncludeDeal3,Spreadsheet10.3!C3041,0)+IF(IncludeDeal4,-Spreadsheet10.3!C1039,0) -> -1.533736822 | D32: =IF(IncludeDeal1,Spreadsheet10.3!D1039,0)+IF(IncludeDeal2,Spreadsheet10.3!D2041,0)+IF(IncludeDeal3,Spreadsheet10.3!D3041,0)+IF(IncludeDeal4,-Spreadsheet10.3!D1039,0) -> -0.1506173008 | E32: =IF(IncludeDeal1,Spreadsheet10.3!E1039,0)+IF(IncludeDeal2,Spreadsheet10.3!E2041,0)+IF(IncludeDeal3,Spreadsheet10.3!E3041,0)+IF(IncludeDeal4,-Spreadsheet10.3!E1039,0) -> -2.062315841 | F32: =IF(IncludeDeal1,Spreadsheet10.3!F1039,0)+IF(IncludeDeal2,Spreadsheet10.3!F2041,0)+IF(IncludeDeal3,Spreadsheet10.3!F3041,0)+IF(IncludeDeal4,-Spreadsheet10.3!F1039,0) -> -1.378184835 | G32: =IF(IncludeDeal1,Spreadsheet10.3!G1039,0)+IF(IncludeDeal2,Spreadsheet10.3!G2041,0)+IF(IncludeDeal3,Spreadsheet10.3!G3041,0)+IF(IncludeDeal4,-Spreadsheet10.3!G1039,0) -> -2.327743354 | H32: =IF(IncludeDeal1,Spreadsheet10.3!H1039,0)+IF(IncludeDeal2,Spreadsheet10.3!H2041,0)+IF(IncludeDeal3,Spreadsheet10.3!H3041,0)+IF(IncludeDeal4,-Spreadsheet10.3!H1039,0) -> -1.538661855 | I32: =IF(IncludeDeal1,Spreadsheet10.3!I1039,0)+IF(IncludeDeal2,Spreadsheet10.3!I2041,0)+IF(IncludeDeal3,Spreadsheet10.3!I3041,0)+IF(IncludeDeal4,-Spreadsheet10.3!I1039,0) -> -0.9738643157 | J32: =IF(IncludeDeal1,Spreadsheet10.3!J1039,0)+IF(IncludeDeal2,Spreadsheet10.3!J2041,0)+IF(IncludeDeal3,Spreadsheet10.3!J3041,0)+IF(IncludeDeal4,-Spreadsheet10.3!J1039,0) -> -1.571579845 | K32: =IF(IncludeDeal1,Spreadsheet10.3!K1039,0)+IF(IncludeDeal2,Spreadsheet10.3!K2041,0)+IF(IncludeDeal3,Spreadsheet10.3!K3041,0)+IF(IncludeDeal4,-Spreadsheet10.3!K1039,0) -> -3.481713913 | L32: =IF(IncludeDeal1,Spreadsheet10.3!L1039,0)+IF(IncludeDeal2,Spreadsheet10.3!L2041,0)+IF(IncludeDeal3,Spreadsheet10.3!L3041,0)+IF(IncludeDeal4,-Spreadsheet10.3!L1039,0) -> -4.057736775 | M32: =IF(IncludeDeal1,Spreadsheet10.3!M1039,0)+IF(IncludeDeal2,Spreadsheet10.3!M2041,0)+IF(IncludeDeal3,Spreadsheet10.3!M3041,0)+IF(IncludeDeal4,-Spreadsheet10.3!M1039,0) -> -0.1501407289 | N32: =IF(IncludeDeal1,Spreadsheet10.3!N1039,0)+IF(IncludeDeal2,Spreadsheet10.3!N2041,0)+IF(IncludeDeal3,Spreadsheet10.3!N3041,0)+IF(IncludeDeal4,-Spreadsheet10.3!N1039,0) -> 3.462543792 | O32: =IF(IncludeDeal1,Spreadsheet10.3!O1039,0)+IF(IncludeDeal2,Spreadsheet10.3!O2041,0)+IF(IncludeDeal3,Spreadsheet10.3!O3041,0)+IF(IncludeDeal4,-Spreadsheet10.3!O1039,0) -> 5.535646252 | P32: =IF(IncludeDeal1,Spreadsheet10.3!P1039,0)+IF(IncludeDeal2,Spreadsheet10.3!P2041,0)+IF(IncludeDeal3,Spreadsheet10.3!P3041,0)+IF(IncludeDeal4,-Spreadsheet10.3!P1039,0) -> 2.928314764 | Q32: =IF(IncludeDeal1,Spreadsheet10.3!Q1039,0)+IF(IncludeDeal2,Spreadsheet10.3!Q2041,0)+IF(IncludeDeal3,Spreadsheet10.3!Q3041,0)+IF(IncludeDeal4,-Spreadsheet10.3!Q1039,0) -> 2.768892432 | R32: =IF(IncludeDeal1,Spreadsheet10.3!R1039,0)+IF(IncludeDeal2,Spreadsheet10.3!R2041,0)+IF(IncludeDeal3,Spreadsheet10.3!R3041,0)+IF(IncludeDeal4,-Spreadsheet10.3!R1039,0) -> 3.701592619 | S32: =IF(IncludeDeal1,Spreadsheet10.3!S1039,0)+IF(IncludeDeal2,Spreadsheet10.3!S2041,0)+IF(IncludeDeal3,Spreadsheet10.3!S3041,0)+IF(IncludeDeal4,-Spreadsheet10.3!S1039,0) -> 3.853123649 | T32: =IF(IncludeDeal1,Spreadsheet10.3!T1039,0)+IF(IncludeDeal2,Spreadsheet10.3!T2041,0)+IF(IncludeDeal3,Spreadsheet10.3!T3041,0)+IF(IncludeDeal4,-Spreadsheet10.3!T1039,0) -> -2.930950358 | U32: =IF(IncludeDeal1,Spreadsheet10.3!U1039,0)+IF(IncludeDeal2,Spreadsheet10.3!U2041,0)+IF(IncludeDeal3,Spreadsheet10.3!U3041,0)+IF(IncludeDeal4,-Spreadsheet10.3!U1039,0) -> -4.429791976 | V32: =IF(IncludeDeal1,Spreadsheet10.3!V1039,0)+IF(IncludeDeal2,Spreadsheet10.3!V2041,0)+IF(IncludeDeal3,Spreadsheet10.3!V3041,0)+IF(IncludeDeal4,-Spreadsheet10.3!V1039,0) -> 2.772877499 | W32: =IF(IncludeDeal1,Spreadsheet10.3!W1039,0)+IF(IncludeDeal2,Spreadsheet10.3!W2041,0)+IF(IncludeDeal3,Spreadsheet10.3!W3041,0)+IF(IncludeDeal4,-Spreadsheet10.3!W1039,0) -> 5.674401899 | X32: =IF(IncludeDeal1,Spreadsheet10.3!X1039,0)+IF(IncludeDeal2,Spreadsheet10.3!X2041,0)+IF(IncludeDeal3,Spreadsheet10.3!X3041,0)+IF(IncludeDeal4,-Spreadsheet10.3!X1039,0) -> 0 | Y32: =IF(IncludeDeal1,Spreadsheet10.3!Y1039,0)+IF(IncludeDeal2,Spreadsheet10.3!Y2041,0)+IF(IncludeDeal3,Spreadsheet10.3!Y3041,0)+IF(IncludeDeal4,-Spreadsheet10.3!Y1039,0) -> 0 | Z32: =IF(IncludeDeal1,Spreadsheet10.3!Z1039,0)+IF(IncludeDeal2,Spreadsheet10.3!Z2041,0)+IF(IncludeDeal3,Spreadsheet10.3!Z3041,0)+IF(IncludeDeal4,-Spreadsheet10.3!Z1039,0) -> 0 | AA32: =IF(IncludeDeal1,Spreadsheet10.3!AA1039,0)+IF(IncludeDeal2,Spreadsheet10.3!AA2041,0)+IF(IncludeDeal3,Spreadsheet10.3!AA3041,0)+IF(IncludeDeal4,-Spreadsheet10.3!AA1039,0) -> 0 | AB32: =IF(IncludeDeal1,Spreadsheet10.3!AB1039,0)+IF(IncludeDeal2,Spreadsheet10.3!AB2041,0)+IF(IncludeDeal3,Spreadsheet10.3!AB3041,0)+IF(IncludeDeal4,-Spreadsheet10.3!AB1039,0) -> 0 | AC32: =IF(IncludeDeal1,Spreadsheet10.3!AC1039,0)+IF(IncludeDeal2,Spreadsheet10.3!AC2041,0)+IF(IncludeDeal3,Spreadsheet10.3!AC3041,0)+IF(IncludeDeal4,-Spreadsheet10.3!AC1039,0) -> 0 | AD32: =IF(IncludeDeal1,Spreadsheet10.3!AD1039,0)+IF(IncludeDeal2,Spreadsheet10.3!AD2041,0)+IF(IncludeDeal3,Spreadsheet10.3!AD3041,0)+IF(IncludeDeal4,-Spreadsheet10.3!AD1039,0) -> 0 | AE32: =IF(IncludeDeal1,Spreadsheet10.3!AE1039,0)+IF(IncludeDeal2,Spreadsheet10.3!AE2041,0)+IF(IncludeDeal3,Spreadsheet10.3!AE3041,0)+IF(IncludeDeal4,-Spreadsheet10.3!AE1039,0) -> 0
B33: Simulation 4 | C33: =IF(IncludeDeal1,Spreadsheet10.3!C1040,0)+IF(IncludeDeal2,Spreadsheet10.3!C2042,0)+IF(IncludeDeal3,Spreadsheet10.3!C3042,0)+IF(IncludeDeal4,-Spreadsheet10.3!C1040,0) -> -1.533736822 | D33: =IF(IncludeDeal1,Spreadsheet10.3!D1040,0)+IF(IncludeDeal2,Spreadsheet10.3!D2042,0)+IF(IncludeDeal3,Spreadsheet10.3!D3042,0)+IF(IncludeDeal4,-Spreadsheet10.3!D1040,0) -> -1.438203179 | E33: =IF(IncludeDeal1,Spreadsheet10.3!E1040,0)+IF(IncludeDeal2,Spreadsheet10.3!E2042,0)+IF(IncludeDeal3,Spreadsheet10.3!E3042,0)+IF(IncludeDeal4,-Spreadsheet10.3!E1040,0) -> -0.6004019834 | F33: =IF(IncludeDeal1,Spreadsheet10.3!F1040,0)+IF(IncludeDeal2,Spreadsheet10.3!F2042,0)+IF(IncludeDeal3,Spreadsheet10.3!F3042,0)+IF(IncludeDeal4,-Spreadsheet10.3!F1040,0) -> 3.664542026 | G33: =IF(IncludeDeal1,Spreadsheet10.3!G1040,0)+IF(IncludeDeal2,Spreadsheet10.3!G2042,0)+IF(IncludeDeal3,Spreadsheet10.3!G3042,0)+IF(IncludeDeal4,-Spreadsheet10.3!G1040,0) -> 5.901614079 | H33: =IF(IncludeDeal1,Spreadsheet10.3!H1040,0)+IF(IncludeDeal2,Spreadsheet10.3!H2042,0)+IF(IncludeDeal3,Spreadsheet10.3!H3042,0)+IF(IncludeDeal4,-Spreadsheet10.3!H1040,0) -> 6.541209754 | I33: =IF(IncludeDeal1,Spreadsheet10.3!I1040,0)+IF(IncludeDeal2,Spreadsheet10.3!I2042,0)+IF(IncludeDeal3,Spreadsheet10.3!I3042,0)+IF(IncludeDeal4,-Spreadsheet10.3!I1040,0) -> 5.3439255 | J33: =IF(IncludeDeal1,Spreadsheet10.3!J1040,0)+IF(IncludeDeal2,Spreadsheet10.3!J2042,0)+IF(IncludeDeal3,Spreadsheet10.3!J3042,0)+IF(IncludeDeal4,-Spreadsheet10.3!J1040,0) -> 1.019714129 | K33: =IF(IncludeDeal1,Spreadsheet10.3!K1040,0)+IF(IncludeDeal2,Spreadsheet10.3!K2042,0)+IF(IncludeDeal3,Spreadsheet10.3!K3042,0)+IF(IncludeDeal4,-Spreadsheet10.3!K1040,0) -> -1.948203369 | L33: =IF(IncludeDeal1,Spreadsheet10.3!L1040,0)+IF(IncludeDeal2,Spreadsheet10.3!L2042,0)+IF(IncludeDeal3,Spreadsheet10.3!L3042,0)+IF(IncludeDeal4,-Spreadsheet10.3!L1040,0) -> -4.160960456 | M33: =IF(IncludeDeal1,Spreadsheet10.3!M1040,0)+IF(IncludeDeal2,Spreadsheet10.3!M2042,0)+IF(IncludeDeal3,Spreadsheet10.3!M3042,0)+IF(IncludeDeal4,-Spreadsheet10.3!M1040,0) -> -1.166314742 | N33: =IF(IncludeDeal1,Spreadsheet10.3!N1040,0)+IF(IncludeDeal2,Spreadsheet10.3!N2042,0)+IF(IncludeDeal3,Spreadsheet10.3!N3042,0)+IF(IncludeDeal4,-Spreadsheet10.3!N1040,0) -> -2.031598261 | O33: =IF(IncludeDeal1,Spreadsheet10.3!O1040,0)+IF(IncludeDeal2,Spreadsheet10.3!O2042,0)+IF(IncludeDeal3,Spreadsheet10.3!O3042,0)+IF(IncludeDeal4,-Spreadsheet10.3!O1040,0) -> -0.03078030544 | P33: =IF(IncludeDeal1,Spreadsheet10.3!P1040,0)+IF(IncludeDeal2,Spreadsheet10.3!P2042,0)+IF(IncludeDeal3,Spreadsheet10.3!P3042,0)+IF(IncludeDeal4,-Spreadsheet10.3!P1040,0) -> -1.572297599 | Q33: =IF(IncludeDeal1,Spreadsheet10.3!Q1040,0)+IF(IncludeDeal2,Spreadsheet10.3!Q2042,0)+IF(IncludeDeal3,Spreadsheet10.3!Q3042,0)+IF(IncludeDeal4,-Spreadsheet10.3!Q1040,0) -> -1.724444009 | R33: =IF(IncludeDeal1,Spreadsheet10.3!R1040,0)+IF(IncludeDeal2,Spreadsheet10.3!R2042,0)+IF(IncludeDeal3,Spreadsheet10.3!R3042,0)+IF(IncludeDeal4,-Spreadsheet10.3!R1040,0) -> 0.1577746647 | S33: =IF(IncludeDeal1,Spreadsheet10.3!S1040,0)+IF(IncludeDeal2,Spreadsheet10.3!S2042,0)+IF(IncludeDeal3,Spreadsheet10.3!S3042,0)+IF(IncludeDeal4,-Spreadsheet10.3!S1040,0) -> -0.04299401969 | T33: =IF(IncludeDeal1,Spreadsheet10.3!T1040,0)+IF(IncludeDeal2,Spreadsheet10.3!T2042,0)+IF(IncludeDeal3,Spreadsheet10.3!T3042,0)+IF(IncludeDeal4,-Spreadsheet10.3!T1040,0) -> 0.6015341928 | U33: =IF(IncludeDeal1,Spreadsheet10.3!U1040,0)+IF(IncludeDeal2,Spreadsheet10.3!U2042,0)+IF(IncludeDeal3,Spreadsheet10.3!U3042,0)+IF(IncludeDeal4,-Spreadsheet10.3!U1040,0) -> 0.8641296117 | V33: =IF(IncludeDeal1,Spreadsheet10.3!V1040,0)+IF(IncludeDeal2,Spreadsheet10.3!V2042,0)+IF(IncludeDeal3,Spreadsheet10.3!V3042,0)+IF(IncludeDeal4,-Spreadsheet10.3!V1040,0) -> 1.955686524 | W33: =IF(IncludeDeal1,Spreadsheet10.3!W1040,0)+IF(IncludeDeal2,Spreadsheet10.3!W2042,0)+IF(IncludeDeal3,Spreadsheet10.3!W3042,0)+IF(IncludeDeal4,-Spreadsheet10.3!W1040,0) -> 5.420365008 | X33: =IF(IncludeDeal1,Spreadsheet10.3!X1040,0)+IF(IncludeDeal2,Spreadsheet10.3!X2042,0)+IF(IncludeDeal3,Spreadsheet10.3!X3042,0)+IF(IncludeDeal4,-Spreadsheet10.3!X1040,0) -> 0 | Y33: =IF(IncludeDeal1,Spreadsheet10.3!Y1040,0)+IF(IncludeDeal2,Spreadsheet10.3!Y2042,0)+IF(IncludeDeal3,Spreadsheet10.3!Y3042,0)+IF(IncludeDeal4,-Spreadsheet10.3!Y1040,0) -> 0 | Z33: =IF(IncludeDeal1,Spreadsheet10.3!Z1040,0)+IF(IncludeDeal2,Spreadsheet10.3!Z2042,0)+IF(IncludeDeal3,Spreadsheet10.3!Z3042,0)+IF(IncludeDeal4,-Spreadsheet10.3!Z1040,0) -> 0 | AA33: =IF(IncludeDeal1,Spreadsheet10.3!AA1040,0)+IF(IncludeDeal2,Spreadsheet10.3!AA2042,0)+IF(IncludeDeal3,Spreadsheet10.3!AA3042,0)+IF(IncludeDeal4,-Spreadsheet10.3!AA1040,0) -> 0 | AB33: =IF(IncludeDeal1,Spreadsheet10.3!AB1040,0)+IF(IncludeDeal2,Spreadsheet10.3!AB2042,0)+IF(IncludeDeal3,Spreadsheet10.3!AB3042,0)+IF(IncludeDeal4,-Spreadsheet10.3!AB1040,0) -> 0 | AC33: =IF(IncludeDeal1,Spreadsheet10.3!AC1040,0)+IF(IncludeDeal2,Spreadsheet10.3!AC2042,0)+IF(IncludeDeal3,Spreadsheet10.3!AC3042,0)+IF(IncludeDeal4,-Spreadsheet10.3!AC1040,0) -> 0 | AD33: =IF(IncludeDeal1,Spreadsheet10.3!AD1040,0)+IF(IncludeDeal2,Spreadsheet10.3!AD2042,0)+IF(IncludeDeal3,Spreadsheet10.3!AD3042,0)+IF(IncludeDeal4,-Spreadsheet10.3!AD1040,0) -> 0 | AE33: =IF(IncludeDeal1,Spreadsheet10.3!AE1040,0)+IF(IncludeDeal2,Spreadsheet10.3!AE2042,0)+IF(IncludeDeal3,Spreadsheet10.3!AE3042,0)+IF(IncludeDeal4,-Spreadsheet10.3!AE1040,0) -> 0
B34: Simulation 5 | C34: =IF(IncludeDeal1,Spreadsheet10.3!C1041,0)+IF(IncludeDeal2,Spreadsheet10.3!C2043,0)+IF(IncludeDeal3,Spreadsheet10.3!C3043,0)+IF(IncludeDeal4,-Spreadsheet10.3!C1041,0) -> -1.533736822 | D34: =IF(IncludeDeal1,Spreadsheet10.3!D1041,0)+IF(IncludeDeal2,Spreadsheet10.3!D2043,0)+IF(IncludeDeal3,Spreadsheet10.3!D3043,0)+IF(IncludeDeal4,-Spreadsheet10.3!D1041,0) -> 5.359890583 | E34: =IF(IncludeDeal1,Spreadsheet10.3!E1041,0)+IF(IncludeDeal2,Spreadsheet10.3!E2043,0)+IF(IncludeDeal3,Spreadsheet10.3!E3043,0)+IF(IncludeDeal4,-Spreadsheet10.3!E1041,0) -> 0.9937416246 | F34: =IF(IncludeDeal1,Spreadsheet10.3!F1041,0)+IF(IncludeDeal2,Spreadsheet10.3!F2043,0)+IF(IncludeDeal3,Spreadsheet10.3!F3043,0)+IF(IncludeDeal4,-Spreadsheet10.3!F1041,0) -> 4.57046595 | G34: =IF(IncludeDeal1,Spreadsheet10.3!G1041,0)+IF(IncludeDeal2,Spreadsheet10.3!G2043,0)+IF(IncludeDeal3,Spreadsheet10.3!G3043,0)+IF(IncludeDeal4,-Spreadsheet10.3!G1041,0) -> 3.247341829 | H34: =IF(IncludeDeal1,Spreadsheet10.3!H1041,0)+IF(IncludeDeal2,Spreadsheet10.3!H2043,0)+IF(IncludeDeal3,Spreadsheet10.3!H3043,0)+IF(IncludeDeal4,-Spreadsheet10.3!H1041,0) -> 3.655243111 | I34: =IF(IncludeDeal1,Spreadsheet10.3!I1041,0)+IF(IncludeDeal2,Spreadsheet10.3!I2043,0)+IF(IncludeDeal3,Spreadsheet10.3!I3043,0)+IF(IncludeDeal4,-Spreadsheet10.3!I1041,0) -> 3.425416113 | J34: =IF(IncludeDeal1,Spreadsheet10.3!J1041,0)+IF(IncludeDeal2,Spreadsheet10.3!J2043,0)+IF(IncludeDeal3,Spreadsheet10.3!J3043,0)+IF(IncludeDeal4,-Spreadsheet10.3!J1041,0) -> 5.052953251 | K34: =IF(IncludeDeal1,Spreadsheet10.3!K1041,0)+IF(IncludeDeal2,Spreadsheet10.3!K2043,0)+IF(IncludeDeal3,Spreadsheet10.3!K3043,0)+IF(IncludeDeal4,-Spreadsheet10.3!K1041,0) -> 7.349602127 | L34: =IF(IncludeDeal1,Spreadsheet10.3!L1041,0)+IF(IncludeDeal2,Spreadsheet10.3!L2043,0)+IF(IncludeDeal3,Spreadsheet10.3!L3043,0)+IF(IncludeDeal4,-Spreadsheet10.3!L1041,0) -> 5.067637761 | M34: =IF(IncludeDeal1,Spreadsheet10.3!M1041,0)+IF(IncludeDeal2,Spreadsheet10.3!M2043,0)+IF(IncludeDeal3,Spreadsheet10.3!M3043,0)+IF(IncludeDeal4,-Spreadsheet10.3!M1041,0) -> 5.756686497 | N34: =IF(IncludeDeal1,Spreadsheet10.3!N1041,0)+IF(IncludeDeal2,Spreadsheet10.3!N2043,0)+IF(IncludeDeal3,Spreadsheet10.3!N3043,0)+IF(IncludeDeal4,-Spreadsheet10.3!N1041,0) -> 6.065842334 | O34: =IF(IncludeDeal1,Spreadsheet10.3!O1041,0)+IF(IncludeDeal2,Spreadsheet10.3!O2043,0)+IF(IncludeDeal3,Spreadsheet10.3!O3043,0)+IF(IncludeDeal4,-Spreadsheet10.3!O1041,0) -> 2.794818579 | P34: =IF(IncludeDeal1,Spreadsheet10.3!P1041,0)+IF(IncludeDeal2,Spreadsheet10.3!P2043,0)+IF(IncludeDeal3,Spreadsheet10.3!P3043,0)+IF(IncludeDeal4,-Spreadsheet10.3!P1041,0) -> 1.025152601 | Q34: =IF(IncludeDeal1,Spreadsheet10.3!Q1041,0)+IF(IncludeDeal2,Spreadsheet10.3!Q2043,0)+IF(IncludeDeal3,Spreadsheet10.3!Q3043,0)+IF(IncludeDeal4,-Spreadsheet10.3!Q1041,0) -> 1.395544368 | R34: =IF(IncludeDeal1,Spreadsheet10.3!R1041,0)+IF(IncludeDeal2,Spreadsheet10.3!R2043,0)+IF(IncludeDeal3,Spreadsheet10.3!R3043,0)+IF(IncludeDeal4,-Spreadsheet10.3!R1041,0) -> 5.310905611 | S34: =IF(IncludeDeal1,Spreadsheet10.3!S1041,0)+IF(IncludeDeal2,Spreadsheet10.3!S2043,0)+IF(IncludeDeal3,Spreadsheet10.3!S3043,0)+IF(IncludeDeal4,-Spreadsheet10.3!S1041,0) -> 7.722841434 | T34: =IF(IncludeDeal1,Spreadsheet10.3!T1041,0)+IF(IncludeDeal2,Spreadsheet10.3!T2043,0)+IF(IncludeDeal3,Spreadsheet10.3!T3043,0)+IF(IncludeDeal4,-Spreadsheet10.3!T1041,0) -> 3.48479745 | U34: =IF(IncludeDeal1,Spreadsheet10.3!U1041,0)+IF(IncludeDeal2,Spreadsheet10.3!U2043,0)+IF(IncludeDeal3,Spreadsheet10.3!U3043,0)+IF(IncludeDeal4,-Spreadsheet10.3!U1041,0) -> 1.595406021 | V34: =IF(IncludeDeal1,Spreadsheet10.3!V1041,0)+IF(IncludeDeal2,Spreadsheet10.3!V2043,0)+IF(IncludeDeal3,Spreadsheet10.3!V3043,0)+IF(IncludeDeal4,-Spreadsheet10.3!V1041,0) -> -0.9934694885 | W34: =IF(IncludeDeal1,Spreadsheet10.3!W1041,0)+IF(IncludeDeal2,Spreadsheet10.3!W2043,0)+IF(IncludeDeal3,Spreadsheet10.3!W3043,0)+IF(IncludeDeal4,-Spreadsheet10.3!W1041,0) -> -9.098676934 | X34: =IF(IncludeDeal1,Spreadsheet10.3!X1041,0)+IF(IncludeDeal2,Spreadsheet10.3!X2043,0)+IF(IncludeDeal3,Spreadsheet10.3!X3043,0)+IF(IncludeDeal4,-Spreadsheet10.3!X1041,0) -> 0 | Y34: =IF(IncludeDeal1,Spreadsheet10.3!Y1041,0)+IF(IncludeDeal2,Spreadsheet10.3!Y2043,0)+IF(IncludeDeal3,Spreadsheet10.3!Y3043,0)+IF(IncludeDeal4,-Spreadsheet10.3!Y1041,0) -> 0 | Z34: =IF(IncludeDeal1,Spreadsheet10.3!Z1041,0)+IF(IncludeDeal2,Spreadsheet10.3!Z2043,0)+IF(IncludeDeal3,Spreadsheet10.3!Z3043,0)+IF(IncludeDeal4,-Spreadsheet10.3!Z1041,0) -> 0 | AA34: =IF(IncludeDeal1,Spreadsheet10.3!AA1041,0)+IF(IncludeDeal2,Spreadsheet10.3!AA2043,0)+IF(IncludeDeal3,Spreadsheet10.3!AA3043,0)+IF(IncludeDeal4,-Spreadsheet10.3!AA1041,0) -> 0 | AB34: =IF(IncludeDeal1,Spreadsheet10.3!AB1041,0)+IF(IncludeDeal2,Spreadsheet10.3!AB2043,0)+IF(IncludeDeal3,Spreadsheet10.3!AB3043,0)+IF(IncludeDeal4,-Spreadsheet10.3!AB1041,0) -> 0 | AC34: =IF(IncludeDeal1,Spreadsheet10.3!AC1041,0)+IF(IncludeDeal2,Spreadsheet10.3!AC2043,0)+IF(IncludeDeal3,Spreadsheet10.3!AC3043,0)+IF(IncludeDeal4,-Spreadsheet10.3!AC1041,0) -> 0 | AD34: =IF(IncludeDeal1,Spreadsheet10.3!AD1041,0)+IF(IncludeDeal2,Spreadsheet10.3!AD2043,0)+IF(IncludeDeal3,Spreadsheet10.3!AD3043,0)+IF(IncludeDeal4,-Spreadsheet10.3!AD1041,0) -> 0 | AE34: =IF(IncludeDeal1,Spreadsheet10.3!AE1041,0)+IF(IncludeDeal2,Spreadsheet10.3!AE2043,0)+IF(IncludeDeal3,Spreadsheet10.3!AE3043,0)+IF(IncludeDeal4,-Spreadsheet10.3!AE1041,0) -> 0
B35: Simulation 6 | C35: =IF(IncludeDeal1,Spreadsheet10.3!C1042,0)+IF(IncludeDeal2,Spreadsheet10.3!C2044,0)+IF(IncludeDeal3,Spreadsheet10.3!C3044,0)+IF(IncludeDeal4,-Spreadsheet10.3!C1042,0) -> -1.533736822 | D35: =IF(IncludeDeal1,Spreadsheet10.3!D1042,0)+IF(IncludeDeal2,Spreadsheet10.3!D2044,0)+IF(IncludeDeal3,Spreadsheet10.3!D3044,0)+IF(IncludeDeal4,-Spreadsheet10.3!D1042,0) -> -6.004622378 | E35: =IF(IncludeDeal1,Spreadsheet10.3!E1042,0)+IF(IncludeDeal2,Spreadsheet10.3!E2044,0)+IF(IncludeDeal3,Spreadsheet10.3!E3044,0)+IF(IncludeDeal4,-Spreadsheet10.3!E1042,0) -> -1.74453882 | F35: =IF(IncludeDeal1,Spreadsheet10.3!F1042,0)+IF(IncludeDeal2,Spreadsheet10.3!F2044,0)+IF(IncludeDeal3,Spreadsheet10.3!F3044,0)+IF(IncludeDeal4,-Spreadsheet10.3!F1042,0) -> 3.55361703 | G35: =IF(IncludeDeal1,Spreadsheet10.3!G1042,0)+IF(IncludeDeal2,Spreadsheet10.3!G2044,0)+IF(IncludeDeal3,Spreadsheet10.3!G3044,0)+IF(IncludeDeal4,-Spreadsheet10.3!G1042,0) -> 2.859518623 | H35: =IF(IncludeDeal1,Spreadsheet10.3!H1042,0)+IF(IncludeDeal2,Spreadsheet10.3!H2044,0)+IF(IncludeDeal3,Spreadsheet10.3!H3044,0)+IF(IncludeDeal4,-Spreadsheet10.3!H1042,0) -> 3.583077128 | I35: =IF(IncludeDeal1,Spreadsheet10.3!I1042,0)+IF(IncludeDeal2,Spreadsheet10.3!I2044,0)+IF(IncludeDeal3,Spreadsheet10.3!I3044,0)+IF(IncludeDeal4,-Spreadsheet10.3!I1042,0) -> 3.490150413 | J35: =IF(IncludeDeal1,Spreadsheet10.3!J1042,0)+IF(IncludeDeal2,Spreadsheet10.3!J2044,0)+IF(IncludeDeal3,Spreadsheet10.3!J3044,0)+IF(IncludeDeal4,-Spreadsheet10.3!J1042,0) -> 7.693960766 | K35: =IF(IncludeDeal1,Spreadsheet10.3!K1042,0)+IF(IncludeDeal2,Spreadsheet10.3!K2044,0)+IF(IncludeDeal3,Spreadsheet10.3!K3044,0)+IF(IncludeDeal4,-Spreadsheet10.3!K1042,0) -> 1.590084732 | L35: =IF(IncludeDeal1,Spreadsheet10.3!L1042,0)+IF(IncludeDeal2,Spreadsheet10.3!L2044,0)+IF(IncludeDeal3,Spreadsheet10.3!L3044,0)+IF(IncludeDeal4,-Spreadsheet10.3!L1042,0) -> -2.874253495 | M35: =IF(IncludeDeal1,Spreadsheet10.3!M1042,0)+IF(IncludeDeal2,Spreadsheet10.3!M2044,0)+IF(IncludeDeal3,Spreadsheet10.3!M3044,0)+IF(IncludeDeal4,-Spreadsheet10.3!M1042,0) -> -2.969658523 | N35: =IF(IncludeDeal1,Spreadsheet10.3!N1042,0)+IF(IncludeDeal2,Spreadsheet10.3!N2044,0)+IF(IncludeDeal3,Spreadsheet10.3!N3044,0)+IF(IncludeDeal4,-Spreadsheet10.3!N1042,0) -> -6.155247568 | O35: =IF(IncludeDeal1,Spreadsheet10.3!O1042,0)+IF(IncludeDeal2,Spreadsheet10.3!O2044,0)+IF(IncludeDeal3,Spreadsheet10.3!O3044,0)+IF(IncludeDeal4,-Spreadsheet10.3!O1042,0) -> -7.009600264 | P35: =IF(IncludeDeal1,Spreadsheet10.3!P1042,0)+IF(IncludeDeal2,Spreadsheet10.3!P2044,0)+IF(IncludeDeal3,Spreadsheet10.3!P3044,0)+IF(IncludeDeal4,-Spreadsheet10.3!P1042,0) -> -6.739284498 | Q35: =IF(IncludeDeal1,Spreadsheet10.3!Q1042,0)+IF(IncludeDeal2,Spreadsheet10.3!Q2044,0)+IF(IncludeDeal3,Spreadsheet10.3!Q3044,0)+IF(IncludeDeal4,-Spreadsheet10.3!Q1042,0) -> -6.099088811 | R35: =IF(IncludeDeal1,Spreadsheet10.3!R1042,0)+IF(IncludeDeal2,Spreadsheet10.3!R2044,0)+IF(IncludeDeal3,Spreadsheet10.3!R3044,0)+IF(IncludeDeal4,-Spreadsheet10.3!R1042,0) -> -2.803260274 | S35: =IF(IncludeDeal1,Spreadsheet10.3!S1042,0)+IF(IncludeDeal2,Spreadsheet10.3!S2044,0)+IF(IncludeDeal3,Spreadsheet10.3!S3044,0)+IF(IncludeDeal4,-Spreadsheet10.3!S1042,0) -> 4.3111287 | T35: =IF(IncludeDeal1,Spreadsheet10.3!T1042,0)+IF(IncludeDeal2,Spreadsheet10.3!T2044,0)+IF(IncludeDeal3,Spreadsheet10.3!T3044,0)+IF(IncludeDeal4,-Spreadsheet10.3!T1042,0) -> 2.506693762 | U35: =IF(IncludeDeal1,Spreadsheet10.3!U1042,0)+IF(IncludeDeal2,Spreadsheet10.3!U2044,0)+IF(IncludeDeal3,Spreadsheet10.3!U3044,0)+IF(IncludeDeal4,-Spreadsheet10.3!U1042,0) -> 4.042517912 | V35: =IF(IncludeDeal1,Spreadsheet10.3!V1042,0)+IF(IncludeDeal2,Spreadsheet10.3!V2044,0)+IF(IncludeDeal3,Spreadsheet10.3!V3044,0)+IF(IncludeDeal4,-Spreadsheet10.3!V1042,0) -> 7.240230297 | W35: =IF(IncludeDeal1,Spreadsheet10.3!W1042,0)+IF(IncludeDeal2,Spreadsheet10.3!W2044,0)+IF(IncludeDeal3,Spreadsheet10.3!W3044,0)+IF(IncludeDeal4,-Spreadsheet10.3!W1042,0) -> 9.28963248 | X35: =IF(IncludeDeal1,Spreadsheet10.3!X1042,0)+IF(IncludeDeal2,Spreadsheet10.3!X2044,0)+IF(IncludeDeal3,Spreadsheet10.3!X3044,0)+IF(IncludeDeal4,-Spreadsheet10.3!X1042,0) -> 0 | Y35: =IF(IncludeDeal1,Spreadsheet10.3!Y1042,0)+IF(IncludeDeal2,Spreadsheet10.3!Y2044,0)+IF(IncludeDeal3,Spreadsheet10.3!Y3044,0)+IF(IncludeDeal4,-Spreadsheet10.3!Y1042,0) -> 0 | Z35: =IF(IncludeDeal1,Spreadsheet10.3!Z1042,0)+IF(IncludeDeal2,Spreadsheet10.3!Z2044,0)+IF(IncludeDeal3,Spreadsheet10.3!Z3044,0)+IF(IncludeDeal4,-Spreadsheet10.3!Z1042,0) -> 0 | AA35: =IF(IncludeDeal1,Spreadsheet10.3!AA1042,0)+IF(IncludeDeal2,Spreadsheet10.3!AA2044,0)+IF(IncludeDeal3,Spreadsheet10.3!AA3044,0)+IF(IncludeDeal4,-Spreadsheet10.3!AA1042,0) -> 0 | AB35: =IF(IncludeDeal1,Spreadsheet10.3!AB1042,0)+IF(IncludeDeal2,Spreadsheet10.3!AB2044,0)+IF(IncludeDeal3,Spreadsheet10.3!AB3044,0)+IF(IncludeDeal4,-Spreadsheet10.3!AB1042,0) -> 0 | AC35: =IF(IncludeDeal1,Spreadsheet10.3!AC1042,0)+IF(IncludeDeal2,Spreadsheet10.3!AC2044,0)+IF(IncludeDeal3,Spreadsheet10.3!AC3044,0)+IF(IncludeDeal4,-Spreadsheet10.3!AC1042,0) -> 0 | AD35: =IF(IncludeDeal1,Spreadsheet10.3!AD1042,0)+IF(IncludeDeal2,Spreadsheet10.3!AD2044,0)+IF(IncludeDeal3,Spreadsheet10.3!AD3044,0)+IF(IncludeDeal4,-Spreadsheet10.3!AD1042,0) -> 0 | AE35: =IF(IncludeDeal1,Spreadsheet10.3!AE1042,0)+IF(IncludeDeal2,Spreadsheet10.3!AE2044,0)+IF(IncludeDeal3,Spreadsheet10.3!AE3044,0)+IF(IncludeDeal4,-Spreadsheet10.3!AE1042,0) -> 0
B36: Simulation 7 | C36: =IF(IncludeDeal1,Spreadsheet10.3!C1043,0)+IF(IncludeDeal2,Spreadsheet10.3!C2045,0)+IF(IncludeDeal3,Spreadsheet10.3!C3045,0)+IF(IncludeDeal4,-Spreadsheet10.3!C1043,0) -> -1.533736822 | D36: =IF(IncludeDeal1,Spreadsheet10.3!D1043,0)+IF(IncludeDeal2,Spreadsheet10.3!D2045,0)+IF(IncludeDeal3,Spreadsheet10.3!D3045,0)+IF(IncludeDeal4,-Spreadsheet10.3!D1043,0) -> 0.196785234 | E36: =IF(IncludeDeal1,Spreadsheet10.3!E1043,0)+IF(IncludeDeal2,Spreadsheet10.3!E2045,0)+IF(IncludeDeal3,Spreadsheet10.3!E3045,0)+IF(IncludeDeal4,-Spreadsheet10.3!E1043,0) -> -0.3174003353 | F36: =IF(IncludeDeal1,Spreadsheet10.3!F1043,0)+IF(IncludeDeal2,Spreadsheet10.3!F2045,0)+IF(IncludeDeal3,Spreadsheet10.3!F3045,0)+IF(IncludeDeal4,-Spreadsheet10.3!F1043,0) -> 3.63652022 | G36: =IF(IncludeDeal1,Spreadsheet10.3!G1043,0)+IF(IncludeDeal2,Spreadsheet10.3!G2045,0)+IF(IncludeDeal3,Spreadsheet10.3!G3045,0)+IF(IncludeDeal4,-Spreadsheet10.3!G1043,0) -> 1.688164299 | H36: =IF(IncludeDeal1,Spreadsheet10.3!H1043,0)+IF(IncludeDeal2,Spreadsheet10.3!H2045,0)+IF(IncludeDeal3,Spreadsheet10.3!H3045,0)+IF(IncludeDeal4,-Spreadsheet10.3!H1043,0) -> -0.744439364 | I36: =IF(IncludeDeal1,Spreadsheet10.3!I1043,0)+IF(IncludeDeal2,Spreadsheet10.3!I2045,0)+IF(IncludeDeal3,Spreadsheet10.3!I3045,0)+IF(IncludeDeal4,-Spreadsheet10.3!I1043,0) -> -2.800683104 | J36: =IF(IncludeDeal1,Spreadsheet10.3!J1043,0)+IF(IncludeDeal2,Spreadsheet10.3!J2045,0)+IF(IncludeDeal3,Spreadsheet10.3!J3045,0)+IF(IncludeDeal4,-Spreadsheet10.3!J1043,0) -> 2.967246873 | K36: =IF(IncludeDeal1,Spreadsheet10.3!K1043,0)+IF(IncludeDeal2,Spreadsheet10.3!K2045,0)+IF(IncludeDeal3,Spreadsheet10.3!K3045,0)+IF(IncludeDeal4,-Spreadsheet10.3!K1043,0) -> 0.4059664077 | L36: =IF(IncludeDeal1,Spreadsheet10.3!L1043,0)+IF(IncludeDeal2,Spreadsheet10.3!L2045,0)+IF(IncludeDeal3,Spreadsheet10.3!L3045,0)+IF(IncludeDeal4,-Spreadsheet10.3!L1043,0) -> 2.23954643 | M36: =IF(IncludeDeal1,Spreadsheet10.3!M1043,0)+IF(IncludeDeal2,Spreadsheet10.3!M2045,0)+IF(IncludeDeal3,Spreadsheet10.3!M3045,0)+IF(IncludeDeal4,-Spreadsheet10.3!M1043,0) -> 2.206481902 | N36: =IF(IncludeDeal1,Spreadsheet10.3!N1043,0)+IF(IncludeDeal2,Spreadsheet10.3!N2045,0)+IF(IncludeDeal3,Spreadsheet10.3!N3045,0)+IF(IncludeDeal4,-Spreadsheet10.3!N1043,0) -> 1.384582926 | O36: =IF(IncludeDeal1,Spreadsheet10.3!O1043,0)+IF(IncludeDeal2,Spreadsheet10.3!O2045,0)+IF(IncludeDeal3,Spreadsheet10.3!O3045,0)+IF(IncludeDeal4,-Spreadsheet10.3!O1043,0) -> -1.900625506 | P36: =IF(IncludeDeal1,Spreadsheet10.3!P1043,0)+IF(IncludeDeal2,Spreadsheet10.3!P2045,0)+IF(IncludeDeal3,Spreadsheet10.3!P3045,0)+IF(IncludeDeal4,-Spreadsheet10.3!P1043,0) -> -0.7536525364 | Q36: =IF(IncludeDeal1,Spreadsheet10.3!Q1043,0)+IF(IncludeDeal2,Spreadsheet10.3!Q2045,0)+IF(IncludeDeal3,Spreadsheet10.3!Q3045,0)+IF(IncludeDeal4,-Spreadsheet10.3!Q1043,0) -> -0.05501373415 | R36: =IF(IncludeDeal1,Spreadsheet10.3!R1043,0)+IF(IncludeDeal2,Spreadsheet10.3!R2045,0)+IF(IncludeDeal3,Spreadsheet10.3!R3045,0)+IF(IncludeDeal4,-Spreadsheet10.3!R1043,0) -> 0.684560686 | S36: =IF(IncludeDeal1,Spreadsheet10.3!S1043,0)+IF(IncludeDeal2,Spreadsheet10.3!S2045,0)+IF(IncludeDeal3,Spreadsheet10.3!S3045,0)+IF(IncludeDeal4,-Spreadsheet10.3!S1043,0) -> 5.174381514 | T36: =IF(IncludeDeal1,Spreadsheet10.3!T1043,0)+IF(IncludeDeal2,Spreadsheet10.3!T2045,0)+IF(IncludeDeal3,Spreadsheet10.3!T3045,0)+IF(IncludeDeal4,-Spreadsheet10.3!T1043,0) -> 3.498907233 | U36: =IF(IncludeDeal1,Spreadsheet10.3!U1043,0)+IF(IncludeDeal2,Spreadsheet10.3!U2045,0)+IF(IncludeDeal3,Spreadsheet10.3!U3045,0)+IF(IncludeDeal4,-Spreadsheet10.3!U1043,0) -> 3.83828088 | V36: =IF(IncludeDeal1,Spreadsheet10.3!V1043,0)+IF(IncludeDeal2,Spreadsheet10.3!V2045,0)+IF(IncludeDeal3,Spreadsheet10.3!V3045,0)+IF(IncludeDeal4,-Spreadsheet10.3!V1043,0) -> -2.912201575 | W36: =IF(IncludeDeal1,Spreadsheet10.3!W1043,0)+IF(IncludeDeal2,Spreadsheet10.3!W2045,0)+IF(IncludeDeal3,Spreadsheet10.3!W3045,0)+IF(IncludeDeal4,-Spreadsheet10.3!W1043,0) -> -6.661459714 | X36: =IF(IncludeDeal1,Spreadsheet10.3!X1043,0)+IF(IncludeDeal2,Spreadsheet10.3!X2045,0)+IF(IncludeDeal3,Spreadsheet10.3!X3045,0)+IF(IncludeDeal4,-Spreadsheet10.3!X1043,0) -> 0 | Y36: =IF(IncludeDeal1,Spreadsheet10.3!Y1043,0)+IF(IncludeDeal2,Spreadsheet10.3!Y2045,0)+IF(IncludeDeal3,Spreadsheet10.3!Y3045,0)+IF(IncludeDeal4,-Spreadsheet10.3!Y1043,0) -> 0 | Z36: =IF(IncludeDeal1,Spreadsheet10.3!Z1043,0)+IF(IncludeDeal2,Spreadsheet10.3!Z2045,0)+IF(IncludeDeal3,Spreadsheet10.3!Z3045,0)+IF(IncludeDeal4,-Spreadsheet10.3!Z1043,0) -> 0 | AA36: =IF(IncludeDeal1,Spreadsheet10.3!AA1043,0)+IF(IncludeDeal2,Spreadsheet10.3!AA2045,0)+IF(IncludeDeal3,Spreadsheet10.3!AA3045,0)+IF(IncludeDeal4,-Spreadsheet10.3!AA1043,0) -> 0 | AB36: =IF(IncludeDeal1,Spreadsheet10.3!AB1043,0)+IF(IncludeDeal2,Spreadsheet10.3!AB2045,0)+IF(IncludeDeal3,Spreadsheet10.3!AB3045,0)+IF(IncludeDeal4,-Spreadsheet10.3!AB1043,0) -> 0 | AC36: =IF(IncludeDeal1,Spreadsheet10.3!AC1043,0)+IF(IncludeDeal2,Spreadsheet10.3!AC2045,0)+IF(IncludeDeal3,Spreadsheet10.3!AC3045,0)+IF(IncludeDeal4,-Spreadsheet10.3!AC1043,0) -> 0 | AD36: =IF(IncludeDeal1,Spreadsheet10.3!AD1043,0)+IF(IncludeDeal2,Spreadsheet10.3!AD2045,0)+IF(IncludeDeal3,Spreadsheet10.3!AD3045,0)+IF(IncludeDeal4,-Spreadsheet10.3!AD1043,0) -> 0 | AE36: =IF(IncludeDeal1,Spreadsheet10.3!AE1043,0)+IF(IncludeDeal2,Spreadsheet10.3!AE2045,0)+IF(IncludeDeal3,Spreadsheet10.3!AE3045,0)+IF(IncludeDeal4,-Spreadsheet10.3!AE1043,0) -> 0
B37: Simulation 8 | C37: =IF(IncludeDeal1,Spreadsheet10.3!C1044,0)+IF(IncludeDeal2,Spreadsheet10.3!C2046,0)+IF(IncludeDeal3,Spreadsheet10.3!C3046,0)+IF(IncludeDeal4,-Spreadsheet10.3!C1044,0) -> -1.533736822 | D37: =IF(IncludeDeal1,Spreadsheet10.3!D1044,0)+IF(IncludeDeal2,Spreadsheet10.3!D2046,0)+IF(IncludeDeal3,Spreadsheet10.3!D3046,0)+IF(IncludeDeal4,-Spreadsheet10.3!D1044,0) -> 1.640427701 | E37: =IF(IncludeDeal1,Spreadsheet10.3!E1044,0)+IF(IncludeDeal2,Spreadsheet10.3!E2046,0)+IF(IncludeDeal3,Spreadsheet10.3!E3046,0)+IF(IncludeDeal4,-Spreadsheet10.3!E1044,0) -> 1.148944024 | F37: =IF(IncludeDeal1,Spreadsheet10.3!F1044,0)+IF(IncludeDeal2,Spreadsheet10.3!F2046,0)+IF(IncludeDeal3,Spreadsheet10.3!F3046,0)+IF(IncludeDeal4,-Spreadsheet10.3!F1044,0) -> -0.4180716897 | G37: =IF(IncludeDeal1,Spreadsheet10.3!G1044,0)+IF(IncludeDeal2,Spreadsheet10.3!G2046,0)+IF(IncludeDeal3,Spreadsheet10.3!G3046,0)+IF(IncludeDeal4,-Spreadsheet10.3!G1044,0) -> -1.997911051 | H37: =IF(IncludeDeal1,Spreadsheet10.3!H1044,0)+IF(IncludeDeal2,Spreadsheet10.3!H2046,0)+IF(IncludeDeal3,Spreadsheet10.3!H3046,0)+IF(IncludeDeal4,-Spreadsheet10.3!H1044,0) -> -2.316168872 | I37: =IF(IncludeDeal1,Spreadsheet10.3!I1044,0)+IF(IncludeDeal2,Spreadsheet10.3!I2046,0)+IF(IncludeDeal3,Spreadsheet10.3!I3046,0)+IF(IncludeDeal4,-Spreadsheet10.3!I1044,0) -> -3.145954011 | J37: =IF(IncludeDeal1,Spreadsheet10.3!J1044,0)+IF(IncludeDeal2,Spreadsheet10.3!J2046,0)+IF(IncludeDeal3,Spreadsheet10.3!J3046,0)+IF(IncludeDeal4,-Spreadsheet10.3!J1044,0) -> -5.852672645 | K37: =IF(IncludeDeal1,Spreadsheet10.3!K1044,0)+IF(IncludeDeal2,Spreadsheet10.3!K2046,0)+IF(IncludeDeal3,Spreadsheet10.3!K3046,0)+IF(IncludeDeal4,-Spreadsheet10.3!K1044,0) -> -7.646253673 | L37: =IF(IncludeDeal1,Spreadsheet10.3!L1044,0)+IF(IncludeDeal2,Spreadsheet10.3!L2046,0)+IF(IncludeDeal3,Spreadsheet10.3!L3046,0)+IF(IncludeDeal4,-Spreadsheet10.3!L1044,0) -> -2.163708563 | M37: =IF(IncludeDeal1,Spreadsheet10.3!M1044,0)+IF(IncludeDeal2,Spreadsheet10.3!M2046,0)+IF(IncludeDeal3,Spreadsheet10.3!M3046,0)+IF(IncludeDeal4,-Spreadsheet10.3!M1044,0) -> -1.680009851 | N37: =IF(IncludeDeal1,Spreadsheet10.3!N1044,0)+IF(IncludeDeal2,Spreadsheet10.3!N2046,0)+IF(IncludeDeal3,Spreadsheet10.3!N3046,0)+IF(IncludeDeal4,-Spreadsheet10.3!N1044,0) -> -7.633652194 | O37: =IF(IncludeDeal1,Spreadsheet10.3!O1044,0)+IF(IncludeDeal2,Spreadsheet10.3!O2046,0)+IF(IncludeDeal3,Spreadsheet10.3!O3046,0)+IF(IncludeDeal4,-Spreadsheet10.3!O1044,0) -> -3.557741435 | P37: =IF(IncludeDeal1,Spreadsheet10.3!P1044,0)+IF(IncludeDeal2,Spreadsheet10.3!P2046,0)+IF(IncludeDeal3,Spreadsheet10.3!P3046,0)+IF(IncludeDeal4,-Spreadsheet10.3!P1044,0) -> -4.42382977 | Q37: =IF(IncludeDeal1,Spreadsheet10.3!Q1044,0)+IF(IncludeDeal2,Spreadsheet10.3!Q2046,0)+IF(IncludeDeal3,Spreadsheet10.3!Q3046,0)+IF(IncludeDeal4,-Spreadsheet10.3!Q1044,0) -> -0.470706462 | R37: =IF(IncludeDeal1,Spreadsheet10.3!R1044,0)+IF(IncludeDeal2,Spreadsheet10.3!R2046,0)+IF(IncludeDeal3,Spreadsheet10.3!R3046,0)+IF(IncludeDeal4,-Spreadsheet10.3!R1044,0) -> 1.315759443 | S37: =IF(IncludeDeal1,Spreadsheet10.3!S1044,0)+IF(IncludeDeal2,Spreadsheet10.3!S2046,0)+IF(IncludeDeal3,Spreadsheet10.3!S3046,0)+IF(IncludeDeal4,-Spreadsheet10.3!S1044,0) -> 4.938412922 | T37: =IF(IncludeDeal1,Spreadsheet10.3!T1044,0)+IF(IncludeDeal2,Spreadsheet10.3!T2046,0)+IF(IncludeDeal3,Spreadsheet10.3!T3046,0)+IF(IncludeDeal4,-Spreadsheet10.3!T1044,0) -> 0.646113085 | U37: =IF(IncludeDeal1,Spreadsheet10.3!U1044,0)+IF(IncludeDeal2,Spreadsheet10.3!U2046,0)+IF(IncludeDeal3,Spreadsheet10.3!U3046,0)+IF(IncludeDeal4,-Spreadsheet10.3!U1044,0) -> 3.534245887 | V37: =IF(IncludeDeal1,Spreadsheet10.3!V1044,0)+IF(IncludeDeal2,Spreadsheet10.3!V2046,0)+IF(IncludeDeal3,Spreadsheet10.3!V3046,0)+IF(IncludeDeal4,-Spreadsheet10.3!V1044,0) -> -0.4108554044 | W37: =IF(IncludeDeal1,Spreadsheet10.3!W1044,0)+IF(IncludeDeal2,Spreadsheet10.3!W2046,0)+IF(IncludeDeal3,Spreadsheet10.3!W3046,0)+IF(IncludeDeal4,-Spreadsheet10.3!W1044,0) -> 1.601889808 | X37: =IF(IncludeDeal1,Spreadsheet10.3!X1044,0)+IF(IncludeDeal2,Spreadsheet10.3!X2046,0)+IF(IncludeDeal3,Spreadsheet10.3!X3046,0)+IF(IncludeDeal4,-Spreadsheet10.3!X1044,0) -> 0 | Y37: =IF(IncludeDeal1,Spreadsheet10.3!Y1044,0)+IF(IncludeDeal2,Spreadsheet10.3!Y2046,0)+IF(IncludeDeal3,Spreadsheet10.3!Y3046,0)+IF(IncludeDeal4,-Spreadsheet10.3!Y1044,0) -> 0 | Z37: =IF(IncludeDeal1,Spreadsheet10.3!Z1044,0)+IF(IncludeDeal2,Spreadsheet10.3!Z2046,0)+IF(IncludeDeal3,Spreadsheet10.3!Z3046,0)+IF(IncludeDeal4,-Spreadsheet10.3!Z1044,0) -> 0 | AA37: =IF(IncludeDeal1,Spreadsheet10.3!AA1044,0)+IF(IncludeDeal2,Spreadsheet10.3!AA2046,0)+IF(IncludeDeal3,Spreadsheet10.3!AA3046,0)+IF(IncludeDeal4,-Spreadsheet10.3!AA1044,0) -> 0 | AB37: =IF(IncludeDeal1,Spreadsheet10.3!AB1044,0)+IF(IncludeDeal2,Spreadsheet10.3!AB2046,0)+IF(IncludeDeal3,Spreadsheet10.3!AB3046,0)+IF(IncludeDeal4,-Spreadsheet10.3!AB1044,0) -> 0 | AC37: =IF(IncludeDeal1,Spreadsheet10.3!AC1044,0)+IF(IncludeDeal2,Spreadsheet10.3!AC2046,0)+IF(IncludeDeal3,Spreadsheet10.3!AC3046,0)+IF(IncludeDeal4,-Spreadsheet10.3!AC1044,0) -> 0 | AD37: =IF(IncludeDeal1,Spreadsheet10.3!AD1044,0)+IF(IncludeDeal2,Spreadsheet10.3!AD2046,0)+IF(IncludeDeal3,Spreadsheet10.3!AD3046,0)+IF(IncludeDeal4,-Spreadsheet10.3!AD1044,0) -> 0 | AE37: =IF(IncludeDeal1,Spreadsheet10.3!AE1044,0)+IF(IncludeDeal2,Spreadsheet10.3!AE2046,0)+IF(IncludeDeal3,Spreadsheet10.3!AE3046,0)+IF(IncludeDeal4,-Spreadsheet10.3!AE1044,0) -> 0
B38: Simulation 9 | C38: =IF(IncludeDeal1,Spreadsheet10.3!C1045,0)+IF(IncludeDeal2,Spreadsheet10.3!C2047,0)+IF(IncludeDeal3,Spreadsheet10.3!C3047,0)+IF(IncludeDeal4,-Spreadsheet10.3!C1045,0) -> -1.533736822 | D38: =IF(IncludeDeal1,Spreadsheet10.3!D1045,0)+IF(IncludeDeal2,Spreadsheet10.3!D2047,0)+IF(IncludeDeal3,Spreadsheet10.3!D3047,0)+IF(IncludeDeal4,-Spreadsheet10.3!D1045,0) -> -1.685122088 | E38: =IF(IncludeDeal1,Spreadsheet10.3!E1045,0)+IF(IncludeDeal2,Spreadsheet10.3!E2047,0)+IF(IncludeDeal3,Spreadsheet10.3!E3047,0)+IF(IncludeDeal4,-Spreadsheet10.3!E1045,0) -> 3.931585037 | F38: =IF(IncludeDeal1,Spreadsheet10.3!F1045,0)+IF(IncludeDeal2,Spreadsheet10.3!F2047,0)+IF(IncludeDeal3,Spreadsheet10.3!F3047,0)+IF(IncludeDeal4,-Spreadsheet10.3!F1045,0) -> 3.942086368 | G38: =IF(IncludeDeal1,Spreadsheet10.3!G1045,0)+IF(IncludeDeal2,Spreadsheet10.3!G2047,0)+IF(IncludeDeal3,Spreadsheet10.3!G3047,0)+IF(IncludeDeal4,-Spreadsheet10.3!G1045,0) -> 4.363897423 | H38: =IF(IncludeDeal1,Spreadsheet10.3!H1045,0)+IF(IncludeDeal2,Spreadsheet10.3!H2047,0)+IF(IncludeDeal3,Spreadsheet10.3!H3047,0)+IF(IncludeDeal4,-Spreadsheet10.3!H1045,0) -> 7.446526975 | I38: =IF(IncludeDeal1,Spreadsheet10.3!I1045,0)+IF(IncludeDeal2,Spreadsheet10.3!I2047,0)+IF(IncludeDeal3,Spreadsheet10.3!I3047,0)+IF(IncludeDeal4,-Spreadsheet10.3!I1045,0) -> 7.435411803 | J38: =IF(IncludeDeal1,Spreadsheet10.3!J1045,0)+IF(IncludeDeal2,Spreadsheet10.3!J2047,0)+IF(IncludeDeal3,Spreadsheet10.3!J3047,0)+IF(IncludeDeal4,-Spreadsheet10.3!J1045,0) -> 10.26968694 | K38: =IF(IncludeDeal1,Spreadsheet10.3!K1045,0)+IF(IncludeDeal2,Spreadsheet10.3!K2047,0)+IF(IncludeDeal3,Spreadsheet10.3!K3047,0)+IF(IncludeDeal4,-Spreadsheet10.3!K1045,0) -> 13.1399565 | L38: =IF(IncludeDeal1,Spreadsheet10.3!L1045,0)+IF(IncludeDeal2,Spreadsheet10.3!L2047,0)+IF(IncludeDeal3,Spreadsheet10.3!L3047,0)+IF(IncludeDeal4,-Spreadsheet10.3!L1045,0) -> 12.94752819 | M38: =IF(IncludeDeal1,Spreadsheet10.3!M1045,0)+IF(IncludeDeal2,Spreadsheet10.3!M2047,0)+IF(IncludeDeal3,Spreadsheet10.3!M3047,0)+IF(IncludeDeal4,-Spreadsheet10.3!M1045,0) -> 13.06707935 | N38: =IF(IncludeDeal1,Spreadsheet10.3!N1045,0)+IF(IncludeDeal2,Spreadsheet10.3!N2047,0)+IF(IncludeDeal3,Spreadsheet10.3!N3047,0)+IF(IncludeDeal4,-Spreadsheet10.3!N1045,0) -> 16.48559007 | O38: =IF(IncludeDeal1,Spreadsheet10.3!O1045,0)+IF(IncludeDeal2,Spreadsheet10.3!O2047,0)+IF(IncludeDeal3,Spreadsheet10.3!O3047,0)+IF(IncludeDeal4,-Spreadsheet10.3!O1045,0) -> 15.9724949 | P38: =IF(IncludeDeal1,Spreadsheet10.3!P1045,0)+IF(IncludeDeal2,Spreadsheet10.3!P2047,0)+IF(IncludeDeal3,Spreadsheet10.3!P3047,0)+IF(IncludeDeal4,-Spreadsheet10.3!P1045,0) -> 18.42825143 | Q38: =IF(IncludeDeal1,Spreadsheet10.3!Q1045,0)+IF(IncludeDeal2,Spreadsheet10.3!Q2047,0)+IF(IncludeDeal3,Spreadsheet10.3!Q3047,0)+IF(IncludeDeal4,-Spreadsheet10.3!Q1045,0) -> 14.71995281 | R38: =IF(IncludeDeal1,Spreadsheet10.3!R1045,0)+IF(IncludeDeal2,Spreadsheet10.3!R2047,0)+IF(IncludeDeal3,Spreadsheet10.3!R3047,0)+IF(IncludeDeal4,-Spreadsheet10.3!R1045,0) -> 11.20905966 | S38: =IF(IncludeDeal1,Spreadsheet10.3!S1045,0)+IF(IncludeDeal2,Spreadsheet10.3!S2047,0)+IF(IncludeDeal3,Spreadsheet10.3!S3047,0)+IF(IncludeDeal4,-Spreadsheet10.3!S1045,0) -> 8.580126411 | T38: =IF(IncludeDeal1,Spreadsheet10.3!T1045,0)+IF(IncludeDeal2,Spreadsheet10.3!T2047,0)+IF(IncludeDeal3,Spreadsheet10.3!T3047,0)+IF(IncludeDeal4,-Spreadsheet10.3!T1045,0) -> 9.950775228 | U38: =IF(IncludeDeal1,Spreadsheet10.3!U1045,0)+IF(IncludeDeal2,Spreadsheet10.3!U2047,0)+IF(IncludeDeal3,Spreadsheet10.3!U3047,0)+IF(IncludeDeal4,-Spreadsheet10.3!U1045,0) -> 11.91276723 | V38: =IF(IncludeDeal1,Spreadsheet10.3!V1045,0)+IF(IncludeDeal2,Spreadsheet10.3!V2047,0)+IF(IncludeDeal3,Spreadsheet10.3!V3047,0)+IF(IncludeDeal4,-Spreadsheet10.3!V1045,0) -> 12.93839478 | W38: =IF(IncludeDeal1,Spreadsheet10.3!W1045,0)+IF(IncludeDeal2,Spreadsheet10.3!W2047,0)+IF(IncludeDeal3,Spreadsheet10.3!W3047,0)+IF(IncludeDeal4,-Spreadsheet10.3!W1045,0) -> 20.571074 | X38: =IF(IncludeDeal1,Spreadsheet10.3!X1045,0)+IF(IncludeDeal2,Spreadsheet10.3!X2047,0)+IF(IncludeDeal3,Spreadsheet10.3!X3047,0)+IF(IncludeDeal4,-Spreadsheet10.3!X1045,0) -> 0 | Y38: =IF(IncludeDeal1,Spreadsheet10.3!Y1045,0)+IF(IncludeDeal2,Spreadsheet10.3!Y2047,0)+IF(IncludeDeal3,Spreadsheet10.3!Y3047,0)+IF(IncludeDeal4,-Spreadsheet10.3!Y1045,0) -> 0 | Z38: =IF(IncludeDeal1,Spreadsheet10.3!Z1045,0)+IF(IncludeDeal2,Spreadsheet10.3!Z2047,0)+IF(IncludeDeal3,Spreadsheet10.3!Z3047,0)+IF(IncludeDeal4,-Spreadsheet10.3!Z1045,0) -> 0 | AA38: =IF(IncludeDeal1,Spreadsheet10.3!AA1045,0)+IF(IncludeDeal2,Spreadsheet10.3!AA2047,0)+IF(IncludeDeal3,Spreadsheet10.3!AA3047,0)+IF(IncludeDeal4,-Spreadsheet10.3!AA1045,0) -> 0 | AB38: =IF(IncludeDeal1,Spreadsheet10.3!AB1045,0)+IF(IncludeDeal2,Spreadsheet10.3!AB2047,0)+IF(IncludeDeal3,Spreadsheet10.3!AB3047,0)+IF(IncludeDeal4,-Spreadsheet10.3!AB1045,0) -> 0 | AC38: =IF(IncludeDeal1,Spreadsheet10.3!AC1045,0)+IF(IncludeDeal2,Spreadsheet10.3!AC2047,0)+IF(IncludeDeal3,Spreadsheet10.3!AC3047,0)+IF(IncludeDeal4,-Spreadsheet10.3!AC1045,0) -> 0 | AD38: =IF(IncludeDeal1,Spreadsheet10.3!AD1045,0)+IF(IncludeDeal2,Spreadsheet10.3!AD2047,0)+IF(IncludeDeal3,Spreadsheet10.3!AD3047,0)+IF(IncludeDeal4,-Spreadsheet10.3!AD1045,0) -> 0 | AE38: =IF(IncludeDeal1,Spreadsheet10.3!AE1045,0)+IF(IncludeDeal2,Spreadsheet10.3!AE2047,0)+IF(IncludeDeal3,Spreadsheet10.3!AE3047,0)+IF(IncludeDeal4,-Spreadsheet10.3!AE1045,0) -> 0
B39: Simulation 10 | C39: =IF(IncludeDeal1,Spreadsheet10.3!C1046,0)+IF(IncludeDeal2,Spreadsheet10.3!C2048,0)+IF(IncludeDeal3,Spreadsheet10.3!C3048,0)+IF(IncludeDeal4,-Spreadsheet10.3!C1046,0) -> -1.533736822 | D39: =IF(IncludeDeal1,Spreadsheet10.3!D1046,0)+IF(IncludeDeal2,Spreadsheet10.3!D2048,0)+IF(IncludeDeal3,Spreadsheet10.3!D3048,0)+IF(IncludeDeal4,-Spreadsheet10.3!D1046,0) -> -5.861425775 | E39: =IF(IncludeDeal1,Spreadsheet10.3!E1046,0)+IF(IncludeDeal2,Spreadsheet10.3!E2048,0)+IF(IncludeDeal3,Spreadsheet10.3!E3048,0)+IF(IncludeDeal4,-Spreadsheet10.3!E1046,0) -> -4.802227529 | F39: =IF(IncludeDeal1,Spreadsheet10.3!F1046,0)+IF(IncludeDeal2,Spreadsheet10.3!F2048,0)+IF(IncludeDeal3,Spreadsheet10.3!F3048,0)+IF(IncludeDeal4,-Spreadsheet10.3!F1046,0) -> -11.53623923 | G39: =IF(IncludeDeal1,Spreadsheet10.3!G1046,0)+IF(IncludeDeal2,Spreadsheet10.3!G2048,0)+IF(IncludeDeal3,Spreadsheet10.3!G3048,0)+IF(IncludeDeal4,-Spreadsheet10.3!G1046,0) -> -12.8754447 | H39: =IF(IncludeDeal1,Spreadsheet10.3!H1046,0)+IF(IncludeDeal2,Spreadsheet10.3!H2048,0)+IF(IncludeDeal3,Spreadsheet10.3!H3048,0)+IF(IncludeDeal4,-Spreadsheet10.3!H1046,0) -> -18.7888174 | I39: =IF(IncludeDeal1,Spreadsheet10.3!I1046,0)+IF(IncludeDeal2,Spreadsheet10.3!I2048,0)+IF(IncludeDeal3,Spreadsheet10.3!I3048,0)+IF(IncludeDeal4,-Spreadsheet10.3!I1046,0) -> -16.70804369 | J39: =IF(IncludeDeal1,Spreadsheet10.3!J1046,0)+IF(IncludeDeal2,Spreadsheet10.3!J2048,0)+IF(IncludeDeal3,Spreadsheet10.3!J3048,0)+IF(IncludeDeal4,-Spreadsheet10.3!J1046,0) -> -17.53817012 | K39: =IF(IncludeDeal1,Spreadsheet10.3!K1046,0)+IF(IncludeDeal2,Spreadsheet10.3!K2048,0)+IF(IncludeDeal3,Spreadsheet10.3!K3048,0)+IF(IncludeDeal4,-Spreadsheet10.3!K1046,0) -> -13.72620626 | L39: =IF(IncludeDeal1,Spreadsheet10.3!L1046,0)+IF(IncludeDeal2,Spreadsheet10.3!L2048,0)+IF(IncludeDeal3,Spreadsheet10.3!L3048,0)+IF(IncludeDeal4,-Spreadsheet10.3!L1046,0) -> -18.59258034 | M39: =IF(IncludeDeal1,Spreadsheet10.3!M1046,0)+IF(IncludeDeal2,Spreadsheet10.3!M2048,0)+IF(IncludeDeal3,Spreadsheet10.3!M3048,0)+IF(IncludeDeal4,-Spreadsheet10.3!M1046,0) -> -13.25665549 | N39: =IF(IncludeDeal1,Spreadsheet10.3!N1046,0)+IF(IncludeDeal2,Spreadsheet10.3!N2048,0)+IF(IncludeDeal3,Spreadsheet10.3!N3048,0)+IF(IncludeDeal4,-Spreadsheet10.3!N1046,0) -> -10.6075963 | O39: =IF(IncludeDeal1,Spreadsheet10.3!O1046,0)+IF(IncludeDeal2,Spreadsheet10.3!O2048,0)+IF(IncludeDeal3,Spreadsheet10.3!O3048,0)+IF(IncludeDeal4,-Spreadsheet10.3!O1046,0) -> -7.225438814 | P39: =IF(IncludeDeal1,Spreadsheet10.3!P1046,0)+IF(IncludeDeal2,Spreadsheet10.3!P2048,0)+IF(IncludeDeal3,Spreadsheet10.3!P3048,0)+IF(IncludeDeal4,-Spreadsheet10.3!P1046,0) -> -7.81921876 | Q39: =IF(IncludeDeal1,Spreadsheet10.3!Q1046,0)+IF(IncludeDeal2,Spreadsheet10.3!Q2048,0)+IF(IncludeDeal3,Spreadsheet10.3!Q3048,0)+IF(IncludeDeal4,-Spreadsheet10.3!Q1046,0) -> -16.47456078 | R39: =IF(IncludeDeal1,Spreadsheet10.3!R1046,0)+IF(IncludeDeal2,Spreadsheet10.3!R2048,0)+IF(IncludeDeal3,Spreadsheet10.3!R3048,0)+IF(IncludeDeal4,-Spreadsheet10.3!R1046,0) -> -17.76610808 | S39: =IF(IncludeDeal1,Spreadsheet10.3!S1046,0)+IF(IncludeDeal2,Spreadsheet10.3!S2048,0)+IF(IncludeDeal3,Spreadsheet10.3!S3048,0)+IF(IncludeDeal4,-Spreadsheet10.3!S1046,0) -> -15.39797298 | T39: =IF(IncludeDeal1,Spreadsheet10.3!T1046,0)+IF(IncludeDeal2,Spreadsheet10.3!T2048,0)+IF(IncludeDeal3,Spreadsheet10.3!T3048,0)+IF(IncludeDeal4,-Spreadsheet10.3!T1046,0) -> -12.0524149 | U39: =IF(IncludeDeal1,Spreadsheet10.3!U1046,0)+IF(IncludeDeal2,Spreadsheet10.3!U2048,0)+IF(IncludeDeal3,Spreadsheet10.3!U3048,0)+IF(IncludeDeal4,-Spreadsheet10.3!U1046,0) -> -9.526459329 | V39: =IF(IncludeDeal1,Spreadsheet10.3!V1046,0)+IF(IncludeDeal2,Spreadsheet10.3!V2048,0)+IF(IncludeDeal3,Spreadsheet10.3!V3048,0)+IF(IncludeDeal4,-Spreadsheet10.3!V1046,0) -> -10.77030887 | W39: =IF(IncludeDeal1,Spreadsheet10.3!W1046,0)+IF(IncludeDeal2,Spreadsheet10.3!W2048,0)+IF(IncludeDeal3,Spreadsheet10.3!W3048,0)+IF(IncludeDeal4,-Spreadsheet10.3!W1046,0) -> -9.491549365 | X39: =IF(IncludeDeal1,Spreadsheet10.3!X1046,0)+IF(IncludeDeal2,Spreadsheet10.3!X2048,0)+IF(IncludeDeal3,Spreadsheet10.3!X3048,0)+IF(IncludeDeal4,-Spreadsheet10.3!X1046,0) -> 0 | Y39: =IF(IncludeDeal1,Spreadsheet10.3!Y1046,0)+IF(IncludeDeal2,Spreadsheet10.3!Y2048,0)+IF(IncludeDeal3,Spreadsheet10.3!Y3048,0)+IF(IncludeDeal4,-Spreadsheet10.3!Y1046,0) -> 0 | Z39: =IF(IncludeDeal1,Spreadsheet10.3!Z1046,0)+IF(IncludeDeal2,Spreadsheet10.3!Z2048,0)+IF(IncludeDeal3,Spreadsheet10.3!Z3048,0)+IF(IncludeDeal4,-Spreadsheet10.3!Z1046,0) -> 0 | AA39: =IF(IncludeDeal1,Spreadsheet10.3!AA1046,0)+IF(IncludeDeal2,Spreadsheet10.3!AA2048,0)+IF(IncludeDeal3,Spreadsheet10.3!AA3048,0)+IF(IncludeDeal4,-Spreadsheet10.3!AA1046,0) -> 0 | AB39: =IF(IncludeDeal1,Spreadsheet10.3!AB1046,0)+IF(IncludeDeal2,Spreadsheet10.3!AB2048,0)+IF(IncludeDeal3,Spreadsheet10.3!AB3048,0)+IF(IncludeDeal4,-Spreadsheet10.3!AB1046,0) -> 0 | AC39: =IF(IncludeDeal1,Spreadsheet10.3!AC1046,0)+IF(IncludeDeal2,Spreadsheet10.3!AC2048,0)+IF(IncludeDeal3,Spreadsheet10.3!AC3048,0)+IF(IncludeDeal4,-Spreadsheet10.3!AC1046,0) -> 0 | AD39: =IF(IncludeDeal1,Spreadsheet10.3!AD1046,0)+IF(IncludeDeal2,Spreadsheet10.3!AD2048,0)+IF(IncludeDeal3,Spreadsheet10.3!AD3048,0)+IF(IncludeDeal4,-Spreadsheet10.3!AD1046,0) -> 0 | AE39: =IF(IncludeDeal1,Spreadsheet10.3!AE1046,0)+IF(IncludeDeal2,Spreadsheet10.3!AE2048,0)+IF(IncludeDeal3,Spreadsheet10.3!AE3048,0)+IF(IncludeDeal4,-Spreadsheet10.3!AE1046,0) -> 0
B40: Simulation 11 | C40: =IF(IncludeDeal1,Spreadsheet10.3!C1047,0)+IF(IncludeDeal2,Spreadsheet10.3!C2049,0)+IF(IncludeDeal3,Spreadsheet10.3!C3049,0)+IF(IncludeDeal4,-Spreadsheet10.3!C1047,0) -> -1.533736822 | D40: =IF(IncludeDeal1,Spreadsheet10.3!D1047,0)+IF(IncludeDeal2,Spreadsheet10.3!D2049,0)+IF(IncludeDeal3,Spreadsheet10.3!D3049,0)+IF(IncludeDeal4,-Spreadsheet10.3!D1047,0) -> -0.4896318295 | E40: =IF(IncludeDeal1,Spreadsheet10.3!E1047,0)+IF(IncludeDeal2,Spreadsheet10.3!E2049,0)+IF(IncludeDeal3,Spreadsheet10.3!E3049,0)+IF(IncludeDeal4,-Spreadsheet10.3!E1047,0) -> 0.3372451049 | F40: =IF(IncludeDeal1,Spreadsheet10.3!F1047,0)+IF(IncludeDeal2,Spreadsheet10.3!F2049,0)+IF(IncludeDeal3,Spreadsheet10.3!F3049,0)+IF(IncludeDeal4,-Spreadsheet10.3!F1047,0) -> 1.6057235 | G40: =IF(IncludeDeal1,Spreadsheet10.3!G1047,0)+IF(IncludeDeal2,Spreadsheet10.3!G2049,0)+IF(IncludeDeal3,Spreadsheet10.3!G3049,0)+IF(IncludeDeal4,-Spreadsheet10.3!G1047,0) -> 4.891454217 | H40: =IF(IncludeDeal1,Spreadsheet10.3!H1047,0)+IF(IncludeDeal2,Spreadsheet10.3!H2049,0)+IF(IncludeDeal3,Spreadsheet10.3!H3049,0)+IF(IncludeDeal4,-Spreadsheet10.3!H1047,0) -> 2.402561281 | I40: =IF(IncludeDeal1,Spreadsheet10.3!I1047,0)+IF(IncludeDeal2,Spreadsheet10.3!I2049,0)+IF(IncludeDeal3,Spreadsheet10.3!I3049,0)+IF(IncludeDeal4,-Spreadsheet10.3!I1047,0) -> -1.645781653 | J40: =IF(IncludeDeal1,Spreadsheet10.3!J1047,0)+IF(IncludeDeal2,Spreadsheet10.3!J2049,0)+IF(IncludeDeal3,Spreadsheet10.3!J3049,0)+IF(IncludeDeal4,-Spreadsheet10.3!J1047,0) -> -1.086760832 | K40: =IF(IncludeDeal1,Spreadsheet10.3!K1047,0)+IF(IncludeDeal2,Spreadsheet10.3!K2049,0)+IF(IncludeDeal3,Spreadsheet10.3!K3049,0)+IF(IncludeDeal4,-Spreadsheet10.3!K1047,0) -> 0.5268545376 | L40: =IF(IncludeDeal1,Spreadsheet10.3!L1047,0)+IF(IncludeDeal2,Spreadsheet10.3!L2049,0)+IF(IncludeDeal3,Spreadsheet10.3!L3049,0)+IF(IncludeDeal4,-Spreadsheet10.3!L1047,0) -> 0.2637874418 | M40: =IF(IncludeDeal1,Spreadsheet10.3!M1047,0)+IF(IncludeDeal2,Spreadsheet10.3!M2049,0)+IF(IncludeDeal3,Spreadsheet10.3!M3049,0)+IF(IncludeDeal4,-Spreadsheet10.3!M1047,0) -> -4.434562694 | N40: =IF(IncludeDeal1,Spreadsheet10.3!N1047,0)+IF(IncludeDeal2,Spreadsheet10.3!N2049,0)+IF(IncludeDeal3,Spreadsheet10.3!N3049,0)+IF(IncludeDeal4,-Spreadsheet10.3!N1047,0) -> -9.100629609 | O40: =IF(IncludeDeal1,Spreadsheet10.3!O1047,0)+IF(IncludeDeal2,Spreadsheet10.3!O2049,0)+IF(IncludeDeal3,Spreadsheet10.3!O3049,0)+IF(IncludeDeal4,-Spreadsheet10.3!O1047,0) -> -13.75493107 | P40: =IF(IncludeDeal1,Spreadsheet10.3!P1047,0)+IF(IncludeDeal2,Spreadsheet10.3!P2049,0)+IF(IncludeDeal3,Spreadsheet10.3!P3049,0)+IF(IncludeDeal4,-Spreadsheet10.3!P1047,0) -> -17.77201585 | Q40: =IF(IncludeDeal1,Spreadsheet10.3!Q1047,0)+IF(IncludeDeal2,Spreadsheet10.3!Q2049,0)+IF(IncludeDeal3,Spreadsheet10.3!Q3049,0)+IF(IncludeDeal4,-Spreadsheet10.3!Q1047,0) -> -24.80927057 | R40: =IF(IncludeDeal1,Spreadsheet10.3!R1047,0)+IF(IncludeDeal2,Spreadsheet10.3!R2049,0)+IF(IncludeDeal3,Spreadsheet10.3!R3049,0)+IF(IncludeDeal4,-Spreadsheet10.3!R1047,0) -> -28.27079949 | S40: =IF(IncludeDeal1,Spreadsheet10.3!S1047,0)+IF(IncludeDeal2,Spreadsheet10.3!S2049,0)+IF(IncludeDeal3,Spreadsheet10.3!S3049,0)+IF(IncludeDeal4,-Spreadsheet10.3!S1047,0) -> -19.13254611 | T40: =IF(IncludeDeal1,Spreadsheet10.3!T1047,0)+IF(IncludeDeal2,Spreadsheet10.3!T2049,0)+IF(IncludeDeal3,Spreadsheet10.3!T3049,0)+IF(IncludeDeal4,-Spreadsheet10.3!T1047,0) -> -32.90930951 | U40: =IF(IncludeDeal1,Spreadsheet10.3!U1047,0)+IF(IncludeDeal2,Spreadsheet10.3!U2049,0)+IF(IncludeDeal3,Spreadsheet10.3!U3049,0)+IF(IncludeDeal4,-Spreadsheet10.3!U1047,0) -> -32.56147179 | V40: =IF(IncludeDeal1,Spreadsheet10.3!V1047,0)+IF(IncludeDeal2,Spreadsheet10.3!V2049,0)+IF(IncludeDeal3,Spreadsheet10.3!V3049,0)+IF(IncludeDeal4,-Spreadsheet10.3!V1047,0) -> -39.02363276 | W40: =IF(IncludeDeal1,Spreadsheet10.3!W1047,0)+IF(IncludeDeal2,Spreadsheet10.3!W2049,0)+IF(IncludeDeal3,Spreadsheet10.3!W3049,0)+IF(IncludeDeal4,-Spreadsheet10.3!W1047,0) -> -31.9105577 | X40: =IF(IncludeDeal1,Spreadsheet10.3!X1047,0)+IF(IncludeDeal2,Spreadsheet10.3!X2049,0)+IF(IncludeDeal3,Spreadsheet10.3!X3049,0)+IF(IncludeDeal4,-Spreadsheet10.3!X1047,0) -> 0 | Y40: =IF(IncludeDeal1,Spreadsheet10.3!Y1047,0)+IF(IncludeDeal2,Spreadsheet10.3!Y2049,0)+IF(IncludeDeal3,Spreadsheet10.3!Y3049,0)+IF(IncludeDeal4,-Spreadsheet10.3!Y1047,0) -> 0 | Z40: =IF(IncludeDeal1,Spreadsheet10.3!Z1047,0)+IF(IncludeDeal2,Spreadsheet10.3!Z2049,0)+IF(IncludeDeal3,Spreadsheet10.3!Z3049,0)+IF(IncludeDeal4,-Spreadsheet10.3!Z1047,0) -> 0 | AA40: =IF(IncludeDeal1,Spreadsheet10.3!AA1047,0)+IF(IncludeDeal2,Spreadsheet10.3!AA2049,0)+IF(IncludeDeal3,Spreadsheet10.3!AA3049,0)+IF(IncludeDeal4,-Spreadsheet10.3!AA1047,0) -> 0 | AB40: =IF(IncludeDeal1,Spreadsheet10.3!AB1047,0)+IF(IncludeDeal2,Spreadsheet10.3!AB2049,0)+IF(IncludeDeal3,Spreadsheet10.3!AB3049,0)+IF(IncludeDeal4,-Spreadsheet10.3!AB1047,0) -> 0 | AC40: =IF(IncludeDeal1,Spreadsheet10.3!AC1047,0)+IF(IncludeDeal2,Spreadsheet10.3!AC2049,0)+IF(IncludeDeal3,Spreadsheet10.3!AC3049,0)+IF(IncludeDeal4,-Spreadsheet10.3!AC1047,0) -> 0 | AD40: =IF(IncludeDeal1,Spreadsheet10.3!AD1047,0)+IF(IncludeDeal2,Spreadsheet10.3!AD2049,0)+IF(IncludeDeal3,Spreadsheet10.3!AD3049,0)+IF(IncludeDeal4,-Spreadsheet10.3!AD1047,0) -> 0 | AE40: =IF(IncludeDeal1,Spreadsheet10.3!AE1047,0)+IF(IncludeDeal2,Spreadsheet10.3!AE2049,0)+IF(IncludeDeal3,Spreadsheet10.3!AE3049,0)+IF(IncludeDeal4,-Spreadsheet10.3!AE1047,0) -> 0
B41: Simulation 12 | C41: =IF(IncludeDeal1,Spreadsheet10.3!C1048,0)+IF(IncludeDeal2,Spreadsheet10.3!C2050,0)+IF(IncludeDeal3,Spreadsheet10.3!C3050,0)+IF(IncludeDeal4,-Spreadsheet10.3!C1048,0) -> -1.533736822 | D41: =IF(IncludeDeal1,Spreadsheet10.3!D1048,0)+IF(IncludeDeal2,Spreadsheet10.3!D2050,0)+IF(IncludeDeal3,Spreadsheet10.3!D3050,0)+IF(IncludeDeal4,-Spreadsheet10.3!D1048,0) -> -0.6854693889 | E41: =IF(IncludeDeal1,Spreadsheet10.3!E1048,0)+IF(IncludeDeal2,Spreadsheet10.3!E2050,0)+IF(IncludeDeal3,Spreadsheet10.3!E3050,0)+IF(IncludeDeal4,-Spreadsheet10.3!E1048,0) -> -4.503358476 | F41: =IF(IncludeDeal1,Spreadsheet10.3!F1048,0)+IF(IncludeDeal2,Spreadsheet10.3!F2050,0)+IF(IncludeDeal3,Spreadsheet10.3!F3050,0)+IF(IncludeDeal4,-Spreadsheet10.3!F1048,0) -> -4.232432419 | G41: =IF(IncludeDeal1,Spreadsheet10.3!G1048,0)+IF(IncludeDeal2,Spreadsheet10.3!G2050,0)+IF(IncludeDeal3,Spreadsheet10.3!G3050,0)+IF(IncludeDeal4,-Spreadsheet10.3!G1048,0) -> -2.441260853 | H41: =IF(IncludeDeal1,Spreadsheet10.3!H1048,0)+IF(IncludeDeal2,Spreadsheet10.3!H2050,0)+IF(IncludeDeal3,Spreadsheet10.3!H3050,0)+IF(IncludeDeal4,-Spreadsheet10.3!H1048,0) -> -5.410819249 | I41: =IF(IncludeDeal1,Spreadsheet10.3!I1048,0)+IF(IncludeDeal2,Spreadsheet10.3!I2050,0)+IF(IncludeDeal3,Spreadsheet10.3!I3050,0)+IF(IncludeDeal4,-Spreadsheet10.3!I1048,0) -> -8.315860457 | J41: =IF(IncludeDeal1,Spreadsheet10.3!J1048,0)+IF(IncludeDeal2,Spreadsheet10.3!J2050,0)+IF(IncludeDeal3,Spreadsheet10.3!J3050,0)+IF(IncludeDeal4,-Spreadsheet10.3!J1048,0) -> -10.54980146 | K41: =IF(IncludeDeal1,Spreadsheet10.3!K1048,0)+IF(IncludeDeal2,Spreadsheet10.3!K2050,0)+IF(IncludeDeal3,Spreadsheet10.3!K3050,0)+IF(IncludeDeal4,-Spreadsheet10.3!K1048,0) -> -17.25762825 | L41: =IF(IncludeDeal1,Spreadsheet10.3!L1048,0)+IF(IncludeDeal2,Spreadsheet10.3!L2050,0)+IF(IncludeDeal3,Spreadsheet10.3!L3050,0)+IF(IncludeDeal4,-Spreadsheet10.3!L1048,0) -> -18.6951867 | M41: =IF(IncludeDeal1,Spreadsheet10.3!M1048,0)+IF(IncludeDeal2,Spreadsheet10.3!M2050,0)+IF(IncludeDeal3,Spreadsheet10.3!M3050,0)+IF(IncludeDeal4,-Spreadsheet10.3!M1048,0) -> -22.01249894 | N41: =IF(IncludeDeal1,Spreadsheet10.3!N1048,0)+IF(IncludeDeal2,Spreadsheet10.3!N2050,0)+IF(IncludeDeal3,Spreadsheet10.3!N3050,0)+IF(IncludeDeal4,-Spreadsheet10.3!N1048,0) -> -29.72939056 | O41: =IF(IncludeDeal1,Spreadsheet10.3!O1048,0)+IF(IncludeDeal2,Spreadsheet10.3!O2050,0)+IF(IncludeDeal3,Spreadsheet10.3!O3050,0)+IF(IncludeDeal4,-Spreadsheet10.3!O1048,0) -> -32.16438317 | P41: =IF(IncludeDeal1,Spreadsheet10.3!P1048,0)+IF(IncludeDeal2,Spreadsheet10.3!P2050,0)+IF(IncludeDeal3,Spreadsheet10.3!P3050,0)+IF(IncludeDeal4,-Spreadsheet10.3!P1048,0) -> -31.58419016 | Q41: =IF(IncludeDeal1,Spreadsheet10.3!Q1048,0)+IF(IncludeDeal2,Spreadsheet10.3!Q2050,0)+IF(IncludeDeal3,Spreadsheet10.3!Q3050,0)+IF(IncludeDeal4,-Spreadsheet10.3!Q1048,0) -> -39.88603633 | R41: =IF(IncludeDeal1,Spreadsheet10.3!R1048,0)+IF(IncludeDeal2,Spreadsheet10.3!R2050,0)+IF(IncludeDeal3,Spreadsheet10.3!R3050,0)+IF(IncludeDeal4,-Spreadsheet10.3!R1048,0) -> -51.6593866 | S41: =IF(IncludeDeal1,Spreadsheet10.3!S1048,0)+IF(IncludeDeal2,Spreadsheet10.3!S2050,0)+IF(IncludeDeal3,Spreadsheet10.3!S3050,0)+IF(IncludeDeal4,-Spreadsheet10.3!S1048,0) -> -52.48152494 | T41: =IF(IncludeDeal1,Spreadsheet10.3!T1048,0)+IF(IncludeDeal2,Spreadsheet10.3!T2050,0)+IF(IncludeDeal3,Spreadsheet10.3!T3050,0)+IF(IncludeDeal4,-Spreadsheet10.3!T1048,0) -> -57.06260297 | U41: =IF(IncludeDeal1,Spreadsheet10.3!U1048,0)+IF(IncludeDeal2,Spreadsheet10.3!U2050,0)+IF(IncludeDeal3,Spreadsheet10.3!U3050,0)+IF(IncludeDeal4,-Spreadsheet10.3!U1048,0) -> -74.27827154 | V41: =IF(IncludeDeal1,Spreadsheet10.3!V1048,0)+IF(IncludeDeal2,Spreadsheet10.3!V2050,0)+IF(IncludeDeal3,Spreadsheet10.3!V3050,0)+IF(IncludeDeal4,-Spreadsheet10.3!V1048,0) -> -63.13955355 | W41: =IF(IncludeDeal1,Spreadsheet10.3!W1048,0)+IF(IncludeDeal2,Spreadsheet10.3!W2050,0)+IF(IncludeDeal3,Spreadsheet10.3!W3050,0)+IF(IncludeDeal4,-Spreadsheet10.3!W1048,0) -> -61.59292907 | X41: =IF(IncludeDeal1,Spreadsheet10.3!X1048,0)+IF(IncludeDeal2,Spreadsheet10.3!X2050,0)+IF(IncludeDeal3,Spreadsheet10.3!X3050,0)+IF(IncludeDeal4,-Spreadsheet10.3!X1048,0) -> 0 | Y41: =IF(IncludeDeal1,Spreadsheet10.3!Y1048,0)+IF(IncludeDeal2,Spreadsheet10.3!Y2050,0)+IF(IncludeDeal3,Spreadsheet10.3!Y3050,0)+IF(IncludeDeal4,-Spreadsheet10.3!Y1048,0) -> 0 | Z41: =IF(IncludeDeal1,Spreadsheet10.3!Z1048,0)+IF(IncludeDeal2,Spreadsheet10.3!Z2050,0)+IF(IncludeDeal3,Spreadsheet10.3!Z3050,0)+IF(IncludeDeal4,-Spreadsheet10.3!Z1048,0) -> 0 | AA41: =IF(IncludeDeal1,Spreadsheet10.3!AA1048,0)+IF(IncludeDeal2,Spreadsheet10.3!AA2050,0)+IF(IncludeDeal3,Spreadsheet10.3!AA3050,0)+IF(IncludeDeal4,-Spreadsheet10.3!AA1048,0) -> 0 | AB41: =IF(IncludeDeal1,Spreadsheet10.3!AB1048,0)+IF(IncludeDeal2,Spreadsheet10.3!AB2050,0)+IF(IncludeDeal3,Spreadsheet10.3!AB3050,0)+IF(IncludeDeal4,-Spreadsheet10.3!AB1048,0) -> 0 | AC41: =IF(IncludeDeal1,Spreadsheet10.3!AC1048,0)+IF(IncludeDeal2,Spreadsheet10.3!AC2050,0)+IF(IncludeDeal3,Spreadsheet10.3!AC3050,0)+IF(IncludeDeal4,-Spreadsheet10.3!AC1048,0) -> 0 | AD41: =IF(IncludeDeal1,Spreadsheet10.3!AD1048,0)+IF(IncludeDeal2,Spreadsheet10.3!AD2050,0)+IF(IncludeDeal3,Spreadsheet10.3!AD3050,0)+IF(IncludeDeal4,-Spreadsheet10.3!AD1048,0) -> 0 | AE41: =IF(IncludeDeal1,Spreadsheet10.3!AE1048,0)+IF(IncludeDeal2,Spreadsheet10.3!AE2050,0)+IF(IncludeDeal3,Spreadsheet10.3!AE3050,0)+IF(IncludeDeal4,-Spreadsheet10.3!AE1048,0) -> 0
B42: Simulation 13 | C42: =IF(IncludeDeal1,Spreadsheet10.3!C1049,0)+IF(IncludeDeal2,Spreadsheet10.3!C2051,0)+IF(IncludeDeal3,Spreadsheet10.3!C3051,0)+IF(IncludeDeal4,-Spreadsheet10.3!C1049,0) -> -1.533736822 | D42: =IF(IncludeDeal1,Spreadsheet10.3!D1049,0)+IF(IncludeDeal2,Spreadsheet10.3!D2051,0)+IF(IncludeDeal3,Spreadsheet10.3!D3051,0)+IF(IncludeDeal4,-Spreadsheet10.3!D1049,0) -> 1.598418846 | E42: =IF(IncludeDeal1,Spreadsheet10.3!E1049,0)+IF(IncludeDeal2,Spreadsheet10.3!E2051,0)+IF(IncludeDeal3,Spreadsheet10.3!E3051,0)+IF(IncludeDeal4,-Spreadsheet10.3!E1049,0) -> 1.357191988 | F42: =IF(IncludeDeal1,Spreadsheet10.3!F1049,0)+IF(IncludeDeal2,Spreadsheet10.3!F2051,0)+IF(IncludeDeal3,Spreadsheet10.3!F3051,0)+IF(IncludeDeal4,-Spreadsheet10.3!F1049,0) -> -1.849198583 | G42: =IF(IncludeDeal1,Spreadsheet10.3!G1049,0)+IF(IncludeDeal2,Spreadsheet10.3!G2051,0)+IF(IncludeDeal3,Spreadsheet10.3!G3051,0)+IF(IncludeDeal4,-Spreadsheet10.3!G1049,0) -> 2.140512803 | H42: =IF(IncludeDeal1,Spreadsheet10.3!H1049,0)+IF(IncludeDeal2,Spreadsheet10.3!H2051,0)+IF(IncludeDeal3,Spreadsheet10.3!H3051,0)+IF(IncludeDeal4,-Spreadsheet10.3!H1049,0) -> 3.584566818 | I42: =IF(IncludeDeal1,Spreadsheet10.3!I1049,0)+IF(IncludeDeal2,Spreadsheet10.3!I2051,0)+IF(IncludeDeal3,Spreadsheet10.3!I3051,0)+IF(IncludeDeal4,-Spreadsheet10.3!I1049,0) -> 4.756161834 | J42: =IF(IncludeDeal1,Spreadsheet10.3!J1049,0)+IF(IncludeDeal2,Spreadsheet10.3!J2051,0)+IF(IncludeDeal3,Spreadsheet10.3!J3051,0)+IF(IncludeDeal4,-Spreadsheet10.3!J1049,0) -> 7.856639951 | K42: =IF(IncludeDeal1,Spreadsheet10.3!K1049,0)+IF(IncludeDeal2,Spreadsheet10.3!K2051,0)+IF(IncludeDeal3,Spreadsheet10.3!K3051,0)+IF(IncludeDeal4,-Spreadsheet10.3!K1049,0) -> 4.454863898 | L42: =IF(IncludeDeal1,Spreadsheet10.3!L1049,0)+IF(IncludeDeal2,Spreadsheet10.3!L2051,0)+IF(IncludeDeal3,Spreadsheet10.3!L3051,0)+IF(IncludeDeal4,-Spreadsheet10.3!L1049,0) -> 5.91144819 | M42: =IF(IncludeDeal1,Spreadsheet10.3!M1049,0)+IF(IncludeDeal2,Spreadsheet10.3!M2051,0)+IF(IncludeDeal3,Spreadsheet10.3!M3051,0)+IF(IncludeDeal4,-Spreadsheet10.3!M1049,0) -> 6.338659653 | N42: =IF(IncludeDeal1,Spreadsheet10.3!N1049,0)+IF(IncludeDeal2,Spreadsheet10.3!N2051,0)+IF(IncludeDeal3,Spreadsheet10.3!N3051,0)+IF(IncludeDeal4,-Spreadsheet10.3!N1049,0) -> 9.318931537 | O42: =IF(IncludeDeal1,Spreadsheet10.3!O1049,0)+IF(IncludeDeal2,Spreadsheet10.3!O2051,0)+IF(IncludeDeal3,Spreadsheet10.3!O3051,0)+IF(IncludeDeal4,-Spreadsheet10.3!O1049,0) -> 11.82510568 | P42: =IF(IncludeDeal1,Spreadsheet10.3!P1049,0)+IF(IncludeDeal2,Spreadsheet10.3!P2051,0)+IF(IncludeDeal3,Spreadsheet10.3!P3051,0)+IF(IncludeDeal4,-Spreadsheet10.3!P1049,0) -> 9.099437448 | Q42: =IF(IncludeDeal1,Spreadsheet10.3!Q1049,0)+IF(IncludeDeal2,Spreadsheet10.3!Q2051,0)+IF(IncludeDeal3,Spreadsheet10.3!Q3051,0)+IF(IncludeDeal4,-Spreadsheet10.3!Q1049,0) -> 8.064607096 | R42: =IF(IncludeDeal1,Spreadsheet10.3!R1049,0)+IF(IncludeDeal2,Spreadsheet10.3!R2051,0)+IF(IncludeDeal3,Spreadsheet10.3!R3051,0)+IF(IncludeDeal4,-Spreadsheet10.3!R1049,0) -> 6.747167711 | S42: =IF(IncludeDeal1,Spreadsheet10.3!S1049,0)+IF(IncludeDeal2,Spreadsheet10.3!S2051,0)+IF(IncludeDeal3,Spreadsheet10.3!S3051,0)+IF(IncludeDeal4,-Spreadsheet10.3!S1049,0) -> 8.559581701 | T42: =IF(IncludeDeal1,Spreadsheet10.3!T1049,0)+IF(IncludeDeal2,Spreadsheet10.3!T2051,0)+IF(IncludeDeal3,Spreadsheet10.3!T3051,0)+IF(IncludeDeal4,-Spreadsheet10.3!T1049,0) -> 8.138546824 | U42: =IF(IncludeDeal1,Spreadsheet10.3!U1049,0)+IF(IncludeDeal2,Spreadsheet10.3!U2051,0)+IF(IncludeDeal3,Spreadsheet10.3!U3051,0)+IF(IncludeDeal4,-Spreadsheet10.3!U1049,0) -> 8.609779749 | V42: =IF(IncludeDeal1,Spreadsheet10.3!V1049,0)+IF(IncludeDeal2,Spreadsheet10.3!V2051,0)+IF(IncludeDeal3,Spreadsheet10.3!V3051,0)+IF(IncludeDeal4,-Spreadsheet10.3!V1049,0) -> 10.96479504 | W42: =IF(IncludeDeal1,Spreadsheet10.3!W1049,0)+IF(IncludeDeal2,Spreadsheet10.3!W2051,0)+IF(IncludeDeal3,Spreadsheet10.3!W3051,0)+IF(IncludeDeal4,-Spreadsheet10.3!W1049,0) -> 1.24596738 | X42: =IF(IncludeDeal1,Spreadsheet10.3!X1049,0)+IF(IncludeDeal2,Spreadsheet10.3!X2051,0)+IF(IncludeDeal3,Spreadsheet10.3!X3051,0)+IF(IncludeDeal4,-Spreadsheet10.3!X1049,0) -> 0 | Y42: =IF(IncludeDeal1,Spreadsheet10.3!Y1049,0)+IF(IncludeDeal2,Spreadsheet10.3!Y2051,0)+IF(IncludeDeal3,Spreadsheet10.3!Y3051,0)+IF(IncludeDeal4,-Spreadsheet10.3!Y1049,0) -> 0 | Z42: =IF(IncludeDeal1,Spreadsheet10.3!Z1049,0)+IF(IncludeDeal2,Spreadsheet10.3!Z2051,0)+IF(IncludeDeal3,Spreadsheet10.3!Z3051,0)+IF(IncludeDeal4,-Spreadsheet10.3!Z1049,0) -> 0 | AA42: =IF(IncludeDeal1,Spreadsheet10.3!AA1049,0)+IF(IncludeDeal2,Spreadsheet10.3!AA2051,0)+IF(IncludeDeal3,Spreadsheet10.3!AA3051,0)+IF(IncludeDeal4,-Spreadsheet10.3!AA1049,0) -> 0 | AB42: =IF(IncludeDeal1,Spreadsheet10.3!AB1049,0)+IF(IncludeDeal2,Spreadsheet10.3!AB2051,0)+IF(IncludeDeal3,Spreadsheet10.3!AB3051,0)+IF(IncludeDeal4,-Spreadsheet10.3!AB1049,0) -> 0 | AC42: =IF(IncludeDeal1,Spreadsheet10.3!AC1049,0)+IF(IncludeDeal2,Spreadsheet10.3!AC2051,0)+IF(IncludeDeal3,Spreadsheet10.3!AC3051,0)+IF(IncludeDeal4,-Spreadsheet10.3!AC1049,0) -> 0 | AD42: =IF(IncludeDeal1,Spreadsheet10.3!AD1049,0)+IF(IncludeDeal2,Spreadsheet10.3!AD2051,0)+IF(IncludeDeal3,Spreadsheet10.3!AD3051,0)+IF(IncludeDeal4,-Spreadsheet10.3!AD1049,0) -> 0 | AE42: =IF(IncludeDeal1,Spreadsheet10.3!AE1049,0)+IF(IncludeDeal2,Spreadsheet10.3!AE2051,0)+IF(IncludeDeal3,Spreadsheet10.3!AE3051,0)+IF(IncludeDeal4,-Spreadsheet10.3!AE1049,0) -> 0
B43: Simulation 14 | C43: =IF(IncludeDeal1,Spreadsheet10.3!C1050,0)+IF(IncludeDeal2,Spreadsheet10.3!C2052,0)+IF(IncludeDeal3,Spreadsheet10.3!C3052,0)+IF(IncludeDeal4,-Spreadsheet10.3!C1050,0) -> -1.533736822 | D43: =IF(IncludeDeal1,Spreadsheet10.3!D1050,0)+IF(IncludeDeal2,Spreadsheet10.3!D2052,0)+IF(IncludeDeal3,Spreadsheet10.3!D3052,0)+IF(IncludeDeal4,-Spreadsheet10.3!D1050,0) -> 1.519350761 | E43: =IF(IncludeDeal1,Spreadsheet10.3!E1050,0)+IF(IncludeDeal2,Spreadsheet10.3!E2052,0)+IF(IncludeDeal3,Spreadsheet10.3!E3052,0)+IF(IncludeDeal4,-Spreadsheet10.3!E1050,0) -> 1.350762118 | F43: =IF(IncludeDeal1,Spreadsheet10.3!F1050,0)+IF(IncludeDeal2,Spreadsheet10.3!F2052,0)+IF(IncludeDeal3,Spreadsheet10.3!F3052,0)+IF(IncludeDeal4,-Spreadsheet10.3!F1050,0) -> 1.309782001 | G43: =IF(IncludeDeal1,Spreadsheet10.3!G1050,0)+IF(IncludeDeal2,Spreadsheet10.3!G2052,0)+IF(IncludeDeal3,Spreadsheet10.3!G3052,0)+IF(IncludeDeal4,-Spreadsheet10.3!G1050,0) -> 3.200864621 | H43: =IF(IncludeDeal1,Spreadsheet10.3!H1050,0)+IF(IncludeDeal2,Spreadsheet10.3!H2052,0)+IF(IncludeDeal3,Spreadsheet10.3!H3052,0)+IF(IncludeDeal4,-Spreadsheet10.3!H1050,0) -> 1.191628084 | I43: =IF(IncludeDeal1,Spreadsheet10.3!I1050,0)+IF(IncludeDeal2,Spreadsheet10.3!I2052,0)+IF(IncludeDeal3,Spreadsheet10.3!I3052,0)+IF(IncludeDeal4,-Spreadsheet10.3!I1050,0) -> -0.9970367842 | J43: =IF(IncludeDeal1,Spreadsheet10.3!J1050,0)+IF(IncludeDeal2,Spreadsheet10.3!J2052,0)+IF(IncludeDeal3,Spreadsheet10.3!J3052,0)+IF(IncludeDeal4,-Spreadsheet10.3!J1050,0) -> -1.614024553 | K43: =IF(IncludeDeal1,Spreadsheet10.3!K1050,0)+IF(IncludeDeal2,Spreadsheet10.3!K2052,0)+IF(IncludeDeal3,Spreadsheet10.3!K3052,0)+IF(IncludeDeal4,-Spreadsheet10.3!K1050,0) -> 2.609602183 | L43: =IF(IncludeDeal1,Spreadsheet10.3!L1050,0)+IF(IncludeDeal2,Spreadsheet10.3!L2052,0)+IF(IncludeDeal3,Spreadsheet10.3!L3052,0)+IF(IncludeDeal4,-Spreadsheet10.3!L1050,0) -> 0.6356640733 | M43: =IF(IncludeDeal1,Spreadsheet10.3!M1050,0)+IF(IncludeDeal2,Spreadsheet10.3!M2052,0)+IF(IncludeDeal3,Spreadsheet10.3!M3052,0)+IF(IncludeDeal4,-Spreadsheet10.3!M1050,0) -> 1.497866446 | N43: =IF(IncludeDeal1,Spreadsheet10.3!N1050,0)+IF(IncludeDeal2,Spreadsheet10.3!N2052,0)+IF(IncludeDeal3,Spreadsheet10.3!N3052,0)+IF(IncludeDeal4,-Spreadsheet10.3!N1050,0) -> 5.51877188 | O43: =IF(IncludeDeal1,Spreadsheet10.3!O1050,0)+IF(IncludeDeal2,Spreadsheet10.3!O2052,0)+IF(IncludeDeal3,Spreadsheet10.3!O3052,0)+IF(IncludeDeal4,-Spreadsheet10.3!O1050,0) -> 4.09938203 | P43: =IF(IncludeDeal1,Spreadsheet10.3!P1050,0)+IF(IncludeDeal2,Spreadsheet10.3!P2052,0)+IF(IncludeDeal3,Spreadsheet10.3!P3052,0)+IF(IncludeDeal4,-Spreadsheet10.3!P1050,0) -> 2.286741947 | Q43: =IF(IncludeDeal1,Spreadsheet10.3!Q1050,0)+IF(IncludeDeal2,Spreadsheet10.3!Q2052,0)+IF(IncludeDeal3,Spreadsheet10.3!Q3052,0)+IF(IncludeDeal4,-Spreadsheet10.3!Q1050,0) -> 1.298161436 | R43: =IF(IncludeDeal1,Spreadsheet10.3!R1050,0)+IF(IncludeDeal2,Spreadsheet10.3!R2052,0)+IF(IncludeDeal3,Spreadsheet10.3!R3052,0)+IF(IncludeDeal4,-Spreadsheet10.3!R1050,0) -> -0.4519069244 | S43: =IF(IncludeDeal1,Spreadsheet10.3!S1050,0)+IF(IncludeDeal2,Spreadsheet10.3!S2052,0)+IF(IncludeDeal3,Spreadsheet10.3!S3052,0)+IF(IncludeDeal4,-Spreadsheet10.3!S1050,0) -> -4.505645499 | T43: =IF(IncludeDeal1,Spreadsheet10.3!T1050,0)+IF(IncludeDeal2,Spreadsheet10.3!T2052,0)+IF(IncludeDeal3,Spreadsheet10.3!T3052,0)+IF(IncludeDeal4,-Spreadsheet10.3!T1050,0) -> -7.02567548 | U43: =IF(IncludeDeal1,Spreadsheet10.3!U1050,0)+IF(IncludeDeal2,Spreadsheet10.3!U2052,0)+IF(IncludeDeal3,Spreadsheet10.3!U3052,0)+IF(IncludeDeal4,-Spreadsheet10.3!U1050,0) -> -0.8754141331 | V43: =IF(IncludeDeal1,Spreadsheet10.3!V1050,0)+IF(IncludeDeal2,Spreadsheet10.3!V2052,0)+IF(IncludeDeal3,Spreadsheet10.3!V3052,0)+IF(IncludeDeal4,-Spreadsheet10.3!V1050,0) -> 2.640058567 | W43: =IF(IncludeDeal1,Spreadsheet10.3!W1050,0)+IF(IncludeDeal2,Spreadsheet10.3!W2052,0)+IF(IncludeDeal3,Spreadsheet10.3!W3052,0)+IF(IncludeDeal4,-Spreadsheet10.3!W1050,0) -> 4.368862831 | X43: =IF(IncludeDeal1,Spreadsheet10.3!X1050,0)+IF(IncludeDeal2,Spreadsheet10.3!X2052,0)+IF(IncludeDeal3,Spreadsheet10.3!X3052,0)+IF(IncludeDeal4,-Spreadsheet10.3!X1050,0) -> 0 | Y43: =IF(IncludeDeal1,Spreadsheet10.3!Y1050,0)+IF(IncludeDeal2,Spreadsheet10.3!Y2052,0)+IF(IncludeDeal3,Spreadsheet10.3!Y3052,0)+IF(IncludeDeal4,-Spreadsheet10.3!Y1050,0) -> 0 | Z43: =IF(IncludeDeal1,Spreadsheet10.3!Z1050,0)+IF(IncludeDeal2,Spreadsheet10.3!Z2052,0)+IF(IncludeDeal3,Spreadsheet10.3!Z3052,0)+IF(IncludeDeal4,-Spreadsheet10.3!Z1050,0) -> 0 | AA43: =IF(IncludeDeal1,Spreadsheet10.3!AA1050,0)+IF(IncludeDeal2,Spreadsheet10.3!AA2052,0)+IF(IncludeDeal3,Spreadsheet10.3!AA3052,0)+IF(IncludeDeal4,-Spreadsheet10.3!AA1050,0) -> 0 | AB43: =IF(IncludeDeal1,Spreadsheet10.3!AB1050,0)+IF(IncludeDeal2,Spreadsheet10.3!AB2052,0)+IF(IncludeDeal3,Spreadsheet10.3!AB3052,0)+IF(IncludeDeal4,-Spreadsheet10.3!AB1050,0) -> 0 | AC43: =IF(IncludeDeal1,Spreadsheet10.3!AC1050,0)+IF(IncludeDeal2,Spreadsheet10.3!AC2052,0)+IF(IncludeDeal3,Spreadsheet10.3!AC3052,0)+IF(IncludeDeal4,-Spreadsheet10.3!AC1050,0) -> 0 | AD43: =IF(IncludeDeal1,Spreadsheet10.3!AD1050,0)+IF(IncludeDeal2,Spreadsheet10.3!AD2052,0)+IF(IncludeDeal3,Spreadsheet10.3!AD3052,0)+IF(IncludeDeal4,-Spreadsheet10.3!AD1050,0) -> 0 | AE43: =IF(IncludeDeal1,Spreadsheet10.3!AE1050,0)+IF(IncludeDeal2,Spreadsheet10.3!AE2052,0)+IF(IncludeDeal3,Spreadsheet10.3!AE3052,0)+IF(IncludeDeal4,-Spreadsheet10.3!AE1050,0) -> 0
B44: Simulation 15 | C44: =IF(IncludeDeal1,Spreadsheet10.3!C1051,0)+IF(IncludeDeal2,Spreadsheet10.3!C2053,0)+IF(IncludeDeal3,Spreadsheet10.3!C3053,0)+IF(IncludeDeal4,-Spreadsheet10.3!C1051,0) -> -1.533736822 | D44: =IF(IncludeDeal1,Spreadsheet10.3!D1051,0)+IF(IncludeDeal2,Spreadsheet10.3!D2053,0)+IF(IncludeDeal3,Spreadsheet10.3!D3053,0)+IF(IncludeDeal4,-Spreadsheet10.3!D1051,0) -> 2.383654944 | E44: =IF(IncludeDeal1,Spreadsheet10.3!E1051,0)+IF(IncludeDeal2,Spreadsheet10.3!E2053,0)+IF(IncludeDeal3,Spreadsheet10.3!E3053,0)+IF(IncludeDeal4,-Spreadsheet10.3!E1051,0) -> 5.138510081 | F44: =IF(IncludeDeal1,Spreadsheet10.3!F1051,0)+IF(IncludeDeal2,Spreadsheet10.3!F2053,0)+IF(IncludeDeal3,Spreadsheet10.3!F3053,0)+IF(IncludeDeal4,-Spreadsheet10.3!F1051,0) -> 2.792997128 | G44: =IF(IncludeDeal1,Spreadsheet10.3!G1051,0)+IF(IncludeDeal2,Spreadsheet10.3!G2053,0)+IF(IncludeDeal3,Spreadsheet10.3!G3053,0)+IF(IncludeDeal4,-Spreadsheet10.3!G1051,0) -> 7.584196793 | H44: =IF(IncludeDeal1,Spreadsheet10.3!H1051,0)+IF(IncludeDeal2,Spreadsheet10.3!H2053,0)+IF(IncludeDeal3,Spreadsheet10.3!H3053,0)+IF(IncludeDeal4,-Spreadsheet10.3!H1051,0) -> 11.16171756 | I44: =IF(IncludeDeal1,Spreadsheet10.3!I1051,0)+IF(IncludeDeal2,Spreadsheet10.3!I2053,0)+IF(IncludeDeal3,Spreadsheet10.3!I3053,0)+IF(IncludeDeal4,-Spreadsheet10.3!I1051,0) -> 9.369610689 | J44: =IF(IncludeDeal1,Spreadsheet10.3!J1051,0)+IF(IncludeDeal2,Spreadsheet10.3!J2053,0)+IF(IncludeDeal3,Spreadsheet10.3!J3053,0)+IF(IncludeDeal4,-Spreadsheet10.3!J1051,0) -> 8.706394182 | K44: =IF(IncludeDeal1,Spreadsheet10.3!K1051,0)+IF(IncludeDeal2,Spreadsheet10.3!K2053,0)+IF(IncludeDeal3,Spreadsheet10.3!K3053,0)+IF(IncludeDeal4,-Spreadsheet10.3!K1051,0) -> 9.347535506 | L44: =IF(IncludeDeal1,Spreadsheet10.3!L1051,0)+IF(IncludeDeal2,Spreadsheet10.3!L2053,0)+IF(IncludeDeal3,Spreadsheet10.3!L3053,0)+IF(IncludeDeal4,-Spreadsheet10.3!L1051,0) -> 11.01795216 | M44: =IF(IncludeDeal1,Spreadsheet10.3!M1051,0)+IF(IncludeDeal2,Spreadsheet10.3!M2053,0)+IF(IncludeDeal3,Spreadsheet10.3!M3053,0)+IF(IncludeDeal4,-Spreadsheet10.3!M1051,0) -> 10.42941456 | N44: =IF(IncludeDeal1,Spreadsheet10.3!N1051,0)+IF(IncludeDeal2,Spreadsheet10.3!N2053,0)+IF(IncludeDeal3,Spreadsheet10.3!N3053,0)+IF(IncludeDeal4,-Spreadsheet10.3!N1051,0) -> 10.91572047 | O44: =IF(IncludeDeal1,Spreadsheet10.3!O1051,0)+IF(IncludeDeal2,Spreadsheet10.3!O2053,0)+IF(IncludeDeal3,Spreadsheet10.3!O3053,0)+IF(IncludeDeal4,-Spreadsheet10.3!O1051,0) -> 6.533072481 | P44: =IF(IncludeDeal1,Spreadsheet10.3!P1051,0)+IF(IncludeDeal2,Spreadsheet10.3!P2053,0)+IF(IncludeDeal3,Spreadsheet10.3!P3053,0)+IF(IncludeDeal4,-Spreadsheet10.3!P1051,0) -> 11.85180029 | Q44: =IF(IncludeDeal1,Spreadsheet10.3!Q1051,0)+IF(IncludeDeal2,Spreadsheet10.3!Q2053,0)+IF(IncludeDeal3,Spreadsheet10.3!Q3053,0)+IF(IncludeDeal4,-Spreadsheet10.3!Q1051,0) -> 15.20703889 | R44: =IF(IncludeDeal1,Spreadsheet10.3!R1051,0)+IF(IncludeDeal2,Spreadsheet10.3!R2053,0)+IF(IncludeDeal3,Spreadsheet10.3!R3053,0)+IF(IncludeDeal4,-Spreadsheet10.3!R1051,0) -> 16.54484763 | S44: =IF(IncludeDeal1,Spreadsheet10.3!S1051,0)+IF(IncludeDeal2,Spreadsheet10.3!S2053,0)+IF(IncludeDeal3,Spreadsheet10.3!S3053,0)+IF(IncludeDeal4,-Spreadsheet10.3!S1051,0) -> 17.75608707 | T44: =IF(IncludeDeal1,Spreadsheet10.3!T1051,0)+IF(IncludeDeal2,Spreadsheet10.3!T2053,0)+IF(IncludeDeal3,Spreadsheet10.3!T3053,0)+IF(IncludeDeal4,-Spreadsheet10.3!T1051,0) -> 15.4867002 | U44: =IF(IncludeDeal1,Spreadsheet10.3!U1051,0)+IF(IncludeDeal2,Spreadsheet10.3!U2053,0)+IF(IncludeDeal3,Spreadsheet10.3!U3053,0)+IF(IncludeDeal4,-Spreadsheet10.3!U1051,0) -> 14.13409528 | V44: =IF(IncludeDeal1,Spreadsheet10.3!V1051,0)+IF(IncludeDeal2,Spreadsheet10.3!V2053,0)+IF(IncludeDeal3,Spreadsheet10.3!V3053,0)+IF(IncludeDeal4,-Spreadsheet10.3!V1051,0) -> 15.0184416 | W44: =IF(IncludeDeal1,Spreadsheet10.3!W1051,0)+IF(IncludeDeal2,Spreadsheet10.3!W2053,0)+IF(IncludeDeal3,Spreadsheet10.3!W3053,0)+IF(IncludeDeal4,-Spreadsheet10.3!W1051,0) -> 14.07845467 | X44: =IF(IncludeDeal1,Spreadsheet10.3!X1051,0)+IF(IncludeDeal2,Spreadsheet10.3!X2053,0)+IF(IncludeDeal3,Spreadsheet10.3!X3053,0)+IF(IncludeDeal4,-Spreadsheet10.3!X1051,0) -> 0 | Y44: =IF(IncludeDeal1,Spreadsheet10.3!Y1051,0)+IF(IncludeDeal2,Spreadsheet10.3!Y2053,0)+IF(IncludeDeal3,Spreadsheet10.3!Y3053,0)+IF(IncludeDeal4,-Spreadsheet10.3!Y1051,0) -> 0 | Z44: =IF(IncludeDeal1,Spreadsheet10.3!Z1051,0)+IF(IncludeDeal2,Spreadsheet10.3!Z2053,0)+IF(IncludeDeal3,Spreadsheet10.3!Z3053,0)+IF(IncludeDeal4,-Spreadsheet10.3!Z1051,0) -> 0 | AA44: =IF(IncludeDeal1,Spreadsheet10.3!AA1051,0)+IF(IncludeDeal2,Spreadsheet10.3!AA2053,0)+IF(IncludeDeal3,Spreadsheet10.3!AA3053,0)+IF(IncludeDeal4,-Spreadsheet10.3!AA1051,0) -> 0 | AB44: =IF(IncludeDeal1,Spreadsheet10.3!AB1051,0)+IF(IncludeDeal2,Spreadsheet10.3!AB2053,0)+IF(IncludeDeal3,Spreadsheet10.3!AB3053,0)+IF(IncludeDeal4,-Spreadsheet10.3!AB1051,0) -> 0 | AC44: =IF(IncludeDeal1,Spreadsheet10.3!AC1051,0)+IF(IncludeDeal2,Spreadsheet10.3!AC2053,0)+IF(IncludeDeal3,Spreadsheet10.3!AC3053,0)+IF(IncludeDeal4,-Spreadsheet10.3!AC1051,0) -> 0 | AD44: =IF(IncludeDeal1,Spreadsheet10.3!AD1051,0)+IF(IncludeDeal2,Spreadsheet10.3!AD2053,0)+IF(IncludeDeal3,Spreadsheet10.3!AD3053,0)+IF(IncludeDeal4,-Spreadsheet10.3!AD1051,0) -> 0 | AE44: =IF(IncludeDeal1,Spreadsheet10.3!AE1051,0)+IF(IncludeDeal2,Spreadsheet10.3!AE2053,0)+IF(IncludeDeal3,Spreadsheet10.3!AE3053,0)+IF(IncludeDeal4,-Spreadsheet10.3!AE1051,0) -> 0
B45: Simulation 16 | C45: =IF(IncludeDeal1,Spreadsheet10.3!C1052,0)+IF(IncludeDeal2,Spreadsheet10.3!C2054,0)+IF(IncludeDeal3,Spreadsheet10.3!C3054,0)+IF(IncludeDeal4,-Spreadsheet10.3!C1052,0) -> -1.533736822 | D45: =IF(IncludeDeal1,Spreadsheet10.3!D1052,0)+IF(IncludeDeal2,Spreadsheet10.3!D2054,0)+IF(IncludeDeal3,Spreadsheet10.3!D3054,0)+IF(IncludeDeal4,-Spreadsheet10.3!D1052,0) -> 1.122596273 | E45: =IF(IncludeDeal1,Spreadsheet10.3!E1052,0)+IF(IncludeDeal2,Spreadsheet10.3!E2054,0)+IF(IncludeDeal3,Spreadsheet10.3!E3054,0)+IF(IncludeDeal4,-Spreadsheet10.3!E1052,0) -> 1.765650864 | F45: =IF(IncludeDeal1,Spreadsheet10.3!F1052,0)+IF(IncludeDeal2,Spreadsheet10.3!F2054,0)+IF(IncludeDeal3,Spreadsheet10.3!F3054,0)+IF(IncludeDeal4,-Spreadsheet10.3!F1052,0) -> 2.270357842 | G45: =IF(IncludeDeal1,Spreadsheet10.3!G1052,0)+IF(IncludeDeal2,Spreadsheet10.3!G2054,0)+IF(IncludeDeal3,Spreadsheet10.3!G3054,0)+IF(IncludeDeal4,-Spreadsheet10.3!G1052,0) -> -0.1452211291 | H45: =IF(IncludeDeal1,Spreadsheet10.3!H1052,0)+IF(IncludeDeal2,Spreadsheet10.3!H2054,0)+IF(IncludeDeal3,Spreadsheet10.3!H3054,0)+IF(IncludeDeal4,-Spreadsheet10.3!H1052,0) -> 0.0485246589 | I45: =IF(IncludeDeal1,Spreadsheet10.3!I1052,0)+IF(IncludeDeal2,Spreadsheet10.3!I2054,0)+IF(IncludeDeal3,Spreadsheet10.3!I3054,0)+IF(IncludeDeal4,-Spreadsheet10.3!I1052,0) -> 1.113707396 | J45: =IF(IncludeDeal1,Spreadsheet10.3!J1052,0)+IF(IncludeDeal2,Spreadsheet10.3!J2054,0)+IF(IncludeDeal3,Spreadsheet10.3!J3054,0)+IF(IncludeDeal4,-Spreadsheet10.3!J1052,0) -> -0.03640841706 | K45: =IF(IncludeDeal1,Spreadsheet10.3!K1052,0)+IF(IncludeDeal2,Spreadsheet10.3!K2054,0)+IF(IncludeDeal3,Spreadsheet10.3!K3054,0)+IF(IncludeDeal4,-Spreadsheet10.3!K1052,0) -> -0.9543017507 | L45: =IF(IncludeDeal1,Spreadsheet10.3!L1052,0)+IF(IncludeDeal2,Spreadsheet10.3!L2054,0)+IF(IncludeDeal3,Spreadsheet10.3!L3054,0)+IF(IncludeDeal4,-Spreadsheet10.3!L1052,0) -> -4.884567861 | M45: =IF(IncludeDeal1,Spreadsheet10.3!M1052,0)+IF(IncludeDeal2,Spreadsheet10.3!M2054,0)+IF(IncludeDeal3,Spreadsheet10.3!M3054,0)+IF(IncludeDeal4,-Spreadsheet10.3!M1052,0) -> -8.552060961 | N45: =IF(IncludeDeal1,Spreadsheet10.3!N1052,0)+IF(IncludeDeal2,Spreadsheet10.3!N2054,0)+IF(IncludeDeal3,Spreadsheet10.3!N3054,0)+IF(IncludeDeal4,-Spreadsheet10.3!N1052,0) -> -5.451029062 | O45: =IF(IncludeDeal1,Spreadsheet10.3!O1052,0)+IF(IncludeDeal2,Spreadsheet10.3!O2054,0)+IF(IncludeDeal3,Spreadsheet10.3!O3054,0)+IF(IncludeDeal4,-Spreadsheet10.3!O1052,0) -> -13.38650783 | P45: =IF(IncludeDeal1,Spreadsheet10.3!P1052,0)+IF(IncludeDeal2,Spreadsheet10.3!P2054,0)+IF(IncludeDeal3,Spreadsheet10.3!P3054,0)+IF(IncludeDeal4,-Spreadsheet10.3!P1052,0) -> -10.79234426 | Q45: =IF(IncludeDeal1,Spreadsheet10.3!Q1052,0)+IF(IncludeDeal2,Spreadsheet10.3!Q2054,0)+IF(IncludeDeal3,Spreadsheet10.3!Q3054,0)+IF(IncludeDeal4,-Spreadsheet10.3!Q1052,0) -> -8.963488073 | R45: =IF(IncludeDeal1,Spreadsheet10.3!R1052,0)+IF(IncludeDeal2,Spreadsheet10.3!R2054,0)+IF(IncludeDeal3,Spreadsheet10.3!R3054,0)+IF(IncludeDeal4,-Spreadsheet10.3!R1052,0) -> -13.665408 | S45: =IF(IncludeDeal1,Spreadsheet10.3!S1052,0)+IF(IncludeDeal2,Spreadsheet10.3!S2054,0)+IF(IncludeDeal3,Spreadsheet10.3!S3054,0)+IF(IncludeDeal4,-Spreadsheet10.3!S1052,0) -> -19.26389371 | T45: =IF(IncludeDeal1,Spreadsheet10.3!T1052,0)+IF(IncludeDeal2,Spreadsheet10.3!T2054,0)+IF(IncludeDeal3,Spreadsheet10.3!T3054,0)+IF(IncludeDeal4,-Spreadsheet10.3!T1052,0) -> -22.69152599 | U45: =IF(IncludeDeal1,Spreadsheet10.3!U1052,0)+IF(IncludeDeal2,Spreadsheet10.3!U2054,0)+IF(IncludeDeal3,Spreadsheet10.3!U3054,0)+IF(IncludeDeal4,-Spreadsheet10.3!U1052,0) -> -29.71992612 | V45: =IF(IncludeDeal1,Spreadsheet10.3!V1052,0)+IF(IncludeDeal2,Spreadsheet10.3!V2054,0)+IF(IncludeDeal3,Spreadsheet10.3!V3054,0)+IF(IncludeDeal4,-Spreadsheet10.3!V1052,0) -> -25.88022646 | W45: =IF(IncludeDeal1,Spreadsheet10.3!W1052,0)+IF(IncludeDeal2,Spreadsheet10.3!W2054,0)+IF(IncludeDeal3,Spreadsheet10.3!W3054,0)+IF(IncludeDeal4,-Spreadsheet10.3!W1052,0) -> -38.41752234 | X45: =IF(IncludeDeal1,Spreadsheet10.3!X1052,0)+IF(IncludeDeal2,Spreadsheet10.3!X2054,0)+IF(IncludeDeal3,Spreadsheet10.3!X3054,0)+IF(IncludeDeal4,-Spreadsheet10.3!X1052,0) -> 0 | Y45: =IF(IncludeDeal1,Spreadsheet10.3!Y1052,0)+IF(IncludeDeal2,Spreadsheet10.3!Y2054,0)+IF(IncludeDeal3,Spreadsheet10.3!Y3054,0)+IF(IncludeDeal4,-Spreadsheet10.3!Y1052,0) -> 0 | Z45: =IF(IncludeDeal1,Spreadsheet10.3!Z1052,0)+IF(IncludeDeal2,Spreadsheet10.3!Z2054,0)+IF(IncludeDeal3,Spreadsheet10.3!Z3054,0)+IF(IncludeDeal4,-Spreadsheet10.3!Z1052,0) -> 0 | AA45: =IF(IncludeDeal1,Spreadsheet10.3!AA1052,0)+IF(IncludeDeal2,Spreadsheet10.3!AA2054,0)+IF(IncludeDeal3,Spreadsheet10.3!AA3054,0)+IF(IncludeDeal4,-Spreadsheet10.3!AA1052,0) -> 0 | AB45: =IF(IncludeDeal1,Spreadsheet10.3!AB1052,0)+IF(IncludeDeal2,Spreadsheet10.3!AB2054,0)+IF(IncludeDeal3,Spreadsheet10.3!AB3054,0)+IF(IncludeDeal4,-Spreadsheet10.3!AB1052,0) -> 0 | AC45: =IF(IncludeDeal1,Spreadsheet10.3!AC1052,0)+IF(IncludeDeal2,Spreadsheet10.3!AC2054,0)+IF(IncludeDeal3,Spreadsheet10.3!AC3054,0)+IF(IncludeDeal4,-Spreadsheet10.3!AC1052,0) -> 0 | AD45: =IF(IncludeDeal1,Spreadsheet10.3!AD1052,0)+IF(IncludeDeal2,Spreadsheet10.3!AD2054,0)+IF(IncludeDeal3,Spreadsheet10.3!AD3054,0)+IF(IncludeDeal4,-Spreadsheet10.3!AD1052,0) -> 0 | AE45: =IF(IncludeDeal1,Spreadsheet10.3!AE1052,0)+IF(IncludeDeal2,Spreadsheet10.3!AE2054,0)+IF(IncludeDeal3,Spreadsheet10.3!AE3054,0)+IF(IncludeDeal4,-Spreadsheet10.3!AE1052,0) -> 0
B46: Simulation 17 | C46: =IF(IncludeDeal1,Spreadsheet10.3!C1053,0)+IF(IncludeDeal2,Spreadsheet10.3!C2055,0)+IF(IncludeDeal3,Spreadsheet10.3!C3055,0)+IF(IncludeDeal4,-Spreadsheet10.3!C1053,0) -> -1.533736822 | D46: =IF(IncludeDeal1,Spreadsheet10.3!D1053,0)+IF(IncludeDeal2,Spreadsheet10.3!D2055,0)+IF(IncludeDeal3,Spreadsheet10.3!D3055,0)+IF(IncludeDeal4,-Spreadsheet10.3!D1053,0) -> -3.646703464 | E46: =IF(IncludeDeal1,Spreadsheet10.3!E1053,0)+IF(IncludeDeal2,Spreadsheet10.3!E2055,0)+IF(IncludeDeal3,Spreadsheet10.3!E3055,0)+IF(IncludeDeal4,-Spreadsheet10.3!E1053,0) -> -5.609130951 | F46: =IF(IncludeDeal1,Spreadsheet10.3!F1053,0)+IF(IncludeDeal2,Spreadsheet10.3!F2055,0)+IF(IncludeDeal3,Spreadsheet10.3!F3055,0)+IF(IncludeDeal4,-Spreadsheet10.3!F1053,0) -> -6.762900151 | G46: =IF(IncludeDeal1,Spreadsheet10.3!G1053,0)+IF(IncludeDeal2,Spreadsheet10.3!G2055,0)+IF(IncludeDeal3,Spreadsheet10.3!G3055,0)+IF(IncludeDeal4,-Spreadsheet10.3!G1053,0) -> -8.819269568 | H46: =IF(IncludeDeal1,Spreadsheet10.3!H1053,0)+IF(IncludeDeal2,Spreadsheet10.3!H2055,0)+IF(IncludeDeal3,Spreadsheet10.3!H3055,0)+IF(IncludeDeal4,-Spreadsheet10.3!H1053,0) -> -8.982629935 | I46: =IF(IncludeDeal1,Spreadsheet10.3!I1053,0)+IF(IncludeDeal2,Spreadsheet10.3!I2055,0)+IF(IncludeDeal3,Spreadsheet10.3!I3055,0)+IF(IncludeDeal4,-Spreadsheet10.3!I1053,0) -> -10.01866998 | J46: =IF(IncludeDeal1,Spreadsheet10.3!J1053,0)+IF(IncludeDeal2,Spreadsheet10.3!J2055,0)+IF(IncludeDeal3,Spreadsheet10.3!J3055,0)+IF(IncludeDeal4,-Spreadsheet10.3!J1053,0) -> -7.848746279 | K46: =IF(IncludeDeal1,Spreadsheet10.3!K1053,0)+IF(IncludeDeal2,Spreadsheet10.3!K2055,0)+IF(IncludeDeal3,Spreadsheet10.3!K3055,0)+IF(IncludeDeal4,-Spreadsheet10.3!K1053,0) -> -10.0766878 | L46: =IF(IncludeDeal1,Spreadsheet10.3!L1053,0)+IF(IncludeDeal2,Spreadsheet10.3!L2055,0)+IF(IncludeDeal3,Spreadsheet10.3!L3055,0)+IF(IncludeDeal4,-Spreadsheet10.3!L1053,0) -> -4.625335835 | M46: =IF(IncludeDeal1,Spreadsheet10.3!M1053,0)+IF(IncludeDeal2,Spreadsheet10.3!M2055,0)+IF(IncludeDeal3,Spreadsheet10.3!M3055,0)+IF(IncludeDeal4,-Spreadsheet10.3!M1053,0) -> -1.398593921 | N46: =IF(IncludeDeal1,Spreadsheet10.3!N1053,0)+IF(IncludeDeal2,Spreadsheet10.3!N2055,0)+IF(IncludeDeal3,Spreadsheet10.3!N3055,0)+IF(IncludeDeal4,-Spreadsheet10.3!N1053,0) -> -4.533683845 | O46: =IF(IncludeDeal1,Spreadsheet10.3!O1053,0)+IF(IncludeDeal2,Spreadsheet10.3!O2055,0)+IF(IncludeDeal3,Spreadsheet10.3!O3055,0)+IF(IncludeDeal4,-Spreadsheet10.3!O1053,0) -> -1.44740936 | P46: =IF(IncludeDeal1,Spreadsheet10.3!P1053,0)+IF(IncludeDeal2,Spreadsheet10.3!P2055,0)+IF(IncludeDeal3,Spreadsheet10.3!P3055,0)+IF(IncludeDeal4,-Spreadsheet10.3!P1053,0) -> -2.54845912 | Q46: =IF(IncludeDeal1,Spreadsheet10.3!Q1053,0)+IF(IncludeDeal2,Spreadsheet10.3!Q2055,0)+IF(IncludeDeal3,Spreadsheet10.3!Q3055,0)+IF(IncludeDeal4,-Spreadsheet10.3!Q1053,0) -> -2.687923291 | R46: =IF(IncludeDeal1,Spreadsheet10.3!R1053,0)+IF(IncludeDeal2,Spreadsheet10.3!R2055,0)+IF(IncludeDeal3,Spreadsheet10.3!R3055,0)+IF(IncludeDeal4,-Spreadsheet10.3!R1053,0) -> -4.66707892 | S46: =IF(IncludeDeal1,Spreadsheet10.3!S1053,0)+IF(IncludeDeal2,Spreadsheet10.3!S2055,0)+IF(IncludeDeal3,Spreadsheet10.3!S3055,0)+IF(IncludeDeal4,-Spreadsheet10.3!S1053,0) -> -1.410241539 | T46: =IF(IncludeDeal1,Spreadsheet10.3!T1053,0)+IF(IncludeDeal2,Spreadsheet10.3!T2055,0)+IF(IncludeDeal3,Spreadsheet10.3!T3055,0)+IF(IncludeDeal4,-Spreadsheet10.3!T1053,0) -> -2.640343306 | U46: =IF(IncludeDeal1,Spreadsheet10.3!U1053,0)+IF(IncludeDeal2,Spreadsheet10.3!U2055,0)+IF(IncludeDeal3,Spreadsheet10.3!U3055,0)+IF(IncludeDeal4,-Spreadsheet10.3!U1053,0) -> -0.9768721479 | V46: =IF(IncludeDeal1,Spreadsheet10.3!V1053,0)+IF(IncludeDeal2,Spreadsheet10.3!V2055,0)+IF(IncludeDeal3,Spreadsheet10.3!V3055,0)+IF(IncludeDeal4,-Spreadsheet10.3!V1053,0) -> 0.6766494869 | W46: =IF(IncludeDeal1,Spreadsheet10.3!W1053,0)+IF(IncludeDeal2,Spreadsheet10.3!W2055,0)+IF(IncludeDeal3,Spreadsheet10.3!W3055,0)+IF(IncludeDeal4,-Spreadsheet10.3!W1053,0) -> 3.752648815 | X46: =IF(IncludeDeal1,Spreadsheet10.3!X1053,0)+IF(IncludeDeal2,Spreadsheet10.3!X2055,0)+IF(IncludeDeal3,Spreadsheet10.3!X3055,0)+IF(IncludeDeal4,-Spreadsheet10.3!X1053,0) -> 0 | Y46: =IF(IncludeDeal1,Spreadsheet10.3!Y1053,0)+IF(IncludeDeal2,Spreadsheet10.3!Y2055,0)+IF(IncludeDeal3,Spreadsheet10.3!Y3055,0)+IF(IncludeDeal4,-Spreadsheet10.3!Y1053,0) -> 0 | Z46: =IF(IncludeDeal1,Spreadsheet10.3!Z1053,0)+IF(IncludeDeal2,Spreadsheet10.3!Z2055,0)+IF(IncludeDeal3,Spreadsheet10.3!Z3055,0)+IF(IncludeDeal4,-Spreadsheet10.3!Z1053,0) -> 0 | AA46: =IF(IncludeDeal1,Spreadsheet10.3!AA1053,0)+IF(IncludeDeal2,Spreadsheet10.3!AA2055,0)+IF(IncludeDeal3,Spreadsheet10.3!AA3055,0)+IF(IncludeDeal4,-Spreadsheet10.3!AA1053,0) -> 0 | AB46: =IF(IncludeDeal1,Spreadsheet10.3!AB1053,0)+IF(IncludeDeal2,Spreadsheet10.3!AB2055,0)+IF(IncludeDeal3,Spreadsheet10.3!AB3055,0)+IF(IncludeDeal4,-Spreadsheet10.3!AB1053,0) -> 0 | AC46: =IF(IncludeDeal1,Spreadsheet10.3!AC1053,0)+IF(IncludeDeal2,Spreadsheet10.3!AC2055,0)+IF(IncludeDeal3,Spreadsheet10.3!AC3055,0)+IF(IncludeDeal4,-Spreadsheet10.3!AC1053,0) -> 0 | AD46: =IF(IncludeDeal1,Spreadsheet10.3!AD1053,0)+IF(IncludeDeal2,Spreadsheet10.3!AD2055,0)+IF(IncludeDeal3,Spreadsheet10.3!AD3055,0)+IF(IncludeDeal4,-Spreadsheet10.3!AD1053,0) -> 0 | AE46: =IF(IncludeDeal1,Spreadsheet10.3!AE1053,0)+IF(IncludeDeal2,Spreadsheet10.3!AE2055,0)+IF(IncludeDeal3,Spreadsheet10.3!AE3055,0)+IF(IncludeDeal4,-Spreadsheet10.3!AE1053,0) -> 0
B47: Simulation 18 | C47: =IF(IncludeDeal1,Spreadsheet10.3!C1054,0)+IF(IncludeDeal2,Spreadsheet10.3!C2056,0)+IF(IncludeDeal3,Spreadsheet10.3!C3056,0)+IF(IncludeDeal4,-Spreadsheet10.3!C1054,0) -> -1.533736822 | D47: =IF(IncludeDeal1,Spreadsheet10.3!D1054,0)+IF(IncludeDeal2,Spreadsheet10.3!D2056,0)+IF(IncludeDeal3,Spreadsheet10.3!D3056,0)+IF(IncludeDeal4,-Spreadsheet10.3!D1054,0) -> -3.944595335 | E47: =IF(IncludeDeal1,Spreadsheet10.3!E1054,0)+IF(IncludeDeal2,Spreadsheet10.3!E2056,0)+IF(IncludeDeal3,Spreadsheet10.3!E3056,0)+IF(IncludeDeal4,-Spreadsheet10.3!E1054,0) -> -8.890854381 | F47: =IF(IncludeDeal1,Spreadsheet10.3!F1054,0)+IF(IncludeDeal2,Spreadsheet10.3!F2056,0)+IF(IncludeDeal3,Spreadsheet10.3!F3056,0)+IF(IncludeDeal4,-Spreadsheet10.3!F1054,0) -> -7.045357164 | G47: =IF(IncludeDeal1,Spreadsheet10.3!G1054,0)+IF(IncludeDeal2,Spreadsheet10.3!G2056,0)+IF(IncludeDeal3,Spreadsheet10.3!G3056,0)+IF(IncludeDeal4,-Spreadsheet10.3!G1054,0) -> -6.087396552 | H47: =IF(IncludeDeal1,Spreadsheet10.3!H1054,0)+IF(IncludeDeal2,Spreadsheet10.3!H2056,0)+IF(IncludeDeal3,Spreadsheet10.3!H3056,0)+IF(IncludeDeal4,-Spreadsheet10.3!H1054,0) -> -9.025040785 | I47: =IF(IncludeDeal1,Spreadsheet10.3!I1054,0)+IF(IncludeDeal2,Spreadsheet10.3!I2056,0)+IF(IncludeDeal3,Spreadsheet10.3!I3056,0)+IF(IncludeDeal4,-Spreadsheet10.3!I1054,0) -> -8.454040067 | J47: =IF(IncludeDeal1,Spreadsheet10.3!J1054,0)+IF(IncludeDeal2,Spreadsheet10.3!J2056,0)+IF(IncludeDeal3,Spreadsheet10.3!J3056,0)+IF(IncludeDeal4,-Spreadsheet10.3!J1054,0) -> -9.480324605 | K47: =IF(IncludeDeal1,Spreadsheet10.3!K1054,0)+IF(IncludeDeal2,Spreadsheet10.3!K2056,0)+IF(IncludeDeal3,Spreadsheet10.3!K3056,0)+IF(IncludeDeal4,-Spreadsheet10.3!K1054,0) -> -16.40521196 | L47: =IF(IncludeDeal1,Spreadsheet10.3!L1054,0)+IF(IncludeDeal2,Spreadsheet10.3!L2056,0)+IF(IncludeDeal3,Spreadsheet10.3!L3056,0)+IF(IncludeDeal4,-Spreadsheet10.3!L1054,0) -> -15.84970806 | M47: =IF(IncludeDeal1,Spreadsheet10.3!M1054,0)+IF(IncludeDeal2,Spreadsheet10.3!M2056,0)+IF(IncludeDeal3,Spreadsheet10.3!M3056,0)+IF(IncludeDeal4,-Spreadsheet10.3!M1054,0) -> -13.27333928 | N47: =IF(IncludeDeal1,Spreadsheet10.3!N1054,0)+IF(IncludeDeal2,Spreadsheet10.3!N2056,0)+IF(IncludeDeal3,Spreadsheet10.3!N3056,0)+IF(IncludeDeal4,-Spreadsheet10.3!N1054,0) -> -12.72619107 | O47: =IF(IncludeDeal1,Spreadsheet10.3!O1054,0)+IF(IncludeDeal2,Spreadsheet10.3!O2056,0)+IF(IncludeDeal3,Spreadsheet10.3!O3056,0)+IF(IncludeDeal4,-Spreadsheet10.3!O1054,0) -> -11.79059043 | P47: =IF(IncludeDeal1,Spreadsheet10.3!P1054,0)+IF(IncludeDeal2,Spreadsheet10.3!P2056,0)+IF(IncludeDeal3,Spreadsheet10.3!P3056,0)+IF(IncludeDeal4,-Spreadsheet10.3!P1054,0) -> -9.97052349 | Q47: =IF(IncludeDeal1,Spreadsheet10.3!Q1054,0)+IF(IncludeDeal2,Spreadsheet10.3!Q2056,0)+IF(IncludeDeal3,Spreadsheet10.3!Q3056,0)+IF(IncludeDeal4,-Spreadsheet10.3!Q1054,0) -> -10.82975351 | R47: =IF(IncludeDeal1,Spreadsheet10.3!R1054,0)+IF(IncludeDeal2,Spreadsheet10.3!R2056,0)+IF(IncludeDeal3,Spreadsheet10.3!R3056,0)+IF(IncludeDeal4,-Spreadsheet10.3!R1054,0) -> -15.1710036 | S47: =IF(IncludeDeal1,Spreadsheet10.3!S1054,0)+IF(IncludeDeal2,Spreadsheet10.3!S2056,0)+IF(IncludeDeal3,Spreadsheet10.3!S3056,0)+IF(IncludeDeal4,-Spreadsheet10.3!S1054,0) -> -21.52924237 | T47: =IF(IncludeDeal1,Spreadsheet10.3!T1054,0)+IF(IncludeDeal2,Spreadsheet10.3!T2056,0)+IF(IncludeDeal3,Spreadsheet10.3!T3056,0)+IF(IncludeDeal4,-Spreadsheet10.3!T1054,0) -> -13.09907054 | U47: =IF(IncludeDeal1,Spreadsheet10.3!U1054,0)+IF(IncludeDeal2,Spreadsheet10.3!U2056,0)+IF(IncludeDeal3,Spreadsheet10.3!U3056,0)+IF(IncludeDeal4,-Spreadsheet10.3!U1054,0) -> -13.95815384 | V47: =IF(IncludeDeal1,Spreadsheet10.3!V1054,0)+IF(IncludeDeal2,Spreadsheet10.3!V2056,0)+IF(IncludeDeal3,Spreadsheet10.3!V3056,0)+IF(IncludeDeal4,-Spreadsheet10.3!V1054,0) -> -7.189597926 | W47: =IF(IncludeDeal1,Spreadsheet10.3!W1054,0)+IF(IncludeDeal2,Spreadsheet10.3!W2056,0)+IF(IncludeDeal3,Spreadsheet10.3!W3056,0)+IF(IncludeDeal4,-Spreadsheet10.3!W1054,0) -> -10.82607065 | X47: =IF(IncludeDeal1,Spreadsheet10.3!X1054,0)+IF(IncludeDeal2,Spreadsheet10.3!X2056,0)+IF(IncludeDeal3,Spreadsheet10.3!X3056,0)+IF(IncludeDeal4,-Spreadsheet10.3!X1054,0) -> 0 | Y47: =IF(IncludeDeal1,Spreadsheet10.3!Y1054,0)+IF(IncludeDeal2,Spreadsheet10.3!Y2056,0)+IF(IncludeDeal3,Spreadsheet10.3!Y3056,0)+IF(IncludeDeal4,-Spreadsheet10.3!Y1054,0) -> 0 | Z47: =IF(IncludeDeal1,Spreadsheet10.3!Z1054,0)+IF(IncludeDeal2,Spreadsheet10.3!Z2056,0)+IF(IncludeDeal3,Spreadsheet10.3!Z3056,0)+IF(IncludeDeal4,-Spreadsheet10.3!Z1054,0) -> 0 | AA47: =IF(IncludeDeal1,Spreadsheet10.3!AA1054,0)+IF(IncludeDeal2,Spreadsheet10.3!AA2056,0)+IF(IncludeDeal3,Spreadsheet10.3!AA3056,0)+IF(IncludeDeal4,-Spreadsheet10.3!AA1054,0) -> 0 | AB47: =IF(IncludeDeal1,Spreadsheet10.3!AB1054,0)+IF(IncludeDeal2,Spreadsheet10.3!AB2056,0)+IF(IncludeDeal3,Spreadsheet10.3!AB3056,0)+IF(IncludeDeal4,-Spreadsheet10.3!AB1054,0) -> 0 | AC47: =IF(IncludeDeal1,Spreadsheet10.3!AC1054,0)+IF(IncludeDeal2,Spreadsheet10.3!AC2056,0)+IF(IncludeDeal3,Spreadsheet10.3!AC3056,0)+IF(IncludeDeal4,-Spreadsheet10.3!AC1054,0) -> 0 | AD47: =IF(IncludeDeal1,Spreadsheet10.3!AD1054,0)+IF(IncludeDeal2,Spreadsheet10.3!AD2056,0)+IF(IncludeDeal3,Spreadsheet10.3!AD3056,0)+IF(IncludeDeal4,-Spreadsheet10.3!AD1054,0) -> 0 | AE47: =IF(IncludeDeal1,Spreadsheet10.3!AE1054,0)+IF(IncludeDeal2,Spreadsheet10.3!AE2056,0)+IF(IncludeDeal3,Spreadsheet10.3!AE3056,0)+IF(IncludeDeal4,-Spreadsheet10.3!AE1054,0) -> 0
B48: Simulation 19 | C48: =IF(IncludeDeal1,Spreadsheet10.3!C1055,0)+IF(IncludeDeal2,Spreadsheet10.3!C2057,0)+IF(IncludeDeal3,Spreadsheet10.3!C3057,0)+IF(IncludeDeal4,-Spreadsheet10.3!C1055,0) -> -1.533736822 | D48: =IF(IncludeDeal1,Spreadsheet10.3!D1055,0)+IF(IncludeDeal2,Spreadsheet10.3!D2057,0)+IF(IncludeDeal3,Spreadsheet10.3!D3057,0)+IF(IncludeDeal4,-Spreadsheet10.3!D1055,0) -> 4.400306744 | E48: =IF(IncludeDeal1,Spreadsheet10.3!E1055,0)+IF(IncludeDeal2,Spreadsheet10.3!E2057,0)+IF(IncludeDeal3,Spreadsheet10.3!E3057,0)+IF(IncludeDeal4,-Spreadsheet10.3!E1055,0) -> 8.005218491 | F48: =IF(IncludeDeal1,Spreadsheet10.3!F1055,0)+IF(IncludeDeal2,Spreadsheet10.3!F2057,0)+IF(IncludeDeal3,Spreadsheet10.3!F3057,0)+IF(IncludeDeal4,-Spreadsheet10.3!F1055,0) -> 10.01073637 | G48: =IF(IncludeDeal1,Spreadsheet10.3!G1055,0)+IF(IncludeDeal2,Spreadsheet10.3!G2057,0)+IF(IncludeDeal3,Spreadsheet10.3!G3057,0)+IF(IncludeDeal4,-Spreadsheet10.3!G1055,0) -> 10.57975111 | H48: =IF(IncludeDeal1,Spreadsheet10.3!H1055,0)+IF(IncludeDeal2,Spreadsheet10.3!H2057,0)+IF(IncludeDeal3,Spreadsheet10.3!H3057,0)+IF(IncludeDeal4,-Spreadsheet10.3!H1055,0) -> 12.21868393 | I48: =IF(IncludeDeal1,Spreadsheet10.3!I1055,0)+IF(IncludeDeal2,Spreadsheet10.3!I2057,0)+IF(IncludeDeal3,Spreadsheet10.3!I3057,0)+IF(IncludeDeal4,-Spreadsheet10.3!I1055,0) -> 12.80448507 | J48: =IF(IncludeDeal1,Spreadsheet10.3!J1055,0)+IF(IncludeDeal2,Spreadsheet10.3!J2057,0)+IF(IncludeDeal3,Spreadsheet10.3!J3057,0)+IF(IncludeDeal4,-Spreadsheet10.3!J1055,0) -> 11.30915489 | K48: =IF(IncludeDeal1,Spreadsheet10.3!K1055,0)+IF(IncludeDeal2,Spreadsheet10.3!K2057,0)+IF(IncludeDeal3,Spreadsheet10.3!K3057,0)+IF(IncludeDeal4,-Spreadsheet10.3!K1055,0) -> 11.74713999 | L48: =IF(IncludeDeal1,Spreadsheet10.3!L1055,0)+IF(IncludeDeal2,Spreadsheet10.3!L2057,0)+IF(IncludeDeal3,Spreadsheet10.3!L3057,0)+IF(IncludeDeal4,-Spreadsheet10.3!L1055,0) -> 14.75690218 | M48: =IF(IncludeDeal1,Spreadsheet10.3!M1055,0)+IF(IncludeDeal2,Spreadsheet10.3!M2057,0)+IF(IncludeDeal3,Spreadsheet10.3!M3057,0)+IF(IncludeDeal4,-Spreadsheet10.3!M1055,0) -> 13.12876071 | N48: =IF(IncludeDeal1,Spreadsheet10.3!N1055,0)+IF(IncludeDeal2,Spreadsheet10.3!N2057,0)+IF(IncludeDeal3,Spreadsheet10.3!N3057,0)+IF(IncludeDeal4,-Spreadsheet10.3!N1055,0) -> 14.70513368 | O48: =IF(IncludeDeal1,Spreadsheet10.3!O1055,0)+IF(IncludeDeal2,Spreadsheet10.3!O2057,0)+IF(IncludeDeal3,Spreadsheet10.3!O3057,0)+IF(IncludeDeal4,-Spreadsheet10.3!O1055,0) -> 14.34686519 | P48: =IF(IncludeDeal1,Spreadsheet10.3!P1055,0)+IF(IncludeDeal2,Spreadsheet10.3!P2057,0)+IF(IncludeDeal3,Spreadsheet10.3!P3057,0)+IF(IncludeDeal4,-Spreadsheet10.3!P1055,0) -> 12.08837273 | Q48: =IF(IncludeDeal1,Spreadsheet10.3!Q1055,0)+IF(IncludeDeal2,Spreadsheet10.3!Q2057,0)+IF(IncludeDeal3,Spreadsheet10.3!Q3057,0)+IF(IncludeDeal4,-Spreadsheet10.3!Q1055,0) -> 9.393283864 | R48: =IF(IncludeDeal1,Spreadsheet10.3!R1055,0)+IF(IncludeDeal2,Spreadsheet10.3!R2057,0)+IF(IncludeDeal3,Spreadsheet10.3!R3057,0)+IF(IncludeDeal4,-Spreadsheet10.3!R1055,0) -> 9.190076085 | S48: =IF(IncludeDeal1,Spreadsheet10.3!S1055,0)+IF(IncludeDeal2,Spreadsheet10.3!S2057,0)+IF(IncludeDeal3,Spreadsheet10.3!S3057,0)+IF(IncludeDeal4,-Spreadsheet10.3!S1055,0) -> 11.98187167 | T48: =IF(IncludeDeal1,Spreadsheet10.3!T1055,0)+IF(IncludeDeal2,Spreadsheet10.3!T2057,0)+IF(IncludeDeal3,Spreadsheet10.3!T3057,0)+IF(IncludeDeal4,-Spreadsheet10.3!T1055,0) -> 9.672613692 | U48: =IF(IncludeDeal1,Spreadsheet10.3!U1055,0)+IF(IncludeDeal2,Spreadsheet10.3!U2057,0)+IF(IncludeDeal3,Spreadsheet10.3!U3057,0)+IF(IncludeDeal4,-Spreadsheet10.3!U1055,0) -> 14.61320626 | V48: =IF(IncludeDeal1,Spreadsheet10.3!V1055,0)+IF(IncludeDeal2,Spreadsheet10.3!V2057,0)+IF(IncludeDeal3,Spreadsheet10.3!V3057,0)+IF(IncludeDeal4,-Spreadsheet10.3!V1055,0) -> 15.78110567 | W48: =IF(IncludeDeal1,Spreadsheet10.3!W1055,0)+IF(IncludeDeal2,Spreadsheet10.3!W2057,0)+IF(IncludeDeal3,Spreadsheet10.3!W3057,0)+IF(IncludeDeal4,-Spreadsheet10.3!W1055,0) -> 15.3457733 | X48: =IF(IncludeDeal1,Spreadsheet10.3!X1055,0)+IF(IncludeDeal2,Spreadsheet10.3!X2057,0)+IF(IncludeDeal3,Spreadsheet10.3!X3057,0)+IF(IncludeDeal4,-Spreadsheet10.3!X1055,0) -> 0 | Y48: =IF(IncludeDeal1,Spreadsheet10.3!Y1055,0)+IF(IncludeDeal2,Spreadsheet10.3!Y2057,0)+IF(IncludeDeal3,Spreadsheet10.3!Y3057,0)+IF(IncludeDeal4,-Spreadsheet10.3!Y1055,0) -> 0 | Z48: =IF(IncludeDeal1,Spreadsheet10.3!Z1055,0)+IF(IncludeDeal2,Spreadsheet10.3!Z2057,0)+IF(IncludeDeal3,Spreadsheet10.3!Z3057,0)+IF(IncludeDeal4,-Spreadsheet10.3!Z1055,0) -> 0 | AA48: =IF(IncludeDeal1,Spreadsheet10.3!AA1055,0)+IF(IncludeDeal2,Spreadsheet10.3!AA2057,0)+IF(IncludeDeal3,Spreadsheet10.3!AA3057,0)+IF(IncludeDeal4,-Spreadsheet10.3!AA1055,0) -> 0 | AB48: =IF(IncludeDeal1,Spreadsheet10.3!AB1055,0)+IF(IncludeDeal2,Spreadsheet10.3!AB2057,0)+IF(IncludeDeal3,Spreadsheet10.3!AB3057,0)+IF(IncludeDeal4,-Spreadsheet10.3!AB1055,0) -> 0 | AC48: =IF(IncludeDeal1,Spreadsheet10.3!AC1055,0)+IF(IncludeDeal2,Spreadsheet10.3!AC2057,0)+IF(IncludeDeal3,Spreadsheet10.3!AC3057,0)+IF(IncludeDeal4,-Spreadsheet10.3!AC1055,0) -> 0 | AD48: =IF(IncludeDeal1,Spreadsheet10.3!AD1055,0)+IF(IncludeDeal2,Spreadsheet10.3!AD2057,0)+IF(IncludeDeal3,Spreadsheet10.3!AD3057,0)+IF(IncludeDeal4,-Spreadsheet10.3!AD1055,0) -> 0 | AE48: =IF(IncludeDeal1,Spreadsheet10.3!AE1055,0)+IF(IncludeDeal2,Spreadsheet10.3!AE2057,0)+IF(IncludeDeal3,Spreadsheet10.3!AE3057,0)+IF(IncludeDeal4,-Spreadsheet10.3!AE1055,0) -> 0
B49: Simulation 20 | C49: =IF(IncludeDeal1,Spreadsheet10.3!C1056,0)+IF(IncludeDeal2,Spreadsheet10.3!C2058,0)+IF(IncludeDeal3,Spreadsheet10.3!C3058,0)+IF(IncludeDeal4,-Spreadsheet10.3!C1056,0) -> -1.533736822 | D49: =IF(IncludeDeal1,Spreadsheet10.3!D1056,0)+IF(IncludeDeal2,Spreadsheet10.3!D2058,0)+IF(IncludeDeal3,Spreadsheet10.3!D3058,0)+IF(IncludeDeal4,-Spreadsheet10.3!D1056,0) -> 6.727597433 | E49: =IF(IncludeDeal1,Spreadsheet10.3!E1056,0)+IF(IncludeDeal2,Spreadsheet10.3!E2058,0)+IF(IncludeDeal3,Spreadsheet10.3!E3058,0)+IF(IncludeDeal4,-Spreadsheet10.3!E1056,0) -> 9.212945961 | F49: =IF(IncludeDeal1,Spreadsheet10.3!F1056,0)+IF(IncludeDeal2,Spreadsheet10.3!F2058,0)+IF(IncludeDeal3,Spreadsheet10.3!F3058,0)+IF(IncludeDeal4,-Spreadsheet10.3!F1056,0) -> 12.4522881 | G49: =IF(IncludeDeal1,Spreadsheet10.3!G1056,0)+IF(IncludeDeal2,Spreadsheet10.3!G2058,0)+IF(IncludeDeal3,Spreadsheet10.3!G3058,0)+IF(IncludeDeal4,-Spreadsheet10.3!G1056,0) -> 12.400386 | H49: =IF(IncludeDeal1,Spreadsheet10.3!H1056,0)+IF(IncludeDeal2,Spreadsheet10.3!H2058,0)+IF(IncludeDeal3,Spreadsheet10.3!H3058,0)+IF(IncludeDeal4,-Spreadsheet10.3!H1056,0) -> 15.1110302 | I49: =IF(IncludeDeal1,Spreadsheet10.3!I1056,0)+IF(IncludeDeal2,Spreadsheet10.3!I2058,0)+IF(IncludeDeal3,Spreadsheet10.3!I3058,0)+IF(IncludeDeal4,-Spreadsheet10.3!I1056,0) -> 16.6974164 | J49: =IF(IncludeDeal1,Spreadsheet10.3!J1056,0)+IF(IncludeDeal2,Spreadsheet10.3!J2058,0)+IF(IncludeDeal3,Spreadsheet10.3!J3058,0)+IF(IncludeDeal4,-Spreadsheet10.3!J1056,0) -> 18.85775677 | K49: =IF(IncludeDeal1,Spreadsheet10.3!K1056,0)+IF(IncludeDeal2,Spreadsheet10.3!K2058,0)+IF(IncludeDeal3,Spreadsheet10.3!K3058,0)+IF(IncludeDeal4,-Spreadsheet10.3!K1056,0) -> 18.75035698 | L49: =IF(IncludeDeal1,Spreadsheet10.3!L1056,0)+IF(IncludeDeal2,Spreadsheet10.3!L2058,0)+IF(IncludeDeal3,Spreadsheet10.3!L3058,0)+IF(IncludeDeal4,-Spreadsheet10.3!L1056,0) -> 21.21983723 | M49: =IF(IncludeDeal1,Spreadsheet10.3!M1056,0)+IF(IncludeDeal2,Spreadsheet10.3!M2058,0)+IF(IncludeDeal3,Spreadsheet10.3!M3058,0)+IF(IncludeDeal4,-Spreadsheet10.3!M1056,0) -> 19.06484533 | N49: =IF(IncludeDeal1,Spreadsheet10.3!N1056,0)+IF(IncludeDeal2,Spreadsheet10.3!N2058,0)+IF(IncludeDeal3,Spreadsheet10.3!N3058,0)+IF(IncludeDeal4,-Spreadsheet10.3!N1056,0) -> 20.17644906 | O49: =IF(IncludeDeal1,Spreadsheet10.3!O1056,0)+IF(IncludeDeal2,Spreadsheet10.3!O2058,0)+IF(IncludeDeal3,Spreadsheet10.3!O3058,0)+IF(IncludeDeal4,-Spreadsheet10.3!O1056,0) -> 21.02632743 | P49: =IF(IncludeDeal1,Spreadsheet10.3!P1056,0)+IF(IncludeDeal2,Spreadsheet10.3!P2058,0)+IF(IncludeDeal3,Spreadsheet10.3!P3058,0)+IF(IncludeDeal4,-Spreadsheet10.3!P1056,0) -> 21.10982862 | Q49: =IF(IncludeDeal1,Spreadsheet10.3!Q1056,0)+IF(IncludeDeal2,Spreadsheet10.3!Q2058,0)+IF(IncludeDeal3,Spreadsheet10.3!Q3058,0)+IF(IncludeDeal4,-Spreadsheet10.3!Q1056,0) -> 19.90235229 | R49: =IF(IncludeDeal1,Spreadsheet10.3!R1056,0)+IF(IncludeDeal2,Spreadsheet10.3!R2058,0)+IF(IncludeDeal3,Spreadsheet10.3!R3058,0)+IF(IncludeDeal4,-Spreadsheet10.3!R1056,0) -> 19.54404188 | S49: =IF(IncludeDeal1,Spreadsheet10.3!S1056,0)+IF(IncludeDeal2,Spreadsheet10.3!S2058,0)+IF(IncludeDeal3,Spreadsheet10.3!S3058,0)+IF(IncludeDeal4,-Spreadsheet10.3!S1056,0) -> 20.30168135 | T49: =IF(IncludeDeal1,Spreadsheet10.3!T1056,0)+IF(IncludeDeal2,Spreadsheet10.3!T2058,0)+IF(IncludeDeal3,Spreadsheet10.3!T3058,0)+IF(IncludeDeal4,-Spreadsheet10.3!T1056,0) -> 19.03835213 | U49: =IF(IncludeDeal1,Spreadsheet10.3!U1056,0)+IF(IncludeDeal2,Spreadsheet10.3!U2058,0)+IF(IncludeDeal3,Spreadsheet10.3!U3058,0)+IF(IncludeDeal4,-Spreadsheet10.3!U1056,0) -> 20.7260315 | V49: =IF(IncludeDeal1,Spreadsheet10.3!V1056,0)+IF(IncludeDeal2,Spreadsheet10.3!V2058,0)+IF(IncludeDeal3,Spreadsheet10.3!V3058,0)+IF(IncludeDeal4,-Spreadsheet10.3!V1056,0) -> 22.34767148 | W49: =IF(IncludeDeal1,Spreadsheet10.3!W1056,0)+IF(IncludeDeal2,Spreadsheet10.3!W2058,0)+IF(IncludeDeal3,Spreadsheet10.3!W3058,0)+IF(IncludeDeal4,-Spreadsheet10.3!W1056,0) -> 22.00269472 | X49: =IF(IncludeDeal1,Spreadsheet10.3!X1056,0)+IF(IncludeDeal2,Spreadsheet10.3!X2058,0)+IF(IncludeDeal3,Spreadsheet10.3!X3058,0)+IF(IncludeDeal4,-Spreadsheet10.3!X1056,0) -> 0 | Y49: =IF(IncludeDeal1,Spreadsheet10.3!Y1056,0)+IF(IncludeDeal2,Spreadsheet10.3!Y2058,0)+IF(IncludeDeal3,Spreadsheet10.3!Y3058,0)+IF(IncludeDeal4,-Spreadsheet10.3!Y1056,0) -> 0 | Z49: =IF(IncludeDeal1,Spreadsheet10.3!Z1056,0)+IF(IncludeDeal2,Spreadsheet10.3!Z2058,0)+IF(IncludeDeal3,Spreadsheet10.3!Z3058,0)+IF(IncludeDeal4,-Spreadsheet10.3!Z1056,0) -> 0 | AA49: =IF(IncludeDeal1,Spreadsheet10.3!AA1056,0)+IF(IncludeDeal2,Spreadsheet10.3!AA2058,0)+IF(IncludeDeal3,Spreadsheet10.3!AA3058,0)+IF(IncludeDeal4,-Spreadsheet10.3!AA1056,0) -> 0 | AB49: =IF(IncludeDeal1,Spreadsheet10.3!AB1056,0)+IF(IncludeDeal2,Spreadsheet10.3!AB2058,0)+IF(IncludeDeal3,Spreadsheet10.3!AB3058,0)+IF(IncludeDeal4,-Spreadsheet10.3!AB1056,0) -> 0 | AC49: =IF(IncludeDeal1,Spreadsheet10.3!AC1056,0)+IF(IncludeDeal2,Spreadsheet10.3!AC2058,0)+IF(IncludeDeal3,Spreadsheet10.3!AC3058,0)+IF(IncludeDeal4,-Spreadsheet10.3!AC1056,0) -> 0 | AD49: =IF(IncludeDeal1,Spreadsheet10.3!AD1056,0)+IF(IncludeDeal2,Spreadsheet10.3!AD2058,0)+IF(IncludeDeal3,Spreadsheet10.3!AD3058,0)+IF(IncludeDeal4,-Spreadsheet10.3!AD1056,0) -> 0 | AE49: =IF(IncludeDeal1,Spreadsheet10.3!AE1056,0)+IF(IncludeDeal2,Spreadsheet10.3!AE2058,0)+IF(IncludeDeal3,Spreadsheet10.3!AE3058,0)+IF(IncludeDeal4,-Spreadsheet10.3!AE1056,0) -> 0
